Workbook

Sheet Menú
B38: DataMéxico: | C38: https://datamexico.org/
B39: Gob.mx | C39: https://www.gob.mx/se/acciones-y-programas/competitividad-y-normatividad-inversion-extranjera-directa
B40: Datos Abiertos | C40: https://datos.gob.mx/busca/dataset?q=inversion%20extranjera&
C45: Datos recientes sobre IED en México
C46: IED en México en enero-diciembre de 2022 (Secretaría de Economía)
C47: Expectativas de IED para 2022 (Banco de México)
C49: Variación de la IED en México en enero-diciembre 2022 con respecto al mismo periodo de 2020
C50: IED en México por trimestre
C51: IED en México por año
C52: IED en México por tipo de inversión
C53: IED en México por país de origen
C54: IED en México por sector económico
C55: IED en México por entidad federativa
C57: Países y Estados, principales países de origen y entidades federativas de destino de la IED en México
C58: Principales países de origen de los flujos de IED en México
C59: Principales entidades federativas receptoras de los flujos de IED en México
C61: Series históricas de IED en México
C62: IED por tipo de inversión (1980-2022), de acuerdo a los datos publicados por la Secretaría de Economía
C63: IED por tipo de inversión (1980-2022), de acuerdo a los datos publicados por el Banco de México
C64: IED por país de origen (1980-2022), de acuerdo a los datos publicados por la Secretaría de Economía
C65: IED por sector económico (1980-2022), de acuerdo a los datos publicados por la Secretaría de Economía
C66: IED por entidad federativa (1989-2022), de acuerdo a los datos publicados por la Secretaría de Economía
C68: Inward o IED recibida a nivel internacional
C69: Principales países receptores de IED
C70: Participación de la IED recibida por México respecto al total mundial
C71: Participación de la IED recibida por México respecto a los países en desarrollo y Latinoamérica
C72: Acervos de IED
C74: Outward o IED emitida a nivel internacional
C75: Principales países emisores de flujos de IED
C77: IED en la Balanza de Pagos y la congruencia entre las cifras publicadas por Banco de México y la Secretaría de Economía
C79: Estadísticas complementarias, referencias internacionales para posicionar a México en el mundo
C80: IED como porcentaje del PIB en países seleccionados
C81: IED como porcentaje de la Formación Bruta de Capital Fijo (FBKF) en países seleccionados
C82: Flujos de IED per cápita
C84: Siglas utilizadas en el documento

Sheet Datos recientes
A4: CONTENIDO
A5: * IED en México enero-diciembre 2022 (Secretaría de Economía)
A6: * Expectativas de IED en México para 2022 (Banco de México)

Sheet Variaciones (2) (hidden)
A7: CONTENIDO
A8: * Nota Metodológica
A9: * IED en México en enero-junio por trimestre
A10: * IED en México en enero-junio por año
A11: * IED en México en enero-junio por tipo de inversión
A12: * IED en México en enero-junio por país de origen
A13: * IED en México en enero-junio por sector económico
A14: * IED en México en enero-junio por entidad federativa
A34: https://www.gob.mx/se/acciones-y-programas/competitividad-y-normatividad-inversion-extranjera-directa?state=published
A36: IED en México en enero-junio por trimestre (millones de dólares)
B38: Tipo de inversión | C38: Originalmente publicado* | F38: Actualizado
C39: 2020 A | D39: 2021 B | E39: Variación [(B-A)/A]100 | F39: 2020 C | G39: 2021 B | H39: Variación [(B-C)/C]100
B40: Primer trimestre | C40: 11373.4839 | D40: 12477.95888 | E40: =((D40-C40)/C40)*100 -> 9.710964481 | F40: 16730.04545 | G40: 12477.95888 | H40: =((G40-F40)/F40)*100 -> -25.41586981
B41: Segundo trimestre | C41: 6595.780748 | D41: 5955.51066 | E41: =((D41-C41)/C41)*100 -> -9.707267607 | F41: 7278.919703 | G41: 5955.51066 | H41: =((G41-F41)/F41)*100 -> -18.18139362
B42: Enero-junio | C42: 17969.26465 | D42: 18433.46954 | E42: =((D42-C42)/C42)*100 -> 2.583327159 | F42: 24008.96516 | G42: 18433.46954 | H42: =((G42-F42)/F42)*100 -> -23.22255698
B43: *El dato para enero-junio incluye los datos originalmente publicados para cada trimestre más las actualizaciones que se recibieron para el primero y segundo trimestres; por ello, el dato enero-junio no es la suma de los datos originalmente publicados en cada trimestre. Para consultar las cifras originalmente publicadas desde 2009, se pueden revisar los informes al H. Congreso de Unión publicados en la página: gob.mx:
B44: https://www.gob.mx/se/acciones-y-programas/competitividad-y-normatividad-inversion-extranjera-directa
B45: Fuente: Secretaría de Economía
A47: IED en México en enero-junio por año (millones de dólares)
B49: Año | C49: Originalmente publicado | F49: Actualizado
C50: Monto | D50: Variación Anual | F50: Monto | G50: Variación anual
B51: 1999 | C51: 6967.520185 | F51: 6967.526434
B52: 2000 | C52: 10358.3 | D52: =IF(AND(C52=0,C51=0),0,IF(AND(C52=0,C51<0),-100,IF(AND(C52=0,C51>0),100,IF(AND(C52<0,C51=0),100,IF(AND(C52<0,C51<0),-((C51-C52)/C52)*100,IF(AND(C52<0,C51>0),-((C51-C52)/C52)*100,IF(C52>0,((C51-C52)/C52)*100,"error"))))))) -> -32.73490645 | E52: =IF(AND(C52=0,D52=0),0,IF(AND(C52=0,D52<0),-100,IF(AND(C52=0,D52>0),100,IF(AND(C52<0,D52=0),100,IF(AND(C52<0,D52<0),-((D52-C52)/C52)*100,IF(AND(C52<0,D52>0),-((D52-C52)/C52)*100,IF(C52>0,((D52-C52)/C52)*100,"error"))))))) -> -100.3160259 | F52: 18248.68839 | G52: =IF(AND(F52=0,F51=0),0,IF(AND(F52=0,F51<0),-100,IF(AND(F52=0,F51>0),100,IF(AND(F52<0,F51=0),100,IF(AND(F52<0,F51<0),-((F51-F52)/F52)*100,IF(AND(F52<0,F51>0),-((F51-F52)/F52)*100,IF(F52>0,((F51-F52)/F52)*100,"error"))))))) -> -61.81902894 | H52: =IF(AND(F52=0,G52=0),0,IF(AND(F52=0,G52<0),-100,IF(AND(F52=0,G52>0),100,IF(AND(F52<0,G52=0),100,IF(AND(F52<0,G52<0),-((G52-F52)/F52)*100,IF(AND(F52<0,G52>0),-((G52-F52)/F52)*100,IF(F52>0,((G52-F52)/F52)*100,"error"))))))) -> -100.3387588
B53: 2001 | C53: 23168.4 | D53: =IF(AND(C53=0,C52=0),0,IF(AND(C53=0,C52<0),-100,IF(AND(C53=0,C52>0),100,IF(AND(C53<0,C52=0),100,IF(AND(C53<0,C52<0),-((C52-C53)/C53)*100,IF(AND(C53<0,C52>0),-((C52-C53)/C53)*100,IF(C53>0,((C52-C53)/C53)*100,"error"))))))) -> -55.29125878 | E53: =IF(AND(C53=0,D53=0),0,IF(AND(C53=0,D53<0),-100,IF(AND(C53=0,D53>0),100,IF(AND(C53<0,D53=0),100,IF(AND(C53<0,D53<0),-((D53-C53)/C53)*100,IF(AND(C53<0,D53>0),-((D53-C53)/C53)*100,IF(C53>0,((D53-C53)/C53)*100,"error"))))))) -> -100.2386494 | F53: 30057.16075 | G53: =IF(AND(F53=0,F52=0),0,IF(AND(F53=0,F52<0),-100,IF(AND(F53=0,F52>0),100,IF(AND(F53<0,F52=0),100,IF(AND(F53<0,F52<0),-((F52-F53)/F53)*100,IF(AND(F53<0,F52>0),-((F52-F53)/F53)*100,IF(F53>0,((F52-F53)/F53)*100,"error"))))))) -> -39.28671925 | H53: =IF(AND(F53=0,G53=0),0,IF(AND(F53=0,G53<0),-100,IF(AND(F53=0,G53>0),100,IF(AND(F53<0,G53=0),100,IF(AND(F53<0,G53<0),-((G53-F53)/F53)*100,IF(AND(F53<0,G53>0),-((G53-F53)/F53)*100,IF(F53>0,((G53-F53)/F53)*100,"error"))))))) -> -100.1307067
B54: 2002 | C54: 9696.4 | D54: 138.9381626 | E54: -98.56711602 | F54: 24099.20621 | G54: 24.72261734 | H54: -99.89741315
B55: 2003 | C55: 9431.4 | D55: 2.809763132 | E55: -99.97020842 | F55: 18249.96878 | G55: 32.05067092 | H55: -99.82437958
B56: 2004 | C56: 15846.4 | D56: -40.48238086 | E56: -100.2554674 | F56: 25014.14697 | G56: -27.04141062 | H56: -100.1081045
B57: 2005 | C57: 11093.3 | D57: 42.84658307 | E57: -99.61376161 | F57: 25795.64874 | G57: -3.029587564 | H57: -100.0117446
B58: 2006 | C58: 14638.3 | D58: -24.21729299 | E58: -100.1654379 | F58: 21232.4225 | G58: 21.49178335 | H58: -99.89877847
B59: 2007 | C59: 19729.2 | D59: -25.8038846 | E59: -100.1307903 | F59: 32393.19726 | G59: -34.4540697 | H59: -100.1063621
B60: 2008 | C60: 18589.3 | D60: 6.132022185 | E60: -99.96701316 | F60: 29502.19441 | G60: 9.799280703 | H60: -99.96678457
B61: 2009 | C61: 11417.5 | D61: 62.81410116 | E61: -99.44984365 | F61: 17849.71675 | G61: 65.2810228 | H61: -99.63427418
B62: 2010 | C62: 17725.9 | D62: -35.58860199 | E62: -100.2007718 | F62: 27189.28039 | G62: -34.35016854 | H62: -100.1263372
B63: 2011 | C63: 19439.8 | D63: -8.816448729 | E63: -100.0453526 | F63: 25632.373 | G63: 6.073988481 | H63: -99.97630345
B64: 2012 | C64: 12659.4 | D64: 53.56020033 | E64: -99.5769136 | F64: 21769.31825 | G64: 17.74540991 | H64: -99.91848431
B65: 2013 | C65: 35188.4 | D65: -64.02393971 | E65: -100.1819462 | F65: 48354.41818 | G65: -54.9796708 | H65: -100.1137014
B66: 2014 | C66: 22568.4 | D66: 55.91889545 | E66: -99.75222481 | F66: 30351.09846 | G66: 59.31686376 | H66: -99.80456436
B67: 2015 | C67: 28382.3 | D67: -20.48424546 | E67: -100.0721726 | F67: 35943.75339 | G67: -15.5594628 | H67: -100.0432884
B68: 2016 | C68: 26738.6 | D68: 6.147292678 | E68: -99.97700967 | F68: 31187.83539 | G68: 15.24927249 | H68: -99.95110506
B69: 2017 | C69: 29695 | D69: -9.955884829 | E69: -100.0335271 | F69: 34012.41041 | G69: -8.304542314 | H69: -100.0244162
B70: 2018 | C70: 31604.3 | D70: -6.041266537 | E70: -100.0191153 | F70: 34097.22721 | G70: -0.2487498498 | H70: -100.0007295
B71: 2019 | C71: 32921.2 | D71: -4.000157953 | E71: -100.0121507 | F71: 34567.04635 | G71: -1.359153279 | H71: -100.0039319
B72: 2020 | C72: 29079.43309 | D72: 13.21128544 | E72: -99.95456828 | F72: 28195.14663 | G72: 22.59927853 | H72: -99.91984692
B73: 2021 | C73: 31621.20435 | D73: -8.038186123 | E73: -100.0254202 | F73: 31543.45746 | G73: -10.61491382 | H73: -100.0336517
B74: 2022 | C74: 32147.38886 | D74: =IF(AND(C74=0,C73=0),0,IF(AND(C74=0,C73<0),-100,IF(AND(C74=0,C73>0),100,IF(AND(C74<0,C73=0),100,IF(AND(C74<0,C73<0),-((C73-C74)/C74)*100,IF(AND(C74<0,C73>0),-((C73-C74)/C74)*100,IF(C74>0,((C73-C74)/C74)*100,"error"))))))) -> -1.636787722 | E74: =IF(AND(C74=0,D74=0),0,IF(AND(C74=0,D74<0),-100,IF(AND(C74=0,D74>0),100,IF(AND(C74<0,D74=0),100,IF(AND(C74<0,D74<0),-((D74-C74)/C74)*100,IF(AND(C74<0,D74>0),-((D74-C74)/C74)*100,IF(C74>0,((D74-C74)/C74)*100,"error"))))))) -> -100.0050915 | F74: 35291.61836 | G74: =IF(AND(F74=0,F73=0),0,IF(AND(F74=0,F73<0),-100,IF(AND(F74=0,F73>0),100,IF(AND(F74<0,F73=0),100,IF(AND(F74<0,F73<0),-((F73-F74)/F74)*100,IF(AND(F74<0,F73>0),-((F73-F74)/F74)*100,IF(F74>0,((F73-F74)/F74)*100,"error"))))))) -> -10.62054129 | H74: =IF(AND(F74=0,G74=0),0,IF(AND(F74=0,G74<0),-100,IF(AND(F74=0,G74>0),100,IF(AND(F74<0,G74=0),100,IF(AND(F74<0,G74<0),-((G74-F74)/F74)*100,IF(AND(F74<0,G74>0),-((G74-F74)/F74)*100,IF(F74>0,((G74-F74)/F74)*100,"error"))))))) -> -100.0300937
B75: Fuente: Secretaría de Economía
A77: IED en México en enero-junio por tipo de inversión (millones de dólares)
B79: Tipo de inversión | C79: Originalmente publicado | F79: Actualizado
C80: 2020 A | D80: 2021 B | E80: Variación [(B-A)/A]100 | F80: 2020 C | G80: 2021 B | H80: Variación [(B-C)/C]100
B81: Total | C81: 17969.26465 | D81: 18433.46954 | E81: =((D81-C81)/C81)*100 -> 2.583327159 | F81: 24008.96516 | G81: 18433.46954 | H81: =((G81-F81)/F81)*100 -> -23.22255698
B82: Nuevas inversiones | C82: 3039.740549 | D82: 6025.000694 | E82: =((D82-C82)/C82)*100 -> 98.20772851 | F82: 3375.612891 | G82: 6025.000694 | H82: =((G82-F82)/F82)*100 -> 78.48612648
B83: Reinversiones | C83: 9607.576493 | D83: 8658.214019 | E83: =((D83-C83)/C83)*100 -> -9.881393855 | F83: 15113.26273 | G83: 8658.214019 | H83: =((G83-F83)/F83)*100 -> -42.71115263
B84: Cuentas | C84: 5321.947607 | D84: 3750.254829 | E84: =((D84-C84)/C84)*100 -> -29.53228581 | F84: 5520.089533 | G84: 3750.254829 | H84: =((G84-F84)/F84)*100 -> -32.06170286
B85: Fuente: Secretaría de Economía
B87: IED en México en enero-junio por país de origen (millones de dólares)
B89: País de Origen | C89: Originalmente publicado | F89: Actualizado
C90: 2020 A | D90: 2021 B | E90: Variación [(B-A)/A]100 | F90: 2020 C | G90: 2021 B | H90: Variación [(B-C)/C]100
B91: Total | C91: 17969.26465 | D91: 18433.46954 | E91: =IF(AND(C91=0,D91=0),0,IF(AND(C91=0,D91<0),-100,IF(AND(C91=0,D91>0),100,IF(AND(C91<0,D91=0),100,IF(AND(C91<0,D91<0),-((D91-C91)/C91)*100,IF(AND(C91<0,D91>0),-((D91-C91)/C91)*100,IF(C91>0,((D91-C91)/C91)*100,"error"))))))) -> 2.583327159 | F91: 22092.6597 | G91: 27511.62373 | H91: =IF(AND(F91=0,G91=0),0,IF(AND(F91=0,G91<0),-100,IF(AND(F91=0,G91>0),100,IF(AND(F91<0,G91=0),100,IF(AND(F91<0,G91<0),-((G91-F91)/F91)*100,IF(AND(F91<0,G91>0),-((G91-F91)/F91)*100,IF(F91>0,((G91-F91)/F91)*100,"error"))))))) -> 24.5283461
B92: Estados Unidos | C92: 6937.076486 | D92: 9361.67914 | E92: 34.95136112 | F92: 9403.673004 | G92: 9361.67914 | H92: -0.446568747
B93: España | C93: 2003.863529 | D93: 1680.061531 | E93: -16.15888471 | F93: 4341.927376 | G93: 1680.061531 | H93: -61.30608861
B94: Canadá | C94: 3423.288104 | D94: 973.8376063 | E94: -71.55256652 | F94: 3602.20824 | G94: 973.8376063 | H94: -72.96553832
B95: Alemania | C95: 1217.524386 | D95: 1081.013743 | E95: -11.21214858 | F95: 1359.635414 | G95: 1081.013743 | H95: -20.49238116
B96: Reino Unido | C96: 585.0154588 | D96: 1092.076491 | E96: 86.67480912 | F96: 780.9387679 | G96: 1092.076491 | H96: 39.8415005
B97: Luxemburgo | C97: 6.1635035 | D97: 983.0469124 | E97: 15849.4825 | F97: 7.77777895 | G97: 983.0469124 | H97: 12539.17268
B98: Japón | C98: 316.6635036 | D98: 484.9490049 | E98: 53.14332074 | F98: 394.6286816 | G98: 484.9490049 | H98: 22.88741989
B99: Italia | C99: 343.6367646 | D99: 308.0672172 | E99: -10.35091439 | F99: 431.3274456 | G99: 308.0672172 | H99: -28.57694997
B100: Suiza | C100: 137.9659515 | D100: 174.5378732 | E100: 26.50793287 | F100: 558.362622 | G100: 174.5378732 | H100: -68.74112515
B101: Países Bajos | C101: 545.8009208 | D101: 99.953741 | E101: -81.68677677 | F101: 486.6993954 | G101: 99.953741 | H101: -79.4629412
B102: Resto | C102: 2452.266042 | D102: 2194.246283 | E102: -10.52168708 | F102: 725.4809734 | G102: 11272.40047 | H102: 1453.783061
B103: Fuente: Secretaría de Economía
A105: IED en México en enero-junio por sector económico (millones de dólares)
B107: Sector Económico | C107: Originalmente publicado | F107: Actualizado
C108: 2020 A | D108: 2021 B | E108: Variación [(B-A)/A]100 | F108: 2020 C | G108: 2021 B | H108: Variación [(B-C)/C]100
B109: Total | C109: 17969.26465 | D109: 18433.46954 | E109: =IF(AND(C109=0,D109=0),0,IF(AND(C109=0,D109<0),-100,IF(AND(C109=0,D109>0),100,IF(AND(C109<0,D109=0),100,IF(AND(C109<0,D109<0),-((D109-C109)/C109)*100,IF(AND(C109<0,D109>0),-((D109-C109)/C109)*100,IF(C109>0,((D109-C109)/C109)*100,"error"))))))) -> 2.583327159 | F109: 24008.96516 | G109: 18433.46954 | H109: =IF(AND(F109=0,G109=0),0,IF(AND(F109=0,G109<0),-100,IF(AND(F109=0,G109>0),100,IF(AND(F109<0,G109=0),100,IF(AND(F109<0,G109<0),-((G109-F109)/F109)*100,IF(AND(F109<0,G109>0),-((G109-F109)/F109)*100,IF(F109>0,((G109-F109)/F109)*100,"error"))))))) -> -23.22255698
B110: Agropecuario | C110: 56.34755081 | D110: 68.88787857 | E110: 22.25532003 | F110: 93.24710667 | G110: 68.88787857 | H110: -26.12330717
B111: Industrial | C111: 9971.56428 | D111: 10939.94243 | E111: 9.71139655 | F111: 11414.89221 | G111: 10939.94243 | H111: -4.160790734
B112: Minería | C112: 872.965765 | D112: 2496.613052 | E112: 185.9920917 | F112: 960.3726071 | G112: 2496.613052 | H112: 159.9629595
B113: Electricidad y agua | C113: 866.216542 | D113: 666.1099491 | E113: -23.10122045 | F113: 1031.038592 | G113: 666.1099491 | H113: -35.39427579
B114: Construcción | C114: 470.9498851 | D114: 295.2964939 | E114: -37.29768214 | F114: 703.56027 | G114: 295.2964939 | H114: -58.02825905
B115: Manufacturas | C115: 7761.432087 | D115: 7481.922934 | E115: -3.601257473 | F115: 8719.920737 | G115: 7481.922934 | H115: -14.19735156
B116: Servicios | C116: 7941.352818 | D116: 7424.639235 | E116: -6.50661915 | F116: 12500.82584 | G116: 7424.639235 | H116: -40.60681008
B117: Comercio | C117: 1183.278359 | D117: 1593.905605 | E117: 34.70250616 | F117: 1542.684263 | G117: 1593.905605 | H117: 3.320273824
B118: Transportes | C118: 2533.710113 | D118: 1903.176928 | E118: -24.88576658 | F118: 2572.752442 | G118: 1903.176928 | H118: -26.02564874
B119: Información en medios masivos | C119: 718.207324 | D119: 418.6013028 | E119: -41.71581257 | F119: 730.6259919 | G119: 418.6013028 | H119: -42.70648629
B120: Serv. financieros | C120: 2763.307805 | D120: 2131.109831 | E120: -22.8783045 | F120: 6465.211411 | G120: 2131.109831 | H120: -67.03727542
B121: Serv. inmobiliarios y de alquiler | C121: 176.8194903 | D121: 203.5863517 | E121: 15.13795871 | F121: 283.8277395 | G121: 203.5863517 | H121: -28.27115769
B122: Serv. profesionales | C122: 190.8394154 | D122: 226.7253252 | E122: 18.80424427 | F122: 197.972477 | G122: 226.7253252 | H122: 14.5236594
B123: Serv. de apoyo a los negocios | C123: 29.20500333 | D123: 94.72689491 | E123: 224.3515977 | F123: 23.89691594 | G123: 94.72689491 | H123: 296.3979919
B124: Serv. educativos | C124: 7.03827142 | D124: 27.93412686 | E124: 296.8890256 | F124: 7.03827142 | G124: 27.93412686 | H124: 296.8890256
B125: Serv. de salud | C125: 11.58013913 | D125: 6.46963726 | E125: -44.13161027 | F125: 11.58276694 | G125: 6.46963726 | H125: -44.14428527
B126: Serv. de esparcimiento | C126: 11.85426171 | D126: 42.97672685 | E126: 262.5424164 | F126: 21.36411755 | G126: 42.97672685 | H126: 101.1631267
B127: Serv. de alojamiento temporal | C127: 311.032299 | D127: 716.831506 | E127: 130.4685103 | F127: 624.9147729 | G127: 716.831506 | H127: 14.70868302
B128: Otros servicios | C128: 4.48033689 | D128: 58.59499904 | E128: 1207.825739 | F128: 18.95467484 | G128: 58.59499904 | H128: 209.1321773
B129: Fuente: Secretaría de Economía
A131: IED en México en enero-junio por entidad federativa (millones de dólares)
B133: Entidad Federativa | C133: Originalmente publicado | F133: Actualizado
C134: 2020 A | D134: 2021 B | E134: Variación [(B-A)/A]100 | F134: 2020 C | G134: 2021 B | H134: Variación [(B-C)/C]100
B135: Total | C135: 17969.26465 | D135: 18433.46954 | E135: =IF(AND(C135=0,D135=0),0,IF(AND(C135=0,D135<0),-100,IF(AND(C135=0,D135>0),100,IF(AND(C135<0,D135=0),100,IF(AND(C135<0,D135<0),-((D135-C135)/C135)*100,IF(AND(C135<0,D135>0),-((D135-C135)/C135)*100,IF(C135>0,((D135-C135)/C135)*100,"error"))))))) -> 2.583327159 | F135: 24008.96516 | G135: 18433.46954 | H135: =((G135-F135)/F135)*100 -> -23.22255698
B136: Aguascalientes | C136: 226.9628869 | D136: 238.0387725 | E136: 4.880042636 | F136: 243.8393466 | G136: 238.0387725 | H136: -2.378850735
B137: Baja California | C137: 761.199707 | D137: 1625.823745 | E137: 113.5870167 | F137: 940.8416763 | G137: 1625.823745 | H137: 72.80524302
B138: Baja California Sur | C138: 127.5704124 | D138: 526.8750299 | E138: 313.0072325 | F138: 405.8009758 | G138: 526.8750299 | H138: 29.83582135
B139: Campeche | C139: 93.41446254 | D139: 108.7046168 | E139: 16.36808034 | F139: 108.7034041 | G139: 108.7046168 | H139: 0.001115622836
B140: Chiapas | C140: 57.88959263 | D140: 183.7954965 | E140: 217.4931593 | F140: 147.5629813 | G140: 183.7954965 | H140: 24.55393274
B141: Chihuahua | C141: 465.2932647 | D141: 1049.117525 | E141: 125.4744706 | F141: 570.3019884 | G141: 1049.117525 | H141: 83.95824436
B142: Ciudad de México | C142: 3419.767894 | D142: 3270.230288 | E142: -4.372741387 | F142: 5441.289778 | G142: 3270.230288 | H142: -39.89972192
B143: Coahuila | C143: 623.7258173 | D143: 963.2731688 | E143: 54.4385597 | F143: 807.0473402 | G143: 963.2731688 | H143: 19.35770317
B144: Colima | C144: 78.32186789 | D144: 25.88981908 | E144: -66.94432886 | F144: 101.3647926 | G144: 25.88981908 | H144: -74.4587658
B145: Durango | C145: 512.0703988 | D145: 412.0404774 | E145: -19.53440809 | F145: 554.1859579 | G145: 412.0404774 | H145: -25.64941938
B146: Estado de México | C146: 1335.849042 | D146: 620.6292182 | E146: -53.54046762 | F146: 2114.037863 | G146: 620.6292182 | H146: -70.64247387
B147: Guanajuato | C147: 324.5283359 | D147: 1016.09211 | E147: 213.0981173 | F147: 545.9084749 | G147: 1016.09211 | H147: 86.12865646
B148: Guerrero | C148: 219.2513958 | D148: 229.5054244 | E148: 4.676836204 | F148: 293.9502487 | G148: 229.5054244 | H148: -21.92371824
B149: Hidalgo | C149: 197.7722793 | D149: 65.69595134 | E149: -66.78202245 | F149: 234.8774139 | G149: 65.69595134 | H149: -72.02968551
B150: Jalisco | C150: 1542.681281 | D150: 874.7203962 | E150: -43.29869644 | F150: 2043.650529 | G150: 874.7203962 | H150: -57.19814207
B151: Michoacán | C151: 161.0017754 | D151: 992.9080247 | E151: 516.706258 | F151: 256.5837275 | G151: 992.9080247 | H151: 286.9723285
B152: Morelos | C152: 62.92930486 | D152: 127.6393566 | E152: 102.8297577 | F152: 108.2905435 | G152: 127.6393566 | H152: 17.86750025
B153: Nayarit | C153: 639.7652438 | D153: 122.583846 | E153: -80.83924578 | F153: 667.6340899 | G153: 122.583846 | H153: -81.6390673
B154: Nuevo León | C154: 1922.550609 | D154: 1454.802434 | E154: -24.32956368 | F154: 2022.958507 | G154: 1454.802434 | H154: -28.08540415
B155: Oaxaca | C155: 242.9426853 | D155: 99.21897631 | E155: -59.15951279 | F155: 285.7605379 | G155: 99.21897631 | H155: -65.27897902
B156: Puebla | C156: 544.8946227 | D156: 207.7472314 | E156: -61.87387015 | F156: 661.6197995 | G156: 207.7472314 | H156: -68.60020944
B157: Querétaro | C157: 616.7941245 | D157: 341.7705473 | E157: -44.58920185 | F157: 809.7854564 | G157: 341.7705473 | H157: -57.79492647
B158: Quintana Roo | C158: 1.681422014 | D158: 164.5953297 | E158: 9689.055235 | F158: 89.01807411 | G158: 164.5953297 | H158: 84.901023
B159: San Luis Potosí | C159: 883.282893 | D159: 662.9706337 | E159: -24.94243477 | F159: 1022.390596 | G159: 662.9706337 | H159: -35.15485799
B160: Sinaloa | C160: 660.9737993 | D160: 180.2938487 | E160: -72.72299614 | F160: 737.4296556 | G160: 180.2938487 | H160: -75.55104445
B161: Sonora | C161: 295.8316302 | D161: 911.9259293 | E161: 208.2584268 | F161: 390.0473912 | G161: 911.9259293 | H161: 133.7987511
B162: Tabasco | C162: 291.9264156 | D162: 169.0348771 | E162: -42.09675176 | F162: 327.1886382 | G162: 169.0348771 | H162: -48.33718004
B163: Tamaulipas | C163: 386.558813 | D163: 601.966805 | E163: 55.72450681 | F163: 507.4222548 | G163: 601.966805 | H163: 18.63232235
B164: Tlaxcala | C164: 315.2717619 | D164: 74.04223818 | E164: -76.5147891 | F164: 341.1821653 | G164: 74.04223818 | H164: -78.2983269
B165: Veracruz | C165: 849.7418337 | D165: 468.6764166 | E165: -44.84484604 | F165: 1052.41433 | G165: 468.6764166 | H165: -55.46654933
B166: Yucatán | C166: 81.10830138 | D166: 39.95046378 | E166: -50.74429731 | F166: 128.8347221 | G166: 39.95046378 | H166: -68.99091866
B167: Zacatecas | C167: 25.71077445 | D167: 602.9105442 | E167: 2244.97232 | F167: 47.04189669 | G167: 602.9105442 | H167: 1181.645908
B168: Fuente: Secretaría de Economía

Sheet Variaciones
A7: CONTENIDO
A8: * Nota Metodológica
A9: * IED en México en enero-diciembre por trimestre
A10: * IED en México en enero-diciembre por año
A11: * IED en México en enero-diciembre por tipo de inversión
A12: * IED en México en enero-diciembre por país de origen
A13: * IED en México en enero-diciembre por sector económico
A14: * IED en México en enero-diciembre por entidad federativa
A34: https://www.gob.mx/se/acciones-y-programas/competitividad-y-normatividad-inversion-extranjera-directa?state=published
A36: IED en México en enero-diciembre por trimestre (millones de dólares)
B38: Tipo de inversión | C38: Originalmente publicado* | F38: Actualizado
C39: 2021 A | D39: 2022 B | E39: Variación [(B-A)/A]100 | F39: 2021 C | G39: 2022 B | H39: Variación [(B-C)/C]100
B40: Primer trimestre | C40: 15565.65046 | D40: 22776.97918 | E40: =((D40-C40)/C40)*100 -> 46.32847652 | F40: 16207.19473 | G40: 22776.97918 | H40: =((G40-F40)/F40)*100 -> 40.53622213
B41: Segundo trimestre | C41: 5903.485171 | D41: 7524.520253 | E41: =((D41-C41)/C41)*100 -> 27.45895069 | F41: 5881.557331 | G41: 7524.520253 | H41: =((G41-F41)/F41)*100 -> 27.93414787
B42: Tercer trimestre | C42: 6361.568459 | D42: 3441.971091 | E42: =((D42-C42)/C42)*100 -> -45.89430086 | F42: 6412.025616 | G42: 3441.971091 | H42: =((G42-F42)/F42)*100 -> -46.32006642
B43: Cuarto trimestre | C43: 3790.500257 | D43: 1548.147827 | E43: =((D43-C43)/C43)*100 -> -59.15716337 | F43: 3042.67978 | G43: 1548.147827 | H43: =((G43-F43)/F43)*100 -> -49.11893663
B44: Enero-diciembre | C44: 31621.20435 | D44: 35291.61836 | E44: =((D44-C44)/C44)*100 -> 11.60744532 | F44: 31543.45746 | G44: 35291.61836 | H44: =((G44-F44)/F44)*100 -> 11.88253033
B45: *El dato para enero-diciembre incluye los datos originalmente publicados para cada trimestre más las actualizaciones que se recibieron para el primero y segundo trimestres; por ello, el dato enero-diciembre no es la suma de los datos originalmente publicados en cada trimestre. Para consultar las cifras originalmente publicadas desde 2009, se pueden revisar los informes al H. Congreso de Unión publicados en la página: gob.mx:
B46: https://www.gob.mx/se/acciones-y-programas/competitividad-y-normatividad-inversion-extranjera-directa
B47: Fuente: Secretaría de Economía
A49: IED en México en enero-diciembre por año (millones de dólares)
B51: Año | C51: Originalmente publicado | F51: Actualizado
C52: Monto | D52: Variación Anual | F52: Monto | G52: Variación anual
B53: 2000 | C53: 10358.3 | D53: -32.73490645 | E53: -100.3160259 | F53: 18248.68839 | G53: -61.81902894 | H53: -100.3387588
B54: 2001 | C54: 23168.4 | D54: -55.29125878 | E54: -100.2386494 | F54: 30057.16075 | G54: -39.28671925 | H54: -100.1307067
B55: 2002 | C55: 9696.4 | D55: 138.9381626 | E55: -98.56711602 | F55: 24099.20621 | G55: 24.72261734 | H55: -99.89741315
B56: 2003 | C56: 9431.4 | D56: 2.809763132 | E56: -99.97020842 | F56: 18249.96878 | G56: 32.05067092 | H56: -99.82437958
B57: 2004 | C57: 15846.4 | D57: -40.48238086 | E57: -100.2554674 | F57: 25014.14697 | G57: -27.04141062 | H57: -100.1081045
B58: 2005 | C58: 11093.3 | D58: 42.84658307 | E58: -99.61376161 | F58: 25795.64874 | G58: -3.029587564 | H58: -100.0117446
B59: 2006 | C59: 14638.3 | D59: -24.21729299 | E59: -100.1654379 | F59: 21232.4225 | G59: 21.49178335 | H59: -99.89877847
B60: 2007 | C60: 19729.2 | D60: -25.8038846 | E60: -100.1307903 | F60: 32393.19726 | G60: -34.4540697 | H60: -100.1063621
B61: 2008 | C61: 18589.3 | D61: 6.132022185 | E61: -99.96701316 | F61: 29502.19441 | G61: 9.799280703 | H61: -99.96678457
B62: 2009 | C62: 11417.5 | D62: 62.81410116 | E62: -99.44984365 | F62: 17849.71675 | G62: 65.2810228 | H62: -99.63427418
B63: 2010 | C63: 17725.9 | D63: -35.58860199 | E63: -100.2007718 | F63: 27189.28039 | G63: -34.35016854 | H63: -100.1263372
B64: 2011 | C64: 19439.8 | D64: -8.816448729 | E64: -100.0453526 | F64: 25632.373 | G64: 6.073988481 | H64: -99.97630345
B65: 2012 | C65: 12659.4 | D65: 53.56020033 | E65: -99.5769136 | F65: 21769.31825 | G65: 17.74540991 | H65: -99.91848431
B66: 2013 | C66: 35188.4 | D66: -64.02393971 | E66: -100.1819462 | F66: 48354.41818 | G66: -54.9796708 | H66: -100.1137014
B67: 2014 | C67: 22568.4 | D67: 55.91889545 | E67: -99.75222481 | F67: 30351.09846 | G67: 59.31686376 | H67: -99.80456436
B68: 2015 | C68: 28382.3 | D68: -20.48424546 | E68: -100.0721726 | F68: 35943.75339 | G68: -15.5594628 | H68: -100.0432884
B69: 2016 | C69: 26738.6 | D69: 6.147292678 | E69: -99.97700967 | F69: 31187.83539 | G69: 15.24927249 | H69: -99.95110506
B70: 2017 | C70: 29695 | D70: -9.955884829 | E70: -100.0335271 | F70: 34012.41041 | G70: -8.304542314 | H70: -100.0244162
B71: 2018 | C71: 31604.3 | D71: -6.041266537 | E71: -100.0191153 | F71: 34097.22721 | G71: -0.2487498498 | H71: -100.0007295
B72: 2019 | C72: 32921.2 | D72: -4.000157953 | E72: -100.0121507 | F72: 34567.04635 | G72: -1.359153279 | H72: -100.0039319
B73: 2020 | C73: 29079.43309 | D73: 13.21128544 | E73: -99.95456828 | F73: 28195.14663 | G73: 22.59927853 | H73: -99.91984692
B74: 2021 | C74: 31621.20435 | D74: -8.038186123 | E74: -100.0254202 | F74: 31543.45746 | G74: -10.61491382 | H74: -100.0336517
B75: 2022 | C75: 35291.61836 | D75: -1.636787722 | E75: -100.0050915 | F75: 35291.61836 | G75: -10.62054129 | H75: -100.0300937
B76: Fuente: Secretaría de Economía
A78: IED en México en enero-diciembre por tipo de inversión (millones de dólares)
B80: Tipo de inversión | C80: Originalmente publicado | F80: Actualizado
C81: 2021 A | D81: 2022 B | E81: Variación [(B-A)/A]100 | F81: 2021 C | G81: 2022 B | H81: Variación [(B-C)/C]100
B82: Nuevas inversiones | C82: 13825.30167 | D82: 14519.88583 | E82: =((D82-C82)/C82)*100 -> 5.02400726 | F82: 13653.19907 | G82: 16993.09778 | H82: =((G82-F82)/F82)*100 -> 24.46238928
B83: Reinversiones | C83: 12213.01206 | D83: 14052.15139 | E83: =((D83-C83)/C83)*100 -> 15.05885134 | F83: 12658.86867 | G83: 16027.79041 | H83: =((G83-F83)/F83)*100 -> 26.61313443
B84: Cuentas | C84: 5582.89062 | D84: 3575.351645 | E84: =((D84-C84)/C84)*100 -> -35.95877319 | F84: 5231.389711 | G84: 2270.730168 | H84: =((G84-F84)/F84)*100 -> -56.59413094
B85: Total | C85: 31621.20435 | D85: 32147.38886 | E85: =((D85-C85)/C85)*100 -> 1.664024267 | F85: 31543.45746 | G85: 35291.61836 | H85: =((G85-F85)/F85)*100 -> 11.88253033
B86: Fuente: Secretaría de Economía
B88: IED en México en enero-diciembre por país de origen (millones de dólares)
B90: País de Origen | C90: Originalmente publicado | F90: Actualizado
C91: 2021 A | D91: 2022 B | E91: Variación [(B-A)/A]100 | F91: 2021 C | G91: 2022 B | H91: Variación [(B-C)/C]100
B92: Estados Unidos | C92: 15009.35941 | D92: 15021.5734 | E92: =IF(AND(C92=0,D92=0),0,IF(AND(C92=0,D92<0),-100,IF(AND(C92=0,D92>0),100,IF(AND(C92<0,D92=0),100,IF(AND(C92<0,D92<0),-((D92-C92)/C92)*100,IF(AND(C92<0,D92>0),-((D92-C92)/C92)*100,IF(C92>0,((D92-C92)/C92)*100,"error"))))))) -> 0.08137578408 | F92: 14590.64569 | G92: 15021.5734 | H92: =IF(AND(F92=0,G92=0),0,IF(AND(F92=0,G92<0),-100,IF(AND(F92=0,G92>0),100,IF(AND(F92<0,G92=0),100,IF(AND(F92<0,G92<0),-((G92-F92)/F92)*100,IF(AND(F92<0,G92>0),-((G92-F92)/F92)*100,IF(F92>0,((G92-F92)/F92)*100,"error"))))))) -> 2.953451971
B93: España | C93: 4334.682907 | D93: 1637.87999 | E93: -62.21453737 | F93: 4282.849487 | G93: 1637.87999 | H93: -61.75723674
B94: Canadá | C94: 2070.88885 | D94: 3780.101903 | E94: 82.53523854 | F94: 2478.587716 | G94: 3780.101903 | H94: 52.51031381
B95: Alemania | C95: 1645.664763 | D95: 215.2236797 | E95: -86.92177869 | F95: 2073.16663 | G95: 215.2236797 | H95: -89.61860197
B96: Reino Unido | C96: 1816.635825 | D96: 1757.828571 | E96: -3.237151517 | F96: 1664.815486 | G96: 1757.828571 | H96: 5.586990588
B97: Japón | C97: 1582.970365 | D97: 1838.815 | E97: 16.16231363 | F97: 1508.125213 | G97: 1838.815 | H97: 21.92721032
B98: Francia | C98: 385.8804823 | D98: 421.6824383 | E98: 9.2779909 | F98: 500.5271223 | G98: 421.6824383 | H98: -15.75233
B99: Luxemburgo | C99: 970.2535715 | D99: -2.219001229 | E99: -100.2287032 | F99: 970.2535714 | G99: -2.219001229 | H99: -100.2287032
B100: Corea | C100: 684.7300226 | D100: 673.4616054 | E100: -1.645673021 | F100: 692.7711768 | G100: 673.4616054 | H100: -2.787294283
B101: Suiza | C101: 384.0046957 | D101: 114.7962823 | E101: -70.10550037 | F101: 391.1281963 | G101: 114.7962823 | H101: -70.64995994
B102: Resto | C102: =C103-SUM(C92:C101) -> 2736.133455 | D102: 9832.47449 | E102: 259.3565391 | F102: =F103-SUM(F92:F101) -> 2390.587173 | G102: =G103-SUM(G92:G101) -> 9832.47449 | H102: 311.2995586
B103: Total | C103: 31621.20435 | D103: 35291.61836 | E103: =IF(AND(C103=0,D103=0),0,IF(AND(C103=0,D103<0),-100,IF(AND(C103=0,D103>0),100,IF(AND(C103<0,D103=0),100,IF(AND(C103<0,D103<0),-((D103-C103)/C103)*100,IF(AND(C103<0,D103>0),-((D103-C103)/C103)*100,IF(C103>0,((D103-C103)/C103)*100,"error"))))))) -> 11.60744532 | F103: 31543.45746 | G103: 35291.61836 | H103: =IF(AND(F103=0,G103=0),0,IF(AND(F103=0,G103<0),-100,IF(AND(F103=0,G103>0),100,IF(AND(F103<0,G103=0),100,IF(AND(F103<0,G103<0),-((G103-F103)/F103)*100,IF(AND(F103<0,G103>0),-((G103-F103)/F103)*100,IF(F103>0,((G103-F103)/F103)*100,"error"))))))) -> 11.88253033
B104: Fuente: Secretaría de Economía
A106: IED en México en enero-diciembre por sector económico (millones de dólares)
B108: Sector Económico | C108: Originalmente publicado | F108: Actualizado
C109: 2021 A | D109: 2022 B | E109: Variación [(B-A)/A]100 | F109: 2021 C | G109: 2022 B | H109: Variación [(B-C)/C]100
B110: Agropecuario | C110: 202.7 | D110: 242.4001269 | E110: =IF(AND(C110=0,D110=0),0,IF(AND(C110=0,D110<0),-100,IF(AND(C110=0,D110>0),100,IF(AND(C110<0,D110=0),100,IF(AND(C110<0,D110<0),-((D110-C110)/C110)*100,IF(AND(C110<0,D110>0),-((D110-C110)/C110)*100,IF(C110>0,((D110-C110)/C110)*100,"error"))))))) -> 19.58565708 | F110: 208.3135436 | G110: 242.4001269 | H110: =IF(AND(F110=0,G110=0),0,IF(AND(F110=0,G110<0),-100,IF(AND(F110=0,G110>0),100,IF(AND(F110<0,G110=0),100,IF(AND(F110<0,G110<0),-((G110-F110)/F110)*100,IF(AND(F110<0,G110>0),-((G110-F110)/F110)*100,IF(F110>0,((G110-F110)/F110)*100,"error"))))))) -> 16.36311434
B111: Industrial | C111: 18050.5 | D111: 16475.60756 | E111: -8.724924172 | F111: =SUM(F112:F115) -> 17300.11486 | G111: =SUM(G112:G115) -> 16475.60756 | H111: -4.765906501
B112: Minería | C112: 4800.5 | D112: 1603.448447 | E112: -66.59830336 | F112: 4833.134565 | G112: 1603.448447 | H112: -66.82384019
B113: Electricidad y agua | C113: 450.7 | D113: 865.8586265 | E113: 92.11418382 | F113: 611.9636914 | G113: 865.8586265 | H113: 41.48856193
B114: Construcción | C114: 240.8 | D114: 1295.23567 | E114: 437.8885672 | F114: 222.4782056 | G114: 1295.23567 | H114: 482.1854175
B115: Manufacturas | C115: 12558.5 | D115: 12711.06482 | E115: 1.214833134 | F115: 11632.5384 | G115: 12711.06482 | H115: 9.271634296
B116: Servicios | C116: 13363.1 | D116: 11771.4 | E116: -11.91115834 | F116: =SUM(F117:F128) -> 14035.02905 | G116: 11771.4 | H116: -16.12842441
B117: Comercio | C117: 2697.8 | D117: 2182.197313 | E117: -19.11196853 | F117: 2914.072507 | G117: 2182.197313 | H117: -25.11520191
B118: Transportes | C118: 2767.2 | D118: 5339.141394 | E118: 92.94382024 | F118: 3133.856462 | G118: 5339.141394 | H118: 70.36968533
B119: Información en medios masivos | C119: 577.2 | D119: 4485.421206 | E119: 677.1000011 | F119: 607.892115 | G119: 4485.421206 | H119: 637.8646795
B120: Serv. financieros | C120: 4750.4 | D120: 4640.001355 | E120: -2.3239863 | F120: 4887.149849 | G120: 4640.001355 | H120: -5.057108991
B121: Serv. inmobiliarios y de alquiler | C121: 253.4 | D121: 458.2804583 | E121: 80.8525881 | F121: 328.304527 | G121: 458.2804583 | H121: 39.59005148
B122: Serv. profesionales | C122: 236 | D122: 72.74738267 | E122: -69.17483785 | F122: 241.5490428 | G122: 72.74738267 | H122: -69.88297621
B123: Serv. de apoyo a los negocios | C123: 176 | D123: 156.2753898 | E123: -11.20716488 | F123: 196.8023621 | G123: 156.2753898 | H123: -20.59272655
B124: Serv. educativos | C124: 24.1 | D124: 24.42870165 | E124: 1.363907271 | F124: 24.10856808 | G124: 24.42870165 | H124: 1.32788298
B125: Serv. de salud | C125: 12.1 | D125: -7.412160733 | E125: -161.2575267 | F125: 12.13097676 | G125: -7.412160733 | H125: -161.1011041
B126: Serv. de esparcimiento | C126: 95.9 | D126: 45.17877086 | E126: -52.88970713 | F126: 95.92199218 | G126: 45.17877086 | H126: -52.90050818
B127: Serv. de alojamiento temporal | C127: 1644.1 | D127: 1278.715802 | E127: -22.22396436 | F127: 1465.938258 | G127: 1278.715802 | H127: -12.77151031
B128: Otros servicios | C128: 128.8 | D128: -101.3650912 | E128: -178.6996049 | F128: 127.3023914 | G128: -101.3650912 | H128: -179.6254415
B129: Actividades legislativas, gubernamentales, de impartición de justicia | C129: 0 | D129: 0.0001462515722 | E129: 100 | F129: 0 | G129: 0.0001462515722 | H129: 100
B130: Total | C130: 31621.2 | D130: 35291.61836 | E130: =IF(AND(C130=0,D130=0),0,IF(AND(C130=0,D130<0),-100,IF(AND(C130=0,D130>0),100,IF(AND(C130<0,D130=0),100,IF(AND(C130<0,D130<0),-((D130-C130)/C130)*100,IF(AND(C130<0,D130>0),-((D130-C130)/C130)*100,IF(C130>0,((D130-C130)/C130)*100,"error"))))))) -> 11.60746068 | F130: 31543.45746 | G130: 35291.61836 | H130: =IF(AND(F130=0,G130=0),0,IF(AND(F130=0,G130<0),-100,IF(AND(F130=0,G130>0),100,IF(AND(F130<0,G130=0),100,IF(AND(F130<0,G130<0),-((G130-F130)/F130)*100,IF(AND(F130<0,G130>0),-((G130-F130)/F130)*100,IF(F130>0,((G130-F130)/F130)*100,"error"))))))) -> 11.88253033
B131: Fuente: Secretaría de Economía
A133: IED en México en enero-diciembre por entidad federativa (millones de dólares)
B135: Entidad Federativa | C135: Originalmente publicado | F135: Actualizado
C136: 2021 A | D136: 2022 B | E136: Variación [(B-A)/A]100 | F136: 2021 C | G136: 2022 B | H136: Variación [(B-C)/C]100
B137: Aguascalientes | C137: 33.42883813 | D137: 594.8694046 | E137: =IF(AND(C137=0,D137=0),0,IF(AND(C137=0,D137<0),-100,IF(AND(C137=0,D137>0),100,IF(AND(C137<0,D137=0),100,IF(AND(C137<0,D137<0),-((D137-C137)/C137)*100,IF(AND(C137<0,D137>0),-((D137-C137)/C137)*100,IF(C137>0,((D137-C137)/C137)*100,"error"))))))) -> 1679.509663 | F137: 42.11103884 | G137: 594.8694046 | H137: =((G137-F137)/F137)*100 -> 1312.621063
B138: Baja California | C138: 2212.812735 | D138: 1877.305514 | E138: -15.16202506 | F138: 2222.613246 | G138: 1877.305514 | H138: -15.53611421
B139: Baja California Sur | C139: 1211.130356 | D139: 668.1419772 | E139: -44.83319041 | F139: 1078.842753 | G139: 668.1419772 | H139: -38.06864114
B140: Campeche | C140: 218.3977244 | D140: 40.39690726 | E140: -81.50305487 | F140: 218.4180737 | G140: 40.39690726 | H140: -81.50477817
B141: Chiapas | C141: 167.7788445 | D141: 186.7916724 | E141: 11.33207702 | F141: 157.0403179 | G141: 186.7916724 | H141: 18.94504219
B142: Chihuahua | C142: 1843.383637 | D142: 1875.864234 | E142: 1.762009599 | F142: 1907.594107 | G142: 1875.864234 | H142: -1.663345097
B143: Ciudad de México | C143: 5056.938473 | D143: 10923.26494 | E143: 116.0054942 | F143: 5478.598302 | G143: 10923.26494 | H143: 99.38065063
B144: Coahuila de Zaragoza | C144: 1043.379329 | D144: 792.4446391 | E144: -24.05018795 | F144: 1039.079944 | G144: 792.4446391 | H144: -23.7359316
B145: Colima | C145: 45.12106686 | D145: 96.85599832 | E145: 114.6580413 | F145: 89.94778018 | G145: 96.85599832 | H145: 7.680254168
B146: Durango | C146: 532.4734992 | D146: 565.5418218 | E146: 6.210322716 | F146: 461.8363757 | G146: 565.5418218 | H146: 22.45501906
B147: Estado de México | C147: 1624.823586 | D147: 1805.870026 | E147: 11.14252903 | F147: 1535.384041 | G147: 1805.870026 | H147: 17.6168292
B148: Guanajuato | C148: 1744.718866 | D148: 1564.4993 | E148: -10.32943299 | F148: 1799.317221 | G148: 1564.4993 | H148: -13.05039039
B149: Guerrero | C149: 667.7353066 | D149: 245.4533851 | E149: -63.24091557 | F149: 669.1022214 | G149: 245.4533851 | H149: -63.31601103
B150: Hidalgo | C150: 132.0632192 | D150: 410.5317735 | E150: 210.8600381 | F150: 176.2685344 | G150: 410.5317735 | H150: 132.9013371
B151: Jalisco | C151: 2098.312766 | D151: 2894.899946 | E151: 37.9632242 | F151: 2141.335233 | G151: 2894.899946 | H151: 35.19134707
B152: Michoacán de Ocampo | C152: 1032.170376 | D152: 165.7033533 | E152: -83.9461239 | F152: 1033.728079 | G152: 165.7033533 | H152: -83.97031514
B153: Morelos | C153: 93.13349908 | D153: 89.79031031 | E153: -3.589673749 | F153: 94.7685623 | G153: 89.79031031 | H153: -5.253062688
B154: Nayarit | C154: 242.2376164 | D154: 452.016501 | E154: 86.60045774 | F154: 215.0336141 | G154: 452.016501 | H154: 110.2073682
B155: Nuevo León | C155: 4026.156244 | D155: 4397.280158 | E155: 9.217821934 | F155: 3288.83936 | G155: 4397.280158 | H155: 33.70309938
B156: Oaxaca | C156: -109.0477955 | D156: 151.1339605 | E156: 238.5942373 | F156: -92.63349331 | G156: 151.1339605 | H156: -263.1526083
B157: Puebla | C157: 446.8546835 | D157: 798.1216482 | E157: 78.60876872 | F157: 627.7992769 | G157: 798.1216482 | H157: 27.13006809
B158: Querétaro | C158: 817.3641062 | D158: 753.1948687 | E158: -7.850753051 | F158: 879.6674914 | G158: 753.1948687 | H158: -14.37732142
B159: Quintana Roo | C159: 289.127365 | D159: 416.2157082 | E159: 43.95583353 | F159: 310.3637092 | G159: 416.2157082 | H159: 34.10579131
B160: San Luis Potosí | C160: 686.4085746 | D160: 376.4348031 | E160: -45.15878487 | F160: 702.3223746 | G160: 376.4348031 | H160: -46.40142238
B161: Sinaloa | C161: 373.5724678 | D161: 866.9475406 | E161: 132.0694418 | F161: 543.4961443 | G161: 866.9475406 | H161: 59.51309862
B162: Sonora | C162: 920.954003 | D162: 458.9029856 | E162: -50.17091146 | F162: 899.2376519 | G162: 458.9029856 | H162: -48.96755217
B163: Tabasco | C163: 299.7697769 | D163: 21.92179592 | E163: -92.68712272 | F163: 300.413416 | G163: 21.92179592 | H163: -92.70279064
B164: Tamaulipas | C164: 1336.192012 | D164: 982.4733116 | E164: -26.47214601 | F164: 1273.208975 | G164: 982.4733116 | H164: -22.83487386
B165: Tlaxcala | C165: 45.03710336 | D165: 275.5436694 | E165: 511.8148123 | F165: 50.80516687 | G165: 275.5436694 | H165: 442.3536352
B166: Veracruz de Ignacio de la Llave | C166: 1029.44077 | D166: 0.07315127965 | E166: -99.99289408 | F166: 935.3469883 | G166: 0.07315127965 | H166: -99.99217924
B167: Yucatán | C167: 144.2611939 | D167: 535.8503705 | E167: 271.4445695 | F167: 145.543409 | G167: 535.8503705 | H167: 268.1721998
B168: Zacatecas | C168: 1315.074107 | D168: 7.282682302 | E168: -99.44621506 | F168: 1318.027541 | G168: 7.282682302 | H168: -99.44745598
B169: Total | C169: 31621.20435 | D169: 35291.61836 | E169: =IF(AND(C169=0,D169=0),0,IF(AND(C169=0,D169<0),-100,IF(AND(C169=0,D169>0),100,IF(AND(C169<0,D169=0),100,IF(AND(C169<0,D169<0),-((D169-C169)/C169)*100,IF(AND(C169<0,D169>0),-((D169-C169)/C169)*100,IF(C169>0,((D169-C169)/C169)*100,"error"))))))) -> 11.60744532 | F169: 31543.45746 | G169: 35291.61836 | H169: =((G169-F169)/F169)*100 -> 11.88253033
B170: Fuente: Secretaría de Economía

Sheet Países y Estados
A6: CONTENIDO
A7: * Nota Metodológica
A8: * Flujos de IED en México por país de origen
A9: * Flujos de IED en México por entidad federativa
A24: Flujos de IED en México por país de origen (millones de dólares)
B26: País de origen | C26: Monto | E26: Lugar
C27: Enero 1999-diciembre 2022 | D27: Enero-diciembre 2022 | E27: Enero 1999-diciembre 2022 | F27: Enero-diciembre 2022
B28: Estados Unidos | C28: 312569.4163 | D28: 15021.5734 | E28: 1 | F28: 1
B29: España | C29: 80024.61367 | D29: 1637.87999 | E29: 2 | F29: 7
B30: Canadá | C30: 50853.06129 | D30: 3780.101903 | E30: 3 | F30: 2
B31: Japón | C31: 31149.4621 | D31: 1838.815 | E31: 4 | F31: 4
B32: Alemania | C32: 29234.24339 | D32: 215.2236797 | E32: 5 | F32: 13
B33: Bélgica | C33: 21058.28585 | D33: 63.08455238 | E33: 6 | F33: 21
B34: Países Bajos | C34: 20407.70141 | D34: -247.7422562 | E34: 7 | F34: 50
B35: Reino Unido de la Gran Bretaña e Irlanda del Norte | C35: 19155.58451 | D35: 1757.828571 | E35: 8 | F35: 5
B36: Argentina | C36: 11214.58612 | D36: 2315.936752 | E36: 9 | F36: 4
B37: Francia | C37: 10813.53385 | D37: 421.6824383 | E37: 10 | F37: 9
B38: Italia | C38: 9406.054036 | D38: 188.9719448 | E38: 11 | F38: 15
B39: Suiza | C39: 9029.965289 | D39: 114.7962823 | E39: 12 | F39: 19
B40: Corea, República de | C40: 8734.466295 | D40: 673.4616054 | E40: 13 | F40: 7
B41: Brasil | C41: 6222.12688 | D41: 252.9305956 | E41: 14 | F41: 11
B42: Australia | C42: 4657.115964 | D42: 129.8433717 | E42: 15 | F42: 18
B43: Luxemburgo | C43: 4572.135403 | D43: -2.219001229 | E43: 16 | F43: 45
B44: Suecia | C44: 2689.243785 | D44: 197.6404425 | E44: 17 | F44: 14
B45: Israel | C45: 2231.573881 | D45: -0.5057040215 | E45: 18 | F45: 42
B46: China, República Popular de | C46: 2161.012337 | D46: 282.2327679 | E46: 19 | F46: 10
B47: Dinamarca | C47: 2101.126682 | D47: -172.6974361 | E47: 20 | F47: 49
B48: Fuente: Secretaría de Economía
A50: Flujos de IED en México por entidad federativa (millones de dólares)
B52: Entidad Federativa | C52: Monto | E52: Orden
C53: Enero 1999-diciembre 2022 | D53: Enero-diciembre 2022 | E53: Enero 1999-diciembre 2022 | F53: Enero-diciembre 2022
B54: Aguascalientes | C54: 11389.54122 | D54: 594.8694046 | E54: 17 | F54: 14
B55: Baja California | C55: 32590.34712 | D55: 1877.305514 | E55: 6 | F55: 4
B56: Baja California Sur | C56: 11965.30283 | D56: 668.1419772 | E56: 16 | F56: 13
B57: Campeche | C57: 3540.219466 | D57: 40.39690726 | E57: 30 | F57: 29
B58: Chiapas | C58: 3425.547573 | D58: 186.7916724 | E58: 31 | F58: 24
B59: Chihuahua | C59: 38909.16698 | D59: 1875.864234 | E59: 5 | F59: 5
B60: Ciudad de México | C60: 146938.3129 | D60: 10923.26494 | E60: 1 | F60: 1
B61: Coahuila de Zaragoza | C61: 25638.60552 | D61: 792.4446391 | E61: 8 | F61: 11
B62: Colima | C62: 2566.467668 | D62: 96.85599832 | E62: 32 | F62: 27
B63: Durango | C63: 6388.720811 | D63: 565.5418218 | E63: 23 | F63: 15
B64: Estado de México | C64: 59455.36129 | D64: 1805.870026 | E64: 3 | F64: 6
B65: Guanajuato | C65: 26031.9694 | D65: 1564.4993 | E65: 7 | F65: 7
B66: Guerrero | C66: 6966.318499 | D66: 245.4533851 | E66: 21 | F66: 23
B67: Hidalgo | C67: 5234.920147 | D67: 410.5317735 | E67: 26 | F67: 20
B68: Jalisco | C68: 39294.84578 | D68: 2894.899946 | E68: 4 | F68: 3
B69: Michoacán de Ocampo | C69: 9815.052645 | D69: 165.7033533 | E69: 18 | F69: 25
B70: Morelos | C70: 6932.442312 | D70: 89.79031031 | E70: 22 | F70: 28
B71: Nayarit | C71: 4742.611576 | D71: 452.016501 | E71: 27 | F71: 18
B72: Nuevo León | C72: 64339.98475 | D72: 4397.280158 | E72: 2 | F72: 2
B73: Oaxaca | C73: 6358.062571 | D73: 151.1339605 | E73: 24 | F73: 26
B74: Puebla | C74: 18009.47605 | D74: 798.1216482 | E74: 12 | F74: 10
B75: Querétaro | C75: 19927.13845 | D75: 753.1948687 | E75: 10 | F75: 12
B76: Quintana Roo | C76: 9673.653725 | D76: 416.2157082 | E76: 19 | F76: 19
B77: San Luis Potosí | C77: 17157.37257 | D77: 376.4348031 | E77: 14 | F77: 21
B78: Sinaloa | C78: 8220.818151 | D78: 866.9475406 | E78: 20 | F78: 9
B79: Sonora | C79: 17539.24394 | D79: 458.9029856 | E79: 13 | F79: 17
B80: Tabasco | C80: 5939.422295 | D80: 21.92179592 | E80: 25 | F80: 30
B81: Tamaulipas | C81: 24972.37135 | D81: 982.4733116 | E81: 9 | F81: 8
B82: Tlaxcala | C82: 3947.533168 | D82: 275.5436694 | E82: 29 | F82: 22
B83: Veracruz de Ignacio de la Llave | C83: 19355.05626 | D83: 0.07315127965 | E83: 11 | F83: 32
B84: Yucatán | C84: 4099.172622 | D84: 535.8503705 | E84: 28 | F84: 16
B85: Zacatecas | C85: 13172.59243 | D85: 7.282682302 | E85: 15 | F85: 31
B86: Fuente: Secretaría de Economía

Sheet Series Históricas (2) (hidden)
A67: IED por tipo de inversión (1980-2021) (millones de dólares/participación porcentual) Cifras de la Secretaría de Economía
A72: Tipo de inversión | B72: 1980 | D72: 1981 | F72: 1982 | H72: 1983 | J72: 1984 | L72: 1985 | N72: 1986 | P72: 1987 | R72: 1988 | T72: 1989 | V72: 1990 | X72: 1991 | Z72: 1992 | AB72: 1993 | AD72: 1994 | AF72: 1995 | AH72: 1996 | AJ72: 1997 | AL72: 1998 | AN72: 1999 | AP72: 2000 | AR72: 2001 | AT72: 2002 | AV72: 2003 | AX72: 2004 | AZ72: 2005 | BB72: 2006 | BD72: 2007 | BF72: 2008 | BH72: 2009 | BJ72: 2010 | BL72: 2011 | BN72: 2012 | BP72: 2013 | BR72: 2014 | BT72: 2015 | BV72: 2016 | BX72: 2017 | BZ72: 2018 | CB72: 2019 | CD72: 2020 | CF72: 2021 | CH72: 2022
A73: Nuevas invesrsiones | B73: nd | C73: nd | D73: nd | E73: nd | F73: nd | G73: nd | H73: nd | I73: nd | J73: nd | K73: nd | L73: nd | M73: nd | N73: nd | O73: nd | P73: nd | Q73: nd | R73: nd | S73: nd | T73: nd | U73: nd | V73: nd | W73: nd | X73: nd | Y73: nd | Z73: nd | AA73: nd | AB73: nd | AC73: nd | AD73: 9752.1 | AE73: 64.78810117 | AF73: 7008.3 | AG73: 72.27883088 | AH73: 6431.4 | AI73: 63.75653833 | AJ73: 10465.3 | AK73: 73.80579962 | AL73: 6263 | AM73: 50.44239584 | AN73: 6606.934209 | AO73: =AN73/$AN$76*100 -> 47.32653144 | AP73: 8704.314254 | AQ73: =AP73/$AP$76*100 -> 47.69830066 | AR73: 23110.78134 | AS73: =AR73/$AR$76*100 -> 76.88943587 | AT73: 15637.68304 | AU73: =AT73/$AT$76*100 -> 64.88878887 | AV73: 8897.507294 | AW73: =AV73/$AV$76*100 -> 48.75354804 | AX73: 14715.80185 | AY73: =AX73/$AX$76*100 -> 58.82991677 | AZ73: 14011.18177 | BA73: =AZ73/$AZ$76*100 -> 54.31606668 | BB73: 6968.525627 | BC73: =BB73/$BB$76*100 -> 32.82020989 | BD73: 18026.65586 | BE73: =BD73/$BD$76*100 -> 55.64951096 | BF73: 13053.19745 | BG73: =BF73/$BF$76*100 -> 44.24483572 | BH73: 11008.14727 | BI73: =BH73/$BH$76*100 -> 61.67127147 | BJ73: 15636.25891 | BK73: =BJ73/$BJ$76*100 -> 57.50891047 | BL73: 9698.982889 | BM73: =BL73/$BL$76*100 -> 37.83880208 | BN73: 4316.06516 | BO73: =BN73/$BN$76*100 -> 19.82636806 | BP73: 22038.60898 | BQ73: =BP73/$BP$76*100 -> 45.5772395 | BR73: 5762.630654 | BS73: =BR73/$BR$76*100 -> 18.98656374 | BT73: 13448.9739 | BU73: =BT73/$BT$76*100 -> 37.41672093 | BV73: 10991.55492 | BW73: =BV73/$BV$76*100 -> 35.24308368 | BX73: 11939.76423 | BY73: =BX73/$BX$76*100 -> 35.1041402 | BZ73: 11323.28881 | CA73: =BZ73/$BZ$76*100 -> 33.20882587 | CB73: 13527.7192 | CC73: =CB73/$CB$76*100 -> 39.13472695 | CD73: 6741.158419 | CE73: =CD73/$CD$76*100 -> 23.90893194 | CF73: 13653.19907 | CG73: =CF73/$CF$76*100 -> 43.28377474 | CH73: 16993.09778 | CI73: =CH73/$CH$76*100 -> 48.15052006
A74: Reinversiones | B74: nd | C74: nd | D74: nd | E74: nd | F74: nd | G74: nd | H74: nd | I74: nd | J74: nd | K74: nd | L74: nd | M74: nd | N74: nd | O74: nd | P74: nd | Q74: nd | R74: nd | S74: nd | T74: nd | U74: nd | V74: nd | W74: nd | X74: nd | Y74: nd | Z74: nd | AA74: nd | AB74: nd | AC74: nd | AD74: 2366.601 | AE74: 15.72251977 | AF74: 1572 | AG74: 16.21253687 | AH74: 2589.736 | AI74: 25.67288655 | AJ74: 2150 | AK74: 15.16272531 | AL74: 2864 | AM74: 23.06674464 | AN74: 2367.168675 | AO74: =AN74/$AN$76*100 -> 16.95640961 | AP74: 3906.76736 | AQ74: =AP74/$AP$76*100 -> 21.40848305 | AR74: 3900.080174 | AS74: =AR74/$AR$76*100 -> 12.97554419 | AT74: 2592.763463 | AU74: =AT74/$AT$76*100 -> 10.75870898 | AV74: 2257.277719 | AW74: =AV74/$AV$76*100 -> 12.3686662 | AX74: 2821.174987 | AY74: =AX74/$AX$76*100 -> 11.27831779 | AZ74: 4408.848962 | BA74: =AZ74/$AZ$76*100 -> 17.0914444 | BB74: 8102.918738 | BC74: =BB74/$BB$76*100 -> 38.1629498 | BD74: 8509.977966 | BE74: =BD74/$BD$76*100 -> 26.27087996 | BF74: 9328.889029 | BG74: =BF74/$BF$76*100 -> 31.62100046 | BH74: 5365.221117 | BI74: =BH74/$BH$76*100 -> 30.05773813 | BJ74: 5305.815165 | BK74: =BJ74/$BJ$76*100 -> 19.51436408 | BL74: 10756.3463 | BM74: =BL74/$BL$76*100 -> 41.96391143 | BN74: 10664.1304 | BO74: =BN74/$BN$76*100 -> 48.9869746 | BP74: 18496.59879 | BQ74: =BP74/$BP$76*100 -> 38.25213804 | BR74: 18036.72951 | BS74: =BR74/$BR$76*100 -> 59.42694147 | BT74: 11955.44229 | BU74: =BT74/$BT$76*100 -> 33.26152993 | BV74: 10682.51623 | BW74: =BV74/$BV$76*100 -> 34.25218869 | BX74: 11976.56083 | BY74: =BX74/$BX$76*100 -> 35.21232599 | BZ74: 13309.76171 | CA74: =BZ74/$BZ$76*100 -> 39.03473331 | CB74: 18170.30242 | CC74: =CB74/$CB$76*100 -> 52.56538912 | CD74: 16125.18278 | CE74: =CD74/$CD$76*100 -> 57.19134216 | CF74: 12658.86867 | CG74: =CF74/$CF$76*100 -> 40.13151916 | CH74: 16027.79041 | CI74: =CH74/$CH$76*100 -> 45.41528883
A75: Cuentas | B75: nd | C75: nd | D75: nd | E75: nd | F75: nd | G75: nd | H75: nd | I75: nd | J75: nd | K75: nd | L75: nd | M75: nd | N75: nd | O75: nd | P75: nd | Q75: nd | R75: nd | S75: nd | T75: nd | U75: nd | V75: nd | W75: nd | X75: nd | Y75: nd | Z75: nd | AA75: nd | AB75: nd | AC75: nd | AD75: 2933.6 | AE75: 19.48937907 | AF75: 1115.9 | AG75: 11.50863225 | AH75: 1066.3 | AI75: 10.57057512 | AJ75: 1564.209 | AK75: 11.03147507 | AL75: 3289.143 | AM75: 26.49085952 | AN75: 4986.21495 | AO75: =AN75/$AN$76*100 -> 35.71705895 | AP75: 5637.606776 | AQ75: =AP75/$AP$76*100 -> 30.8932163 | AR75: 3046.299236 | AS75: =AR75/$AR$76*100 -> 10.13501994 | AT75: 5868.75971 | AU75: =AT75/$AT$76*100 -> 24.35250215 | AV75: 7095.183763 | AW75: =AV75/$AV$76*100 -> 38.87778576 | AX75: 7477.17014 | AY75: =AX75/$AX$76*100 -> 29.89176544 | AZ75: 7375.618008 | BA75: =AZ75/$AZ$76*100 -> 28.59248892 | BB75: 6160.97813 | BC75: =BB75/$BB$76*100 -> 29.01684031 | BD75: 5856.563432 | BE75: =BD75/$BD$76*100 -> 18.07960908 | BF75: 7120.10793 | BG75: =BF75/$BF$76*100 -> 24.13416382 | BH75: 1476.34836 | BI75: =BH75/$BH$76*100 -> 8.270990406 | BJ75: 6247.206308 | BK75: =BJ75/$BJ$76*100 -> 22.97672546 | BL75: 5177.04381 | BM75: =BL75/$BL$76*100 -> 20.19728649 | BN75: 6789.122686 | BO75: =BN75/$BN$76*100 -> 31.18665734 | BP75: 7819.210404 | BQ75: =BP75/$BP$76*100 -> 16.17062246 | BR75: 6551.738287 | BS75: =BR75/$BR$76*100 -> 21.58649479 | BT75: 10539.3372 | BU75: =BT75/$BT$76*100 -> 29.32174914 | BV75: 9513.76424 | BW75: =BV75/$BV$76*100 -> 30.50472763 | BX75: 10096.08534 | BY75: =BX75/$BX$76*100 -> 29.68353381 | BZ75: 9464.176689 | CA75: =BZ75/$BZ$76*100 -> 27.75644081 | CB75: 2869.024725 | CC75: =CB75/$CB$76*100 -> 8.299883928 | CD75: 5328.80543 | CE75: =CD75/$CD$76*100 -> 18.8997259 | CF75: 5231.389711 | CG75: =CF75/$CF$76*100 -> 16.5847061 | CH75: 2270.730168 | CI75: 6.434191103
A76: Total | B76: 1622.6 | C76: 100 | D76: 1701.1 | E76: 100 | F76: 626.5 | G76: 100 | H76: 683.7 | I76: 100 | J76: 1429.8 | K76: 100 | L76: 1729 | M76: 100 | N76: 2424.2 | O76: 100 | P76: 3877.2 | Q76: 100 | R76: 3157.1 | S76: 100 | T76: 2499.7 | U76: 100 | V76: 3722.4 | W76: 100 | X76: 3565 | Y76: 100 | Z76: 3599.6 | AA76: 100 | AB76: 4900.7 | AC76: 100 | AD76: 15052.301 | AE76: 100 | AF76: 9696.2 | AG76: 100 | AH76: 10087.436 | AI76: 100 | AJ76: 14179.509 | AK76: 100 | AL76: 12416.143 | AM76: 100 | AN76: 13960.31783 | AO76: =AN76/$AN$76*100 -> 100 | AP76: 18248.68839 | AQ76: =AP76/$AP$76*100 -> 100 | AR76: 30057.16075 | AS76: =AR76/$AR$76*100 -> 100 | AT76: 24099.20621 | AU76: =AT76/$AT$76*100 -> 100 | AV76: 18249.96878 | AW76: =AV76/$AV$76*100 -> 100 | AX76: 25014.14697 | AY76: =AX76/$AX$76*100 -> 100 | AZ76: 25795.64874 | BA76: =AZ76/$AZ$76*100 -> 100 | BB76: 21232.4225 | BC76: =BB76/$BB$76*100 -> 100 | BD76: 32393.19726 | BE76: =BD76/$BD$76*100 -> 100 | BF76: 29502.19441 | BG76: =BF76/$BF$76*100 -> 100 | BH76: 17849.71675 | BI76: =BH76/$BH$76*100 -> 100 | BJ76: 27189.28039 | BK76: =BJ76/$BJ$76*100 -> 100 | BL76: 25632.373 | BM76: =BL76/$BL$76*100 -> 100 | BN76: 21769.31825 | BO76: =BN76/$BN$76*100 -> 100 | BP76: 48354.41818 | BQ76: =BP76/$BP$76*100 -> 100 | BR76: 30351.09846 | BS76: =BR76/$BR$76*100 -> 100 | BT76: 35943.75339 | BU76: =BT76/$BT$76*100 -> 100 | BV76: 31187.83539 | BW76: =BV76/$BV$76*100 -> 100 | BX76: 34012.41041 | BY76: =BX76/$BX$76*100 -> 100 | BZ76: 34097.22721 | CA76: =BZ76/$BZ$76*100 -> 100 | CB76: 34567.04635 | CC76: =CB76/$CB$76*100 -> 100 | CD76: 28195.14663 | CE76: =CD76/$CD$76*100 -> 100 | CF76: 31543.45746 | CG76: =CF76/$CF$76*100 -> 100 | CH76: 35291.61836 | CI76: 100
A77: nd: Dato no disponible
A78: Fuente: Secretaría de Economía
A79: IED por tipo de inversión (1980-2021) (millones de dólares/participación porcentual) Cifras del Banco de México
A84: Tipo de inversión | B84: 1980 | D84: 1981 | F84: 1982 | H84: 1983 | J84: 1984 | L84: 1985 | N84: 1986 | P84: 1987 | R84: 1988 | T84: 1989 | V84: 1990 | X84: 1991 | Z84: 1992 | AB84: 1993 | AD84: 1994 | AF84: 1995 | AH84: 1996 | AJ84: 1997 | AL84: 1998 | AN84: 1999 | AP84: 2000 | AR84: 2001 | AT84: 2002 | AV84: 2003 | AX84: 2004 | AZ84: 2005 | BB84: 2006 | BD84: 2007 | BF84: 2008 | BH84: 2009 | BJ84: 2010 | BL84: 2011 | BN84: 2012 | BP84: 2013 | BR84: 2014 | BT84: 2015 | BV84: 2016 | BX84: 2017 | BZ84: 2018 | CB84: 2019 | CD84: 2020
A85: Nuevas invesrsiones | B85: 811.662 | C85: 38.83990673 | D85: 1515.099 | E85: 49.25709548 | F85: 1248.9 | G85: 65.72127108 | H85: 1810.699 | I85: 82.61999572 | J85: 1272.999 | K85: 82.60868437 | L85: 1535.201 | M85: 77.39468643 | N85: 1869.901 | O85: 77.88985625 | P85: 2318.4 | Q85: 87.99821149 | R85: 2204.898 | S85: 76.55906467 | T85: 1659.402 | U85: 52.25640057 | V85: 1114.739 | W85: 42.33339334 | X85: 3422.3 | Y85: 71.87443951 | Z85: 3012.3 | AA85: 68.57359055 | AB85: 3040.965 | AC85: 69.28919766 | AD85: 5672.3 | AE85: 51.69559793 | AF85: 6838.4 | AG85: 71.78442837 | AH85: 5529.415 | AI85: 60.19753412 | AJ85: 9115.347 | AK85: 71.04959049 | AL85: 6603.6215 | AM85: 51.76564559 | AN85: 6606.924368 | AO85: =AN85/$AN$88*100 -> 47.32649431 | AP85: 8704.326873 | AQ85: =AP85/$AP$88*100 -> 47.69833682 | AR85: 23110.76709 | AS85: =AR85/$AR$88*100 -> 76.88942491 | AT85: 15638.66024 | AU85: =AT85/$AT$88*100 -> 64.89021254 | AV85: 8918.28746 | AW85: =AV85/$AV$88*100 -> 48.81183299 | AX85: 14733.86363 | AY85: =AX85/$AX$88*100 -> 58.85962271 | AZ85: 14274.21113 | BA85: =AZ85/$AZ$88*100 -> 54.77718815 | BB85: 6985.443338 | BC85: =BB85/$BB$88*100 -> 32.87369523 | BD85: 18117.82997 | BE85: =BD85/$BD$88*100 -> 55.77398978 | BF85: 13083.69113 | BG85: =BF85/$BF$88*100 -> 44.30240515 | BH85: 11013.32585 | BI85: =BH85/$BH$88*100 -> 61.6823882 | BJ85: 15640.28577 | BK85: =BJ85/$BJ$88*100 -> 57.51520265 | BL85: 9649.005851 | BM85: =BL85/$BL$88*100 -> 37.71934465 | BN85: 4324.273421 | BO85: =BN85/$BN$88*100 -> 19.8827495 | BP85: 22027.56241 | BQ85: =BP85/$BP$88*100 -> 45.65840618 | BR85: 6049.647112 | BS85: =BR85/$BR$88*100 -> 19.81857584 | BT85: 13355.88876 | BU85: =BT85/$BT$88*100 -> 37.60392532 | BV85: 10987.80076 | BW85: =BV85/$BV$88*100 -> 35.24790719 | BX85: 11955.83943 | BY85: =BX85/$BX$88*100 -> 34.87484214 | BZ85: 11313.45391 | CA85: =BZ85/$BZ$88*100 -> 33.33017785 | CB85: 13254.4597 | CC85: =CB85/$CB$88*100 -> 38.67810133 | CD85: 6624.224801 | CE85: =CD85/$CD$88*100 -> 23.97048716
A86: Reinversiones | B86: 938.2 | C86: 44.89504312 | D86: 1356.201 | E86: 44.09119282 | F86: 640.7 | G86: 33.71576458 | H86: 225.3 | I86: 10.2801653 | J86: 428.8 | K86: 27.82610501 | L86: 524.2 | M86: 26.42669893 | N86: 595.298 | O86: 24.79686125 | P86: 412.499 | Q86: 15.65699372 | R86: 691.898 | S86: 24.02426948 | T86: 1074.998 | U86: 33.85287356 | V86: 1069.999 | W86: 40.63434448 | X86: 1408 | Y86: 29.57052591 | Z86: 1020 | AA86: 23.21981953 | AB86: 1399.236 | AC86: 31.88196503 | AD86: 2366.601 | AE86: 21.56847377 | AF86: 1572 | AG86: 16.50168481 | AH86: 2589.736 | AI86: 28.19389053 | AJ86: 2150 | AK86: 16.75817932 | AL86: 2864 | AM86: 22.45083383 | AN86: 2367.168675 | AO86: =AN86/$AN$88*100 -> 16.95642156 | AP86: 3906.76736 | AQ86: =AP86/$AP$88*100 -> 21.40846824 | AR86: 3900.080174 | AS86: =AR86/$AR$88*100 -> 12.97555034 | AT86: 2592.763463 | AU86: =AT86/$AT$88*100 -> 10.75827275 | AV86: 2257.277719 | AW86: =AV86/$AV$88*100 -> 12.35459874 | AX86: 2821.174987 | AY86: =AX86/$AX$88*100 -> 11.27018001 | AZ86: 4408.848962 | BA86: =AZ86/$AZ$88*100 -> 16.91892791 | BB86: 8102.918738 | BC86: =BB86/$BB$88*100 -> 38.13256628 | BD86: 8509.977966 | BE86: =BD86/$BD$88*100 -> 26.1971453 | BF86: 9328.889029 | BG86: =BF86/$BF$88*100 -> 31.58835051 | BH86: 5365.221117 | BI86: =BH86/$BH$88*100 -> 30.04902028 | BJ86: 5305.815165 | BK86: =BJ86/$BJ$88*100 -> 19.51147434 | BL86: 10755.00415 | BM86: =BL86/$BL$88*100 -> 42.04285026 | BN86: 10635.47429 | BO86: =BN86/$BN$88*100 -> 48.90127209 | BP86: 18397.49205 | BQ86: =BP86/$BP$88*100 -> 38.13404992 | BR86: 18012.87867 | BS86: =BR86/$BR$88*100 -> 59.00998777 | BT86: 11947.80127 | BU86: =BT86/$BT$88*100 -> 33.63941066 | BV86: 10649.51096 | BW86: =BV86/$BV$88*100 -> 34.162703 | BX86: 11953.02419 | BY86: =BX86/$BX$88*100 -> 34.86663016 | BZ86: 13257.18154 | CA86: =BZ86/$BZ$88*100 -> 39.05652704 | CB86: 18024.97476 | CC86: =CB86/$CB$88*100 -> 52.59903581 | CD86: 15985.70127 | CE86: =CD86/$CD$88*100 -> 57.84602101
A87: Cuentas | B87: 339.901 | C87: 16.26505015 | D87: 204.6 | E87: 6.651711694 | F87: 10.698 | G87: 0.5629643351 | H87: 155.6 | I87: 7.099838976 | J87: -160.8 | K87: -10.43478938 | L87: -75.801 | M87: -3.82138536 | N87: -64.5 | O87: -2.686717494 | P87: -96.3 | Q87: -3.655205213 | R87: -16.8 | S87: -0.5833341435 | T87: 441.1 | U87: 13.89072587 | V87: 448.5 | W87: 17.03226218 | X87: -68.802 | Y87: -1.444965429 | Z87: 360.499 | AA87: 8.206589921 | AB87: -51.4 | AC87: -1.171162693 | AD87: 2933.6 | AE87: 26.7359283 | AF87: 1115.9 | AG87: 11.71388682 | AH87: 1066.3 | AI87: 11.60857534 | AJ87: 1564.209 | AK87: 12.19223019 | AL87: 3289.143 | AM87: 25.78352058 | AN87: 4986.21495 | AO87: =AN87/$AN$88*100 -> 35.71708413 | AP87: 5637.606776 | AQ87: =AP87/$AP$88*100 -> 30.89319494 | AR87: 3046.299236 | AS87: =AR87/$AR$88*100 -> 10.13502475 | AT87: 5868.75971 | AU87: =AT87/$AT$88*100 -> 24.35151472 | AV87: 7095.183763 | AW87: =AV87/$AV$88*100 -> 38.83356827 | AX87: 7477.17014 | AY87: =AX87/$AX$88*100 -> 29.87019728 | AZ87: 7375.618008 | BA87: =AZ87/$AZ$88*100 -> 28.30388395 | BB87: 6160.97813 | BC87: =BB87/$BB$88*100 -> 28.99373849 | BD87: 5856.563432 | BE87: =BD87/$BD$88*100 -> 18.02886492 | BF87: 7120.10793 | BG87: =BF87/$BF$88*100 -> 24.10924434 | BH87: 1476.34836 | BI87: =BH87/$BH$88*100 -> 8.268591516 | BJ87: 6247.206308 | BK87: =BJ87/$BJ$88*100 -> 22.973323 | BL87: 5177.04381 | BM87: =BL87/$BL$88*100 -> 20.23780509 | BN87: 6789.122686 | BO87: =BN87/$BN$88*100 -> 31.21597841 | BP87: 7819.210404 | BQ87: =BP87/$BP$88*100 -> 16.20754389 | BR87: 6462.609624 | BS87: =BR87/$BR$88*100 -> 21.17143639 | BT87: 10213.58282 | BU87: =BT87/$BT$88*100 -> 28.75666402 | BV87: 9535.605015 | BW87: =BV87/$BV$88*100 -> 30.58938981 | BX87: 10373.26842 | BY87: =BX87/$BX$88*100 -> 30.2585277 | BZ87: 9372.93953 | CA87: =BZ87/$BZ$88*100 -> 27.61329511 | CB87: 2989.206561 | CC87: =CB87/$CB$88*100 -> 8.722862862 | CD87: 5024.993306 | CE87: =CD87/$CD$88*100 -> 18.18349183
A88: Total | B88: 2089.763 | C88: 100 | D88: 3075.9 | E88: 100 | F88: 1900.298 | G88: 100 | H88: 2191.599 | I88: 100 | J88: 1540.999 | K88: 100 | L88: 1983.6 | M88: 100 | N88: 2400.699 | O88: 100 | P88: 2634.599 | Q88: 100 | R88: 2879.996 | S88: 100 | T88: 3175.5 | U88: 100 | V88: 2633.238 | W88: 100 | X88: 4761.498 | Y88: 100 | Z88: 4392.799 | AA88: 100 | AB88: 4388.801 | AC88: 100 | AD88: 10972.501 | AE88: 100 | AF88: 9526.3 | AG88: 100 | AH88: 9185.451 | AI88: 100 | AJ88: 12829.556 | AK88: 100 | AL88: 12756.7645 | AM88: 100 | AN88: 13960.30799 | AO88: =AN88/$AN$88*100 -> 100 | AP88: 18248.70101 | AQ88: =AP88/$AP$88*100 -> 100 | AR88: 30057.1465 | AS88: =AR88/$AR$88*100 -> 100 | AT88: 24100.18341 | AU88: =AT88/$AT$88*100 -> 100 | AV88: 18270.74894 | AW88: =AV88/$AV$88*100 -> 100 | AX88: 25032.20876 | AY88: =AX88/$AX$88*100 -> 100 | AZ88: 26058.6781 | BA88: =AZ88/$AZ$88*100 -> 100 | BB88: 21249.34021 | BC88: =BB88/$BB$88*100 -> 100 | BD88: 32484.37136 | BE88: =BD88/$BD$88*100 -> 100 | BF88: 29532.68809 | BG88: =BF88/$BF$88*100 -> 100 | BH88: 17854.89532 | BI88: =BH88/$BH$88*100 -> 100 | BJ88: 27193.30724 | BK88: =BJ88/$BJ$88*100 -> 100 | BL88: 25581.05381 | BM88: =BL88/$BL$88*100 -> 100 | BN88: 21748.8704 | BO88: =BN88/$BN$88*100 -> 100 | BP88: 48244.26486 | BQ88: =BP88/$BP$88*100 -> 100 | BR88: 30525.1354 | BS88: =BR88/$BR$88*100 -> 100 | BT88: 35517.27285 | BU88: =BT88/$BT$88*100 -> 100 | BV88: 31172.91673 | BW88: =BV88/$BV$88*100 -> 100 | BX88: 34282.13204 | BY88: =BX88/$BX$88*100 -> 100 | BZ88: 33943.57498 | CA88: =BZ88/$BZ$88*100 -> 100 | CB88: 34268.64102 | CC88: =CB88/$CB$88*100 -> 100 | CD88: 27634.91938 | CE88: =CD88/$CD$88*100 -> 100
A89: ND: Dato no disponible
A90: Fuente: Banco de México
A92: IED por país de origen (1980-2020) (millones de dólares/participación porcentual)
A96: País de origen | B96: 1980 | D96: 1981 | F96: 1982 | H96: 1983 | J96: 1984 | L96: 1985 | N96: 1986 | P96: 1987 | R96: 1988 | T96: 1989 | V96: 1990 | X96: 1991 | Z96: 1992 | AB96: 1993 | AD96: 1994* | AF96: 1995* | AH96: 1996* | AJ96: 1997* | AL96: 1998* | AN96: 1999 | AP96: 2000 | AR96: 2001 | AT96: 2002 | AV96: 2003 | AX96: 2004 | AZ96: 2005 | BB96: 2006 | BD96: 2007 | BF96: 2008 | BH96: 2009 | BJ96: 2010 | BL96: 2011 | BN96: 2012 | BP96: 2013 | BR96: 2014 | BT96: 2015 | BV96: 2016 | BX96: 2017 | BZ96: 2018 | CB96: 2019 | CD96: 2020 | CF96: 2021 | CH96: 2022
A97: Estados Unidos | B97: 1078.6 | C97: 66.47356095 | D97: 1072.1 | E97: 63.0239257 | F97: 426.1 | G97: 68.01276935 | H97: 266.6 | I97: 38.99371069 | J97: 912 | K97: 63.78514478 | L97: 1326.8 | M97: 76.73799884 | N97: 1206.4 | O97: 49.76487089 | P97: 2669.6 | Q97: 68.85381203 | R97: 1241.6 | S97: 39.32723069 | T97: 1813.8 | U97: 72.56070728 | V97: 2308 | W97: 62.00300881 | X97: 2386.5 | Y97: 66.94249649 | Z97: 1651.7 | AA97: 45.88565396 | AB97: 3503.6 | AC97: 71.4918277 | AD97: 4951.067838 | AE97: 46.50243581 | AF97: 5518.342373 | AG97: 65.89380237 | AH97: 5328.541568 | AI97: 67.89767413 | AJ97: 7407.565965 | AK97: 60.98970791 | AL97: 5542.413049 | AM97: 66.18992117 | AN97: 7313.876742 | AO97: =AN97/$AN$109*100 -> 52.39047441 | AP97: 11924.49727 | AQ97: =AP97/$AP$109*100 -> 65.3444073 | AR97: 21533.40725 | AS97: =AR97/$AR$109*100 -> 71.6415214 | AT97: 13505.05745 | AU97: =AT97/$AT$109*100 -> 56.03942857 | AV97: 11124.37308 | AW97: =AV97/$AV$109*100 -> 60.9555732 | AX97: 9965.387355 | AY97: =AX97/$AX$109*100 -> 39.83900537 | AZ97: 14384.51293 | BA97: =AZ97/$AZ$109*100 -> 55.76333077 | BB97: 14351.93473 | BC97: =BB97/$BB$109*100 -> 67.59442891 | BD97: 16059.37826 | BE97: =BD97/$BD$109*100 -> 49.57639142 | BF97: 11905.88784 | BG97: =BF97/$BF$109*100 -> 40.35593987 | BH97: 8389.795326 | BI97: =BH97/$BH$109*100 -> 47.00240034 | BJ97: 11148.7421 | BK97: =BJ97/$BJ$109*100 -> 41.00418233 | BL97: 13036.65635 | BM97: =BL97/$BL$109*100 -> 50.86012266 | BN97: 9771.255415 | BO97: =BN97/$BN$109*100 -> 44.88544521 | BP97: 17047.37104 | BQ97: =BP97/$BP$109*100 -> 35.25504326 | BR97: 10276.16901 | BS97: =BR97/$BR$109*100 -> 33.85765107 | BT97: 19367.59168 | BU97: =BT97/$BT$109*100 -> 53.88305296 | BV97: 11049.76352 | BW97: =BV97/$BV$109*100 -> 35.42972246 | BX97: 15421.9612 | BY97: =BX97/$BX$109*100 -> 45.34215899 | BZ97: 11914.11733 | CA97: =BZ97/$BZ$109*100 -> 34.94160172 | CB97: 12901.61975 | CC97: =CB97/$CB$109*100 -> 37.32346589 | CD97: 10563.84161 | CE97: =CD97/$CD$109*100 -> 37.46687949 | CF97: 14590.64569 | CG97: =CF97/$CF$109*100 -> 46.25569567 | CH97: 15021.5734 | CI97: =CH97/$CH$109*100 -> 42.56413873
A98: España | B98: 80 | C98: 4.930358684 | D98: 101.8 | E98: 5.984363059 | F98: 40.4 | G98: 6.448523543 | H98: 12.7 | I98: 1.857539857 | J98: 11.7 | K98: 0.8182962652 | L98: 14 | M98: 0.8097165992 | N98: 93.7 | O98: 3.865192641 | P98: 125.8 | Q98: 3.244609512 | R98: 34.1 | S98: 1.08010516 | T98: 44 | U98: 1.760211225 | V98: 10.4 | W98: 0.2793896411 | X98: 43.8 | Y98: 1.228611501 | Z98: 37.2 | AA98: 1.033448161 | AB98: 63.5 | AC98: 1.295733263 | AD98: 145.4702079 | AE98: 1.366315152 | AF98: 49.83656544 | AG98: 0.5950918903 | AH98: 78.90380925 | AI98: 1.005413031 | AJ98: 327.2986252 | AK98: 2.694791737 | AL98: 335.2179597 | AM98: 4.003319516 | AN98: 987.416978 | AO98: =AN98/$AN$109*100 -> 7.073026486 | AP98: 3761.549372 | AQ98: =AP98/$AP$109*100 -> 20.61271085 | AR98: 2877.050054 | AS98: =AR98/$AR$109*100 -> 9.571928895 | AT98: 5429.565705 | AU98: =AT98/$AT$109*100 -> 22.53006036 | AV98: 1959.893804 | AW98: =AV98/$AV$109*100 -> 10.73916251 | AX98: 6527.581896 | AY98: =AX98/$AX$109*100 -> 26.09556066 | AZ98: 2526.343012 | BA98: =AZ98/$AZ$109*100 -> 9.793678917 | BB98: 1566.020557 | BC98: =BB98/$BB$109*100 -> 7.375609434 | BD98: 4666.965102 | BE98: =BD98/$BD$109*100 -> 14.40723824 | BF98: 5296.438943 | BG98: =BF98/$BF$109*100 -> 17.95269487 | BH98: 2747.534224 | BI98: =BH98/$BH$109*100 -> 15.39259285 | BJ98: 3967.027914 | BK98: =BJ98/$BJ$109*100 -> 14.59041158 | BL98: 3532.567105 | BM98: =BL98/$BL$109*100 -> 13.78166237 | BN98: -405.2789489 | BO98: =BN98/$BN$109*100 -> -1.861697938 | BP98: 455.3326541 | BQ98: =BP98/$BP$109*100 -> 0.9416567737 | BR98: 4464.294772 | BS98: =BR98/$BR$109*100 -> 14.70884086 | BT98: 4018.955384 | BU98: =BT98/$BT$109*100 -> 11.18123458 | BV98: 3650.51989 | BW98: =BV98/$BV$109*100 -> 11.70494792 | BX98: 3365.105999 | BY98: =BX98/$BX$109*100 -> 9.893759245 | BZ98: 4280.569034 | CA98: =BZ98/$BZ$109*100 -> 12.55400918 | CB98: 4404.713371 | CC98: =CB98/$CB$109*100 -> 12.74252167 | CD98: 4023.71737 | CE98: =CD98/$CD$109*100 -> 14.27095742 | CF98: 4282.849487 | CG98: =CF98/$CF$109*100 -> 13.57761587 | CH98: 1637.87999 | CI98: =CH98/$CH$109*100 -> 4.640988615
A99: Países Bajos | B99: 0 | C99: 0 | D99: 0 | E99: 0 | F99: 0 | G99: 0 | H99: 0 | I99: 0 | J99: 0 | K99: 0 | L99: 0 | M99: 0 | N99: 0 | O99: 0 | P99: 0 | Q99: 0 | R99: 218.2 | S99: 6.911406037 | T99: 47.8 | U99: 1.912229468 | V99: 126.1 | W99: 3.387599398 | X99: 119.5 | Y99: 3.352033661 | Z99: 83.1 | AA99: 2.308589843 | AB99: 88.3 | AC99: 1.801783419 | AD99: 783.1886612 | AE99: 7.356025333 | AF99: 743.7912887 | AG99: 8.881514205 | AH99: 427.8118158 | AI99: 5.451290355 | AJ99: 368.2726978 | AK99: 3.032149073 | AL99: 1051.67556 | AM99: 12.55956959 | AN99: 326.486609 | AO99: 2.338676045 | AP99: 1006.653753 | AQ99: 5.516307427 | AR99: 1175.253698 | AS99: 3.910062256 | AT99: 456.664623 | AU99: 1.894936368 | AV99: 460.0896435 | AW99: 2.521043456 | AX99: 2903.168823 | AY99: 11.60610764 | AZ99: 1833.953667 | BA99: 7.109546597 | BB99: 216.219137 | BC99: 1.018344172 | BD99: 811.950724 | BE99: 2.506547031 | BF99: 488.87281 | BG99: 1.657072702 | BH99: 245.9699561 | BI99: 1.378004814 | BJ99: 5771.601876 | BK99: 21.22749037 | BL99: 161.873979 | BM99: 0.6315216269 | BN99: 881.2713448 | BO99: 4.048226659 | BP99: 1007.753553 | BQ99: 2.084098188 | BR99: 561.6800112 | BS99: 1.850608511 | BT99: 279.5998565 | BU99: 0.7778816349 | BV99: 217.093855 | BW99: 0.6960850354 | BX99: -196.8631731 | BY99: -0.5787980643 | BZ99: 618.8022918 | CA99: 1.814817047 | CB99: 854.6609095 | CC99: 2.472473062 | CD99: 648.388553 | CE99: 2.299645969 | CF99: -75.70283584 | CG99: -0.239995365 | CH99: -247.7422562 | CI99: -0.7019861024
A100: Canadá | B100: 17.5 | C100: 1.078515962 | D100: 5.2 | E100: 0.3056845571 | F100: 8.1 | G100: 1.292897047 | H100: 22.1 | I100: 3.232411877 | J100: 32.5 | K100: 2.273045181 | L100: 34.9 | M100: 2.018507808 | N100: 40.6 | O100: 1.674779309 | P100: 19.3 | Q100: 0.4977819045 | R100: 33.9 | S100: 1.073770232 | T100: 37.5 | U100: 1.500180022 | V100: 56 | W100: 1.50440576 | X100: 74.2 | Y100: 2.081346424 | Z100: 88.5 | AA100: 2.458606512 | AB100: 74.2 | AC100: 1.514069419 | AD100: 739.1758025 | AE100: 6.942638726 | AF100: 170.3231248 | AG100: 2.03380609 | AH100: 547.1498534 | AI100: 6.971926928 | AJ100: 239.5939701 | AK100: 1.972681219 | AL100: 213.2534947 | AM100: 2.546766521 | AN100: 612.62225 | AO100: 4.388311622 | AP100: 575.536208 | AQ100: 3.153849722 | AR100: 807.4519352 | AS100: 2.68638792 | AT100: 329.9914039 | AU100: 1.369304039 | AV100: 381.3098264 | AW100: 2.089372487 | AX100: 841.6881801 | AY100: 3.364848623 | AZ100: 601.1136848 | BA100: 2.330291015 | BB100: 975.2494911 | BC100: 4.593208765 | BD100: 1747.704324 | BE100: 5.395281949 | BF100: 4850.355615 | BG100: 16.44066047 | BH100: 2153.714055 | BI100: 12.06581642 | BJ100: 2138.689024 | BK100: 7.865927284 | BL100: 1594.984789 | BM100: 6.222540491 | BN100: 1668.939087 | BO100: 7.666473834 | BP100: 5104.989077 | BQ100: 10.55744081 | BR100: 2963.754535 | BS100: 9.764900403 | BT100: 1096.287622 | BU100: 3.050008745 | BV100: 2290.804643 | BW100: 7.345186398 | BX100: 2813.253774 | BY100: 8.271256699 | BZ100: 4040.694398 | CA100: 11.8505073 | CB100: 2896.130235 | CC100: 8.378298237 | CD100: 4109.107513 | CE100: 14.57381147 | CF100: 2478.587716 | CG100: 7.857691945 | CH100: 3780.101903 | CI100: 10.71104721
A101: Alemania | B101: 170.8 | C101: 10.52631579 | D101: 146.3 | E101: 8.600317442 | F101: 39.9 | G101: 6.368715084 | H101: 110 | I101: 16.08892789 | J101: 152.5 | K101: 10.66582739 | L101: 55.5 | M101: 3.209947947 | N101: 218.5 | O101: 9.013282732 | P101: 46.9 | Q101: 1.20963582 | R101: 136.7 | S101: 4.329923031 | T101: 84.7 | U101: 3.388406609 | V101: 288.2 | W101: 7.742316785 | X101: 84.7 | Y101: 2.375876578 | Z101: 84.9 | AA101: 2.358595399 | AB101: 111.4 | AC101: 2.273144653 | AD101: 306.8741051 | AE101: 2.882285972 | AF101: 547.9420918 | AG101: 6.542904637 | AH101: 203.2067124 | AI101: 2.589313222 | AJ101: 482.7232605 | AK101: 3.974470265 | AL101: 134.0166625 | AM101: 1.60048561 | AN101: 685.711369 | AO101: 4.911860727 | AP101: 297.5913936 | AQ101: 1.630754974 | AR101: 731.1770714 | AS101: 2.432621889 | AT101: 716.531778 | AU101: 2.973258836 | AV101: 485.352271 | AW101: 2.659469049 | AX101: 450.08456 | AY101: 1.799320043 | AZ101: 378.003925 | BA101: 1.465378634 | BB101: 508.3063917 | BC101: 2.394010348 | BD101: 723.2454026 | BE101: 2.232707679 | BF101: 697.0126316 | BG101: 2.362578939 | BH101: 263.3135485 | BI101: 1.475169339 | BJ101: 606.1503204 | BK101: 2.229372428 | BL101: 854.0630941 | BM101: 3.33197045 | BN101: 1169.654064 | BO101: 5.372947607 | BP101: 1983.500222 | BQ101: 4.102004112 | BR101: 2148.837358 | BS101: 7.079932744 | BT101: 1239.531962 | BU101: 3.448532346 | BV101: 2768.025022 | BW101: 8.875335487 | BX101: 2643.298496 | BY101: 7.771570625 | BZ101: 2936.516988 | CA101: 8.612187056 | CB101: 3496.26966 | CC101: 10.1144588 | CD101: 1163.675555 | CE101: 4.127219376 | CF101: 2073.16663 | CG101: 6.572414049 | CH101: 215.2236797 | CI101: 0.6098436107
A102: Japón | B102: 123.1 | C102: 7.586589424 | D102: 212.1 | E102: 12.4684028 | F102: 65.4 | G102: 10.43894653 | H102: 3.8 | I102: 0.5557993272 | J102: 35.6 | K102: 2.489858721 | L102: 79.3 | M102: 4.586466165 | N102: 142.2 | O102: 5.865852652 | P102: 132.8 | Q102: 3.425152172 | R102: 148.8 | S102: 4.713186152 | T102: 15.7 | U102: 0.628075369 | V102: 120.8 | W102: 3.245218139 | X102: 73.5 | Y102: 2.06171108 | Z102: 86.9 | AA102: 2.414157129 | AB102: 73.6 | AC102: 1.50182627 | AD102: 629.9515828 | AE102: 5.916760586 | AF102: 155.6440001 | AG102: 1.858524587 | AH102: 145.1189277 | AI102: 1.849143436 | AJ102: 351.6862158 | AK102: 2.895585363 | AL102: 97.26059889 | AM102: 1.161528619 | AN102: 1461.174972 | AO102: 10.46663113 | AP102: 697.056417 | AQ102: 3.819761739 | AR102: 456.918551 | AS102: 1.520165377 | AT102: 399.532696 | AU102: 1.657866622 | AV102: 419.61671 | AW102: 2.299273578 | AX102: 888.861251 | AY102: 3.553434191 | AZ102: 340.834644 | BA102: 1.321287351 | BB102: 548.954849 | BC102: 2.585455565 | BD102: 711.199391 | BE102: 2.195520823 | BF102: 868.371427 | BG102: 2.943413005 | BH102: 779.6376726 | BI102: 4.367787363 | BJ102: 1263.171965 | BK102: 4.645845522 | BL102: 943.6738549 | BM102: 3.681570391 | BN102: 2255.615761 | BO102: 10.36144419 | BP102: 1560.93164 | BQ102: 3.228105516 | BR102: 2526.787578 | BS102: 8.325193179 | BT102: 2273.706551 | BU102: 6.325734895 | BV102: 1963.413708 | BW102: 6.295447194 | BX102: 2446.32297 | BY102: 7.19244223 | BZ102: 2279.46888 | CA102: 6.685203069 | CB102: 1491.649247 | CC102: 4.315234898 | CD102: 1225.621148 | CE102: 4.346922411 | CF102: 1508.125213 | CG102: 4.781103069 | CH102: 1838.815 | CI102: 5.210344794
A103: Reino Unido | B103: 48.6 | C103: 2.9951929 | D103: 40.9 | E103: 2.404326612 | F103: 7.4 | G103: 1.181165204 | H103: 49.2 | I103: 7.196138657 | J103: 44.3 | K103: 3.098335432 | L103: 56.3 | M103: 3.256217467 | N103: 104.3 | O103: 4.302450293 | P103: 430.9 | Q103: 11.11369029 | R103: 767.6 | S103: 24.31345222 | T103: 44.7 | U103: 1.788214586 | V103: 114.4 | W103: 3.073286052 | X103: 74.2 | Y103: 2.081346424 | Z103: 426.8 | AA103: 11.85687299 | AB103: 189.2 | AC103: 3.860672965 | AD103: 592.2008464 | AE103: 5.562190369 | AF103: 223.6282458 | AG103: 2.670315547 | AH103: 82.96851097 | AI103: 1.057206526 | AJ103: 1829.653182 | AK103: 15.06432932 | AL103: 165.7981652 | AM103: 1.980034217 | AN103: 406.0153515 | AO103: 2.908353208 | AP103: 951.09853 | AQ103: 5.211873367 | AR103: 1100.953757 | AS103: 3.662866785 | AT103: 1516.436647 | AU103: 6.292475502 | AV103: 1153.683726 | AW103: 6.321565479 | AX103: 428.955018 | AY103: 1.714849675 | AZ103: 796.3390641 | BA103: 3.087106171 | BB103: 1192.239686 | BC103: 5.615184447 | BD103: 592.9929933 | BE103: 1.830609645 | BF103: 830.1151346 | BG103: 2.813740303 | BH103: 15.31789881 | BI103: 0.08581592091 | BJ103: 527.8049702 | BK103: 1.941224492 | BL103: 249.2870281 | BM103: 0.9725475987 | BN103: 259.6050897 | BO103: 1.192527422 | BP103: 1353.677251 | BQ103: 2.799490309 | BR103: 238.8826123 | BS103: 0.7870641408 | BT103: 750.7072785 | BU103: 2.088561176 | BV103: 500.4207525 | BW103: 1.604538264 | BX103: 510.4329145 | BY103: 1.500725495 | BZ103: 740.596137 | CA103: 2.172012793 | CB103: 730.8641716 | CC103: 2.114337928 | CD103: 886.5144392 | CE103: 3.144209359 | CF103: 1664.815486 | CG103: 5.2778472 | CH103: 1757.828571 | CI103: 4.980866995
A104: Suiza | B104: 111.4 | C104: 6.865524467 | D104: 74.9 | E104: 4.403033331 | F104: 23.1 | G104: 3.687150838 | H104: 16.2 | I104: 2.36946029 | J104: 59.8 | K104: 4.182403133 | L104: 141.2 | M104: 8.166570272 | N104: 34.1 | O104: 1.406649616 | P104: 95.2 | Q104: 2.455380171 | R104: 86.3 | S104: 2.73352127 | T104: 194.4 | U104: 7.776933232 | V104: 148 | W104: 3.975929508 | X104: 68.5 | Y104: 1.921458626 | Z104: 315.3 | AA104: 8.75930659 | AB104: 101.7 | AC104: 2.075213745 | AD104: 53.72467172 | AE104: 0.5046038915 | AF104: 199.958646 | AG104: 2.38767996 | AH104: 83.76070802 | AI104: 1.067300909 | AJ104: 26.63356436 | AK104: 0.2192857031 | AL104: 51.56747783 | AM104: 0.6158413785 | AN104: 138.483943 | AO104: 0.9919827374 | AP104: 71.36694159 | AQ104: 0.3910798413 | AR104: 122.5667155 | AS104: 0.4077787539 | AT104: 251.463223 | AU104: 1.043450232 | AV104: 329.946622 | AW104: 1.807929789 | AX104: 1674.546137 | AY104: 6.694396331 | AZ104: 326.754599 | BA104: 1.266704328 | BB104: 579.766927 | BC104: 2.730573617 | BD104: 362.815327 | BE104: 1.120035556 | BF104: 437.7450355 | BG104: 1.483771103 | BH104: 101.9024732 | BI104: 0.5708912618 | BJ104: -148.1122766 | BK104: -0.5447451145 | BL104: 82.554115 | BM104: 0.3220697319 | BN104: 350.355857 | BO104: 1.609402063 | BP104: 783.8669153 | BQ104: 1.621086438 | BR104: 22.65484375 | BS104: 0.07464258265 | BT104: 225.7171582 | BU104: 0.6279732551 | BV104: 583.9828846 | BW104: 1.872470075 | BX104: 300.4485155 | BY104: 0.8833496712 | BZ104: 631.1147285 | CA104: 1.850926835 | CB104: 721.673595 | CC104: 2.087750245 | CD104: 572.4265302 | CE104: 2.030230726 | CF104: 391.1281963 | CG104: 1.239966154 | CH104: 114.7962823 | CI104: 0.3252791673
A105: Francia | B105: 19.5 | C105: 1.201774929 | D105: 10.3 | E105: 0.6054905649 | F105: 6.8 | G105: 1.085395052 | H105: 110 | I105: 16.08892789 | J105: 8.7 | K105: 0.60847671 | L105: 10.7 | M105: 0.6188548294 | N105: 316.9 | O105: 13.07235377 | P105: 31.2 | Q105: 0.8047044259 | R105: 152.4 | S105: 4.827214849 | T105: 16.5 | U105: 0.6600792095 | V105: 181 | W105: 4.862454331 | X105: 500.5 | Y105: 14.03927069 | Z105: 69 | AA105: 1.916879653 | AB105: 76.9 | AC105: 1.569163589 | AD105: 90.3210267 | AE105: 0.84833169 | AF105: 125.7390985 | AG105: 1.50143408 | AH105: 125.1179843 | AI105: 1.59428617 | AJ105: 90.73643913 | AK105: 0.7470725129 | AL105: 124.293316 | AM105: 1.484365151 | AN105: 409.265711 | AO105: 2.931636055 | AP105: -2202.148573 | AQ105: -12.0674348 | AR105: -68.02480742 | AS105: -0.2263181409 | AT105: 359.8222831 | AU105: 1.493087697 | AV105: 742.2669704 | AW105: 4.067223235 | AX105: 402.623321 | AY105: 1.609582455 | AZ105: 665.5809741 | BA105: 2.580206379 | BB105: -282.487985 | BC105: -1.330455746 | BD105: 361.5819474 | BE105: 1.116228029 | BF105: 868.2536786 | BG105: 2.943013887 | BH105: 492.550201 | BI105: 2.759428667 | BJ105: 576.2555387 | BK105: 2.119421811 | BL105: 648.6274293 | BM105: 2.530500899 | BN105: 784.6553693 | BO105: 3.604409474 | BP105: 893.7343836 | BQ105: 1.848299323 | BR105: 1188.139883 | BS105: 3.914652001 | BT105: 975.1113009 | BU105: 2.712881124 | BV105: 457.1048958 | BW105: 1.465651239 | BX105: 540.0396151 | BY105: 1.587772253 | BZ105: 620.0997512 | CA105: 1.818622222 | CB105: 1043.633567 | CC105: 3.019157483 | CD105: 414.6388334 | CE105: 1.470603572 | CF105: 500.5271223 | CG105: 1.586785859 | CH105: 421.6824383 | CI105: 1.19485152
A106: Suecia | B106: 10.9 | C106: 0.6717613706 | D106: 15.3 | E106: 0.8994180236 | F106: -2 | G106: -0.3192338388 | H106: 29.1 | I106: 4.256252742 | J106: 61.1 | K106: 4.273324941 | L106: 5.5 | M106: 0.3181029497 | N106: 24.6 | O106: 1.014767758 | P106: 36.7 | Q106: 0.9465593727 | R106: 32.5 | S106: 1.029425739 | T106: 6.9 | U106: 0.276033124 | V106: 13.3 | W106: 0.3572963679 | X106: 13.9 | Y106: 0.3899018233 | Z106: 2 | AA106: 0.05556172908 | AB106: 2.4 | AC106: 0.04897259575 | AD106: 9.25636603 | AE106: 0.08693954137 | AF106: 60.98301244 | AG106: 0.7281901516 | AH106: 97.49683486 | AI106: 1.242330239 | AJ106: 7.20380358 | AK106: 0.05931204371 | AL106: 58.06559379 | AM106: 0.6934447219 | AN106: 726.456726 | AO106: 5.203726266 | AP106: -193.967771 | AQ106: -1.062913492 | AR106: 107.166386 | AS106: 0.3565419466 | AT106: -43.207296 | AU106: -0.1792892912 | AV106: 6.128692 | AW106: 0.03358193143 | AX106: 416.46762 | AY106: 1.664928332 | AZ106: 153.150627 | BA106: 0.5937072122 | BB106: 111.883029 | BC106: 0.5269442478 | BD106: 94.251738 | BE106: 0.2909615166 | BF106: 150.118515 | BG106: 0.5088384711 | BH106: 9.16454334 | BI106: 0.05134279422 | BJ106: -192.2483228 | BK106: -0.7070739646 | BL106: 56.442337 | BM106: 0.2201994212 | BN106: 251.09941 | BO106: 1.153455552 | BP106: 300.0431224 | BQ106: 0.6205081847 | BR106: 115.0246876 | BS106: 0.378980312 | BT106: -33.17970403 | BU106: -0.09231007031 | BV106: 84.80482412 | BW106: 0.2719163515 | BX106: -40.05781665 | BY106: -0.1177741188 | BZ106: 161.6670749 | CA106: 0.4741355475 | CB106: 84.22665037 | CC106: 0.243661693 | CD106: 258.3080935 | CE106: 0.9161438205 | CF106: -92.13982361 | CG106: -0.2921043888 | CH106: 197.6404425 | CI106: 0.5600209105
A107: Italia | B107: -29.3 | C107: -1.805743868 | D107: 5.1 | E107: 0.2998060079 | F107: 1.9 | G107: 0.3032721468 | H107: 1 | I107: 0.1462629808 | J107: 0.5 | K107: 0.03496992586 | L107: 0.6 | M107: 0.03470213997 | N107: 4 | O107: 0.1650028876 | P107: 2.8 | Q107: 0.07221706386 | R107: 0 | S107: 0 | T107: 6.6 | U107: 0.2640316838 | V107: 4.6 | W107: 0.1235761874 | X107: 1.9 | Y107: 0.05329593268 | Z107: 7.5 | AA107: 0.2083564841 | AB107: 4.6 | AC107: 0.09386414186 | AD107: 2.503026719 | AE107: 0.02350944142 | AF107: 10.54482384 | AG107: 0.1259143582 | AH107: 18.6448915 | AI107: 0.2375780973 | AJ107: 29.29672902 | AK107: 0.2412126945 | AL107: 16.92162419 | AM107: 0.2020854384 | AN107: 69.05509376 | AO107: 0.4946527334 | AP107: 59.55163872 | AQ107: 0.3263338024 | AR107: 49.6213633 | AS107: 0.1650899888 | AT107: 49.6212698 | AU107: 0.205904167 | AV107: 28.81653334 | AW107: 0.157899083 | AX107: 77.91312263 | AY107: 0.3114762327 | AZ107: 106.2791485 | BA107: 0.4120041701 | BB107: 100.2285622 | BC107: 0.4720542942 | BD107: 131.2602532 | BE107: 0.4052093165 | BF107: 167.2649139 | BG107: 0.5669575338 | BH107: 78.76987545 | BI107: 0.4412948202 | BJ107: 149.1937875 | BK107: 0.5487228253 | BL107: 222.3616063 | BM107: 0.8675030057 | BN107: 621.6535396 | BO107: 2.855640827 | BP107: -419.468789 | BQ107: -0.8674880287 | BR107: 284.1134859 | BS107: 0.9360896323 | BT107: 606.6789198 | BU107: 1.687856338 | BV107: 810.2546487 | BW107: 2.597982959 | BX107: 1864.739426 | BY107: 5.482526535 | BZ107: 1680.463448 | CA107: 4.928446051 | CB107: 1548.04681 | CC107: 4.478389024 | CD107: 563.5889972 | CE107: 1.998886562 | CF107: 367.0744376 | CG107: 1.163710218 | CH107: 188.9719448 | CI107: 0.5354584277
A108: Resto | B108: -8.5 | C108: -0.5238506101 | D108: 17.1 | E108: 1.005231909 | F108: 9.4 | G108: 1.500399042 | H108: 63 | I108: 9.214567793 | J108: 111.1 | K108: 7.770317527 | L108: 4.2 | M108: 0.2429149798 | N108: 238.9 | O108: 9.854797459 | P108: 286 | Q108: 7.376457237 | R108: 305 | S108: 9.660764626 | T108: 187.1 | U108: 7.484898188 | V108: 351.6 | W108: 9.44551902 | X108: 123.8 | Y108: 3.472650771 | Z108: 746.7 | AA108: 20.74397155 | AB108: 611.3 | AC108: 12.47372824 | AD108: 2343.190537 | AE108: 22.00819522 | AF108: 567.8253757 | AG108: 6.780328323 | AH108: 709.1390918 | AI108: 9.036036288 | AJ108: 984.9691122 | AK108: 8.109678502 | AL108: 582.983976 | AM108: 6.962249669 | AN108: 823.7520888 | AO108: 5.900668585 | AP108: 1299.903211 | AQ108: 7.123269264 | AR108: 1163.618772 | AS108: 3.871352925 | AT108: 1127.726428 | AU108: 4.679516902 | AV108: 1158.490901 | AW108: 6.347906208 | AX108: 436.8696875 | AY108: 1.746490448 | AZ108: 3682.782462 | BA108: 14.27675846 | BB108: 1364.107121 | BC108: 6.424641941 | BD108: 6129.85179 | BE108: 18.9232688 | BF108: 2941.757871 | BG108: 9.971318844 | BH108: 2572.046976 | BI108: 14.40945541 | BJ108: 1381.003487 | BK108: 5.079220439 | BL108: 4249.281316 | BM108: 16.57779135 | BN108: 4160.492258 | BO108: 19.11172509 | BP108: 18282.6871 | BQ108: 37.80975512 | BR108: 5560.759678 | BS108: 18.32144456 | BT108: 5143.045387 | BU108: 14.30859301 | BV108: 6811.646746 | BW108: 21.84071661 | BX108: 4343.728482 | BY108: 12.77101044 | BZ108: 4193.117146 | CA108: 12.29753118 | CB108: 4393.558381 | CC108: 12.71025108 | CD108: 3765.317987 | CE108: 13.35448982 | CF108: 3854.380143 | CG108: 12.21926971 | CH108: 10364.84696 | CI108: 29.36914612
A109: Total | B109: 1622.6 | C109: 100 | D109: 1701.1 | E109: 100 | F109: 626.5 | G109: 100 | H109: 683.7 | I109: 100 | J109: 1429.8 | K109: 100 | L109: 1729 | M109: 100 | N109: 2424.2 | O109: 100 | P109: 3877.2 | Q109: 100 | R109: 3157.1 | S109: 100 | T109: 2499.7 | U109: 100 | V109: 3722.4 | W109: 100 | X109: 3565 | Y109: 100 | Z109: 3599.6 | AA109: 100 | AB109: 4900.7 | AC109: 100 | AD109: 10646.9 | AE109: 100 | AF109: 8374.6 | AG109: 100 | AH109: 7847.9 | AI109: 100 | AJ109: 12145.6 | AK109: 100 | AL109: 8373.5 | AM109: 100 | AN109: 13960.31783 | AO109: 100 | AP109: 18248.68839 | AQ109: 100 | AR109: 30057.16075 | AS109: 100 | AT109: 24099.20621 | AU109: 100 | AV109: 18249.96878 | AW109: 100 | AX109: 25014.14697 | AY109: 100 | AZ109: 25795.64874 | BA109: 100 | BB109: 21232.4225 | BC109: 100 | BD109: 32393.19726 | BE109: 100 | BF109: 29502.19441 | BG109: 100 | BH109: 17849.71675 | BI109: 100 | BJ109: 27189.28039 | BK109: 100 | BL109: 25632.373 | BM109: 100 | BN109: 21769.31825 | BO109: 100 | BP109: 48354.41818 | BQ109: 100 | BR109: 30351.09846 | BS109: 100 | BT109: 35943.75339 | BU109: 100 | BV109: 31187.83539 | BW109: 100 | BX109: 34012.41041 | BY109: 100 | BZ109: 34097.22721 | CA109: 100 | CB109: 34567.04635 | CC109: 100 | CD109: 28195.14663 | CE109: 100 | CF109: 31543.45746 | CG109: 100 | CH109: 35291.61836 | CI109: 100
A110: * La diferencia entre el total de IED publicado por la Secretaría de Economía y la desagregación por país de origen, se debe a que esta última sólo incuye las nuevas inversiones reportadas al RNIE más el valor de la importación temporal de maquinaria y equipo de empresas maquiladoras.
A111: Fuente: Secretaría de Economía
A113: País de origen | AN113: 1999 | AO113: 2000 | AP113: 2001 | AQ113: 2002 | AR113: 2003 | AS113: 2004 | AT113: 2005 | AU113: 2006 | AV113: 2007 | AW113: 2008 | AX113: 2009 | AY113: 2010 | AZ113: 2011 | BA113: 2012 | BB113: 2013 | BC113: 2014 | BD113: 2015 | BE113: 2016 | BF113: 2017 | BG113: 2018 | BH113: 2019 | BI113: 2020 | BJ113: 2021 | BK113: 2022
A114: Estados Unidos | AN114: 7313.876742 | AO114: 11924.49727 | AP114: 21533.40725 | AQ114: 13505.05745 | AR114: 11124.37308 | AS114: 9965.387355 | AT114: 14384.51293 | AU114: 14351.93473 | AV114: 16059.37826 | AW114: 11905.88784 | AX114: 8389.795326 | AY114: 11148.7421 | AZ114: 13036.65635 | BA114: 9771.255415 | BB114: 17047.37104 | BC114: 10276.16901 | BD114: 19367.59168 | BE114: 11049.76352 | BF114: 15421.9612 | BG114: 11914.11733 | BH114: 12901.61975 | BI114: 10563.84161 | BJ114: 14590.64569 | BK114: 15021.5734
A115: España | AN115: 987.416978 | AO115: 3761.549372 | AP115: 2877.050054 | AQ115: 5429.565705 | AR115: 1959.893804 | AS115: 6527.581896 | AT115: 2526.343012 | AU115: 1566.020557 | AV115: 4666.965102 | AW115: 5296.438943 | AX115: 2747.534224 | AY115: 3967.027914 | AZ115: 3532.567105 | BA115: -405.2789489 | BB115: 455.3326541 | BC115: 4464.294772 | BD115: 4018.955384 | BE115: 3650.51989 | BF115: 3365.105999 | BG115: 4280.569034 | BH115: 4404.713371 | BI115: 4023.71737 | BJ115: 4282.849487 | BK115: 1637.87999
A116: Países Bajos | AN116: 326.486609 | AO116: 1006.653753 | AP116: 1175.253698 | AQ116: 456.664623 | AR116: 460.0896435 | AS116: 2903.168823 | AT116: 1833.953667 | AU116: 216.219137 | AV116: 811.950724 | AW116: 488.87281 | AX116: 245.9699561 | AY116: 5771.601876 | AZ116: 161.873979 | BA116: 881.2713448 | BB116: 1007.753553 | BC116: 561.6800112 | BD116: 279.5998565 | BE116: 217.093855 | BF116: -196.8631731 | BG116: 618.8022918 | BH116: 854.6609095 | BI116: 648.388553 | BJ116: -75.70283584 | BK116: -247.7422562
A117: Canadá | AN117: 612.62225 | AO117: 575.536208 | AP117: 807.4519352 | AQ117: 329.9914039 | AR117: 381.3098264 | AS117: 841.6881801 | AT117: 601.1136848 | AU117: 975.2494911 | AV117: 1747.704324 | AW117: 4850.355615 | AX117: 2153.714055 | AY117: 2138.689024 | AZ117: 1594.984789 | BA117: 1668.939087 | BB117: 5104.989077 | BC117: 2963.754535 | BD117: 1096.287622 | BE117: 2290.804643 | BF117: 2813.253774 | BG117: 4040.694398 | BH117: 2896.130235 | BI117: 4109.107513 | BJ117: 2478.587716 | BK117: 3780.101903
A118: Alemania | AN118: 685.711369 | AO118: 297.5913936 | AP118: 731.1770714 | AQ118: 716.531778 | AR118: 485.352271 | AS118: 450.08456 | AT118: 378.003925 | AU118: 508.3063917 | AV118: 723.2454026 | AW118: 697.0126316 | AX118: 263.3135485 | AY118: 606.1503204 | AZ118: 854.0630941 | BA118: 1169.654064 | BB118: 1983.500222 | BC118: 2148.837358 | BD118: 1239.531962 | BE118: 2768.025022 | BF118: 2643.298496 | BG118: 2936.516988 | BH118: 3496.26966 | BI118: 1163.675555 | BJ118: 2073.16663 | BK118: 215.2236797
A119: Japón | AN119: 1461.174972 | AO119: 697.056417 | AP119: 456.918551 | AQ119: 399.532696 | AR119: 419.61671 | AS119: 888.861251 | AT119: 340.834644 | AU119: 548.954849 | AV119: 711.199391 | AW119: 868.371427 | AX119: 779.6376726 | AY119: 1263.171965 | AZ119: 943.6738549 | BA119: 2255.615761 | BB119: 1560.93164 | BC119: 2526.787578 | BD119: 2273.706551 | BE119: 1963.413708 | BF119: 2446.32297 | BG119: 2279.46888 | BH119: 1491.649247 | BI119: 1225.621148 | BJ119: 1508.125213 | BK119: 1838.815
A120: Reino Unido | AN120: 406.0153515 | AO120: 951.09853 | AP120: 1100.953757 | AQ120: 1516.436647 | AR120: 1153.683726 | AS120: 428.955018 | AT120: 796.3390641 | AU120: 1192.239686 | AV120: 592.9929933 | AW120: 830.1151346 | AX120: 15.31789881 | AY120: 527.8049702 | AZ120: 249.2870281 | BA120: 259.6050897 | BB120: 1353.677251 | BC120: 238.8826123 | BD120: 750.7072785 | BE120: 500.4207525 | BF120: 510.4329145 | BG120: 740.596137 | BH120: 730.8641716 | BI120: 886.5144392 | BJ120: 1664.815486 | BK120: 1757.828571
A121: Suiza | AN121: 138.483943 | AO121: 71.36694159 | AP121: 122.5667155 | AQ121: 251.463223 | AR121: 329.946622 | AS121: 1674.546137 | AT121: 326.754599 | AU121: 579.766927 | AV121: 362.815327 | AW121: 437.7450355 | AX121: 101.9024732 | AY121: -148.1122766 | AZ121: 82.554115 | BA121: 350.355857 | BB121: 783.8669153 | BC121: 22.65484375 | BD121: 225.7171582 | BE121: 583.9828846 | BF121: 300.4485155 | BG121: 631.1147285 | BH121: 721.673595 | BI121: 572.4265302 | BJ121: 391.1281963 | BK121: 114.7962823
A122: Francia | AN122: 409.265711 | AO122: -2202.148573 | AP122: -68.02480742 | AQ122: 359.8222831 | AR122: 742.2669704 | AS122: 402.623321 | AT122: 665.5809741 | AU122: -282.487985 | AV122: 361.5819474 | AW122: 868.2536786 | AX122: 492.550201 | AY122: 576.2555387 | AZ122: 648.6274293 | BA122: 784.6553693 | BB122: 893.7343836 | BC122: 1188.139883 | BD122: 975.1113009 | BE122: 457.1048958 | BF122: 540.0396151 | BG122: 620.0997512 | BH122: 1043.633567 | BI122: 414.6388334 | BJ122: 500.5271223 | BK122: 421.6824383
A123: Suecia | AN123: 726.456726 | AO123: -193.967771 | AP123: 107.166386 | AQ123: -43.207296 | AR123: 6.128692 | AS123: 416.46762 | AT123: 153.150627 | AU123: 111.883029 | AV123: 94.251738 | AW123: 150.118515 | AX123: 9.16454334 | AY123: -192.2483228 | AZ123: 56.442337 | BA123: 251.09941 | BB123: 300.0431224 | BC123: 115.0246876 | BD123: -33.17970403 | BE123: 84.80482412 | BF123: -40.05781665 | BG123: 161.6670749 | BH123: 84.22665037 | BI123: 258.3080935 | BJ123: -92.13982361 | BK123: 197.6404425
A124: Italia | AN124: 69.05509376 | AO124: 59.55163872 | AP124: 49.6213633 | AQ124: 49.6212698 | AR124: 28.81653334 | AS124: 77.91312263 | AT124: 106.2791485 | AU124: 100.2285622 | AV124: 131.2602532 | AW124: 167.2649139 | AX124: 78.76987545 | AY124: 149.1937875 | AZ124: 222.3616063 | BA124: 621.6535396 | BB124: -419.468789 | BC124: 284.1134859 | BD124: 606.6789198 | BE124: 810.2546487 | BF124: 1864.739426 | BG124: 1680.463448 | BH124: 1548.04681 | BI124: 563.5889972 | BJ124: 367.0744376 | BK124: 188.9719448
A125: Resto | AN125: =AN126-SUM(AN114:AN124) -> 823.7520888 | AO125: 1299.903211 | AP125: 1163.618772 | AQ125: 1127.726428 | AR125: 1158.490901 | AS125: 436.8696875 | AT125: 3682.782462 | AU125: 1364.107121 | AV125: 6129.85179 | AW125: 2941.757871 | AX125: 2572.046976 | AY125: 1381.003487 | AZ125: 4249.281316 | BA125: 4160.492258 | BB125: 18282.6871 | BC125: 5560.759678 | BD125: 5143.045387 | BE125: 6811.646746 | BF125: 4343.728482 | BG125: 4193.117146 | BH125: 4393.558381 | BI125: 3765.317987 | BJ125: 3854.380143 | BK125: 10364.84696
A126: Total | AN126: 13960.31783 | AO126: 18248.68839 | AP126: 30057.16075 | AQ126: 24099.20621 | AR126: 18249.96878 | AS126: 25014.14697 | AT126: 25795.64874 | AU126: 21232.4225 | AV126: 32393.19726 | AW126: 29502.19441 | AX126: 17849.71675 | AY126: 27189.28039 | AZ126: 25632.373 | BA126: 21769.31825 | BB126: 48354.41818 | BC126: 30351.09846 | BD126: 35943.75339 | BE126: 31187.83539 | BF126: 34012.41041 | BG126: 34097.22721 | BH126: 34567.04635 | BI126: 28195.14663 | BJ126: 31543.45746 | BK126: 35291.61836
A129: IED por sector económico (1980-2020) (millones de dólares/participación porcentual)
A135: Sector económico | B135: 1980 | D135: 1981 | F135: 1982 | H135: 1983 | J135: 1984 | L135: 1985 | N135: 1986 | P135: 1987 | R135: 1988 | T135: 1989 | V135: 1990 | X135: 1991 | Z135: 1992 | AB135: 1993 | AD135: 1994* | AF135: 1995* | AH135: 1996* | AJ135: 1997* | AL135: 1998* | AN135: 1999 | AP135: 2000 | AR135: 2001 | AT135: 2002 | AV135: 2003 | AX135: 2004 | AZ135: 2005 | BB135: 2006 | BD135: 2007 | BF135: 2008 | BH135: 2009 | BJ135: 2010 | BL135: 2011 | BN135: 2012 | BP135: 2013 | BR135: 2014 | BT135: 2015 | BV135: 2016 | BX135: 2017 | BZ135: 2018 | CB135: 2019 | CD135: 2020 | CF135: 2021 | CH135: 2022
A136: Agropecuario | B136: 0.9 | C136: 0.05546653519 | D136: -5.4 | E136: -0.3174416554 | F136: 1.8 | G136: 0.2873104549 | H136: 0.2 | I136: 0.02925259617 | J136: 0.8 | K136: 0.05595188138 | L136: 0.4 | M136: 0.02313475998 | N136: 0.2 | O136: 0.008250144378 | P136: 15.2 | Q136: 0.3920354895 | R136: -12 | S136: -0.3800956574 | T136: 19.3 | U136: 0.7720926511 | V136: 61.1 | W136: 1.641414141 | X136: 44.9 | Y136: 1.259467041 | Z136: 39.3 | AA136: 1.091787976 | AB136: 34.5 | AC136: 0.7039810639 | AD136: 10.26 | AE136: 0.09636607839 | AF136: 9.99 | AG136: 0.1192892795 | AH136: 31.73 | AI136: 0.4043119815 | AJ136: 9.5 | AK136: 0.07821762614 | AL136: 27.645 | AM136: 0.3301486833 | AN136: 87.791614 | AO136: =AN136/$AN$141*100 -> 0.6288654387 | AP136: 97.800556 | AQ136: =AP136/$AP$141*100 -> 0.5359319744 | AR136: 75.181085 | AS136: =AR136/$AR$141*100 -> 0.2501270351 | AT136: 17.335837 | AU136: =AT136/$AT$141*100 -> 0.07193530296 | AV136: 1.264678 | AW136: =AV136/$AV$141*100 -> 0.006929754322 | AX136: 24.942117 | AY136: =AX136/$AX$141*100 -> 0.09971204306 | AZ136: 9.959782 | BA136: =AZ136/$AZ$141*100 -> 0.03861031797 | BB136: -2.039788 | BC136: =BB136/$BB$141*100 -> -0.009606948997 | BD136: 79.00158876 | BE136: =BD136/$BD$141*100 -> 0.2438832701 | BF136: 61.48692755 | BG136: =BF136/$BF$141*100 -> 0.2084147596 | BH136: 22.24872672 | BI136: =BH136/$BH$141*100 -> 0.1246447046 | BJ136: 101.2795637 | BK136: =BJ136/$BJ$141*100 -> 0.3724981398 | BL136: 139.6361804 | BM136: =BL136/$BL$141*100 -> 0.544764936 | BN136: 148.2298852 | BO136: =BN136/$BN$141*100 -> 0.6809119309 | BP136: 214.3823283 | BQ136: =BP136/$BP$141*100 -> 0.4433562358 | BR136: 186.1133731 | BS136: =BR136/$BR$141*100 -> 0.613201441 | BT136: 183.5504721 | BU136: =BT136/$BT$141*100 -> 0.5106602809 | BV136: 103.3681733 | BW136: =BV136/$BV$141*100 -> 0.3314374724 | BX136: 136.5306184 | BY136: =BX136/$BX$141*100 -> 0.4014141213 | BZ136: -16.54503926 | CA136: =BZ136/$BZ$141*100 -> -0.04852312232 | CB136: 105.9638396 | CC136: =CB136/$CB$141*100 -> 0.3065458315 | CD136: 135.9252965 | CE136: =CD136/$CD$141*100 -> 0.4820875674 | CF136: 208.3135436 | CG136: =CF136/$CF$141*100 -> 0.6604017453 | CH136: 242.4001269 | CI136: =CH136/$CH$141*100 -> 0.6868489976
A137: Extractivo | B137: 86.7 | C137: 5.343276223 | D137: -189 | E137: -11.11045794 | F137: 6.7 | G137: 1.06943336 | H137: 15 | I137: 2.193944713 | J137: 5.7 | K137: 0.3986571548 | L137: 18 | M137: 1.041064199 | N137: 30.8 | O137: 1.270522234 | P137: 48.8 | Q137: 1.258640256 | R137: 24.9 | S137: 0.7886984891 | T137: 9.5 | U137: 0.3800456055 | V137: 93.9 | W137: 2.522566086 | X137: 31 | Y137: 0.8695652174 | Z137: 8.6 | AA137: 0.238915435 | AB137: 55.1 | AC137: 1.124329177 | AD137: 92.91 | AE137: 0.8726483765 | AF137: 71.19 | AG137: 0.8500704511 | AH137: 79.895 | AI137: 1.018043043 | AJ137: 124.07 | AK137: 1.021522197 | AL137: 46.93 | AM137: 0.5604585896 | AN137: 228.95185 | AO137: 1.640018893 | AP137: 115.085406 | AQ137: 0.6306502886 | AR137: 49.21199 | AS137: 0.1637280062 | AT137: 292.834513 | AU137: 1.21512099 | AV137: 162.303507 | AW137: 0.8893358065 | AX137: 354.616745 | AY137: 1.417664753 | AZ137: 254.4849 | BA137: 0.9865419652 | BB137: 405.581842 | BC137: 1.910200506 | BD137: 1911.727282 | BE137: 5.90163196 | BF137: 4540.916025 | BG137: 15.39179073 | BH137: 1524.547492 | BI137: 8.541017837 | BJ137: 1389.843677 | BK137: 5.111733954 | BL137: 1019.141484 | BM137: 3.975993498 | BN137: 2910.623174 | BO137: =BN137/$BN$141*100 -> 13.37030007 | BP137: 5744.729622 | BQ137: 11.88046478 | BR137: 2679.320161 | BS137: 8.827753515 | BT137: 1780.761886 | BU137: 4.954301425 | BV137: 1087.792739 | BW137: 3.48787508 | BX137: 1753.973655 | BY137: 5.156863728 | BZ137: 1736.503934 | CA137: 5.092801017 | CB137: 2024.079507 | CC137: 5.855517669 | CD137: 1541.112724 | CE137: 5.465879445 | CF137: 4833.134565 | CG137: 15.32214587 | CH137: 1603.448447 | CI137: =CH137/$CH$141*100 -> 4.543425668
A138: Industrial | B138: 1285.7 | C138: 79.23702699 | D138: 1405.6 | E138: 82.62888719 | F138: 381.3 | G138: 60.86193136 | H138: 597 | I138: 87.31899956 | J138: 1269.6 | K138: 88.79563575 | L138: 1165.8 | M138: 67.42625795 | N138: 1918.9 | O138: 79.15601023 | P138: 2400.5 | Q138: 61.91323636 | R138: 1020 | S138: 32.30813088 | T138: 982.4 | U138: 39.30071609 | V138: 1192.9 | W138: 32.04652912 | X138: 963.6 | Y138: 27.02945302 | Z138: 1100.8 | AA138: 30.58117569 | AB138: 2320.5 | AC138: 47.35037852 | AD138: 6143.365 | AE138: 57.70097399 | AF138: 4422.06 | AG138: 52.80323836 | AH138: 4362.64 | AI138: 55.58990303 | AJ138: 6707.632 | AK138: 55.22684758 | AL138: 4912.925 | AM138: 58.67229952 | AN138: 9661.347434 | AO138: 69.2057842 | AP138: 10728.42642 | AQ138: 58.79012338 | AR138: 7665.266142 | AS138: 25.50229613 | AT138: 10190.73088 | AU138: 42.28658317 | AV138: 9873.232433 | AW138: 54.0999963 | AX138: 14249.23909 | AY138: 56.96472121 | AZ138: 14411.13843 | BA138: 55.86654779 | BB138: 11776.53951 | BC138: 55.46488872 | BD138: 17202.7755 | BE138: 53.10613634 | BF138: 10709.66675 | BG138: 36.30125476 | BH138: 7472.070461 | BI138: 41.86100298 | BJ138: 15524.2635 | BK138: 57.09700027 | BL138: 13226.25909 | BM138: 51.59982295 | BN138: 12528.14727 | BO138: 57.54956184 | BP138: 33924.04404 | BQ138: 70.15707215 | BR138: 20705.10595 | BS138: 68.21863789 | BT138: 21253.71423 | BU138: 59.13048088 | BV138: 20574.25607 | BW138: 65.9688491 | BX138: 20223.72069 | BY138: 59.4598279 | BZ138: 22441.49806 | CA138: 65.81619649 | CB138: 17469.59734 | CC138: 50.53829929 | CD138: 11662.42315 | CE138: 41.36322929 | CF138: 12466.9803 | CG138: 39.52318896 | CH138: 14872.15912 | CI138: 42.14076828
A139: Comercio | B139: 118 | C139: 7.272279058 | D139: 170.1 | E139: 9.999412145 | F139: 1.2 | G139: 0.1915403033 | H139: 58.6 | I139: 8.571010677 | J139: 31.5 | K139: 2.203105329 | L139: 109.5 | M139: 6.333140544 | N139: 151.2 | O139: 6.237109149 | P139: -21.2 | Q139: -0.5467863407 | R139: 246.8 | S139: 7.817300687 | T139: 386.3 | U139: 15.45385446 | V139: 171.4 | W139: 4.6045562 | X139: 387.5 | Y139: 10.86956522 | Z139: 750.9 | AA139: 20.86065118 | AB139: 759.9 | AC139: 15.50594813 | AD139: 1189.02 | AE139: 11.16775775 | AF139: 911.25 | AG139: 10.88111671 | AH139: 676.98 | AI139: 8.626256706 | AJ139: 1768.1895 | AK139: 14.55827213 | AL139: 986.575 | AM139: 11.78211023 | AN139: 1424.017106 | AO139: 10.20046337 | AP139: 2265.458188 | AQ139: 12.41436173 | AR139: 2349.9465 | AS139: 7.818258417 | AT139: 1495.411575 | AU139: 6.205231666 | AV139: 1393.087468 | AW139: 7.633369048 | AX139: 1351.438953 | AY139: 5.402698537 | AZ139: 2366.831487 | BA139: 9.175312904 | BB139: 321.347429 | BC139: 1.513475107 | BD139: 1126.486418 | BE139: 3.477540081 | BF139: 1477.110525 | BG139: 5.006781884 | BH139: 1820.744644 | BI139: 10.20041197 | BJ139: 2717.365286 | BK139: 9.994252322 | BL139: 2710.995365 | BM139: 10.57645098 | BN139: 2847.886097 | BO139: 13.08210972 | BP139: 1447.663057 | BQ139: 2.993858911 | BR139: 1952.866856 | BS139: 6.434254297 | BT139: 2991.290462 | BU139: 8.322142736 | BV139: 1966.652418 | BW139: 6.305831722 | BX139: 2966.104365 | BY139: 8.720653225 | BZ139: 3029.059144 | CA139: 8.883593745 | CB139: 3391.664679 | CC139: 9.811844046 | CD139: 2150.245652 | CE139: 7.626297107 | CF139: 2914.072507 | CG139: 9.238278685 | CH139: 2182.197313 | CI139: 6.183330248
A140: Servicios | B140: 131.3 | C140: 8.091951189 | D140: 319.8 | E140: 18.79960026 | F140: 235.5 | G140: 37.58978452 | H140: 12.9 | I140: 1.886792453 | J140: 122.2 | K140: 8.546649881 | L140: 435.3 | M140: 25.17640254 | N140: 323.1 | O140: 13.32810824 | P140: 1433.9 | Q140: 36.98287424 | R140: 1877.4 | S140: 59.4659656 | T140: 1102.2 | U140: 44.09329119 | V140: 2203.1 | W140: 59.18493445 | X140: 2138 | Y140: 59.97194951 | Z140: 1700 | AA140: 47.22746972 | AB140: 1730.7 | AC140: 35.31536311 | AD140: 3211.345 | AE140: 30.1622538 | AF140: 2960.11 | AG140: 35.3462852 | AH140: 2696.655 | AI140: 34.36148524 | AJ140: 3536.2085 | AK140: 29.11514046 | AL140: 2399.425 | AM140: 28.65498298 | AN140: 2558.20983 | AO140: 18.32486811 | AP140: 5041.91782 | AQ140: 27.62893262 | AR140: 19917.55503 | AS140: 66.26559041 | AT140: 12102.89341 | AU140: 50.22112887 | AV140: 6820.08069 | AW140: 37.37036909 | AX140: 9033.910071 | AY140: 36.11520345 | AZ140: 8753.234138 | BA140: 33.93298702 | BB140: 8730.993502 | BC140: 41.12104261 | BD140: 12073.20647 | BE140: 37.27080835 | BF140: 12713.01418 | BG140: 43.09175786 | BH140: 7010.105428 | BI140: 39.27292251 | BJ140: 7456.528365 | BK140: 27.42451532 | BL140: 8536.340887 | BM140: 33.30296764 | BN140: 3334.431823 | BO140: 15.31711644 | BP140: 7023.599123 | BQ140: 14.52524793 | BR140: 4827.692115 | BS140: 15.90615286 | BT140: 9734.436343 | BU140: 27.08241467 | BV140: 7455.765996 | BW140: 23.90600663 | BX140: 8932.081075 | BY140: 26.26124102 | BZ140: 6906.711111 | CA140: 20.25593187 | CB140: 11575.74098 | CC140: 33.48779316 | CD140: 12705.43981 | CE140: 45.06250659 | CF140: 11120.95654 | CG140: 35.25598473 | CH140: 16391.41335 | CI140: 46.4456268
A141: Total | B141: 1622.6 | C141: 100 | D141: 1701.1 | E141: 100 | F141: 626.5 | G141: 100 | H141: 683.7 | I141: 100 | J141: 1429.8 | K141: 100 | L141: 1729 | M141: 100 | N141: 2424.2 | O141: 100 | P141: 3877.2 | Q141: 100 | R141: 3157.1 | S141: 100 | T141: 2499.7 | U141: 100 | V141: 3722.4 | W141: 100 | X141: 3565 | Y141: 100 | Z141: 3599.6 | AA141: 100 | AB141: 4900.7 | AC141: 100 | AD141: 10646.9 | AE141: 100 | AF141: 8374.6 | AG141: 100 | AH141: 7847.9 | AI141: 100 | AJ141: 12145.6 | AK141: 100 | AL141: 8373.5 | AM141: 100 | AN141: 13960.31783 | AO141: 100 | AP141: 18248.68839 | AQ141: 100 | AR141: 30057.16075 | AS141: 100 | AT141: 24099.20621 | AU141: 100 | AV141: 18249.96878 | AW141: 100 | AX141: 25014.14697 | AY141: 100 | AZ141: 25795.64874 | BA141: 100 | BB141: 21232.4225 | BC141: 100 | BD141: 32393.19726 | BE141: 100 | BF141: 29502.19441 | BG141: 100 | BH141: 17849.71675 | BI141: 100 | BJ141: 27189.28039 | BK141: 100 | BL141: 25632.373 | BM141: 100 | BN141: 21769.31825 | BO141: 100 | BP141: 48354.41818 | BQ141: 100 | BR141: 30351.09846 | BS141: 100 | BT141: 35943.75339 | BU141: 100 | BV141: 31187.83539 | BW141: 100 | BX141: 34012.41041 | BY141: 100 | BZ141: 34097.22721 | CA141: 100 | CB141: 34567.04635 | CC141: 100 | CD141: 28195.14663 | CE141: 100 | CF141: 31543.45746 | CG141: 100 | CH141: 35291.61836 | CI141: 100
A142: * La diferencia entre el total de IED publicado por la Secretaría de Economía y la desagregación por país de origen, se debe a que esta última sólo incuye las nuevas inversiones reportadas al RNIE más el valor de la importación temporal de maquinaria y equipo de empresas maquiladoras.
A143: Fuente: Secretaría de Economía
AJ145: Etiquetas de fila | AK145: 1999 | AL145: 2000 | AM145: 2001 | AN145: 2002 | AO145: 2003 | AP145: 2004 | AQ145: 2005 | AR145: 2006 | AS145: 2007 | AT145: 2008 | AU145: 2009 | AV145: 2010 | AW145: 2011 | AX145: 2012 | AY145: 2013 | AZ145: 2014 | BA145: 2015 | BB145: 2016 | BC145: 2017 | BD145: 2018 | BE145: 2019 | BF145: 2020 | BG145: 2021 | BH145: 2022
AI146: Agropecuario | AJ146: 11 Agricultura, cría y explotación de animales, aprovechamiento forestal, pesca y caza | AK146: 87.791614 | AL146: 97.800556 | AM146: 75.181085 | AN146: 17.335837 | AO146: 1.264678 | AP146: 24.942117 | AQ146: 9.959782 | AR146: -2.039788 | AS146: 79.00158876 | AT146: 61.48692755 | AU146: 22.24872672 | AV146: 101.2795637 | AW146: 139.6361804 | AX146: 148.2298852 | AY146: 214.3823283 | AZ146: 186.1133731 | BA146: 183.5504721 | BB146: 103.3681733 | BC146: 136.5306184 | BD146: -16.54503926 | BE146: 105.9638396 | BF146: 135.9252965 | BG146: 208.3135436 | BH146: 242.4001269
AI147: Extractivo | AJ147: 21 Minería | AK147: 228.95185 | AL147: 115.085406 | AM147: 49.21199 | AN147: 292.834513 | AO147: 162.303507 | AP147: 354.616745 | AQ147: 254.4849 | AR147: 405.581842 | AS147: 1911.727282 | AT147: 4540.916025 | AU147: 1524.547492 | AV147: 1389.843677 | AW147: 1019.141484 | AX147: 2910.623174 | AY147: 5744.729622 | AZ147: 2679.320161 | BA147: 1780.761886 | BB147: 1087.792739 | BC147: 1753.973655 | BD147: 1736.503934 | BE147: 2024.079507 | BF147: 1541.112724 | BG147: 4833.134565 | BH147: 1603.448447
AI148: Industrial | AK148: =SUM(AK149:AK151) -> 9661.347434 | AL148: =SUM(AL149:AL151) -> 10728.42642 | AM148: 7665.266142 | AN148: 10190.73088 | AO148: 9873.232433 | AP148: 14249.23909 | AQ148: 14411.13843 | AR148: 11776.53951 | AS148: 17202.7755 | AT148: 10709.66675 | AU148: 7472.070461 | AV148: 15524.2635 | AW148: 13226.25909 | AX148: 12528.14727 | AY148: 33924.04404 | AZ148: 20705.10595 | BA148: 21253.71423 | BB148: 20574.25607 | BC148: 20223.72069 | BD148: 22441.49806 | BE148: 17469.59734 | BF148: 11662.42315 | BG148: =SUM(BG149:BG151) -> 12466.9803 | BH148: =SUM(BH149:BH151) -> 14872.15912
AJ149: 22 Generación, transmisión y distribución de energía eléctrica, suministro de agua y de gas por ductos al consumidor final | AK149: 335.631711 | AL149: 209.715897 | AM149: 607.854771 | AN149: 802.938245 | AO149: 494.052744 | AP149: 285.458628 | AQ149: 317.147076 | AR149: -73.898136 | AS149: 1161.843854 | AT149: 629.62653 | AU149: 48.614954 | AV149: 627.5459517 | AW149: 64.23457188 | AX149: 1301.87864 | AY149: 1527.040991 | AZ149: 814.4135651 | BA149: 1247.559701 | BB149: 1426.531376 | BC149: 2152.809675 | BD149: 5048.332086 | BE149: 1254.046186 | BF149: 426.6449867 | BG149: 611.9636914 | BH149: 865.8586265
AJ150: 23 Construcción | AK150: 207.725694 | AL150: 228.5678511 | AM150: 275.8319352 | AN150: 360.659929 | AO150: 65.597892 | AP150: 364.335947 | AQ150: 466.5379507 | AR150: 625.7865294 | AS150: 2263.793171 | AT150: 872.9820403 | AU150: 847.8744281 | AV150: 458.7159205 | AW150: 1642.943479 | AX150: 1399.623628 | AY150: 1004.295083 | AZ150: 884.6751899 | BA150: 1902.223095 | BB150: 1065.172962 | BC150: 3054.33695 | BD150: 1612.539771 | BE150: 401.932557 | BF150: 415.2360539 | BG150: 222.4782056 | BH150: 1295.23567
AJ151: 31-33 Industrias manufactureras | AK151: 9117.990029 | AL151: 10290.14267 | AM151: 6781.579436 | AN151: 9027.132705 | AO151: 9313.581797 | AP151: 13599.44451 | AQ151: 13627.4534 | AR151: 11224.65112 | AS151: 13777.13847 | AT151: 9207.058184 | AU151: 6575.581079 | AV151: 14438.00162 | AW151: 11519.08104 | AX151: 9826.644998 | AY151: 31392.70797 | AZ151: 19006.0172 | BA151: 18103.93143 | BB151: 18082.55173 | BC151: 15016.57407 | BD151: 15780.6262 | BE151: 15813.6186 | BF151: 10820.54211 | BG151: 11632.5384 | BH151: 12711.06482
AI152: comercio | AJ152: 43 y 46 Comercio | AK152: 1424.017106 | AL152: 2265.458188 | AM152: 2349.9465 | AN152: 1495.411575 | AO152: 1393.087468 | AP152: 1351.438953 | AQ152: 2366.831487 | AR152: 321.347429 | AS152: 1126.486418 | AT152: 1477.110525 | AU152: 1820.744644 | AV152: 2717.365286 | AW152: 2710.995365 | AX152: 2847.886097 | AY152: 1447.663057 | AZ152: 1952.866856 | BA152: 2991.290462 | BB152: 1966.652418 | BC152: 2966.104365 | BD152: 3029.059144 | BE152: 3391.664679 | BF152: 2150.245652 | BG152: 2914.072507 | BH152: 2182.197313
AI153: servicios | AK153: =SUM(AK154:AK165) -> 2558.20983 | AL153: =SUM(AL154:AL165) -> 5041.91782 | AM153: 19917.55503 | AN153: 12102.89341 | AO153: 6820.08069 | AP153: 9033.910071 | AQ153: 8753.234138 | AR153: 8730.993502 | AS153: 12073.20647 | AT153: 12713.01418 | AU153: 7010.105428 | AV153: 7456.528365 | AW153: 8536.340887 | AX153: 3334.431823 | AY153: 7023.599123 | AZ153: 4827.692115 | BA153: 9734.436343 | BB153: 7455.765996 | BC153: 8932.081075 | BD153: 6906.711111 | BE153: 11575.74098 | BF153: 12705.43981 | BG153: 11120.95654 | BH153: 16391.41335
AJ154: 48 y 49 Transportes, correos y almacenamiento | AK154: 469.0693277 | AL154: 274.0943651 | AM154: 95.66947258 | AN154: 340.015758 | AO154: 206.583989 | AP154: 358.068582 | AQ154: 1722.449417 | AR154: 367.061708 | AS154: 628.3548268 | AT154: 1498.942209 | AU154: 18.3318174 | AV154: 617.9936739 | AW154: 226.6232972 | AX154: 1413.703393 | AY154: 1493.558263 | AZ154: 1936.650691 | BA154: 2796.336736 | BB154: 1777.639813 | BC154: 3484.785479 | BD154: 1377.444501 | BE154: 946.3194032 | BF154: 2856.793784 | BG154: 3133.856462 | BH154: 5339.141394
AJ155: 51 Información en medios masivos | AK155: 420.943743 | AL155: -1625.822455 | AM155: 3090.619025 | AN155: 3930.91609 | AO155: 2199.644504 | AP155: 1666.678424 | AQ155: 1506.764941 | AR155: 666.197035 | AS155: 235.778644 | AT155: 1258.056949 | AU155: 535.3474558 | AV155: 2573.583161 | AW155: 1429.647539 | AX155: 1230.756023 | AY155: 2676.139355 | AZ155: -3920.774473 | BA155: 2305.395311 | BB155: 919.6024925 | BC155: 631.1331307 | BD155: 1122.815281 | BE155: 1813.547871 | BF155: 1240.690547 | BG155: 607.892115 | BH155: 4485.421206
AJ156: 52 Servicios financieros y de seguros | AK156: 363.221336 | AL156: 4659.808114 | AM156: 15698.98514 | AN156: 6469.183292 | AO156: 1892.191494 | AP156: 5563.210751 | AQ156: 2087.277773 | AR156: 4372.158601 | AS156: 5959.635449 | AT156: 7191.015112 | AU156: 3114.478769 | AV156: 2459.615292 | AW156: 2724.932316 | AX156: -2456.694328 | AY156: -308.5061722 | AZ156: 4814.619997 | BA156: 3237.074655 | BB156: 3424.279996 | BC156: 2571.559726 | BD156: 2361.684573 | BE156: 5759.68786 | BF156: 6640.820398 | BG156: 4887.149849 | BH156: 4640.001355
AJ157: 53 Servicios inmobiliarios y de alquiler de bienes muebles e intangibles | AK157: 284.4362221 | AL157: 357.5786104 | AM157: 230.0790484 | AN157: 327.603718 | AO157: 1321.919929 | AP157: 335.5408153 | AQ157: 1305.143987 | AR157: 1131.030642 | AS157: 1967.172028 | AT157: 1858.319337 | AU157: 1358.09097 | AV157: 615.0213899 | AW157: 1139.126261 | AX157: 689.9234353 | AY157: 596.1923535 | AZ157: 651.3642018 | BA157: 341.1428986 | BB157: 435.2478728 | BC157: 561.4762436 | BD157: 325.7941176 | BE157: 1229.882603 | BF157: 422.9010962 | BG157: 328.304527 | BH157: 458.2804583
AJ158: 54 Servicios profesionales, científicos y técnicos | AK158: 64.53328243 | AL158: 148.8058802 | AM158: -59.48427446 | AN158: 94.13349484 | AO158: 220.4552186 | AP158: 109.804484 | AQ158: 13.477799 | AR158: 348.2540931 | AS158: 281.7885529 | AT158: 356.7213059 | AU158: 611.4688767 | AV158: -17.86556077 | AW158: 781.1686798 | AX158: 819.8944293 | AY158: 539.4401772 | AZ158: 236.0275369 | BA158: 366.1117948 | BB158: 159.7522073 | BC158: 236.1781414 | BD158: 152.9974632 | BE158: 485.9961933 | BF158: 338.6735628 | BG158: 241.5490428 | BH158: 72.74738267
AJ159: 56 Servicios de apoyo a los negocios y manejo de residuos y desechos, y servicios de remediación | AK159: 265.5152601 | AL159: 372.1788054 | AM159: 348.3966708 | AN159: 380.616195 | AO159: 233.1845176 | AP159: 163.7706984 | AQ159: 686.5690087 | AR159: 314.494441 | AS159: 560.1903745 | AT159: -80.383611 | AU159: 771.1040437 | AV159: 111.6848589 | AW159: 719.5089774 | AX159: 215.6324126 | AY159: 499.3948375 | AZ159: 202.7762442 | BA159: -18.43872902 | BB159: 49.04449661 | BC159: 259.5289547 | BD159: 143.1888175 | BE159: 177.6388491 | BF159: 43.55990285 | BG159: 196.8023621 | BH159: 156.2753898
AJ160: 61 Servicios educativos | AK160: 2.689915 | AL160: 57.012948 | AM160: 5.07549385 | AN160: -19.119224 | AO160: 1.579927 | AP160: 3.634711 | AQ160: 17.768682 | AR160: 1.40655042 | AS160: 39.813802 | AT160: 172.211522 | AU160: 5.0596613 | AV160: 8.501746 | AW160: 14.43112932 | AX160: 8.61840751 | AY160: 14.583641 | AZ160: 4.10130746 | BA160: 21.21687009 | BB160: 0.01839301 | BC160: 30.17531193 | BD160: 63.67817023 | BE160: -7.01792089 | BF160: -1.40596858 | BG160: 24.10856808 | BH160: 24.42870165
AJ161: 62 Servicios de salud y de asistencia social | AK161: 10.19237 | AL161: 1.128847 | AM161: -0.04626975 | AN161: 2.06758 | AO161: 12.65043444 | AP161: 8.73045 | AQ161: 3.23973057 | AR161: 4.898976 | AS161: 22.416423 | AT161: 21.181508 | AU161: 3.67374939 | AV161: 5.54817796 | AW161: 23.45756585 | AX161: 37.424541 | AY161: 12.56650455 | AZ161: -1.23260673 | BA161: 60.52952929 | BB161: 11.92265825 | BC161: 11.31873822 | BD161: 6.55797946 | BE161: 25.76445185 | BF161: 16.28304716 | BG161: 12.13097676 | BH161: -7.412160733
AJ162: 71 Servicios de esparcimiento culturales y deportivos, y otros servicios recreativos | AK162: 72.864599 | AL162: 27.490407 | AM162: 2.64652735 | AN162: 5.077879 | AO162: 18.631951 | AP162: 3.10441 | AQ162: 38.522173 | AR162: 3.700444 | AS162: 269.089363 | AT162: -9.43110429 | AU162: 70.49016037 | AV162: 44.60703835 | AW162: 163.7611545 | AX162: 9.6182139 | AY162: 44.41050526 | AZ162: 125.4940353 | BA162: 117.353365 | BB162: 51.53454408 | BC162: 223.3426829 | BD162: 40.72980406 | BE162: 37.54729404 | BF162: -24.98155743 | BG162: 95.92199218 | BH162: 45.17877086
AJ163: 72 Servicios de alojamiento temporal y de preparación de alimentos y bebidas | AK163: 587.0567058 | AL163: 719.9286449 | AM163: 531.0548451 | AN163: 571.1288189 | AO163: 611.2108388 | AP163: 784.2959774 | AQ163: 1355.310549 | AR163: 1515.457646 | AS163: 2046.217012 | AT163: 418.4177481 | AU163: 499.2873441 | AV163: 1006.700728 | AW163: 1084.359842 | AX163: 1362.384691 | AY163: 1395.609206 | AZ163: 759.0755491 | BA163: 506.4967804 | BB163: 603.5870537 | BC163: 892.0105013 | BD163: 1254.18949 | BE163: 1040.926445 | BF163: 1102.579249 | BG163: 1465.938258 | BH163: 1278.715802
AJ164: 81 Otros servicios excepto actividades gubernamentales | AK164: 17.687069 | AL164: 49.713653 | AM164: -25.440648 | AN164: 1.269806 | AO164: 102.027887 | AP164: 37.070768 | AQ164: 16.71007767 | AR164: 6.333364 | AS164: 62.74999404 | AT164: 27.963206 | AU164: 22.77257997 | AV164: 31.13786018 | AW164: 229.3241255 | AX164: 3.1706051 | AY164: 60.21045204 | AZ164: 19.58963172 | BA164: 1.21713294 | BB164: 23.13646848 | BC164: 30.57216506 | BD164: 57.63091403 | BE164: 65.44793472 | BF164: 69.52574972 | BG164: 127.3023914 | BH164: -101.3650912
AJ165: 93 Actividades legislativas, gubernamentales, de impartición de justicia y de organismos internacionales y extraterritoriales | AK165: 0 | AL165: 0 | AM165: 0 | AN165: 0 | AO165: 0 | AP165: 0 | AQ165: 0 | AR165: 0 | AS165: 0 | AT165: 0 | AU165: 0 | AV165: 0 | AW165: 0 | AX165: 0 | AY165: 0 | AZ165: 0 | BA165: 0 | BB165: 0 | BC165: 0 | BD165: 0 | BE165: 0 | BF165: 0 | BG165: 0 | BH165: 0.0001462515722
AJ166: Total general | AK166: 13960.31783 | AL166: 18248.68839 | AM166: 30057.16075 | AN166: 24099.20621 | AO166: 18249.96878 | AP166: 25014.14697 | AQ166: 25795.64874 | AR166: 21232.4225 | AS166: 32393.19726 | AT166: 29502.19441 | AU166: 17849.71675 | AV166: 27189.28039 | AW166: 25632.373 | AX166: 21769.31825 | AY166: 48354.41818 | AZ166: 30351.09846 | BA166: 35943.75339 | BB166: 31187.83539 | BC166: 34012.41041 | BD166: 34097.22721 | BE166: 34567.04635 | BF166: 28195.14663 | BG166: 31543.45746 | BH166: 35291.61836
A176: IED por entidad federativa (1980-2020) (millones de dólares/participación porcentual)
A180: Entidad federativa | B180: 1980 | D180: 1981 | F180: 1982 | H180: 1983 | J180: 1984 | L180: 1985 | N180: 1986 | P180: 1987 | R180: 1988 | T180: 1989 | V180: 1990 | X180: 1991 | Z180: 1992 | AB180: 1993 | AD180: 1994* | AF180: 1995* | AH180: 1996* | AJ180: 1997* | AL180: 1998* | AN180: 1999 | AP180: 2000 | AR180: 2001 | AT180: 2002 | AV180: 2003 | AX180: 2004 | AZ180: 2005 | BB180: 2006 | BD180: 2007 | BF180: 2008 | BH180: 2009 | BJ180: 2010 | BL180: 2011 | BN180: 2012 | BP180: 2013 | BR180: 2014 | BT180: 2015 | BV180: 2016 | BX180: 2017 | BZ180: 2018 | CB180: 2019 | CD180: 2020 | CF180: 2021 | CH180: 2022
A181: Aguascalientes | B181: nd | C181: nd | D181: nd | E181: nd | F181: nd | G181: nd | H181: nd | I181: nd | J181: nd | K181: nd | L181: nd | M181: nd | N181: nd | O181: nd | P181: nd | Q181: nd | R181: nd | S181: nd | T181: 0.4 | U181: 0.01600192023 | V181: 0 | W181: 0 | X181: 61.8 | Y181: 1.733471712 | Z181: 31.5 | AA181: 0.875097233 | AB181: 9.3 | AC181: 0.1897688085 | AD181: 28.5 | AE181: 0.2676835511 | AF181: 27.1 | AG181: 0.323597545 | AH181: 34.8 | AI181: 0.4434307267 | AJ181: 18.1 | AK181: 0.1490251614 | AL181: 69.1 | AM181: 0.8252224279 | AN181: 818.846072 | AO181: =AN181/$AN$213*100 -> 5.865525998 | AP181: 288.2483511 | AQ181: =AP181/$AP$213*100 -> 1.579556541 | AR181: 254.5625875 | AS181: =AR181/$AR$213*100 -> 0.8469282565 | AT181: 115.1542767 | AU181: =AT181/$AT$213*100 -> 0.4778343141 | AV181: 119.8299376 | AW181: =AV181/$AV$213*100 -> 0.6566035211 | AX181: 441.5118119 | AY181: =AX181/$AX$213*100 -> 1.765048444 | AZ181: 133.876424 | BA181: =AZ181/$AZ$213*100 -> 0.5189883974 | BB181: 140.5939138 | BC181: =BB181/$BB$213*100 -> 0.6621661462 | BD181: 410.573807 | BE181: =BD181/$BD$213*100 -> 1.267469227 | BF181: 337.4852046 | BG181: =BF181/$BF$213*100 -> 1.143932549 | BH181: 342.2060574 | BI181: =BH181/$BH$213*100 -> 1.917151191 | BJ181: 333.1545323 | BK181: =BJ181/$BJ$213*100 -> 1.22531574 | BL181: 236.8051773 | BM181: =BL181/$BL$213*100 -> 0.9238519481 | BN181: 355.209503 | BO181: =BN181/$BN$213*100 -> 1.631697874 | BP181: 69.13988341 | BQ181: =BP181/$BP$213*100 -> 0.1429856588 | BR181: 978.7988459 | BS181: =BR181/$BR$213*100 -> 3.224920664 | BT181: 812.5841424 | BU181: =BT181/$BT$213*100 -> 2.26071032 | BV181: 594.8797316 | BW181: =BV181/$BV$213*100 -> 1.907409489 | BX181: 1576.337274 | BY181: =BX181/$BX$213*100 -> 4.634594417 | BZ181: 1196.980198 | CA181: =BZ181/$BZ$213*100 -> 3.510491311 | CB181: 452.1233792 | CC181: =CB181/$CB$213*100 -> 1.307960694 | CD181: 743.6596702 | CE181: =CD181/$CD$213*100 -> 2.637544964 | CF181: 42.11103884 | CG181: =CF181/$CF$213*100 -> 0.1335016585 | CH181: 594.8694046 | CI181: =CH181/$CF$213*100 -> 1.885872547
A182: Baja California | B182: nd | C182: nd | D182: nd | E182: nd | F182: nd | G182: nd | H182: nd | I182: nd | J182: nd | K182: nd | L182: nd | M182: nd | N182: nd | O182: nd | P182: nd | Q182: nd | R182: nd | S182: nd | T182: 84.1 | U182: 3.364403728 | V182: 36.6 | W182: 0.9832102082 | X182: 62.8 | Y182: 1.761521416 | Z182: 98.3 | AA182: 2.730858984 | AB182: 189.6 | AC182: 3.868835064 | AD182: 227.1 | AE182: 2.133015244 | AF182: 538.1 | AG182: 6.425381511 | AH182: 427.7 | AI182: 5.449865569 | AJ182: 679.4 | AK182: 5.593795284 | AL182: 726.2 | AM182: 8.672598077 | AN182: 1238.714183 | AO182: =AN182/$AN$213*100 -> 8.873108745 | AP182: 1054.188852 | AQ182: =AP182/$AP$213*100 -> 5.776792446 | AR182: 1326.086279 | AS182: =AR182/$AR$213*100 -> 4.411881384 | AT182: 1535.124825 | AU182: =AT182/$AT$213*100 -> 6.370022362 | AV182: 1084.765864 | AW182: =AV182/$AV$213*100 -> 5.943932712 | AX182: 1365.615627 | AY182: =AX182/$AX$213*100 -> 5.459373166 | AZ182: 1334.936478 | BA182: =AZ182/$AZ$213*100 -> 5.175045185 | BB182: 1340.591468 | BC182: =BB182/$BB$213*100 -> 6.313888432 | BD182: 1790.829226 | BE182: =BD182/$BD$213*100 -> 5.52841145 | BF182: 1453.673275 | BG182: =BF182/$BF$213*100 -> 4.927339489 | BH182: 829.5231895 | BI182: =BH182/$BH$213*100 -> 4.647262481 | BJ182: 1414.82295 | BK182: =BJ182/$BJ$213*100 -> 5.203605721 | BL182: 766.3223272 | BM182: =BL182/$BL$213*100 -> 2.989665947 | BN182: 1018.515251 | BO182: =BN182/$BN$213*100 -> 4.678673163 | BP182: 1290.826481 | BQ182: =BP182/$BP$213*100 -> 2.669510935 | BR182: 1223.344367 | BS182: =BR182/$BR$213*100 -> 4.030642809 | BT182: 1167.269082 | BU182: =BT182/$BT$213*100 -> 3.247488011 | BV182: 1566.921937 | BW182: =BV182/$BV$213*100 -> 5.024144567 | BX182: 1678.626997 | BY182: =BX182/$BX$213*100 -> 4.935336769 | BZ182: 1630.620571 | CA182: =BZ182/$BZ$213*100 -> 4.782267371 | CB182: 1183.719054 | CC182: =CB182/$CB$213*100 -> 3.424414808 | CD182: 1195.390076 | CE182: =CD182/$CD$213*100 -> 4.239701575 | CF182: 2222.613246 | CG182: =CF182/$CF$213*100 -> 7.046194126 | CH182: 1877.305514 | CI182: 5.951489359
A183: Baja California Sur | B183: nd | C183: nd | D183: nd | E183: nd | F183: nd | G183: nd | H183: nd | I183: nd | J183: nd | K183: nd | L183: nd | M183: nd | N183: nd | O183: nd | P183: nd | Q183: nd | R183: nd | S183: nd | T183: 324.8 | U183: 12.99355923 | V183: 31.4 | W183: 0.8435191404 | X183: 13.1 | Y183: 0.3674511234 | Z183: 46.8 | AA183: 1.30014446 | AB183: 147.6 | AC183: 3.011814639 | AD183: 8.3 | AE183: 0.077956964 | AF183: 20.9 | AG183: 0.2495641583 | AH183: 34.6 | AI183: 0.4408822742 | AJ183: 42.5 | AK183: 0.349920959 | AL183: 46.8 | AM183: 0.5589060727 | AN183: 135.1224975 | AO183: 0.9679041632 | AP183: 173.5108817 | AQ183: 0.9508128911 | AR183: 243.1485498 | AS183: 0.8089538192 | AT183: 330.8221803 | AU183: 1.372751357 | AV183: 149.4772055 | AW183: 0.8190545824 | AX183: 227.8124783 | AY183: 0.9107345476 | AZ183: 741.023564 | BA183: 2.872668842 | BB183: 591.5703159 | BC183: 2.786164961 | BD183: 819.2910718 | BE183: 2.529207183 | BF183: 810.1271076 | BG183: 2.745989319 | BH183: 449.5262604 | BI183: 2.518394362 | BJ183: 517.5682143 | BK183: 1.903574523 | BL183: 711.1604288 | BM183: 2.774461922 | BN183: 720.6296192 | BO183: 3.310299436 | BP183: 421.3367491 | BQ183: 0.8713510886 | BR183: 228.70082 | BS183: 0.7535174399 | BT183: 352.014288 | BU183: 0.979347605 | BV183: 510.7511887 | BW183: 1.637661551 | BX183: 568.9393561 | BY183: 1.672740477 | BZ183: 443.0629956 | CA183: 1.299410632 | CB183: 464.9704144 | CC183: 1.34512625 | CD183: 607.7519128 | CE183: 2.155519603 | CF183: 1078.842753 | CG183: 3.420179145 | CH183: 668.1419772 | CI183: 2.11816342
A184: Campeche | B184: nd | C184: nd | D184: nd | E184: nd | F184: nd | G184: nd | H184: nd | I184: nd | J184: nd | K184: nd | L184: nd | M184: nd | N184: nd | O184: nd | P184: nd | Q184: nd | R184: nd | S184: nd | T184: 0 | U184: 0 | V184: 0 | W184: 0 | X184: 0 | Y184: 0 | Z184: 0.3 | AA184: 0.008334259362 | AB184: 5.2 | AC184: 0.1061072908 | AD184: 2.1 | AE184: 0.01972405113 | AF184: 0.5 | AG184: 0.005970434409 | AH184: 0 | AI184: 0 | AJ184: 1.8 | AK184: 0.01482018179 | AL184: 0.1 | AM184: 0.001194243745 | AN184: 30.505075 | AO184: 0.2185127542 | AP184: 25.308216 | AQ184: 0.1386851233 | AR184: 51.634708 | AS184: 0.1717883749 | AT184: 190.918863 | AU184: 0.7922205459 | AV184: 65.706121 | AW184: 0.3600341557 | AX184: 149.047489 | AY184: 0.5958527755 | AZ184: 129.300058 | BA184: 0.5012475527 | BB184: 30.41914107 | BC184: 0.1432674066 | BD184: 134.523132 | BE184: 0.415282045 | BF184: 150.0526385 | BG184: 0.5086151776 | BH184: 26.16739962 | BI184: 0.1465984026 | BJ184: 73.20354795 | BK184: 0.2692367981 | BL184: 24.79756059 | BM184: 0.09674313255 | BN184: 209.6683149 | BO184: 0.9631367988 | BP184: 278.4169567 | BQ184: 0.575783904 | BR184: 218.5742756 | BS184: 0.7201527679 | BT184: 543.0071556 | BU184: 1.510713558 | BV184: 142.1679444 | BW184: 0.4558442182 | BX184: 328.3459964 | BY184: 0.9653711469 | BZ184: 123.4906007 | CA184: 0.3621719737 | CB184: 151.8657313 | CC184: 0.4393367306 | CD184: 204.2835595 | CE184: 0.7245344817 | CF184: 218.4180737 | CG184: 0.6924354251 | CH184: 40.39690726 | CI184: 0.1280674679
A185: Chiapas | B185: nd | C185: nd | D185: nd | E185: nd | F185: nd | G185: nd | H185: nd | I185: nd | J185: nd | K185: nd | L185: nd | M185: nd | N185: nd | O185: nd | P185: nd | Q185: nd | R185: nd | S185: nd | T185: 0.9 | U185: 0.03600432052 | V185: 0 | W185: 0 | X185: 2.3 | Y185: 0.06451431937 | Z185: 19.8 | AA185: 0.5500611179 | AB185: 4.2 | AC185: 0.08570204257 | AD185: 0.4 | AE185: 0.00375696212 | AF185: 0.4 | AG185: 0.004776347527 | AH185: 1 | AI185: 0.01274226226 | AJ185: 0.4 | AK185: 0.003293373732 | AL185: 0.4 | AM185: 0.004776974981 | AN185: 34.01038882 | AO185: 0.2436218804 | AP185: 43.472612 | AQ185: 0.238223214 | AR185: 199.301561 | AS185: 0.663075141 | AT185: 207.626804 | AU185: 0.8615503854 | AV185: 114.2917081 | AW185: 0.6262570063 | AX185: 232.204182 | AY185: 0.9282914275 | AZ185: 142.076015 | BA185: 0.5507751189 | BB185: 89.256227 | BC185: 0.4203770296 | BD185: 186.876594 | BE185: 0.5769007379 | BF185: 63.203183 | BG185: 0.2142321419 | BH185: 91.88158019 | BI185: 0.5147509144 | BJ185: 157.6758362 | BK185: 0.5799191222 | BL185: 92.80881925 | BM185: 0.3620765789 | BN185: 121.0916849 | BO185: 0.556249321 | BP185: 182.4139759 | BQ185: 0.3772436579 | BR185: 36.56443398 | BS185: 0.1204715343 | BT185: 270.0755851 | BU185: 0.7513839251 | BV185: 139.7876584 | BW185: 0.4482121208 | BX185: 217.0865223 | BY185: 0.6382568001 | BZ185: 70.22050105 | CA185: 0.2059419689 | CB185: 256.6473096 | CC185: 0.7424623642 | CD185: 133.1424006 | CE185: 0.4722174435 | CF185: 157.0403179 | CG185: 0.4978538517 | CH185: 186.7916724 | CI185: 0.592172474
A186: Chihuahua | B186: nd | C186: nd | D186: nd | E186: nd | F186: nd | G186: nd | H186: nd | I186: nd | J186: nd | K186: nd | L186: nd | M186: nd | N186: nd | O186: nd | P186: nd | Q186: nd | R186: nd | S186: nd | T186: 77.8 | U186: 3.112373485 | V186: 24.1 | W186: 0.6474143721 | X186: 17.8 | Y186: 0.4992847325 | Z186: 95.3 | AA186: 2.647516391 | AB186: 27.2 | AC186: 0.5550227519 | AD186: 308.4 | AE186: 2.896617795 | AF186: 528.7 | AG186: 6.313137344 | AH186: 536.7 | AI186: 6.838772156 | AJ186: 504 | AK186: 4.149650902 | AL186: 620 | AM186: 7.40431122 | AN186: 635.015674 | AO186: 4.548719317 | AP186: 1387.364799 | AQ186: 7.602545288 | AR186: 1076.448629 | AS186: 3.581338366 | AT186: 1362.675931 | AU186: 5.654443216 | AV186: 1120.02145 | AW186: 6.137114334 | AX186: 1459.538949 | AY186: 5.834853974 | AZ186: 1692.013764 | BA186: 6.559299133 | BB186: 1948.818072 | BC186: 9.178500816 | BD186: 2267.159666 | BE186: 6.998875869 | BF186: 2625.23309 | BG186: 8.898433293 | BH186: 1424.710974 | BI186: 7.98170074 | BJ186: 1847.780537 | BK186: 6.795989121 | BL186: 1218.112005 | BM186: 4.752240477 | BN186: 1186.894459 | BO186: 5.452143449 | BP186: 2311.449933 | BQ186: 4.78022489 | BR186: 1936.579717 | BS186: 6.380591859 | BT186: 2524.517071 | BU186: 7.02352101 | BV186: 1986.065345 | BW186: 6.368076914 | BX186: 1825.30897 | BY186: 5.366596922 | BZ186: 1241.944623 | CA186: 3.642362517 | CB186: 1406.9929 | CC186: 4.070330123 | CD186: 641.0620777 | CE186: 2.273661088 | CF186: 1907.594107 | CG186: 6.047511149 | CH186: 1875.864234 | CI186: 5.946920169
A187: Ciudad de México | B187: nd | C187: nd | D187: nd | E187: nd | F187: nd | G187: nd | H187: nd | I187: nd | J187: nd | K187: nd | L187: nd | M187: nd | N187: nd | O187: nd | P187: nd | Q187: nd | R187: nd | S187: nd | T187: 1292.3 | U187: 51.69820378 | V187: 2226.02 | W187: 59.79905977 | X187: 2389.4 | Y187: 67.02196292 | Z187: 2028.6 | AA187: 56.35626181 | AB187: 3088.89 | AC187: 63.0295672 | AD187: 7602.9 | AE187: 71.40951826 | AF187: 4486.4 | AG187: 53.57151386 | AH187: 4777 | AI187: 60.86978682 | AJ187: 6643.8 | AK187: 54.701291 | AL187: 4000.6 | AM187: 47.77691527 | AN187: 3640.473033 | AO187: 26.07729334 | AP187: 5311.350189 | AQ187: 29.10538048 | AR187: 10219.45417 | AS187: 34.00006492 | AT187: 6504.409522 | AU187: 26.99014011 | AV187: 3521.352366 | AW187: 19.29511447 | AX187: 5573.048248 | AY187: 22.27958544 | AZ187: 5984.294464 | BA187: 23.19885235 | BB187: 5671.130318 | BC187: 26.70976578 | BD187: 6931.542673 | BE187: 21.398143 | BF187: 7724.065395 | BG187: 26.18132498 | BH187: 5254.643944 | BI187: 29.43824834 | BJ187: 4064.564035 | BK187: 14.94914164 | BL187: 7507.594581 | BM187: 29.28950269 | BN187: 1337.452871 | BO187: 6.143751752 | BP187: 5835.332902 | BQ187: 12.0678381 | BR187: 6126.758319 | BS187: 20.18628198 | BT187: 5909.121663 | BU187: 16.43991266 | BV187: 6750.132064 | BW187: 21.64347727 | BX187: 5104.585391 | BY187: 15.00800834 | BZ187: 5836.125612 | CA187: 17.11612964 | CB187: 8738.157416 | CC187: 25.27886626 | CD187: 6990.860456 | CE187: 24.79455258 | CF187: 5478.598302 | CG187: 17.36841407 | CH187: 10923.26494 | CI187: 34.62925697
A188: Coahuila de Zaragoza | B188: nd | C188: nd | D188: nd | E188: nd | F188: nd | G188: nd | H188: nd | I188: nd | J188: nd | K188: nd | L188: nd | M188: nd | N188: nd | O188: nd | P188: nd | Q188: nd | R188: nd | S188: nd | T188: 17.2 | U188: 0.6880825699 | V188: 3.2 | W188: 0.08596373405 | X188: 24 | Y188: 0.6731928978 | Z188: 7.7 | AA188: 0.213912657 | AB188: 30.8 | AC188: 0.6284816455 | AD188: 102.3 | AE188: 0.9608430623 | AF188: 120.4 | AG188: 1.437680606 | AH188: 147.6 | AI188: 1.88075791 | AJ188: 114.4 | AK188: 0.9419048874 | AL188: 134.6 | AM188: 1.607452081 | AN188: 481.6971304 | AO188: 3.450473951 | AP188: 511.216768 | AQ188: 2.801389103 | AR188: 1129.868729 | AS188: 3.759066728 | AT188: 885.79995 | AU188: 3.67563953 | AV188: 824.4513931 | AW188: 4.517549609 | AX188: 841.530276 | AY188: 3.364217364 | AZ188: 642.152013 | BA188: 2.489381134 | BB188: 608.277464 | BC188: 2.864851922 | BD188: 666.2903059 | BE188: 2.056883427 | BF188: 583.083045 | BG188: 1.976405676 | BH188: 381.2102947 | BI188: 2.135665793 | BJ188: 751.2012138 | BK188: 2.76285802 | BL188: 647.1415265 | BM188: 2.524703922 | BN188: 539.3666573 | BO188: 2.477646067 | BP188: 1804.578936 | BQ188: 3.731983558 | BR188: 1625.454563 | BS188: 5.355504893 | BT188: 1367.224338 | BU188: 3.803788445 | BV188: 1209.584445 | BW188: 3.878385369 | BX188: 2672.544098 | BY188: 7.857555717 | BZ188: 3290.191669 | CA188: 9.649440552 | CB188: 1492.106005 | CC188: 4.316556265 | CD188: 852.1101183 | CE188: 3.022187221 | CF188: 1039.079944 | CG188: 3.294121912 | CH188: 792.4446391 | CI188: 2.512231388
A189: Colima | B189: nd | C189: nd | D189: nd | E189: nd | F189: nd | G189: nd | H189: nd | I189: nd | J189: nd | K189: nd | L189: nd | M189: nd | N189: nd | O189: nd | P189: nd | Q189: nd | R189: nd | S189: nd | T189: 33.9 | U189: 1.35616274 | V189: 22.6 | W189: 0.6071188717 | X189: 18.7 | Y189: 0.5245294662 | Z189: 128.3 | AA189: 3.564284921 | AB189: 18.3 | AC189: 0.3734160426 | AD189: 102.9 | AE189: 0.9664785055 | AF189: 3 | AG189: 0.03582260645 | AH189: 4 | AI189: 0.05096904904 | AJ189: 3.5 | AK189: 0.02881702016 | AL189: 4.1 | AM189: 0.04896399355 | AN189: 31.64576 | AO189: 0.2266836642 | AP189: 15.85637245 | AQ189: 0.08689047734 | AR189: 94.618385 | AS189: 0.3147948198 | AT189: 65.52592756 | AU189: 0.2719007713 | AV189: 74.740079 | AW189: 0.4095353801 | AX189: 156.7449724 | AY189: 0.6266252957 | AZ189: 52.147011 | BA189: 0.2021542917 | BB189: 106.4999816 | BC189: 0.5015912884 | BD189: 118.7007917 | BE189: 0.3664374059 | BF189: 187.5431177 | BG189: 0.6356920949 | BH189: 134.864699 | BI189: 0.7555565214 | BJ189: 264.8388771 | BK189: 0.9740562213 | BL189: 154.6133261 | BM189: 0.603195522 | BN189: 60.45569382 | BO189: 0.2777105518 | BP189: 167.7873814 | BQ189: 0.346994934 | BR189: 195.635703 | BS189: 0.6445753628 | BT189: 165.322271 | BU189: 0.4599471547 | BV189: -24.22497056 | BW189: -0.07767442099 | BX189: 132.2200718 | BY189: 0.3887406691 | BZ189: 90.6961999 | CA189: 0.2659928895 | CB189: 41.36634316 | CC189: 0.1196698808 | CD189: 92.06589544 | CE189: 0.3265310042 | CF189: 89.94778018 | CG189: 0.285155108 | CH189: 96.85599832 | CI189: 0.3070557451
A190: Durango | B190: nd | C190: nd | D190: nd | E190: nd | F190: nd | G190: nd | H190: nd | I190: nd | J190: nd | K190: nd | L190: nd | M190: nd | N190: nd | O190: nd | P190: nd | Q190: nd | R190: nd | S190: nd | T190: 22.1 | U190: 0.8841060927 | V190: 11.2 | W190: 0.3008730692 | X190: 133.5 | Y190: 3.744635494 | Z190: 1.2 | AA190: 0.03333703745 | AB190: 7.9 | AC190: 0.161201461 | AD190: 21.5 | AE190: 0.201936714 | AF190: 41 | AG190: 0.4895756215 | AH190: 20.2 | AI190: 0.2573936977 | AJ190: 75.2 | AK190: 0.6191542616 | AL190: 61.9 | AM190: 0.7392368782 | AN190: 166.064998 | AO190: 1.189550266 | AP190: 131.615137 | AQ190: 0.721230667 | AR190: 288.855449 | AS190: 0.9610204086 | AT190: 172.520536 | AU190: 0.7158764255 | AV190: 306.408175 | AW190: 1.678951777 | AX190: -82.368549 | AY190: -0.329287859 | AZ190: 76.630701 | BA190: 0.2970683226 | BB190: 10.77438 | BC190: 0.05074493974 | BD190: 421.617602 | BE190: 1.301562173 | BF190: 488.132089 | BG190: 1.65456197 | BH190: 127.3688294 | BI190: 0.713562188 | BJ190: 414.0637624 | BK190: 1.522893422 | BL190: 228.6192869 | BM190: 0.8919161985 | BN190: 268.3888163 | BO190: 1.232876534 | BP190: 482.4867997 | BQ190: 0.9978132669 | BR190: 155.8836222 | BS190: 0.5136012539 | BT190: 231.0989554 | BU190: 0.6429460855 | BV190: 275.9363663 | BW190: 0.8847563893 | BX190: 131.1131911 | BY190: 0.3854863255 | BZ190: 391.0602771 | CA190: 1.14689759 | CB190: 178.5304772 | CC190: 0.516475939 | CD190: 496.5417118 | CE190: 1.761089305 | CF190: 461.8363757 | CG190: 1.464127312 | CH190: 565.5418218 | CI190: 1.792897379
A191: Estado de México | B191: nd | C191: nd | D191: nd | E191: nd | F191: nd | G191: nd | H191: nd | I191: nd | J191: nd | K191: nd | L191: nd | M191: nd | N191: nd | O191: nd | P191: nd | Q191: nd | R191: nd | S191: nd | T191: 186.1 | U191: 7.444893387 | V191: 212.2 | W191: 5.700470114 | X191: 312.3 | Y191: 8.759922583 | Z191: 314.1 | AA191: 8.725969552 | AB191: 291.9 | AC191: 5.956291958 | AD191: 340.5 | AE191: 3.198114005 | AF191: 611.2 | AG191: 7.298259021 | AH191: 412.1 | AI191: 5.251086278 | AJ191: 290.4 | AK191: 2.390989329 | AL191: 747 | AM191: 8.921000776 | AN191: 1129.508219 | AO191: 8.090848879 | AP191: 1312.366772 | AQ191: 7.191567658 | AR191: 2355.957129 | AS191: 7.838255745 | AT191: 1934.040601 | AU191: 8.025329066 | AV191: 1493.458753 | AW191: 8.183349636 | AX191: 3935.615017 | AY191: 15.73355678 | AZ191: 2560.455717 | BA191: 9.925921009 | BB191: 2403.104284 | BC191: 11.3180881 | BD191: 2220.916188 | BE191: 6.856119113 | BF191: 2345.891904 | BG191: 7.951584452 | BH191: 1592.380484 | BI191: 8.921040634 | BJ191: 2028.378809 | BK191: 7.460215131 | BL191: 2712.07667 | BM191: 10.58066949 | BN191: 3119.578797 | BO191: 14.33016304 | BP191: 4608.438045 | BQ191: 9.530541818 | BR191: 3581.423824 | BS191: 11.79998091 | BT191: 2959.656233 | BU191: 8.234132369 | BV191: 2407.818872 | BW191: 7.720378289 | BX191: 3761.170069 | BY191: 11.05822852 | BZ191: 2333.816682 | CA191: 6.844593749 | CB191: 2932.770662 | CC191: 8.484296381 | CD191: 2385.283486 | CE191: 8.459908074 | CF191: 1535.384041 | CG191: 4.867519813 | CH191: 1805.870026 | CI191: 5.725022465
A192: Guanajuato | B192: nd | C192: nd | D192: nd | E192: nd | F192: nd | G192: nd | H192: nd | I192: nd | J192: nd | K192: nd | L192: nd | M192: nd | N192: nd | O192: nd | P192: nd | Q192: nd | R192: nd | S192: nd | T192: 10.4 | U192: 0.416049926 | V192: 24.2 | W192: 0.6501007388 | X192: 5.2 | Y192: 0.1458584612 | Z192: 50.9 | AA192: 1.414046005 | AB192: 36.5 | AC192: 0.7447915604 | AD192: 27.4 | AE192: 0.2573519052 | AF192: 6.3 | AG192: 0.07522747355 | AH192: 9.8 | AI192: 0.1248741702 | AJ192: 41 | AK192: 0.3375708075 | AL192: 10.6 | AM192: 0.126589837 | AN192: 309.164243 | AO192: 2.214593154 | AP192: 307.371787 | AQ192: 1.684350022 | AR192: 857.237812 | AS192: 2.852025244 | AT192: 739.250864 | AU192: 3.067532007 | AV192: 722.169528 | AW192: 3.957100074 | AX192: 689.201802 | AY192: 2.755248071 | AZ192: 781.88629 | BA192: 3.031078218 | BB192: 596.469222 | BC192: 2.809237722 | BD192: 1091.994075 | BE192: 3.371059874 | BF192: 751.784794 | BG192: 2.548233475 | BH192: 508.597999 | BI192: 2.849333724 | BJ192: 399.2738735 | BK192: 1.468497393 | BL192: 1424.685597 | BM192: 5.558149441 | BN192: 1321.193332 | BO192: 6.069061589 | BP192: 2621.382919 | BQ192: 5.421185938 | BR192: 1317.88567 | BS192: 4.342135004 | BT192: 1752.81333 | BU192: 4.876545058 | BV192: 1332.59015 | BW192: 4.272788199 | BX192: 1677.917202 | BY192: 4.933249899 | BZ192: 2469.795662 | CA192: 7.243391515 | CB192: 796.0336179 | CC192: 2.302868489 | CD192: 199.4531093 | CE192: 0.7074022771 | CF192: 1799.317221 | CG192: 5.704248571 | CH192: 1564.4993 | CI192: 4.959821864
A193: Guerrero | B193: nd | C193: nd | D193: nd | E193: nd | F193: nd | G193: nd | H193: nd | I193: nd | J193: nd | K193: nd | L193: nd | M193: nd | N193: nd | O193: nd | P193: nd | Q193: nd | R193: nd | S193: nd | T193: 3 | U193: 0.1200144017 | V193: 153.7 | W193: 4.128945601 | X193: 3.5 | Y193: 0.09817396426 | Z193: 6.6 | AA193: 0.183353706 | AB193: 4.7 | AC193: 0.09590466668 | AD193: 7.1 | AE193: 0.06668607764 | AF193: 62.6 | AG193: 0.747498388 | AH193: 9.6 | AI193: 0.1223257177 | AJ193: 4.5 | AK193: 0.03705045449 | AL193: 2.6 | AM193: 0.03105033737 | AN193: 36.01426692 | AO193: 0.2579759813 | AP193: 49.84095088 | AQ193: 0.2731207296 | AR193: 216.7365331 | AS193: 0.7210811925 | AT193: 302.3429455 | AU193: 1.254576366 | AV193: 159.647213 | AW193: 0.8747807457 | AX193: 219.8927307 | AY193: 0.8790734736 | AZ193: 237.0806048 | BA193: 0.9190720778 | BB193: 164.0267976 | BC193: 0.772529831 | BD193: 112.3540048 | BE193: 0.3468444436 | BF193: 574.9460351 | BG193: 1.948824644 | BH193: 136.0141081 | BI193: 0.7619958903 | BJ193: 139.5511816 | BK193: 0.5132580914 | BL193: 241.8040872 | BM193: 0.9433542777 | BN193: 164.2846046 | BO193: 0.7546612291 | BP193: 1088.173729 | BQ193: 2.250412207 | BR193: 479.4057614 | BS193: 1.579533479 | BT193: 164.0899057 | BU193: 0.4565185607 | BV193: 180.6682375 | BW193: 0.5792907241 | BX193: 410.4140071 | BY193: 1.206659576 | BZ193: 402.1671796 | CA193: 1.1794718 | CB193: 275.5350094 | CC193: 0.797103133 | CD193: 296.7729988 | CE193: 1.052567673 | CF193: 669.1022214 | CG193: 2.121207614 | CH193: 245.4533851 | CI193: 0.7781435673
A194: Hidalgo | B194: nd | C194: nd | D194: nd | E194: nd | F194: nd | G194: nd | H194: nd | I194: nd | J194: nd | K194: nd | L194: nd | M194: nd | N194: nd | O194: nd | P194: nd | Q194: nd | R194: nd | S194: nd | T194: 0.2 | U194: 0.008000960115 | V194: 0.1 | W194: 0.002686366689 | X194: 5.2 | Y194: 0.1458584612 | Z194: 0.1 | AA194: 0.002778086454 | AB194: 3.5 | AC194: 0.0714183688 | AD194: 0.1 | AE194: 0.0009392405301 | AF194: 48.3 | AG194: 0.5767439639 | AH194: 60.2 | AI194: 0.7670841881 | AJ194: 2.4 | AK194: 0.01976024239 | AL194: 7.6 | AM194: 0.09076252463 | AN194: 6.662873 | AO194: 0.04772722999 | AP194: -84.997926 | AQ194: -0.4657755351 | AR194: 336.061288 | AS194: 1.118073962 | AT194: 157.107461 | AU194: 0.6519196509 | AV194: 98.257579 | AW194: 0.5383986143 | AX194: 213.6198544 | AY194: 0.8539961593 | AZ194: 111.399544 | BA194: 0.431854012 | BB194: 194.382045 | BC194: 0.9154963125 | BD194: 87.068187 | BE194: 0.2687854067 | BF194: 121.744071 | BG194: 0.4126610695 | BH194: 111.455124 | BI194: 0.6244083621 | BJ194: 380.346931 | BK194: 1.398885611 | BL194: 265.525408 | BM194: 1.035898658 | BN194: 178.8089958 | BO194: 0.8213807789 | BP194: 470.0206862 | BQ194: 0.9720325544 | BR194: -66.07296627 | BS194: -0.2176954695 | BT194: 523.7255703 | BU194: 1.457069785 | BV194: 444.573819 | BW194: 1.425471866 | BX194: 349.3611539 | BY194: 1.027157881 | BZ194: 186.4781398 | CA194: 0.5469011856 | CB194: 283.8744769 | CC194: 0.8212286176 | CD194: 278.7175237 | CE194: 0.9885301443 | CF194: 176.2685344 | CG194: 0.5588117112 | CH194: 410.5317735 | CI194: 1.301479947
A195: Jalisco | B195: nd | C195: nd | D195: nd | E195: nd | F195: nd | G195: nd | H195: nd | I195: nd | J195: nd | K195: nd | L195: nd | M195: nd | N195: nd | O195: nd | P195: nd | Q195: nd | R195: nd | S195: nd | T195: 73 | U195: 2.920350442 | V195: 109.8 | W195: 2.949630625 | X195: 216.6 | Y195: 6.075565903 | Z195: 163.8 | AA195: 4.550505612 | AB195: 117.3 | AC195: 2.393535617 | AD195: 64.3 | AE195: 0.6039316609 | AF195: 114.4 | AG195: 1.366035393 | AH195: 185.6 | AI195: 2.364963876 | AJ195: 202.5 | AK195: 1.667270452 | AL195: 362.1 | AM195: 4.324356601 | AN195: 766.7881903 | AO195: 5.492627026 | AP195: 1404.398142 | AQ195: 7.695885381 | AR195: 1736.119726 | AS195: 5.77606029 | AT195: 1170.848904 | AU195: 4.858454232 | AV195: 1258.674388 | AW195: 6.896857759 | AX195: 1422.232963 | AY195: 5.685714426 | AZ195: 827.8291362 | BA195: 3.209181303 | BB195: 992.7387848 | BC195: 4.675579459 | BD195: 1837.718096 | BE195: 5.673160576 | BF195: 1040.673169 | BG195: 3.527443262 | BH195: 1005.721114 | BI195: 5.634381361 | BJ195: 2210.295162 | BK195: 8.129288934 | BL195: 1036.265968 | BM195: 4.04280153 | BN195: 1415.26239 | BO195: 6.501179201 | BP195: 2937.916386 | BQ195: 6.075797201 | BR195: 1684.598038 | BS195: 5.550369257 | BT195: 3138.397229 | BU195: 8.731412088 | BV195: 2102.260275 | BW195: 6.740641819 | BX195: 1552.88953 | BY195: 4.565655629 | BZ195: 1014.790251 | CA195: 2.976166492 | CB195: 1568.21081 | CC195: 4.53672204 | CD195: 2133.981951 | CE195: 7.568614482 | CF195: 2141.335233 | CG195: 6.788524167 | CH195: 2894.899946 | CI195: 9.177497268
A196: Michoacán de Ocampo | B196: nd | C196: nd | D196: nd | E196: nd | F196: nd | G196: nd | H196: nd | I196: nd | J196: nd | K196: nd | L196: nd | M196: nd | N196: nd | O196: nd | P196: nd | Q196: nd | R196: nd | S196: nd | T196: 0.4 | U196: 0.01600192023 | V196: 91.5 | W196: 2.45802552 | X196: 2.3 | Y196: 0.06451431937 | Z196: 352.2 | AA196: 9.784420491 | AB196: 36.6 | AC196: 0.7468320852 | AD196: 8.5 | AE196: 0.07983544506 | AF196: 48.8 | AG196: 0.5827143983 | AH196: 1.2 | AI196: 0.01529071471 | AJ196: 4 | AK196: 0.03293373732 | AL196: 4.3 | AM196: 0.05135248104 | AN196: 25.452083 | AO196: 0.1823173605 | AP196: 28.331434 | AQ196: 0.155251892 | AR196: 319.039813 | AS196: 1.061443613 | AT196: 204.587823 | AU196: 0.8489400904 | AV196: 134.760294 | AW196: 0.7384138332 | AX196: 368.007294 | AY196: 1.471196657 | AZ196: 247.997934 | BA196: 0.9613944449 | BB196: 63.35109658 | BC196: 0.2983696118 | BD196: 1860.910894 | BE196: 5.744758318 | BF196: 187.211323 | BG196: 0.6345674508 | BH196: 156.4753051 | BI196: 0.8766262643 | BJ196: 158.1951429 | BK196: 0.5818290908 | BL196: 150.6824344 | BM196: 0.587859869 | BN196: 335.970228 | BO196: 1.543319934 | BP196: 2247.67341 | BQ196: 4.648331001 | BR196: 211.4790526 | BS196: 0.696775614 | BT196: 419.0265978 | BU196: 1.1657842 | BV196: 193.9155376 | BW196: 0.6217665804 | BX196: 294.6867248 | BY196: 0.8664094115 | BZ196: 437.0615174 | CA196: 1.281809558 | CB196: 298.0067727 | CC196: 0.8621123416 | CD196: 272.7985003 | CE196: 0.9675370868 | CF196: 1033.728079 | CG196: 3.277155272 | CH196: 165.7033533 | CI196: 0.5253176623
A197: Morelos | B197: nd | C197: nd | D197: nd | E197: nd | F197: nd | G197: nd | H197: nd | I197: nd | J197: nd | K197: nd | L197: nd | M197: nd | N197: nd | O197: nd | P197: nd | Q197: nd | R197: nd | S197: nd | T197: 3.2 | U197: 0.1280153618 | V197: 178.8 | W197: 4.80322364 | X197: 16.9 | Y197: 0.4740399989 | Z197: 16.3 | AA197: 0.452828092 | AB197: 18.4 | AC197: 0.3754565674 | AD197: 19.4 | AE197: 0.1822126628 | AF197: 67.6 | AG197: 0.8072027321 | AH197: 51.2 | AI197: 0.6524038278 | AJ197: 27.4 | AK197: 0.2255961006 | AL197: 60.8 | AM197: 0.7261001971 | AN197: 456.570548 | AO197: 3.270488204 | AP197: 132.424613 | AQ197: 0.7256664708 | AR197: 251.499354 | AS197: 0.8367368965 | AT197: 192.469832 | AU197: 0.7986563139 | AV197: 96.118116 | AW197: 0.5266755093 | AX197: 467.853608 | AY197: 1.870356037 | AZ197: 176.277503 | BA197: 0.683361387 | BB197: 173.947325 | BC197: 0.8192533143 | BD197: 393.498015 | BE197: 1.214755098 | BF197: 284.792855 | BG197: 0.9653277008 | BH197: 121.6918864 | BI197: 0.6817580809 | BJ197: 199.379236 | BK197: 0.7333008934 | BL197: 102.4587569 | BM197: 0.3997240401 | BN197: 274.3174821 | BO197: 1.260110578 | BP197: 451.1553229 | BQ197: 0.9330177881 | BR197: 356.5158873 | BS197: 1.174639158 | BT197: 484.803179 | BU197: 1.348782843 | BV197: 234.8683602 | BW197: 0.7530768238 | BX197: 603.0703841 | BY197: 1.773089225 | BZ197: 251.8669739 | CA197: 0.7386728908 | CB197: 655.6204728 | CC197: 1.896663273 | CD197: 386.6837293 | CE197: 1.371454933 | CF197: 94.7685623 | CG197: 0.3004380938 | CH197: 89.79031031 | CI197: 0.2846558924
A198: Nayarit | B198: nd | C198: nd | D198: nd | E198: nd | F198: nd | G198: nd | H198: nd | I198: nd | J198: nd | K198: nd | L198: nd | M198: nd | N198: nd | O198: nd | P198: nd | Q198: nd | R198: nd | S198: nd | T198: 0.8 | U198: 0.03200384046 | V198: 0.2 | W198: 0.005372733378 | X198: 0.1 | Y198: 0.002804970408 | Z198: 7.5 | AA198: 0.2083564841 | AB198: 0.1 | AC198: 0.002040524823 | AD198: 5.6 | AE198: 0.05259746969 | AF198: 2 | AG198: 0.02388173764 | AH198: 3.6 | AI198: 0.04587214414 | AJ198: 7.6 | AK198: 0.06257410091 | AL198: 6.1 | AM198: 0.07284886845 | AN198: 40.030777 | AO198: 0.2867468884 | AP198: 54.95860281 | AQ198: 0.3011646735 | AR198: 114.8750473 | AS198: 0.382188618 | AT198: 105.0111405 | AU198: 0.4357452259 | AV198: 146.9001025 | AW198: 0.8049334457 | AX198: 162.7448177 | AY198: 0.6506111036 | AZ198: 146.8101696 | BA198: 0.5691276504 | BB198: 246.4878026 | BC198: 1.160902872 | BD198: 244.5930472 | BE198: 0.7550753488 | BF198: 155.1396096 | BG198: 0.5258578648 | BH198: 104.0133355 | BI198: 0.5827170085 | BJ198: 178.1276531 | BK198: 0.6551392703 | BL198: 147.6603455 | BM198: 0.5760697438 | BN198: 157.2573861 | BO198: 0.7223808498 | BP198: 535.4329246 | BQ198: 1.107309207 | BR198: 105.8003987 | BS198: 0.3485883677 | BT198: 99.04417468 | BU198: 0.2755532334 | BV198: 85.58025394 | BW198: 0.2744026729 | BX198: 103.7788572 | BY198: 0.3051205603 | BZ198: 188.5684784 | CA198: 0.553031709 | CB198: 170.4003597 | CC198: 0.4929560887 | CD198: 782.3461773 | CE198: 2.774754774 | CF198: 215.0336141 | CG198: 0.6817059114 | CH198: 452.016501 | CI198: 1.432996055
A199: Nuevo León | B199: nd | C199: nd | D199: nd | E199: nd | F199: nd | G199: nd | H199: nd | I199: nd | J199: nd | K199: nd | L199: nd | M199: nd | N199: nd | O199: nd | P199: nd | Q199: nd | R199: nd | S199: nd | T199: 94.5 | U199: 3.780453654 | V199: 493.6 | W199: 13.25990598 | X199: 21.3 | Y199: 0.5974586968 | Z199: 32.6 | AA199: 0.905656184 | AB199: 353.8 | AC199: 7.219376824 | AD199: 937.4 | AE199: 8.804440729 | AF199: 704.5 | AG199: 8.412342082 | AH199: 358.4 | AI199: 4.566826794 | AJ199: 2371.4 | AK199: 19.52476617 | AL199: 672.9 | AM199: 8.036066161 | AN199: 1767.665973 | AO199: 12.66207542 | AP199: 2283.589274 | AQ199: 12.51371729 | AR199: 3106.018915 | AS199: 10.33370697 | AT199: 2583.367061 | AU199: 10.71971848 | AV199: 2331.750869 | AW199: 12.77673895 | AX199: 1408.460097 | AY199: 5.630654119 | AZ199: 4835.90768 | BA199: 18.74698996 | BB199: 1727.215635 | BC199: 8.134802496 | BD199: 3593.201468 | BE199: 11.09245697 | BF199: 1670.879112 | BG199: 5.663575694 | BH199: 952.5564223 | BI199: 5.336535227 | BJ199: 4841.88555 | BK199: 17.80806804 | BL199: 1679.233926 | BM199: 6.551223042 | BN199: 1281.124893 | BO199: 5.885002364 | BP199: 2214.573366 | BQ199: 4.579878013 | BR199: 1578.6628 | BS199: 5.201336625 | BT199: 3362.49033 | BU199: 9.354867015 | BV199: 3346.026187 | BW199: 10.72862591 | BX199: 1996.236427 | BY199: 5.869141302 | BZ199: 3675.73538 | CA199: 10.78015921 | CB199: 3274.642172 | CC199: 9.473306277 | CD199: 3142.641696 | CE199: 11.14603778 | CF199: 3288.83936 | CG199: 10.42637563 | CH199: 4397.280158 | CI199: 13.94038736
A200: Oaxaca | B200: nd | C200: nd | D200: nd | E200: nd | F200: nd | G200: nd | H200: nd | I200: nd | J200: nd | K200: nd | L200: nd | M200: nd | N200: nd | O200: nd | P200: nd | Q200: nd | R200: nd | S200: nd | T200: 6.4 | U200: 0.2560307237 | V200: 0 | W200: 0 | X200: 1.2 | Y200: 0.03365964489 | Z200: 1.5 | AA200: 0.04167129681 | AB200: 5.6 | AC200: 0.1142693901 | AD200: 0.1 | AE200: 0.0009392405301 | AF200: -2 | AG200: -0.02388173764 | AH200: 0.3 | AI200: 0.003822678678 | AJ200: 6.1 | AK200: 0.05022394941 | AL200: 0.4 | AM200: 0.004776974981 | AN200: 46.902999 | AO200: 0.3359737189 | AP200: 16.690637 | AQ200: 0.0914621185 | AR200: 144.346271 | AS200: 0.480239209 | AT200: 147.720108 | AU200: 0.6129666957 | AV200: 111.506719 | AW200: 0.6109967659 | AX200: 144.643148 | AY200: 0.5782453752 | AZ200: 126.588184 | BA200: 0.4907346401 | BB200: 110.2807789 | BC200: 0.5193980055 | BD200: 172.7584606 | BE200: 0.5333171012 | BF200: 201.1799768 | BG200: 0.6819152975 | BH200: 235.9279753 | BI200: 1.321746326 | BJ200: 117.5691321 | BK200: 0.4324098706 | BL200: 178.1169857 | BM200: 0.6948907372 | BN200: 353.7004505 | BO200: 1.624765858 | BP200: 1942.551064 | BQ200: 4.017318659 | BR200: 482.7953278 | BS200: 1.590701333 | BT200: 297.1991825 | BU200: 0.8268451524 | BV200: 195.5256068 | BW200: 0.6269290713 | BX200: 484.8065274 | BY200: 1.42538127 | BZ200: 487.8192672 | CA200: 1.430671369 | CB200: 56.61707199 | CC200: 0.1637891517 | CD200: 244.3162301 | CE200: 0.8665187426 | CF200: -92.63349331 | CG200: -0.2936694351 | CH200: 151.1339605 | CI200: 0.4791293432
A201: Puebla | B201: nd | C201: nd | D201: nd | E201: nd | F201: nd | G201: nd | H201: nd | I201: nd | J201: nd | K201: nd | L201: nd | M201: nd | N201: nd | O201: nd | P201: nd | Q201: nd | R201: nd | S201: nd | T201: 10.1 | U201: 0.4040484858 | V201: 13.5 | W201: 0.362659503 | X201: 15.4 | Y201: 0.4319654428 | Z201: 8.5 | AA201: 0.2361373486 | AB201: 59.7 | AC201: 1.218193319 | AD201: 29.9 | AE201: 0.2808329185 | AF201: 25.9 | AG201: 0.3092685024 | AH201: 39.2 | AI201: 0.4994966806 | AJ201: 379.3 | AK201: 3.122941641 | AL201: 37.9 | AM201: 0.4526183794 | AN201: 296.482464 | AO201: 2.123751533 | AP201: 382.0075262 | AQ201: 2.093342371 | AR201: 778.0410464 | AS201: 2.588538062 | AT201: 708.9985271 | AU201: 2.941999504 | AV201: 458.4920979 | AW201: 2.512289766 | AX201: 638.4262457 | AY201: 2.552260713 | AZ201: 782.8723621 | BA201: 3.034900847 | BB201: 424.9798124 | BC201: 2.001560644 | BD201: 662.70076 | BE201: 2.045802255 | BF201: 381.1317123 | BG201: 1.291875808 | BH201: 182.5483941 | BI201: 1.022696308 | BJ201: 772.9024023 | BK201: 2.842673257 | BL201: 594.4525029 | BM201: 2.319147364 | BN201: 775.324596 | BO201: 3.561547437 | BP201: 1504.514629 | BQ201: 3.111431562 | BR201: 1057.162873 | BS201: 3.483112397 | BT201: 791.4572466 | BU201: 2.201932664 | BV201: 1166.538224 | BW201: 3.7403629 | BX201: 953.566361 | BY201: 2.803583603 | BZ201: 643.9282611 | CA201: 1.888506233 | CB201: 2043.985091 | CC201: 5.913103104 | CD201: 583.0419922 | CE201: 2.067880688 | CF201: 627.7992769 | CG201: 1.9902678 | CH201: 798.1216482 | CI201: 2.53022881
A202: Querétaro | B202: nd | C202: nd | D202: nd | E202: nd | F202: nd | G202: nd | H202: nd | I202: nd | J202: nd | K202: nd | L202: nd | M202: nd | N202: nd | O202: nd | P202: nd | Q202: nd | R202: nd | S202: nd | T202: 37.3 | U202: 1.492179061 | V202: 10.1 | W202: 0.2713230356 | X202: 42.1 | Y202: 1.180892542 | Z202: 70.5 | AA202: 1.95855095 | AB202: 61.3 | AC202: 1.250841716 | AD202: 141.1 | AE202: 1.325268388 | AF202: 42 | AG202: 0.5015164903 | AH202: 69.8 | AI202: 0.8894099058 | AJ202: 73.2 | AK202: 0.602687393 | AL202: 125.1 | AM202: 1.493998925 | AN202: 255.193758 | AO202: 1.827993897 | AP202: 628.2089449 | AQ202: 3.442488202 | AR202: 838.6784883 | AS202: 2.790278481 | AT202: 654.15458 | AU202: 2.714423763 | AV202: 271.2228045 | AW202: 1.486154896 | AX202: 456.0213479 | AY202: 1.823053764 | AZ202: 594.7610011 | BA202: 2.305664057 | BB202: 750.580545 | BC202: 3.535067867 | BD202: 815.2668775 | BE202: 2.516784222 | BF202: 1071.503836 | BG202: 3.631946224 | BH202: 1131.613685 | BI202: 6.339673065 | BJ202: 852.0334155 | BK202: 3.133710798 | BL202: 1054.761952 | BM202: 4.114960219 | BN202: 105.4047042 | BO202: 0.4841892751 | BP202: 926.5921712 | BQ202: 1.916251309 | BR202: 1128.731131 | BS202: 3.718913609 | BT202: 1442.468949 | BU202: 4.013128327 | BV202: 1074.328258 | BW202: 3.444702861 | BX202: 985.9967149 | BY202: 2.898932193 | BZ202: 1227.646784 | CA202: 3.60042996 | CB202: 1168.077353 | CC202: 3.379164482 | CD202: 861.0287836 | CE202: 3.053819137 | CF202: 879.6674914 | CG202: 2.788747849 | CH202: 753.1948687 | CI202: 2.387800607
A203: Quintana Roo | B203: nd | C203: nd | D203: nd | E203: nd | F203: nd | G203: nd | H203: nd | I203: nd | J203: nd | K203: nd | L203: nd | M203: nd | N203: nd | O203: nd | P203: nd | Q203: nd | R203: nd | S203: nd | T203: 7.7 | U203: 0.3080369644 | V203: 9.3 | W203: 0.2498321021 | X203: 15.4 | Y203: 0.4319654428 | Z203: 39 | AA203: 1.083453717 | AB203: 1.01 | AC203: 0.02060930071 | AD203: 38.6 | AE203: 0.3625468446 | AF203: 24.6 | AG203: 0.2937453729 | AH203: 25.5 | AI203: 0.3249276877 | AJ203: 129.2 | AK203: 1.063759715 | AL203: 43.8 | AM203: 0.5230787604 | AN203: 133.384221 | AO203: 0.9554526093 | AP203: 201.4203372 | AQ203: 1.103752406 | AR203: 411.2790252 | AS203: 1.368322939 | AT203: 246.524557 | AU203: 1.022957166 | AV203: 273.5352545 | AW203: 1.498825876 | AX203: 271.182644 | AY203: 1.084117097 | AZ203: 351.7567363 | BA203: 1.363628183 | BB203: 411.8023407 | BC203: 1.939497675 | BD203: 1001.584713 | BE203: 3.091960033 | BF203: 297.5620876 | BG203: 1.008610015 | BH203: 290.4827907 | BI203: 1.627380394 | BJ203: 296.6994921 | BK203: 1.091237017 | BL203: 504.6000534 | BM203: 1.96860452 | BN203: 583.7038787 | BO203: 2.681314463 | BP203: 930.2926885 | BQ203: 1.923904213 | BR203: 223.790388 | BS203: 0.7373386776 | BT203: 325.2365978 | BU203: 0.9048487347 | BV203: 296.5133674 | BW203: 0.9507340399 | BX203: 479.3342013 | BY203: 1.409292066 | BZ203: 591.4735 | CA203: 1.734667445 | CB203: 664.1432219 | CC203: 1.921318979 | CD203: 160.7722115 | CE203: 0.5702123618 | CF203: 310.3637092 | CG203: 0.9839241931 | CH203: 416.2157082 | CI203: 1.319499325
A204: San Luis Potosí | B204: nd | C204: nd | D204: nd | E204: nd | F204: nd | G204: nd | H204: nd | I204: nd | J204: nd | K204: nd | L204: nd | M204: nd | N204: nd | O204: nd | P204: nd | Q204: nd | R204: nd | S204: nd | T204: 23.8 | U204: 0.9521142537 | V204: 14 | W204: 0.3760913365 | X204: 25.2 | Y204: 0.7068525427 | Z204: 3.4 | AA204: 0.09445493944 | AB204: 78.1 | AC204: 1.593649887 | AD204: 14.8 | AE204: 0.1390075985 | AF204: 135.3 | AG204: 1.615599551 | AH204: 89.1 | AI204: 1.135335567 | AJ204: 1.1 | AK204: 0.009056777763 | AL204: 6.1 | AM204: 0.07284886845 | AN204: 255.417118 | AO204: 1.82959386 | AP204: 312.281535 | AQ204: 1.711254685 | AR204: 429.456201 | AS204: 1.428798297 | AT204: 265.304132 | AU204: 1.100883281 | AV204: 444.802608 | AW204: 2.437278734 | AX204: 292.248836 | AY204: 1.168334208 | AZ204: 462.367013 | BA204: 1.792422504 | BB204: 198.717272 | BC204: 0.93591427 | BD204: 523.921987 | BE204: 1.617382757 | BF204: 460.727327 | BG204: 1.561671381 | BH204: 85.025897 | BI204: 0.4763431162 | BJ204: 473.494727 | BK204: 1.741475759 | BL204: 268.2640268 | BM204: 1.046582877 | BN204: 880.3243566 | BO204: 4.043876554 | BP204: 2008.126459 | BQ204: 4.15293273 | BR204: 1064.819352 | BS204: 3.508338764 | BT204: 1899.056326 | BU204: 5.283411295 | BV204: 814.9289544 | BW204: 2.612970552 | BX204: 1405.862446 | BY204: 4.133380813 | BZ204: 1766.425384 | CA204: 5.180554341 | CB204: 853.8282108 | CC204: 2.470064125 | CD204: 913.2152233 | CE204: 3.238909289 | CF204: 702.3223746 | CG204: 2.226523125 | CH204: 376.4348031 | CI204: 1.193384725
A205: Sinaloa | B205: nd | C205: nd | D205: nd | E205: nd | F205: nd | G205: nd | H205: nd | I205: nd | J205: nd | K205: nd | L205: nd | M205: nd | N205: nd | O205: nd | P205: nd | Q205: nd | R205: nd | S205: nd | T205: 3.4 | U205: 0.136016322 | V205: 5.6 | W205: 0.1504365346 | X205: 25.4 | Y205: 0.7124624835 | Z205: 1.8 | AA205: 0.05000555617 | AB205: 0.8 | AC205: 0.01632419858 | AD205: 46.2 | AE205: 0.4339291249 | AF205: 94.1 | AG205: 1.123635756 | AH205: 28.7 | AI205: 0.3657029269 | AJ205: 36 | AK205: 0.2964036359 | AL205: 13.6 | AM205: 0.1624171493 | AN205: 81.125646 | AO205: 0.5811160388 | AP205: 31.74318307 | AQ205: 0.1739477512 | AR205: 387.1269018 | AS205: 1.287968964 | AT205: 149.9335197 | AU205: 0.6221512792 | AV205: 140.3619506 | AW205: 0.7691078944 | AX205: 234.5691879 | AY205: 0.9377461009 | AZ205: 104.7665836 | BA205: 0.4061405267 | BB205: 144.41554 | BC205: 0.6801651577 | BD205: 278.2076613 | BE205: 0.8588459455 | BF205: 175.9162188 | BG205: 0.5962818098 | BH205: 149.5100443 | BI205: 0.837604576 | BJ205: 217.6156725 | BK205: 0.8003730493 | BL205: 230.9441679 | BM205: 0.9009862953 | BN205: 432.5046789 | BO205: 1.986762626 | BP205: 605.4279996 | BQ205: 1.252063457 | BR205: 399.9885181 | BS205: 1.317871637 | BT205: 428.6680565 | BU205: 1.192607939 | BV205: 434.8697193 | BW205: 1.39435685 | BX205: 761.5658971 | BY205: 2.239082406 | BZ205: 414.9616111 | CA205: 1.216995178 | CB205: 262.5832504 | CC205: 0.7596346177 | CD205: 743.5684572 | CE205: 2.637221458 | CF205: 543.4961443 | CG205: 1.723007521 | CH205: 866.9475406 | CI205: 2.748422686
A206: Sonora | B206: nd | C206: nd | D206: nd | E206: nd | F206: nd | G206: nd | H206: nd | I206: nd | J206: nd | K206: nd | L206: nd | M206: nd | N206: nd | O206: nd | P206: nd | Q206: nd | R206: nd | S206: nd | T206: 12.1 | U206: 0.484058087 | V206: 25.1 | W206: 0.674278039 | X206: 6.7 | Y206: 0.1879330173 | Z206: 11.1 | AA206: 0.3083675964 | AB206: 89.6 | AC206: 1.828310241 | AD206: 107.1 | AE206: 1.005926608 | AF206: 155.4 | AG206: 1.855611014 | AH206: 108.3 | AI206: 1.379987003 | AJ206: 159.7 | AK206: 1.314879463 | AL206: 171.1 | AM206: 2.043351048 | AN206: 321.3973149 | AO206: 2.302220614 | AP206: 651.091086 | AQ206: 3.567878809 | AR206: 513.823934 | AS206: 1.709489257 | AT206: 671.0869954 | AU206: 2.784685062 | AV206: 586.2905776 | AW206: 3.212556607 | AX206: 1265.902754 | AY206: 5.060747247 | AZ206: 656.0542571 | BA206: 2.54327489 | BB206: 458.0815747 | BC206: 2.157462601 | BD206: 961.136627 | BE206: 2.967094046 | BF206: 1576.95172 | BG206: 5.345201438 | BH206: 358.1073917 | BI206: 2.006235711 | BJ206: 1108.840353 | BK206: 4.078226189 | BL206: 304.1383039 | BM206: 1.186539786 | BN206: 1172.855866 | BO206: 5.387655474 | BP206: 2088.716284 | BQ206: 4.319597593 | BR206: 815.2924712 | BS206: 2.686204166 | BT206: 609.9534083 | BU206: 1.696966373 | BV206: 506.182145 | BW206: 1.623011468 | BX206: 368.1286512 | BY206: 1.082336261 | BZ206: 155.0995603 | CA206: 0.4548744076 | CB206: 449.6398056 | CC206: 1.300775892 | CD206: 582.332223 | CE206: 2.065363343 | CF206: 899.2376519 | CG206: 2.85078975 | CH206: 458.9029856 | CI206: 1.454827792
A207: Tabasco | B207: nd | C207: nd | D207: nd | E207: nd | F207: nd | G207: nd | H207: nd | I207: nd | J207: nd | K207: nd | L207: nd | M207: nd | N207: nd | O207: nd | P207: nd | Q207: nd | R207: nd | S207: nd | T207: 0 | U207: 0 | V207: 0 | W207: 0 | X207: 0 | Y207: 0 | Z207: 1.6 | AA207: 0.04444938326 | AB207: 2.5 | AC207: 0.05101312057 | AD207: 0.6 | AE207: 0.005635443181 | AF207: 1.2 | AG207: 0.01432904258 | AH207: 0 | AI207: 0 | AJ207: 7.6 | AK207: 0.06257410091 | AL207: 0.4 | AM207: 0.004776974981 | AN207: 32.160021 | AO207: 0.2303673984 | AP207: 79.638677 | AQ207: 0.4364076765 | AR207: 231.553504 | AS207: 0.7703771689 | AT207: 201.495179 | AU207: 0.83610712 | AV207: 140.3494706 | AW207: 0.769039511 | AX207: 284.450151 | AY207: 1.137157111 | AZ207: 158.086737 | BA207: 0.6128426488 | BB207: 82.408777 | BC207: 0.3881270591 | BD207: 179.600399 | BE207: 0.5544386298 | BF207: 135.0834019 | BG207: 0.4578757769 | BH207: 90.36613927 | BI207: 0.5062609146 | BJ207: 141.2624873 | BK207: 0.5195521371 | BL207: 233.2425913 | BM207: 0.9099531724 | BN207: 325.4679448 | BO207: 1.495076424 | BP207: 323.9347567 | BQ207: 0.669917598 | BR207: 241.6646183 | BS207: 0.796230221 | BT207: 737.4853953 | BU207: 2.05177625 | BV207: 112.7536675 | BW207: 0.3615309179 | BX207: 400.3783564 | BY207: 1.177153726 | BZ207: 530.2928506 | CA207: 1.555237461 | CB207: 490.5901884 | CC207: 1.419242429 | CD207: 464.8217699 | CE207: 1.648587879 | CF207: 300.413416 | CG207: 0.9523794797 | CH207: 21.92179592 | CI207: 0.06949712456
A208: Tamaulipas | B208: nd | C208: nd | D208: nd | E208: nd | F208: nd | G208: nd | H208: nd | I208: nd | J208: nd | K208: nd | L208: nd | M208: nd | N208: nd | O208: nd | P208: nd | Q208: nd | R208: nd | S208: nd | T208: 112.6 | U208: 4.504540545 | V208: 4.38 | W208: 0.117662861 | X208: 60.8 | Y208: 1.705422008 | Z208: 37.5 | AA208: 1.04178242 | AB208: 52.9 | AC208: 1.079437631 | AD208: 362.4 | AE208: 3.403807681 | AF208: 393.7 | AG208: 4.701120053 | AH208: 334.3 | AI208: 4.259738274 | AJ208: 283.7 | AK208: 2.335825319 | AL208: 345.7 | AM208: 4.128500627 | AN208: 582.576922 | AO208: 4.173092109 | AP208: 1017.561787 | AQ208: 5.576081772 | AR208: 973.1262403 | AS208: 3.237585375 | AT208: 1097.123938 | AU208: 4.552531434 | AV208: 1011.52508 | AW208: 5.542612661 | AX208: 785.717812 | AY208: 3.141093769 | AZ208: 967.8063617 | BA208: 3.751820206 | BB208: 854.093666 | BC208: 4.022591705 | BD208: 877.436518 | BE208: 2.708706125 | BF208: 932.4279435 | BG208: 3.160537587 | BH208: 603.1635742 | BI208: 3.379121264 | BJ208: 1035.875733 | BK208: 3.809868146 | BL208: 842.8687682 | BM208: 3.288297841 | BN208: 1051.421968 | BO208: 4.829834154 | BP208: 1732.418431 | BQ208: 3.582751062 | BR208: 723.8941105 | BS208: 2.385067254 | BT208: 1103.241785 | BU208: 3.069356095 | BV208: 1149.501229 | BW208: 3.685735846 | BX208: 1539.689589 | BY208: 4.526846437 | BZ208: 1512.033724 | CA208: 4.434477076 | CB208: 1623.258424 | CC208: 4.695970861 | CD208: 699.9254578 | CE208: 2.482432409 | CF208: 1273.208975 | CG208: 4.036364678 | CH208: 982.4733116 | CI208: 3.114665895
A209: Tlaxcala | B209: nd | C209: nd | D209: nd | E209: nd | F209: nd | G209: nd | H209: nd | I209: nd | J209: nd | K209: nd | L209: nd | M209: nd | N209: nd | O209: nd | P209: nd | Q209: nd | R209: nd | S209: nd | T209: 12.6 | U209: 0.5040604873 | V209: 5.4 | W209: 0.1450638012 | X209: 1.1 | Y209: 0.03085467448 | Z209: 0 | AA209: 0 | AB209: 2 | AC209: 0.04081049646 | AD209: 19.3 | AE209: 0.1812734223 | AF209: 11.2 | AG209: 0.1337377308 | AH209: 7.3 | AI209: 0.09301851451 | AJ209: 3.9 | AK209: 0.03211039389 | AL209: 8.8 | AM209: 0.1050934496 | AN209: 55.006034 | AO209: 0.3940170607 | AP209: 56.027533 | AQ209: 0.3070222462 | AR209: 84.614862 | AS209: 0.2815131566 | AT209: 134.545704 | AU209: 0.5582993183 | AV209: 202.190724 | AW209: 1.107896274 | AX209: 318.045857 | AY209: 1.271463933 | AZ209: 194.353854 | BA209: 0.7534365814 | BB209: 242.225978 | BC209: 1.140830624 | BD209: 92.695589 | BE209: 0.2861575789 | BF209: 123.709811 | BG209: 0.4193240993 | BH209: 72.191991 | BI209: 0.4044433422 | BJ209: 91.1712334 | BK209: 0.335320509 | BL209: 251.2297042 | BM209: 0.9801265929 | BN209: 79.50908357 | BO209: 0.3652346053 | BP209: 80.73515841 | BQ209: 0.1669654221 | BR209: 120.7129363 | BS209: 0.3977218041 | BT209: 152.5185184 | BU209: 0.4243255198 | BV209: 253.119961 | BW209: 0.8115983614 | BX209: 168.048451 | BY209: 0.4940798051 | BZ209: 143.0563367 | CA209: 0.4195541643 | CB209: 345.7211787 | CC209: 1.000146715 | CD209: 359.7538334 | CE209: 1.27594241 | CF209: 50.80516687 | CG209: 0.1610640398 | CH209: 275.5436694 | CI209: 0.8735366748
A210: Veracruz de Ignacio de la Llave | B210: nd | C210: nd | D210: nd | E210: nd | F210: nd | G210: nd | H210: nd | I210: nd | J210: nd | K210: nd | L210: nd | M210: nd | N210: nd | O210: nd | P210: nd | Q210: nd | R210: nd | S210: nd | T210: 4.3 | U210: 0.1720206425 | V210: 10.3 | W210: 0.276695769 | X210: 63.2 | Y210: 1.772741298 | Z210: 9.6 | AA210: 0.2666962996 | AB210: 152.8 | AC210: 3.11792193 | AD210: 10.2 | AE210: 0.09580253407 | AF210: 29 | AG210: 0.3462851957 | AH210: 10.4 | AI210: 0.1325195275 | AJ210: 3.7 | AK210: 0.03046370702 | AL210: 38.2 | AM210: 0.4562011106 | AN210: 56.007422 | AO210: 0.4011901639 | AP210: 311.501464 | AQ210: 1.706980016 | AR210: 796.567839 | AS210: 2.650176594 | AT210: 640.317856 | AU210: 2.657008079 | AV210: 473.222924 | AW210: 2.59300676 | AX210: 652.4933724 | AY210: 2.608497396 | AZ210: 484.710835 | BA210: 1.879041074 | BB210: 252.740391 | BC210: 1.190351177 | BD210: 577.73277 | BE210: 1.783500299 | BF210: 607.7801862 | BG210: 2.060118572 | BH210: 518.4131771 | BI210: 2.904321588 | BJ210: 1230.772751 | BK210: 4.526683801 | BL210: 1189.117356 | BM210: 4.639123175 | BN210: 1061.320845 | BO210: 4.875305843 | BP210: 1702.750026 | BQ210: 3.521394921 | BR210: 1271.254203 | BS210: 4.188494872 | BT210: 1589.121548 | BU210: 4.421134127 | BV210: 1045.512964 | BW210: 3.352310127 | BX210: 914.9217883 | BY210: 2.689964567 | BZ210: 962.0664319 | CA210: 2.821538614 | CB210: 1080.613338 | CC210: 3.126137325 | CD210: 1000.696635 | CE210: 3.549180462 | CF210: 935.3469883 | CG210: 2.965264634 | CH210: 0.07315127965 | CI210: 0.0002319063462
A211: Yucatán | B211: nd | C211: nd | D211: nd | E211: nd | F211: nd | G211: nd | H211: nd | I211: nd | J211: nd | K211: nd | L211: nd | M211: nd | N211: nd | O211: nd | P211: nd | Q211: nd | R211: nd | S211: nd | T211: 44.3 | U211: 1.772212666 | V211: 5.6 | W211: 0.1504365346 | X211: 1.6 | Y211: 0.04487952652 | Z211: 7 | AA211: 0.1944660518 | AB211: 1.9 | AC211: 0.03876997164 | AD211: 48.1 | AE211: 0.451774695 | AF211: 19.8 | AG211: 0.2364292026 | AH211: 48.6 | AI211: 0.6192739459 | AJ211: 14.2 | AK211: 0.1169147675 | AL211: 31 | AM211: 0.370215561 | AN211: 64.12119901 | AO211: 0.4593104525 | AP211: 82.88950203 | AQ211: 0.4542216967 | AR211: 228.9732465 | AS211: 0.761792667 | AT211: 212.4142565 | AU211: 0.8814159879 | AV211: 194.4810556 | AW211: 1.065651443 | AX211: 184.3538557 | AY211: 0.7369983712 | AZ211: 91.23024645 | BA211: 0.3536652533 | BB211: 105.3094414 | BC211: 0.4959841084 | BD211: 192.9766391 | BE211: 0.5957319916 | BF211: 146.0968711 | BG211: 0.4952067939 | BH211: 79.84036808 | BI211: 0.447292073 | BJ211: 94.81755758 | BK211: 0.3487313979 | BL211: 165.5354327 | BM211: 0.6458061166 | BN211: 127.9209779 | BO211: 0.5876205056 | BP211: 516.6635074 | BQ211: 1.068492864 | BR211: 86.08559134 | BS211: 0.2836325396 | BT211: 213.4897891 | BU211: 0.593955191 | BV211: 125.1417127 | BW211: 0.4012516775 | BX211: 107.842177 | BY211: 0.3170671402 | BZ211: 86.01460711 | CA211: 0.252262762 | CB211: 159.9252106 | CC211: 0.4626522294 | CD211: 151.655598 | CE211: 0.5378783803 | CF211: 145.543409 | CG211: 0.4614060117 | CH211: 535.8503705 | CI211: 1.698768663
A212: Zacatecas | B212: nd | C212: nd | D212: nd | E212: nd | F212: nd | G212: nd | H212: nd | I212: nd | J212: nd | K212: nd | L212: nd | M212: nd | N212: nd | O212: nd | P212: nd | Q212: nd | R212: nd | S212: nd | T212: 0 | U212: 0 | V212: 0 | W212: 0 | X212: 0.2 | Y212: 0.005609940815 | Z212: 6.2 | AA212: 0.1722413602 | AB212: 0.7 | AC212: 0.01428367376 | AD212: 13.8 | AE212: 0.1296151932 | AF212: 12.2 | AG212: 0.1456785996 | AH212: 11.1 | AI212: 0.1414391111 | AJ212: 13.6 | AK212: 0.1119747069 | AL212: 13.6 | AM212: 0.1624171493 | AN212: 30.590731 | AO212: 0.2191263219 | AP212: 47.210349 | AQ212: 0.2587054367 | AR212: 62.048525 | AS212: 0.2064350839 | AT212: 209.981412 | AU212: 0.8713208649 | AV212: 119.206368 | AW212: 0.6531866956 | AX212: 233.778092 | AY212: 0.9345835069 | AZ212: -33.800504 | BA212: -0.1310318044 | BB212: 97.132104 | BC212: 0.4574706632 | BD212: 867.519411 | BE212: 2.678091342 | BF212: 1836.462303 | BG212: 6.224832897 | BH212: 301.516316 | BI212: 1.689193841 | BJ212: 381.918385 | BK212: 1.404665293 | BL212: 466.7329255 | BM212: 1.820872868 | BN212: 754.3879178 | BO212: 3.46537227 | BP212: 3973.158215 | BQ212: 8.216742885 | BR212: 758.9138019 | BS212: 2.500449211 | BT212: 107.5754891 | BU212: 0.299288413 | BV212: 532.6161787 | BW212: 1.707768981 | BX212: 457.6370232 | BY212: 1.345500121 | BZ212: 301.735376 | CA212: 0.8849264318 | CB212: 746.4906225 | CC212: 2.159544136 | CD212: -405.5288343 | CE212: -1.43829305 | CF212: 1318.027541 | CG212: 4.17844982 | CH212: 7.282682302 | CI212: 0.02308777442
A213: Total | B213: 1622.6 | C213: 100 | D213: 1701.1 | E213: 100 | F213: 626.5 | G213: 100 | H213: 683.7 | I213: 100 | J213: 1429.8 | K213: 100 | L213: 1729 | M213: 100 | N213: 2424.2 | O213: 100 | P213: 3877.2 | Q213: 100 | R213: 3157.1 | S213: 100 | T213: 2499.7 | U213: 100 | V213: 3722.5 | W213: 100 | X213: 3565.1 | Y213: 100 | Z213: 3599.6 | AA213: 100 | AB213: 4900.7 | AC213: 100 | AD213: 10646.9 | AE213: 100 | AF213: 8374.6 | AG213: 100 | AH213: 7847.9 | AI213: 100 | AJ213: 12145.6 | AK213: 100 | AL213: 8373.5 | AM213: 100 | AN213: 13960.31783 | AO213: 100 | AP213: 18248.68839 | AQ213: 100 | AR213: 30057.16075 | AS213: 100 | AT213: 24099.20621 | AU213: 100 | AV213: 18249.96878 | AW213: 100 | AX213: 25014.14697 | AY213: 100 | AZ213: 25795.64874 | BA213: 100 | BB213: 21232.4225 | BC213: 100 | BD213: 32393.19726 | BE213: 100 | BF213: 29502.19441 | BG213: 100 | BH213: 17849.71675 | BI213: 100 | BJ213: 27189.28039 | BK213: 100 | BL213: 25632.373 | BM213: 100 | BN213: 21769.31825 | BO213: 100 | BP213: 48354.41818 | BQ213: 100 | BR213: 30351.09846 | BS213: 100 | BT213: 35943.75339 | BU213: 100 | BV213: 31187.83539 | BW213: 100 | BX213: 34012.41041 | BY213: 100 | BZ213: 34097.22721 | CA213: 100 | CB213: 34567.04635 | CC213: 100 | CD213: 28195.14663 | CE213: 100 | CF213: 31543.45746 | CG213: 100 | CH213: 35291.61836 | CI213: 111.8825303
A214: * La diferencia entre el total de IED publicado por la Secretaría de Economía y la desagregación por país de origen, se debe a que esta última sólo incuye las nuevas inversiones reportadas al RNIE más el valor de la importación temporal de maquinaria y equipo de empresas maquiladoras.
A215: nd: Dato no disponible
A216: Fuente: Secretaría de Economía

Sheet Series Históricas
A5: CONTENIDO
A6: * Nota Metodológica
A7: * IED por tipo de inversión (1980-2021), de acuerdo a los datos publicados por la Secretaría de Economía
A8: * IED por tipo de inversión (1980-2021), de acuerdo a los datos publicados por el Banco de México
A9: * IED por país de origen (1980-2021), de acuerdo a los datos publicados por la Secretaría de Economía
A10: * IED por sector económico (1980-2021), de acuerdo a los datos publicados por la Secretaría de Economía
A11: * IED por entidad federativa (1989-2021), de acuerdo a los datos publicados por la Secretaría de Economía
B67: IED por tipo de inversión (1980-2022) (millones de dólares/participación porcentual) Cifras de la Secretaría de Economía
B72: Tipo de inversión | C72: 1980 | E72: 1981 | G72: 1982 | I72: 1983 | K72: 1984 | M72: 1985 | O72: 1986 | Q72: 1987 | S72: 1988 | U72: 1989 | W72: 1990 | Y72: 1991 | AA72: 1992 | AC72: 1993 | AE72: 1994 | AG72: 1995 | AI72: 1996 | AK72: 1997 | AM72: 1998 | AO72: 1999 | AQ72: 2000 | AS72: 2001 | AU72: 2002 | AW72: 2003 | AY72: 2004 | BA72: 2005 | BC72: 2006 | BE72: 2007 | BG72: 2008 | BI72: 2009 | BK72: 2010 | BM72: 2011 | BO72: 2012 | BQ72: 2013 | BS72: 2014 | BU72: 2015 | BW72: 2016 | BY72: 2017 | CA72: 2018 | CC72: 2019 | CE72: 2020 | CG72: 2021 | CI72: 2022
B73: Nuevas invesrsiones | C73: nd | D73: nd | E73: nd | F73: nd | G73: nd | H73: nd | I73: nd | J73: nd | K73: nd | L73: nd | M73: nd | N73: nd | O73: nd | P73: nd | Q73: nd | R73: nd | S73: nd | T73: nd | U73: nd | V73: nd | W73: nd | X73: nd | Y73: nd | Z73: nd | AA73: nd | AB73: nd | AC73: nd | AD73: nd | AE73: 9752.1 | AF73: 64.78810117 | AG73: 7008.3 | AH73: 72.27883088 | AI73: 6431.4 | AJ73: 63.75653833 | AK73: 10465.3 | AL73: 73.80579962 | AM73: 6263 | AN73: 50.44239584 | AO73: 6606.934209 | AP73: 47.32653144 | AQ73: 8704.314254 | AR73: 47.69830066 | AS73: 23110.78134 | AT73: 76.88943587 | AU73: 15637.68304 | AV73: 64.88878887 | AW73: 8897.507294 | AX73: 48.75354804 | AY73: 14715.80185 | AZ73: 58.82991677 | BA73: 14011.18177 | BB73: 54.31606668 | BC73: 6968.525627 | BD73: 32.82020989 | BE73: 18026.65586 | BF73: 55.64951096 | BG73: 13053.19745 | BH73: 44.24483572 | BI73: 11008.14727 | BJ73: 61.67127147 | BK73: 15636.25891 | BL73: 57.50891047 | BM73: 9698.982889 | BN73: 37.83880208 | BO73: 4316.06516 | BP73: 19.82636806 | BQ73: 22038.60898 | BR73: 45.5772395 | BS73: 5762.630654 | BT73: 18.98656374 | BU73: 13448.9739 | BV73: 37.41672093 | BW73: 10991.55492 | BX73: 35.24308368 | BY73: 11939.76423 | BZ73: 35.1041402 | CA73: 11323.28881 | CB73: 33.20882587 | CC73: 13527.7192 | CD73: 39.13472695 | CE73: 6741.158419 | CF73: 23.90893194 | CG73: 13653.19907 | CH73: 43.28377474 | CI73: 16993.09778 | CJ73: 48.15052006
B74: Reinversiones | C74: nd | D74: nd | E74: nd | F74: nd | G74: nd | H74: nd | I74: nd | J74: nd | K74: nd | L74: nd | M74: nd | N74: nd | O74: nd | P74: nd | Q74: nd | R74: nd | S74: nd | T74: nd | U74: nd | V74: nd | W74: nd | X74: nd | Y74: nd | Z74: nd | AA74: nd | AB74: nd | AC74: nd | AD74: nd | AE74: 2366.601 | AF74: 15.72251977 | AG74: 1572 | AH74: 16.21253687 | AI74: 2589.736 | AJ74: 25.67288655 | AK74: 2150 | AL74: 15.16272531 | AM74: 2864 | AN74: 23.06674464 | AO74: 2367.168675 | AP74: 16.95640961 | AQ74: 3906.76736 | AR74: 21.40848305 | AS74: 3900.080174 | AT74: 12.97554419 | AU74: 2592.763463 | AV74: 10.75870898 | AW74: 2257.277719 | AX74: 12.3686662 | AY74: 2821.174987 | AZ74: 11.27831779 | BA74: 4408.848962 | BB74: 17.0914444 | BC74: 8102.918738 | BD74: 38.1629498 | BE74: 8509.977966 | BF74: 26.27087996 | BG74: 9328.889029 | BH74: 31.62100046 | BI74: 5365.221117 | BJ74: 30.05773813 | BK74: 5305.815165 | BL74: 19.51436408 | BM74: 10756.3463 | BN74: 41.96391143 | BO74: 10664.1304 | BP74: 48.9869746 | BQ74: 18496.59879 | BR74: 38.25213804 | BS74: 18036.72951 | BT74: 59.42694147 | BU74: 11955.44229 | BV74: 33.26152993 | BW74: 10682.51623 | BX74: 34.25218869 | BY74: 11976.56083 | BZ74: 35.21232599 | CA74: 13309.76171 | CB74: 39.03473331 | CC74: 18170.30242 | CD74: 52.56538912 | CE74: 16125.18278 | CF74: 57.19134216 | CG74: 12658.86867 | CH74: 40.13151916 | CI74: 16027.79041 | CJ74: 45.41528883
B75: Cuentas | C75: nd | D75: nd | E75: nd | F75: nd | G75: nd | H75: nd | I75: nd | J75: nd | K75: nd | L75: nd | M75: nd | N75: nd | O75: nd | P75: nd | Q75: nd | R75: nd | S75: nd | T75: nd | U75: nd | V75: nd | W75: nd | X75: nd | Y75: nd | Z75: nd | AA75: nd | AB75: nd | AC75: nd | AD75: nd | AE75: 2933.6 | AF75: 19.48937907 | AG75: 1115.9 | AH75: 11.50863225 | AI75: 1066.3 | AJ75: 10.57057512 | AK75: 1564.209 | AL75: 11.03147507 | AM75: 3289.143 | AN75: 26.49085952 | AO75: 4986.21495 | AP75: 35.71705895 | AQ75: 5637.606776 | AR75: 30.8932163 | AS75: 3046.299236 | AT75: 10.13501994 | AU75: 5868.75971 | AV75: 24.35250215 | AW75: 7095.183763 | AX75: 38.87778576 | AY75: 7477.17014 | AZ75: 29.89176544 | BA75: 7375.618008 | BB75: 28.59248892 | BC75: 6160.97813 | BD75: 29.01684031 | BE75: 5856.563432 | BF75: 18.07960908 | BG75: 7120.10793 | BH75: 24.13416382 | BI75: 1476.34836 | BJ75: 8.270990406 | BK75: 6247.206308 | BL75: 22.97672546 | BM75: 5177.04381 | BN75: 20.19728649 | BO75: 6789.122686 | BP75: 31.18665734 | BQ75: 7819.210404 | BR75: 16.17062246 | BS75: 6551.738287 | BT75: 21.58649479 | BU75: 10539.3372 | BV75: 29.32174914 | BW75: 9513.76424 | BX75: 30.50472763 | BY75: 10096.08534 | BZ75: 29.68353381 | CA75: 9464.176689 | CB75: 27.75644081 | CC75: 2869.024725 | CD75: 8.299883928 | CE75: 5328.80543 | CF75: 18.8997259 | CG75: 5231.389711 | CH75: 16.5847061 | CI75: 2270.730168 | CJ75: 6.434191103
B76: Total | C76: 1622.6 | D76: 100 | E76: 1701.1 | F76: 100 | G76: 626.5 | H76: 100 | I76: 683.7 | J76: 100 | K76: 1429.8 | L76: 100 | M76: 1729 | N76: 100 | O76: 2424.2 | P76: 100 | Q76: 3877.2 | R76: 100 | S76: 3157.1 | T76: 100 | U76: 2499.7 | V76: 100 | W76: 3722.4 | X76: 100 | Y76: 3565 | Z76: 100 | AA76: 3599.6 | AB76: 100 | AC76: 4900.7 | AD76: 100 | AE76: 15052.301 | AF76: 100 | AG76: 9696.2 | AH76: 100 | AI76: 10087.436 | AJ76: 100 | AK76: 14179.509 | AL76: 100 | AM76: 12416.143 | AN76: 100 | AO76: 13960.31783 | AP76: 100 | AQ76: 18248.68839 | AR76: 100 | AS76: 30057.16075 | AT76: 100 | AU76: 24099.20621 | AV76: 100 | AW76: 18249.96878 | AX76: 100 | AY76: 25014.14697 | AZ76: 100 | BA76: 25795.64874 | BB76: 100 | BC76: 21232.4225 | BD76: 100 | BE76: 32393.19726 | BF76: 100 | BG76: 29502.19441 | BH76: 100 | BI76: 17849.71675 | BJ76: 100 | BK76: 27189.28039 | BL76: 100 | BM76: 25632.373 | BN76: 100 | BO76: 21769.31825 | BP76: 100 | BQ76: 48354.41818 | BR76: 100 | BS76: 30351.09846 | BT76: 100 | BU76: 35943.75339 | BV76: 100 | BW76: 31187.83539 | BX76: 100 | BY76: 34012.41041 | BZ76: 100 | CA76: 34097.22721 | CB76: 100 | CC76: 34567.04635 | CD76: 100 | CE76: 28195.14663 | CF76: 100 | CG76: 31543.45746 | CH76: 100 | CI76: 35291.61836 | CJ76: 100
B77: nd: Dato no disponible
B78: Fuente: Secretaría de Economía
B79: IED por tipo de inversión (1980-2022) (millones de dólares/participación porcentual) Cifras del Banco de México
B84: Tipo de inversión | C84: 1980 | E84: 1981 | G84: 1982 | I84: 1983 | K84: 1984 | M84: 1985 | O84: 1986 | Q84: 1987 | S84: 1988 | U84: 1989 | W84: 1990 | Y84: 1991 | AA84: 1992 | AC84: 1993 | AE84: 1994 | AG84: 1995 | AI84: 1996 | AK84: 1997 | AM84: 1998 | AO84: 1999 | AQ84: 2000 | AS84: 2001 | AU84: 2002 | AW84: 2003 | AY84: 2004 | BA84: 2005 | BC84: 2006 | BE84: 2007 | BG84: 2008 | BI84: 2009 | BK84: 2010 | BM84: 2011 | BO84: 2012 | BQ84: 2013 | BS84: 2014 | BU84: 2015 | BW84: 2016 | BY84: 2017 | CA84: 2018 | CC84: 2019 | CE84: 2020 | CG84: 2021 | CI84: 2022
B85: Nuevas invesrsiones | C85: 811.662 | D85: 38.83990673 | E85: 1515.099 | F85: 49.25709548 | G85: 1248.9 | H85: 65.72127108 | I85: 1810.699 | J85: 82.61999572 | K85: 1272.999 | L85: 82.60868437 | M85: 1535.201 | N85: 77.39468643 | O85: 1869.901 | P85: 77.88985625 | Q85: 2318.4 | R85: 87.99821149 | S85: 2204.898 | T85: 76.55906467 | U85: 1659.402 | V85: 52.25640057 | W85: 1114.739 | X85: 42.33339334 | Y85: 3422.3 | Z85: 71.87443951 | AA85: 3012.3 | AB85: 68.57359055 | AC85: 3040.965 | AD85: 69.28919766 | AE85: 5672.3 | AF85: 51.69559793 | AG85: 6838.4 | AH85: 71.78442837 | AI85: 5529.415 | AJ85: 60.19753412 | AK85: 9115.347 | AL85: 71.04959049 | AM85: 6603.6215 | AN85: 51.76564559 | AO85: 6606.934209 | AP85: 47.32653144 | AQ85: 8704.314254 | AR85: 47.69830066 | AS85: 23110.78134 | AT85: 76.88943587 | AU85: 15637.68304 | AV85: 64.88878887 | AW85: 8897.507294 | AX85: 48.75354804 | AY85: 14715.80185 | AZ85: 58.82991677 | BA85: 14011.18177 | BB85: 54.31606668 | BC85: 6968.525627 | BD85: 32.82020989 | BE85: 18026.65586 | BF85: 55.64951096 | BG85: 13053.19745 | BH85: 44.24483572 | BI85: 11008.14727 | BJ85: 61.67127147 | BK85: 15636.25891 | BL85: 57.50891047 | BM85: 9698.982889 | BN85: 37.83880208 | BO85: 4316.06516 | BP85: 19.82636806 | BQ85: 22038.60898 | BR85: 45.5772395 | BS85: 5762.630654 | BT85: 18.98656374 | BU85: 13448.9739 | BV85: 37.41672093 | BW85: 10991.55492 | BX85: 35.24308368 | BY85: 11939.76423 | BZ85: 35.1041402 | CA85: 11323.28881 | CB85: 33.20882587 | CC85: 13527.7192 | CD85: 39.13472695 | CE85: 6741.158419 | CF85: 23.90893194 | CG85: 13653.19907 | CH85: 43.28377474 | CI85: 16993.09778 | CJ85: 48.15052006
B86: Reinversiones | C86: 938.2 | D86: 44.89504312 | E86: 1356.201 | F86: 44.09119282 | G86: 640.7 | H86: 33.71576458 | I86: 225.3 | J86: 10.2801653 | K86: 428.8 | L86: 27.82610501 | M86: 524.2 | N86: 26.42669893 | O86: 595.298 | P86: 24.79686125 | Q86: 412.499 | R86: 15.65699372 | S86: 691.898 | T86: 24.02426948 | U86: 1074.998 | V86: 33.85287356 | W86: 1069.999 | X86: 40.63434448 | Y86: 1408 | Z86: 29.57052591 | AA86: 1020 | AB86: 23.21981953 | AC86: 1399.236 | AD86: 31.88196503 | AE86: 2366.601 | AF86: 21.56847377 | AG86: 1572 | AH86: 16.50168481 | AI86: 2589.736 | AJ86: 28.19389053 | AK86: 2150 | AL86: 16.75817932 | AM86: 2864 | AN86: 22.45083383 | AO86: 2367.168675 | AP86: 16.95640961 | AQ86: 3906.76736 | AR86: 21.40848305 | AS86: 3900.080174 | AT86: 12.97554419 | AU86: 2592.763463 | AV86: 10.75870898 | AW86: 2257.277719 | AX86: 12.3686662 | AY86: 2821.174987 | AZ86: 11.27831779 | BA86: 4408.848962 | BB86: 17.0914444 | BC86: 8102.918738 | BD86: 38.1629498 | BE86: 8509.977966 | BF86: 26.27087996 | BG86: 9328.889029 | BH86: 31.62100046 | BI86: 5365.221117 | BJ86: 30.05773813 | BK86: 5305.815165 | BL86: 19.51436408 | BM86: 10756.3463 | BN86: 41.96391143 | BO86: 10664.1304 | BP86: 48.9869746 | BQ86: 18496.59879 | BR86: 38.25213804 | BS86: 18036.72951 | BT86: 59.42694147 | BU86: 11955.44229 | BV86: 33.26152993 | BW86: 10682.51623 | BX86: 34.25218869 | BY86: 11976.56083 | BZ86: 35.21232599 | CA86: 13309.76171 | CB86: 39.03473331 | CC86: 18170.30242 | CD86: 52.56538912 | CE86: 16125.18278 | CF86: 57.19134216 | CG86: 12658.86867 | CH86: 40.13151916 | CI86: 16027.79041 | CJ86: 45.41528883
B87: Cuentas | C87: 339.901 | D87: 16.26505015 | E87: 204.6 | F87: 6.651711694 | G87: 10.698 | H87: 0.5629643351 | I87: 155.6 | J87: 7.099838976 | K87: -160.8 | L87: -10.43478938 | M87: -75.801 | N87: -3.82138536 | O87: -64.5 | P87: -2.686717494 | Q87: -96.3 | R87: -3.655205213 | S87: -16.8 | T87: -0.5833341435 | U87: 441.1 | V87: 13.89072587 | W87: 448.5 | X87: 17.03226218 | Y87: -68.802 | Z87: -1.444965429 | AA87: 360.499 | AB87: 8.206589921 | AC87: -51.4 | AD87: -1.171162693 | AE87: 2933.6 | AF87: 26.7359283 | AG87: 1115.9 | AH87: 11.71388682 | AI87: 1066.3 | AJ87: 11.60857534 | AK87: 1564.209 | AL87: 12.19223019 | AM87: 3289.143 | AN87: 25.78352058 | AO87: 4986.21495 | AP87: 35.71705895 | AQ87: 5637.606776 | AR87: 30.8932163 | AS87: 3046.299236 | AT87: 10.13501994 | AU87: 5868.75971 | AV87: 24.35250215 | AW87: 7095.183763 | AX87: 38.87778576 | AY87: 7477.17014 | AZ87: 29.89176544 | BA87: 7375.618008 | BB87: 28.59248892 | BC87: 6160.97813 | BD87: 29.01684031 | BE87: 5856.563432 | BF87: 18.07960908 | BG87: 7120.10793 | BH87: 24.13416382 | BI87: 1476.34836 | BJ87: 8.270990406 | BK87: 6247.206308 | BL87: 22.97672546 | BM87: 5177.04381 | BN87: 20.19728649 | BO87: 6789.122686 | BP87: 31.18665734 | BQ87: 7819.210404 | BR87: 16.17062246 | BS87: 6551.738287 | BT87: 21.58649479 | BU87: 10539.3372 | BV87: 29.32174914 | BW87: 9513.76424 | BX87: 30.50472763 | BY87: 10096.08534 | BZ87: 29.68353381 | CA87: 9464.176689 | CB87: 27.75644081 | CC87: 2869.024725 | CD87: 8.299883928 | CE87: 5328.80543 | CF87: 18.8997259 | CG87: 5231.389711 | CH87: 16.5847061 | CI87: 2270.730168 | CJ87: 6.434191103
B88: Total | C88: 2089.763 | D88: 100 | E88: 3075.9 | F88: 100 | G88: 1900.298 | H88: 100 | I88: 2191.599 | J88: 100 | K88: 1540.999 | L88: 100 | M88: 1983.6 | N88: 100 | O88: 2400.699 | P88: 100 | Q88: 2634.599 | R88: 100 | S88: 2879.996 | T88: 100 | U88: 3175.5 | V88: 100 | W88: 2633.238 | X88: 100 | Y88: 4761.498 | Z88: 100 | AA88: 4392.799 | AB88: 100 | AC88: 4388.801 | AD88: 100 | AE88: 10972.501 | AF88: 100 | AG88: 9526.3 | AH88: 100 | AI88: 9185.451 | AJ88: 100 | AK88: 12829.556 | AL88: 100 | AM88: 12756.7645 | AN88: 100 | AO88: 13960.31783 | AP88: 100 | AQ88: 18248.68839 | AR88: 100 | AS88: 30057.16075 | AT88: 100 | AU88: 24099.20621 | AV88: 100 | AW88: 18249.96878 | AX88: 100 | AY88: 25014.14697 | AZ88: 100 | BA88: 25795.64874 | BB88: 100 | BC88: 21232.4225 | BD88: 100 | BE88: 32393.19726 | BF88: 100 | BG88: 29502.19441 | BH88: 100 | BI88: 17849.71675 | BJ88: 100 | BK88: 27189.28039 | BL88: 100 | BM88: 25632.373 | BN88: 100 | BO88: 21769.31825 | BP88: 100 | BQ88: 48354.41818 | BR88: 100 | BS88: 30351.09846 | BT88: 100 | BU88: 35943.75339 | BV88: 100 | BW88: 31187.83539 | BX88: 100 | BY88: 34012.41041 | BZ88: 100 | CA88: 34097.22721 | CB88: 100 | CC88: 34567.04635 | CD88: 100 | CE88: 28195.14663 | CF88: 100 | CG88: 31543.45746 | CH88: 100 | CI88: 35291.61836 | CJ88: 100
B89: ND: Dato no disponible
B90: Fuente: Banco de México
B92: IED por país de origen (1980-2022) (millones de dólares/participación porcentual)
B96: País de origen | C96: 1980 | E96: 1981 | G96: 1982 | I96: 1983 | K96: 1984 | M96: 1985 | O96: 1986 | Q96: 1987 | S96: 1988 | U96: 1989 | W96: 1990 | Y96: 1991 | AA96: 1992 | AC96: 1993 | AE96: 1994* | AG96: 1995* | AI96: 1996* | AK96: 1997* | AM96: 1998* | AO96: 1999 | AQ96: 2000 | AS96: 2001 | AU96: 2002 | AW96: 2003 | AY96: 2004 | BA96: 2005 | BC96: 2006 | BE96: 2007 | BG96: 2008 | BI96: 2009 | BK96: 2010 | BM96: 2011 | BO96: 2012 | BQ96: 2013 | BS96: 2014 | BU96: 2015 | BW96: 2016 | BY96: 2017 | CA96: 2018 | CC96: 2019 | CE96: 2020 | CG96: 2021 | CI96: 2022
B97: Estados Unidos | C97: 1078.6 | D97: 66.47356095 | E97: 1072.1 | F97: 63.0239257 | G97: 426.1 | H97: 68.01276935 | I97: 266.6 | J97: 38.99371069 | K97: 912 | L97: 63.78514478 | M97: 1326.8 | N97: 76.73799884 | O97: 1206.4 | P97: 49.76487089 | Q97: 2669.6 | R97: 68.85381203 | S97: 1241.6 | T97: 39.32723069 | U97: 1813.8 | V97: 72.56070728 | W97: 2308 | X97: 62.00300881 | Y97: 2386.5 | Z97: 66.94249649 | AA97: 1651.7 | AB97: 45.88565396 | AC97: 3503.6 | AD97: 71.4918277 | AE97: 4951.067838 | AF97: 46.50243581 | AG97: 5518.342373 | AH97: 65.89380237 | AI97: 5328.541568 | AJ97: 67.89767413 | AK97: 7407.565965 | AL97: 60.98970791 | AM97: 5542.413049 | AN97: 66.18992117 | AO97: 7313.876742 | AP97: 52.39047441 | AQ97: 11924.49727 | AR97: 65.3444073 | AS97: 21533.40725 | AT97: 71.6415214 | AU97: 13505.05745 | AV97: 56.03942857 | AW97: 11124.37308 | AX97: 60.9555732 | AY97: 9965.387355 | AZ97: 39.83900537 | BA97: 14384.51293 | BB97: 55.76333077 | BC97: 14351.93473 | BD97: 67.59442891 | BE97: 16059.37826 | BF97: 49.57639142 | BG97: 11905.88784 | BH97: 40.35593987 | BI97: 8389.795326 | BJ97: 47.00240034 | BK97: 11148.7421 | BL97: 41.00418233 | BM97: 13036.65635 | BN97: 50.86012266 | BO97: 9771.255415 | BP97: 44.88544521 | BQ97: 17047.37104 | BR97: 35.25504326 | BS97: 10276.16901 | BT97: 33.85765107 | BU97: 19367.59168 | BV97: 53.88305296 | BW97: 11049.76352 | BX97: 35.42972246 | BY97: 15421.9612 | BZ97: 45.34215899 | CA97: 11914.11733 | CB97: 34.94160172 | CC97: 12901.61975 | CD97: 37.32346589 | CE97: 10563.84161 | CF97: 37.46687949 | CG97: 14590.64569 | CH97: 46.25569567 | CI97: 15021.5734 | CJ97: 42.56413873
B98: España | C98: 80 | D98: 4.930358684 | E98: 101.8 | F98: 5.984363059 | G98: 40.4 | H98: 6.448523543 | I98: 12.7 | J98: 1.857539857 | K98: 11.7 | L98: 0.8182962652 | M98: 14 | N98: 0.8097165992 | O98: 93.7 | P98: 3.865192641 | Q98: 125.8 | R98: 3.244609512 | S98: 34.1 | T98: 1.08010516 | U98: 44 | V98: 1.760211225 | W98: 10.4 | X98: 0.2793896411 | Y98: 43.8 | Z98: 1.228611501 | AA98: 37.2 | AB98: 1.033448161 | AC98: 63.5 | AD98: 1.295733263 | AE98: 145.4702079 | AF98: 1.366315152 | AG98: 49.83656544 | AH98: 0.5950918903 | AI98: 78.90380925 | AJ98: 1.005413031 | AK98: 327.2986252 | AL98: 2.694791737 | AM98: 335.2179597 | AN98: 4.003319516 | AO98: 987.416978 | AP98: 7.073026486 | AQ98: 3761.549372 | AR98: 20.61271085 | AS98: 2877.050054 | AT98: 9.571928895 | AU98: 5429.565705 | AV98: 22.53006036 | AW98: 1959.893804 | AX98: 10.73916251 | AY98: 6527.581896 | AZ98: 26.09556066 | BA98: 2526.343012 | BB98: 9.793678917 | BC98: 1566.020557 | BD98: 7.375609434 | BE98: 4666.965102 | BF98: 14.40723824 | BG98: 5296.438943 | BH98: 17.95269487 | BI98: 2747.534224 | BJ98: 15.39259285 | BK98: 3967.027914 | BL98: 14.59041158 | BM98: 3532.567105 | BN98: 13.78166237 | BO98: -405.2789489 | BP98: -1.861697938 | BQ98: 455.3326541 | BR98: 0.9416567737 | BS98: 4464.294772 | BT98: 14.70884086 | BU98: 4018.955384 | BV98: 11.18123458 | BW98: 3650.51989 | BX98: 11.70494792 | BY98: 3365.105999 | BZ98: 9.893759245 | CA98: 4280.569034 | CB98: 12.55400918 | CC98: 4404.713371 | CD98: 12.74252167 | CE98: 4023.71737 | CF98: 14.27095742 | CG98: 4282.849487 | CH98: 13.57761587 | CI98: 1637.87999 | CJ98: 4.640988615
B99: Países Bajos | C99: 0 | D99: 0 | E99: 0 | F99: 0 | G99: 0 | H99: 0 | I99: 0 | J99: 0 | K99: 0 | L99: 0 | M99: 0 | N99: 0 | O99: 0 | P99: 0 | Q99: 0 | R99: 0 | S99: 218.2 | T99: 6.911406037 | U99: 47.8 | V99: 1.912229468 | W99: 126.1 | X99: 3.387599398 | Y99: 119.5 | Z99: 3.352033661 | AA99: 83.1 | AB99: 2.308589843 | AC99: 88.3 | AD99: 1.801783419 | AE99: 783.1886612 | AF99: 7.356025333 | AG99: 743.7912887 | AH99: 8.881514205 | AI99: 427.8118158 | AJ99: 5.451290355 | AK99: 368.2726978 | AL99: 3.032149073 | AM99: 1051.67556 | AN99: 12.55956959 | AO99: 326.486609 | AP99: 2.338676045 | AQ99: 1006.653753 | AR99: 5.516307427 | AS99: 1175.253698 | AT99: 3.910062256 | AU99: 456.664623 | AV99: 1.894936368 | AW99: 460.0896435 | AX99: 2.521043456 | AY99: 2903.168823 | AZ99: 11.60610764 | BA99: 1833.953667 | BB99: 7.109546597 | BC99: 216.219137 | BD99: 1.018344172 | BE99: 811.950724 | BF99: 2.506547031 | BG99: 488.87281 | BH99: 1.657072702 | BI99: 245.9699561 | BJ99: 1.378004814 | BK99: 5771.601876 | BL99: 21.22749037 | BM99: 161.873979 | BN99: 0.6315216269 | BO99: 881.2713448 | BP99: 4.048226659 | BQ99: 1007.753553 | BR99: 2.084098188 | BS99: 561.6800112 | BT99: 1.850608511 | BU99: 279.5998565 | BV99: 0.7778816349 | BW99: 217.093855 | BX99: 0.6960850354 | BY99: -196.8631731 | BZ99: -0.5787980643 | CA99: 618.8022918 | CB99: 1.814817047 | CC99: 854.6609095 | CD99: 2.472473062 | CE99: 648.388553 | CF99: 2.299645969 | CG99: -75.70283584 | CH99: -0.239995365 | CI99: -247.7422562 | CJ99: -0.7019861024
B100: Canadá | C100: 17.5 | D100: 1.078515962 | E100: 5.2 | F100: 0.3056845571 | G100: 8.1 | H100: 1.292897047 | I100: 22.1 | J100: 3.232411877 | K100: 32.5 | L100: 2.273045181 | M100: 34.9 | N100: 2.018507808 | O100: 40.6 | P100: 1.674779309 | Q100: 19.3 | R100: 0.4977819045 | S100: 33.9 | T100: 1.073770232 | U100: 37.5 | V100: 1.500180022 | W100: 56 | X100: 1.50440576 | Y100: 74.2 | Z100: 2.081346424 | AA100: 88.5 | AB100: 2.458606512 | AC100: 74.2 | AD100: 1.514069419 | AE100: 739.1758025 | AF100: 6.942638726 | AG100: 170.3231248 | AH100: 2.03380609 | AI100: 547.1498534 | AJ100: 6.971926928 | AK100: 239.5939701 | AL100: 1.972681219 | AM100: 213.2534947 | AN100: 2.546766521 | AO100: 612.62225 | AP100: 4.388311622 | AQ100: 575.536208 | AR100: 3.153849722 | AS100: 807.4519352 | AT100: 2.68638792 | AU100: 329.9914039 | AV100: 1.369304039 | AW100: 381.3098264 | AX100: 2.089372487 | AY100: 841.6881801 | AZ100: 3.364848623 | BA100: 601.1136848 | BB100: 2.330291015 | BC100: 975.2494911 | BD100: 4.593208765 | BE100: 1747.704324 | BF100: 5.395281949 | BG100: 4850.355615 | BH100: 16.44066047 | BI100: 2153.714055 | BJ100: 12.06581642 | BK100: 2138.689024 | BL100: 7.865927284 | BM100: 1594.984789 | BN100: 6.222540491 | BO100: 1668.939087 | BP100: 7.666473834 | BQ100: 5104.989077 | BR100: 10.55744081 | BS100: 2963.754535 | BT100: 9.764900403 | BU100: 1096.287622 | BV100: 3.050008745 | BW100: 2290.804643 | BX100: 7.345186398 | BY100: 2813.253774 | BZ100: 8.271256699 | CA100: 4040.694398 | CB100: 11.8505073 | CC100: 2896.130235 | CD100: 8.378298237 | CE100: 4109.107513 | CF100: 14.57381147 | CG100: 2478.587716 | CH100: 7.857691945 | CI100: 3780.101903 | CJ100: 10.71104721
B101: Alemania | C101: 170.8 | D101: 10.52631579 | E101: 146.3 | F101: 8.600317442 | G101: 39.9 | H101: 6.368715084 | I101: 110 | J101: 16.08892789 | K101: 152.5 | L101: 10.66582739 | M101: 55.5 | N101: 3.209947947 | O101: 218.5 | P101: 9.013282732 | Q101: 46.9 | R101: 1.20963582 | S101: 136.7 | T101: 4.329923031 | U101: 84.7 | V101: 3.388406609 | W101: 288.2 | X101: 7.742316785 | Y101: 84.7 | Z101: 2.375876578 | AA101: 84.9 | AB101: 2.358595399 | AC101: 111.4 | AD101: 2.273144653 | AE101: 306.8741051 | AF101: 2.882285972 | AG101: 547.9420918 | AH101: 6.542904637 | AI101: 203.2067124 | AJ101: 2.589313222 | AK101: 482.7232605 | AL101: 3.974470265 | AM101: 134.0166625 | AN101: 1.60048561 | AO101: 685.711369 | AP101: 4.911860727 | AQ101: 297.5913936 | AR101: 1.630754974 | AS101: 731.1770714 | AT101: 2.432621889 | AU101: 716.531778 | AV101: 2.973258836 | AW101: 485.352271 | AX101: 2.659469049 | AY101: 450.08456 | AZ101: 1.799320043 | BA101: 378.003925 | BB101: 1.465378634 | BC101: 508.3063917 | BD101: 2.394010348 | BE101: 723.2454026 | BF101: 2.232707679 | BG101: 697.0126316 | BH101: 2.362578939 | BI101: 263.3135485 | BJ101: 1.475169339 | BK101: 606.1503204 | BL101: 2.229372428 | BM101: 854.0630941 | BN101: 3.33197045 | BO101: 1169.654064 | BP101: 5.372947607 | BQ101: 1983.500222 | BR101: 4.102004112 | BS101: 2148.837358 | BT101: 7.079932744 | BU101: 1239.531962 | BV101: 3.448532346 | BW101: 2768.025022 | BX101: 8.875335487 | BY101: 2643.298496 | BZ101: 7.771570625 | CA101: 2936.516988 | CB101: 8.612187056 | CC101: 3496.26966 | CD101: 10.1144588 | CE101: 1163.675555 | CF101: 4.127219376 | CG101: 2073.16663 | CH101: 6.572414049 | CI101: 215.2236797 | CJ101: 0.6098436107
B102: Japón | C102: 123.1 | D102: 7.586589424 | E102: 212.1 | F102: 12.4684028 | G102: 65.4 | H102: 10.43894653 | I102: 3.8 | J102: 0.5557993272 | K102: 35.6 | L102: 2.489858721 | M102: 79.3 | N102: 4.586466165 | O102: 142.2 | P102: 5.865852652 | Q102: 132.8 | R102: 3.425152172 | S102: 148.8 | T102: 4.713186152 | U102: 15.7 | V102: 0.628075369 | W102: 120.8 | X102: 3.245218139 | Y102: 73.5 | Z102: 2.06171108 | AA102: 86.9 | AB102: 2.414157129 | AC102: 73.6 | AD102: 1.50182627 | AE102: 629.9515828 | AF102: 5.916760586 | AG102: 155.6440001 | AH102: 1.858524587 | AI102: 145.1189277 | AJ102: 1.849143436 | AK102: 351.6862158 | AL102: 2.895585363 | AM102: 97.26059889 | AN102: 1.161528619 | AO102: 1461.174972 | AP102: 10.46663113 | AQ102: 697.056417 | AR102: 3.819761739 | AS102: 456.918551 | AT102: 1.520165377 | AU102: 399.532696 | AV102: 1.657866622 | AW102: 419.61671 | AX102: 2.299273578 | AY102: 888.861251 | AZ102: 3.553434191 | BA102: 340.834644 | BB102: 1.321287351 | BC102: 548.954849 | BD102: 2.585455565 | BE102: 711.199391 | BF102: 2.195520823 | BG102: 868.371427 | BH102: 2.943413005 | BI102: 779.6376726 | BJ102: 4.367787363 | BK102: 1263.171965 | BL102: 4.645845522 | BM102: 943.6738549 | BN102: 3.681570391 | BO102: 2255.615761 | BP102: 10.36144419 | BQ102: 1560.93164 | BR102: 3.228105516 | BS102: 2526.787578 | BT102: 8.325193179 | BU102: 2273.706551 | BV102: 6.325734895 | BW102: 1963.413708 | BX102: 6.295447194 | BY102: 2446.32297 | BZ102: 7.19244223 | CA102: 2279.46888 | CB102: 6.685203069 | CC102: 1491.649247 | CD102: 4.315234898 | CE102: 1225.621148 | CF102: 4.346922411 | CG102: 1508.125213 | CH102: 4.781103069 | CI102: 1838.815 | CJ102: 5.210344794
B103: Reino Unido | C103: 48.6 | D103: 2.9951929 | E103: 40.9 | F103: 2.404326612 | G103: 7.4 | H103: 1.181165204 | I103: 49.2 | J103: 7.196138657 | K103: 44.3 | L103: 3.098335432 | M103: 56.3 | N103: 3.256217467 | O103: 104.3 | P103: 4.302450293 | Q103: 430.9 | R103: 11.11369029 | S103: 767.6 | T103: 24.31345222 | U103: 44.7 | V103: 1.788214586 | W103: 114.4 | X103: 3.073286052 | Y103: 74.2 | Z103: 2.081346424 | AA103: 426.8 | AB103: 11.85687299 | AC103: 189.2 | AD103: 3.860672965 | AE103: 592.2008464 | AF103: 5.562190369 | AG103: 223.6282458 | AH103: 2.670315547 | AI103: 82.96851097 | AJ103: 1.057206526 | AK103: 1829.653182 | AL103: 15.06432932 | AM103: 165.7981652 | AN103: 1.980034217 | AO103: 406.0153515 | AP103: 2.908353208 | AQ103: 951.09853 | AR103: 5.211873367 | AS103: 1100.953757 | AT103: 3.662866785 | AU103: 1516.436647 | AV103: 6.292475502 | AW103: 1153.683726 | AX103: 6.321565479 | AY103: 428.955018 | AZ103: 1.714849675 | BA103: 796.3390641 | BB103: 3.087106171 | BC103: 1192.239686 | BD103: 5.615184447 | BE103: 592.9929933 | BF103: 1.830609645 | BG103: 830.1151346 | BH103: 2.813740303 | BI103: 15.31789881 | BJ103: 0.08581592091 | BK103: 527.8049702 | BL103: 1.941224492 | BM103: 249.2870281 | BN103: 0.9725475987 | BO103: 259.6050897 | BP103: 1.192527422 | BQ103: 1353.677251 | BR103: 2.799490309 | BS103: 238.8826123 | BT103: 0.7870641408 | BU103: 750.7072785 | BV103: 2.088561176 | BW103: 500.4207525 | BX103: 1.604538264 | BY103: 510.4329145 | BZ103: 1.500725495 | CA103: 740.596137 | CB103: 2.172012793 | CC103: 730.8641716 | CD103: 2.114337928 | CE103: 886.5144392 | CF103: 3.144209359 | CG103: 1664.815486 | CH103: 5.2778472 | CI103: 1757.828571 | CJ103: 4.980866995
B104: Suiza | C104: 111.4 | D104: 6.865524467 | E104: 74.9 | F104: 4.403033331 | G104: 23.1 | H104: 3.687150838 | I104: 16.2 | J104: 2.36946029 | K104: 59.8 | L104: 4.182403133 | M104: 141.2 | N104: 8.166570272 | O104: 34.1 | P104: 1.406649616 | Q104: 95.2 | R104: 2.455380171 | S104: 86.3 | T104: 2.73352127 | U104: 194.4 | V104: 7.776933232 | W104: 148 | X104: 3.975929508 | Y104: 68.5 | Z104: 1.921458626 | AA104: 315.3 | AB104: 8.75930659 | AC104: 101.7 | AD104: 2.075213745 | AE104: 53.72467172 | AF104: 0.5046038915 | AG104: 199.958646 | AH104: 2.38767996 | AI104: 83.76070802 | AJ104: 1.067300909 | AK104: 26.63356436 | AL104: 0.2192857031 | AM104: 51.56747783 | AN104: 0.6158413785 | AO104: 138.483943 | AP104: 0.9919827374 | AQ104: 71.36694159 | AR104: 0.3910798413 | AS104: 122.5667155 | AT104: 0.4077787539 | AU104: 251.463223 | AV104: 1.043450232 | AW104: 329.946622 | AX104: 1.807929789 | AY104: 1674.546137 | AZ104: 6.694396331 | BA104: 326.754599 | BB104: 1.266704328 | BC104: 579.766927 | BD104: 2.730573617 | BE104: 362.815327 | BF104: 1.120035556 | BG104: 437.7450355 | BH104: 1.483771103 | BI104: 101.9024732 | BJ104: 0.5708912618 | BK104: -148.1122766 | BL104: -0.5447451145 | BM104: 82.554115 | BN104: 0.3220697319 | BO104: 350.355857 | BP104: 1.609402063 | BQ104: 783.8669153 | BR104: 1.621086438 | BS104: 22.65484375 | BT104: 0.07464258265 | BU104: 225.7171582 | BV104: 0.6279732551 | BW104: 583.9828846 | BX104: 1.872470075 | BY104: 300.4485155 | BZ104: 0.8833496712 | CA104: 631.1147285 | CB104: 1.850926835 | CC104: 721.673595 | CD104: 2.087750245 | CE104: 572.4265302 | CF104: 2.030230726 | CG104: 391.1281963 | CH104: 1.239966154 | CI104: 114.7962823 | CJ104: 0.3252791673
B105: Francia | C105: 19.5 | D105: 1.201774929 | E105: 10.3 | F105: 0.6054905649 | G105: 6.8 | H105: 1.085395052 | I105: 110 | J105: 16.08892789 | K105: 8.7 | L105: 0.60847671 | M105: 10.7 | N105: 0.6188548294 | O105: 316.9 | P105: 13.07235377 | Q105: 31.2 | R105: 0.8047044259 | S105: 152.4 | T105: 4.827214849 | U105: 16.5 | V105: 0.6600792095 | W105: 181 | X105: 4.862454331 | Y105: 500.5 | Z105: 14.03927069 | AA105: 69 | AB105: 1.916879653 | AC105: 76.9 | AD105: 1.569163589 | AE105: 90.3210267 | AF105: 0.84833169 | AG105: 125.7390985 | AH105: 1.50143408 | AI105: 125.1179843 | AJ105: 1.59428617 | AK105: 90.73643913 | AL105: 0.7470725129 | AM105: 124.293316 | AN105: 1.484365151 | AO105: 409.265711 | AP105: 2.931636055 | AQ105: -2202.148573 | AR105: -12.0674348 | AS105: -68.02480742 | AT105: -0.2263181409 | AU105: 359.8222831 | AV105: 1.493087697 | AW105: 742.2669704 | AX105: 4.067223235 | AY105: 402.623321 | AZ105: 1.609582455 | BA105: 665.5809741 | BB105: 2.580206379 | BC105: -282.487985 | BD105: -1.330455746 | BE105: 361.5819474 | BF105: 1.116228029 | BG105: 868.2536786 | BH105: 2.943013887 | BI105: 492.550201 | BJ105: 2.759428667 | BK105: 576.2555387 | BL105: 2.119421811 | BM105: 648.6274293 | BN105: 2.530500899 | BO105: 784.6553693 | BP105: 3.604409474 | BQ105: 893.7343836 | BR105: 1.848299323 | BS105: 1188.139883 | BT105: 3.914652001 | BU105: 975.1113009 | BV105: 2.712881124 | BW105: 457.1048958 | BX105: 1.465651239 | BY105: 540.0396151 | BZ105: 1.587772253 | CA105: 620.0997512 | CB105: 1.818622222 | CC105: 1043.633567 | CD105: 3.019157483 | CE105: 414.6388334 | CF105: 1.470603572 | CG105: 500.5271223 | CH105: 1.586785859 | CI105: 421.6824383 | CJ105: 1.19485152
B106: Suecia | C106: 10.9 | D106: 0.6717613706 | E106: 15.3 | F106: 0.8994180236 | G106: -2 | H106: -0.3192338388 | I106: 29.1 | J106: 4.256252742 | K106: 61.1 | L106: 4.273324941 | M106: 5.5 | N106: 0.3181029497 | O106: 24.6 | P106: 1.014767758 | Q106: 36.7 | R106: 0.9465593727 | S106: 32.5 | T106: 1.029425739 | U106: 6.9 | V106: 0.276033124 | W106: 13.3 | X106: 0.3572963679 | Y106: 13.9 | Z106: 0.3899018233 | AA106: 2 | AB106: 0.05556172908 | AC106: 2.4 | AD106: 0.04897259575 | AE106: 9.25636603 | AF106: 0.08693954137 | AG106: 60.98301244 | AH106: 0.7281901516 | AI106: 97.49683486 | AJ106: 1.242330239 | AK106: 7.20380358 | AL106: 0.05931204371 | AM106: 58.06559379 | AN106: 0.6934447219 | AO106: 726.456726 | AP106: 5.203726266 | AQ106: -193.967771 | AR106: -1.062913492 | AS106: 107.166386 | AT106: 0.3565419466 | AU106: -43.207296 | AV106: -0.1792892912 | AW106: 6.128692 | AX106: 0.03358193143 | AY106: 416.46762 | AZ106: 1.664928332 | BA106: 153.150627 | BB106: 0.5937072122 | BC106: 111.883029 | BD106: 0.5269442478 | BE106: 94.251738 | BF106: 0.2909615166 | BG106: 150.118515 | BH106: 0.5088384711 | BI106: 9.16454334 | BJ106: 0.05134279422 | BK106: -192.2483228 | BL106: -0.7070739646 | BM106: 56.442337 | BN106: 0.2201994212 | BO106: 251.09941 | BP106: 1.153455552 | BQ106: 300.0431224 | BR106: 0.6205081847 | BS106: 115.0246876 | BT106: 0.378980312 | BU106: -33.17970403 | BV106: -0.09231007031 | BW106: 84.80482412 | BX106: 0.2719163515 | BY106: -40.05781665 | BZ106: -0.1177741188 | CA106: 161.6670749 | CB106: 0.4741355475 | CC106: 84.22665037 | CD106: 0.243661693 | CE106: 258.3080935 | CF106: 0.9161438205 | CG106: -92.13982361 | CH106: -0.2921043888 | CI106: 197.6404425 | CJ106: 0.5600209105
B107: Italia | C107: -29.3 | D107: -1.805743868 | E107: 5.1 | F107: 0.2998060079 | G107: 1.9 | H107: 0.3032721468 | I107: 1 | J107: 0.1462629808 | K107: 0.5 | L107: 0.03496992586 | M107: 0.6 | N107: 0.03470213997 | O107: 4 | P107: 0.1650028876 | Q107: 2.8 | R107: 0.07221706386 | S107: 0 | T107: 0 | U107: 6.6 | V107: 0.2640316838 | W107: 4.6 | X107: 0.1235761874 | Y107: 1.9 | Z107: 0.05329593268 | AA107: 7.5 | AB107: 0.2083564841 | AC107: 4.6 | AD107: 0.09386414186 | AE107: 2.503026719 | AF107: 0.02350944142 | AG107: 10.54482384 | AH107: 0.1259143582 | AI107: 18.6448915 | AJ107: 0.2375780973 | AK107: 29.29672902 | AL107: 0.2412126945 | AM107: 16.92162419 | AN107: 0.2020854384 | AO107: 69.05509376 | AP107: 0.4946527334 | AQ107: 59.55163872 | AR107: 0.3263338024 | AS107: 49.6213633 | AT107: 0.1650899888 | AU107: 49.6212698 | AV107: 0.205904167 | AW107: 28.81653334 | AX107: 0.157899083 | AY107: 77.91312263 | AZ107: 0.3114762327 | BA107: 106.2791485 | BB107: 0.4120041701 | BC107: 100.2285622 | BD107: 0.4720542942 | BE107: 131.2602532 | BF107: 0.4052093165 | BG107: 167.2649139 | BH107: 0.5669575338 | BI107: 78.76987545 | BJ107: 0.4412948202 | BK107: 149.1937875 | BL107: 0.5487228253 | BM107: 222.3616063 | BN107: 0.8675030057 | BO107: 621.6535396 | BP107: 2.855640827 | BQ107: -419.468789 | BR107: -0.8674880287 | BS107: 284.1134859 | BT107: 0.9360896323 | BU107: 606.6789198 | BV107: 1.687856338 | BW107: 810.2546487 | BX107: 2.597982959 | BY107: 1864.739426 | BZ107: 5.482526535 | CA107: 1680.463448 | CB107: 4.928446051 | CC107: 1548.04681 | CD107: 4.478389024 | CE107: 563.5889972 | CF107: 1.998886562 | CG107: 367.0744376 | CH107: 1.163710218 | CI107: 188.9719448 | CJ107: 0.5354584277
B108: Resto | C108: -8.5 | D108: -0.5238506101 | E108: 17.1 | F108: 1.005231909 | G108: 9.4 | H108: 1.500399042 | I108: 63 | J108: 9.214567793 | K108: 111.1 | L108: 7.770317527 | M108: 4.2 | N108: 0.2429149798 | O108: 238.9 | P108: 9.854797459 | Q108: 286 | R108: 7.376457237 | S108: 305 | T108: 9.660764626 | U108: 187.1 | V108: 7.484898188 | W108: 351.6 | X108: 9.44551902 | Y108: 123.8 | Z108: 3.472650771 | AA108: 746.7 | AB108: 20.74397155 | AC108: 611.3 | AD108: 12.47372824 | AE108: 2343.190537 | AF108: 22.00819522 | AG108: 567.8253757 | AH108: 6.780328323 | AI108: 709.1390918 | AJ108: 9.036036288 | AK108: 984.9691122 | AL108: 8.109678502 | AM108: 582.983976 | AN108: 6.962249669 | AO108: 823.7520888 | AP108: 5.900668585 | AQ108: 1299.903211 | AR108: 7.123269264 | AS108: 1163.618772 | AT108: 3.871352925 | AU108: 1127.726428 | AV108: 4.679516902 | AW108: 1158.490901 | AX108: 6.347906208 | AY108: 436.8696875 | AZ108: 1.746490448 | BA108: 3682.782462 | BB108: 14.27675846 | BC108: 1364.107121 | BD108: 6.424641941 | BE108: 6129.85179 | BF108: 18.9232688 | BG108: 2941.757871 | BH108: 9.971318844 | BI108: 2572.046976 | BJ108: 14.40945541 | BK108: 1381.003487 | BL108: 5.079220439 | BM108: 4249.281316 | BN108: 16.57779135 | BO108: 4160.492258 | BP108: 19.11172509 | BQ108: 18282.6871 | BR108: 37.80975512 | BS108: 5560.759678 | BT108: 18.32144456 | BU108: 5143.045387 | BV108: 14.30859301 | BW108: 6811.646746 | BX108: 21.84071661 | BY108: 4343.728482 | BZ108: 12.77101044 | CA108: 4193.117146 | CB108: 12.29753118 | CC108: 4393.558381 | CD108: 12.71025108 | CE108: 3765.317987 | CF108: 13.35448982 | CG108: 3854.380143 | CH108: 12.21926971 | CI108: 10364.84696 | CJ108: 29.36914612
B109: Total | C109: 1622.6 | D109: 100 | E109: 1701.1 | F109: 100 | G109: 626.5 | H109: 100 | I109: 683.7 | J109: 100 | K109: 1429.8 | L109: 100 | M109: 1729 | N109: 100 | O109: 2424.2 | P109: 100 | Q109: 3877.2 | R109: 100 | S109: 3157.1 | T109: 100 | U109: 2499.7 | V109: 100 | W109: 3722.4 | X109: 100 | Y109: 3565 | Z109: 100 | AA109: 3599.6 | AB109: 100 | AC109: 4900.7 | AD109: 100 | AE109: 10646.9 | AF109: 100 | AG109: 8374.6 | AH109: 100 | AI109: 7847.9 | AJ109: 100 | AK109: 12145.6 | AL109: 100 | AM109: 8373.5 | AN109: 100 | AO109: 13960.31783 | AP109: 100 | AQ109: 18248.68839 | AR109: 100 | AS109: 30057.16075 | AT109: 100 | AU109: 24099.20621 | AV109: 100 | AW109: 18249.96878 | AX109: 100 | AY109: 25014.14697 | AZ109: 100 | BA109: 25795.64874 | BB109: 100 | BC109: 21232.4225 | BD109: 100 | BE109: 32393.19726 | BF109: 100 | BG109: 29502.19441 | BH109: 100 | BI109: 17849.71675 | BJ109: 100 | BK109: 27189.28039 | BL109: 100 | BM109: 25632.373 | BN109: 100 | BO109: 21769.31825 | BP109: 100 | BQ109: 48354.41818 | BR109: 100 | BS109: 30351.09846 | BT109: 100 | BU109: 35943.75339 | BV109: 100 | BW109: 31187.83539 | BX109: 100 | BY109: 34012.41041 | BZ109: 100 | CA109: 34097.22721 | CB109: 100 | CC109: 34567.04635 | CD109: 100 | CE109: 28195.14663 | CF109: 100 | CG109: 31543.45746 | CH109: 100 | CI109: 35291.61836 | CJ109: 100
B110: * La diferencia entre el total de IED publicado por la Secretaría de Economía y la desagregación por país de origen, se debe a que esta última sólo incuye las nuevas inversiones reportadas al RNIE más el valor de la importación temporal de maquinaria y equipo de empresas maquiladoras.
B111: Fuente: Secretaría de Economía
B114: IED por sector económico (1980-2022) (millones de dólares/participación porcentual)
B118: Sector económico | C118: 1980 | E118: 1981 | G118: 1982 | I118: 1983 | K118: 1984 | M118: 1985 | O118: 1986 | Q118: 1987 | S118: 1988 | U118: 1989 | W118: 1990 | Y118: 1991 | AA118: 1992 | AC118: 1993 | AE118: 1994* | AG118: 1995* | AI118: 1996* | AK118: 1997* | AM118: 1998* | AO118: 1999 | AQ118: 2000 | AS118: 2001 | AU118: 2002 | AW118: 2003 | AY118: 2004 | BA118: 2005 | BC118: 2006 | BE118: 2007 | BG118: 2008 | BI118: 2009 | BK118: 2010 | BM118: 2011 | BO118: 2012 | BQ118: 2013 | BS118: 2014 | BU118: 2015 | BW118: 2016 | BY118: 2017 | CA118: 2018 | CC118: 2019 | CE118: 2020 | CG118: 2021 | CI118: 2022
B119: Agropecuario | C119: 0.9 | D119: 0.05546653519 | E119: -5.4 | F119: -0.3174416554 | G119: 1.8 | H119: 0.2873104549 | I119: 0.2 | J119: 0.02925259617 | K119: 0.8 | L119: 0.05595188138 | M119: 0.4 | N119: 0.02313475998 | O119: 0.2 | P119: 0.008250144378 | Q119: 15.2 | R119: 0.3920354895 | S119: -12 | T119: -0.3800956574 | U119: 19.3 | V119: 0.7720926511 | W119: 61.1 | X119: 1.641414141 | Y119: 44.9 | Z119: 1.259467041 | AA119: 39.3 | AB119: 1.091787976 | AC119: 34.5 | AD119: 0.7039810639 | AE119: 10.26 | AF119: 0.09636607839 | AG119: 9.99 | AH119: 0.1192892795 | AI119: 31.73 | AJ119: 0.4043119815 | AK119: 9.5 | AL119: 0.07821762614 | AM119: 27.645 | AN119: 0.3301486833 | AO119: 87.791614 | AP119: 0.6288654387 | AQ119: 97.800556 | AR119: 0.5359319744 | AS119: 75.181085 | AT119: 0.2501270351 | AU119: 17.335837 | AV119: 0.07193530296 | AW119: 1.264678 | AX119: 0.006929754322 | AY119: 24.942117 | AZ119: 0.09971204306 | BA119: 9.959782 | BB119: 0.03861031797 | BC119: -2.039788 | BD119: -0.009606948997 | BE119: 79.00158876 | BF119: 0.2438832701 | BG119: 61.48692755 | BH119: 0.2084147596 | BI119: 22.24872672 | BJ119: 0.1246447046 | BK119: 101.2795637 | BL119: 0.3724981398 | BM119: 139.6361804 | BN119: 0.544764936 | BO119: 148.2298852 | BP119: 0.6809119309 | BQ119: 214.3823283 | BR119: 0.4433562358 | BS119: 186.1133731 | BT119: 0.613201441 | BU119: 183.5504721 | BV119: 0.5106602809 | BW119: 103.3681733 | BX119: 0.3314374724 | BY119: 136.5306184 | BZ119: 0.4014141213 | CA119: -16.54503926 | CB119: -0.04852312232 | CC119: 105.9638396 | CD119: 0.3065458315 | CE119: 135.9252965 | CF119: 0.4820875674 | CG119: 208.3135436 | CH119: 0.6604017453 | CI119: 242.4001269 | CJ119: 0.6868489976
B120: Extractivo | C120: 86.7 | D120: 5.343276223 | E120: -189 | F120: -11.11045794 | G120: 6.7 | H120: 1.06943336 | I120: 15 | J120: 2.193944713 | K120: 5.7 | L120: 0.3986571548 | M120: 18 | N120: 1.041064199 | O120: 30.8 | P120: 1.270522234 | Q120: 48.8 | R120: 1.258640256 | S120: 24.9 | T120: 0.7886984891 | U120: 9.5 | V120: 0.3800456055 | W120: 93.9 | X120: 2.522566086 | Y120: 31 | Z120: 0.8695652174 | AA120: 8.6 | AB120: 0.238915435 | AC120: 55.1 | AD120: 1.124329177 | AE120: 92.91 | AF120: 0.8726483765 | AG120: 71.19 | AH120: 0.8500704511 | AI120: 79.895 | AJ120: 1.018043043 | AK120: 124.07 | AL120: 1.021522197 | AM120: 46.93 | AN120: 0.5604585896 | AO120: 228.95185 | AP120: 1.640018893 | AQ120: 115.085406 | AR120: 0.6306502886 | AS120: 49.21199 | AT120: 0.1637280062 | AU120: 292.834513 | AV120: 1.21512099 | AW120: 162.303507 | AX120: 0.8893358065 | AY120: 354.616745 | AZ120: 1.417664753 | BA120: 254.4849 | BB120: 0.9865419652 | BC120: 405.581842 | BD120: 1.910200506 | BE120: 1911.727282 | BF120: 5.90163196 | BG120: 4540.916025 | BH120: 15.39179073 | BI120: 1524.547492 | BJ120: 8.541017837 | BK120: 1389.843677 | BL120: 5.111733954 | BM120: 1019.141484 | BN120: 3.975993498 | BO120: 2910.623174 | BP120: 13.37030007 | BQ120: 5744.729622 | BR120: 11.88046478 | BS120: 2679.320161 | BT120: 8.827753515 | BU120: 1780.761886 | BV120: 4.954301425 | BW120: 1087.792739 | BX120: 3.48787508 | BY120: 1753.973655 | BZ120: 5.156863728 | CA120: 1736.503934 | CB120: 5.092801017 | CC120: 2024.079507 | CD120: 5.855517669 | CE120: 1541.112724 | CF120: 5.465879445 | CG120: 4833.134565 | CH120: 15.32214587 | CI120: 1603.448447 | CJ120: 4.543425668
B121: Industrial | C121: 1285.7 | D121: 79.23702699 | E121: 1405.6 | F121: 82.62888719 | G121: 381.3 | H121: 60.86193136 | I121: 597 | J121: 87.31899956 | K121: 1269.6 | L121: 88.79563575 | M121: 1165.8 | N121: 67.42625795 | O121: 1918.9 | P121: 79.15601023 | Q121: 2400.5 | R121: 61.91323636 | S121: 1020 | T121: 32.30813088 | U121: 982.4 | V121: 39.30071609 | W121: 1192.9 | X121: 32.04652912 | Y121: 963.6 | Z121: 27.02945302 | AA121: 1100.8 | AB121: 30.58117569 | AC121: 2320.5 | AD121: 47.35037852 | AE121: 6143.365 | AF121: 57.70097399 | AG121: 4422.06 | AH121: 52.80323836 | AI121: 4362.64 | AJ121: 55.58990303 | AK121: 6707.632 | AL121: 55.22684758 | AM121: 4912.925 | AN121: 58.67229952 | AO121: 9661.347434 | AP121: 69.2057842 | AQ121: 10728.42642 | AR121: 58.79012338 | AS121: 7665.266142 | AT121: 25.50229613 | AU121: 10190.73088 | AV121: 42.28658317 | AW121: 9873.232433 | AX121: 54.0999963 | AY121: 14249.23909 | AZ121: 56.96472121 | BA121: 14411.13843 | BB121: 55.86654779 | BC121: 11776.53951 | BD121: 55.46488872 | BE121: 17202.7755 | BF121: 53.10613634 | BG121: 10709.66675 | BH121: 36.30125476 | BI121: 7472.070461 | BJ121: 41.86100298 | BK121: 15524.2635 | BL121: 57.09700027 | BM121: 13226.25909 | BN121: 51.59982295 | BO121: 12528.14727 | BP121: 57.54956184 | BQ121: 33924.04404 | BR121: 70.15707215 | BS121: 20705.10595 | BT121: 68.21863789 | BU121: 21253.71423 | BV121: 59.13048088 | BW121: 20574.25607 | BX121: 65.9688491 | BY121: 20223.72069 | BZ121: 59.4598279 | CA121: 22441.49806 | CB121: 65.81619649 | CC121: 17469.59734 | CD121: 50.53829929 | CE121: 11662.42315 | CF121: 41.36322929 | CG121: 12466.9803 | CH121: 39.52318896 | CI121: 14872.15912 | CJ121: 42.14076828
B122: Comercio | C122: 118 | D122: 7.272279058 | E122: 170.1 | F122: 9.999412145 | G122: 1.2 | H122: 0.1915403033 | I122: 58.6 | J122: 8.571010677 | K122: 31.5 | L122: 2.203105329 | M122: 109.5 | N122: 6.333140544 | O122: 151.2 | P122: 6.237109149 | Q122: -21.2 | R122: -0.5467863407 | S122: 246.8 | T122: 7.817300687 | U122: 386.3 | V122: 15.45385446 | W122: 171.4 | X122: 4.6045562 | Y122: 387.5 | Z122: 10.86956522 | AA122: 750.9 | AB122: 20.86065118 | AC122: 759.9 | AD122: 15.50594813 | AE122: 1189.02 | AF122: 11.16775775 | AG122: 911.25 | AH122: 10.88111671 | AI122: 676.98 | AJ122: 8.626256706 | AK122: 1768.1895 | AL122: 14.55827213 | AM122: 986.575 | AN122: 11.78211023 | AO122: 1424.017106 | AP122: 10.20046337 | AQ122: 2265.458188 | AR122: 12.41436173 | AS122: 2349.9465 | AT122: 7.818258417 | AU122: 1495.411575 | AV122: 6.205231666 | AW122: 1393.087468 | AX122: 7.633369048 | AY122: 1351.438953 | AZ122: 5.402698537 | BA122: 2366.831487 | BB122: 9.175312904 | BC122: 321.347429 | BD122: 1.513475107 | BE122: 1126.486418 | BF122: 3.477540081 | BG122: 1477.110525 | BH122: 5.006781884 | BI122: 1820.744644 | BJ122: 10.20041197 | BK122: 2717.365286 | BL122: 9.994252322 | BM122: 2710.995365 | BN122: 10.57645098 | BO122: 2847.886097 | BP122: 13.08210972 | BQ122: 1447.663057 | BR122: 2.993858911 | BS122: 1952.866856 | BT122: 6.434254297 | BU122: 2991.290462 | BV122: 8.322142736 | BW122: 1966.652418 | BX122: 6.305831722 | BY122: 2966.104365 | BZ122: 8.720653225 | CA122: 3029.059144 | CB122: 8.883593745 | CC122: 3391.664679 | CD122: 9.811844046 | CE122: 2150.245652 | CF122: 7.626297107 | CG122: 2914.072507 | CH122: 9.238278685 | CI122: 2182.197313 | CJ122: 6.183330248
B123: Servicios | C123: 131.3 | D123: 8.091951189 | E123: 319.8 | F123: 18.79960026 | G123: 235.5 | H123: 37.58978452 | I123: 12.9 | J123: 1.886792453 | K123: 122.2 | L123: 8.546649881 | M123: 435.3 | N123: 25.17640254 | O123: 323.1 | P123: 13.32810824 | Q123: 1433.9 | R123: 36.98287424 | S123: 1877.4 | T123: 59.4659656 | U123: 1102.2 | V123: 44.09329119 | W123: 2203.1 | X123: 59.18493445 | Y123: 2138 | Z123: 59.97194951 | AA123: 1700 | AB123: 47.22746972 | AC123: 1730.7 | AD123: 35.31536311 | AE123: 3211.345 | AF123: 30.1622538 | AG123: 2960.11 | AH123: 35.3462852 | AI123: 2696.655 | AJ123: 34.36148524 | AK123: 3536.2085 | AL123: 29.11514046 | AM123: 2399.425 | AN123: 28.65498298 | AO123: 2558.20983 | AP123: 18.32486811 | AQ123: 5041.91782 | AR123: 27.62893262 | AS123: 19917.55503 | AT123: 66.26559041 | AU123: 12102.89341 | AV123: 50.22112887 | AW123: 6820.08069 | AX123: 37.37036909 | AY123: 9033.910071 | AZ123: 36.11520345 | BA123: 8753.234138 | BB123: 33.93298702 | BC123: 8730.993502 | BD123: 41.12104261 | BE123: 12073.20647 | BF123: 37.27080835 | BG123: 12713.01418 | BH123: 43.09175786 | BI123: 7010.105428 | BJ123: 39.27292251 | BK123: 7456.528365 | BL123: 27.42451532 | BM123: 8536.340887 | BN123: 33.30296764 | BO123: 3334.431823 | BP123: 15.31711644 | BQ123: 7023.599123 | BR123: 14.52524793 | BS123: 4827.692115 | BT123: 15.90615286 | BU123: 9734.436343 | BV123: 27.08241467 | BW123: 7455.765996 | BX123: 23.90600663 | BY123: 8932.081075 | BZ123: 26.26124102 | CA123: 6906.711111 | CB123: 20.25593187 | CC123: 11575.74098 | CD123: 33.48779316 | CE123: 12705.43981 | CF123: 45.06250659 | CG123: 11120.95654 | CH123: 35.25598473 | CI123: 16391.41335 | CJ123: 46.4456268
B124: Total | C124: 1622.6 | D124: 100 | E124: 1701.1 | F124: 100 | G124: 626.5 | H124: 100 | I124: 683.7 | J124: 100 | K124: 1429.8 | L124: 100 | M124: 1729 | N124: 100 | O124: 2424.2 | P124: 100 | Q124: 3877.2 | R124: 100 | S124: 3157.1 | T124: 100 | U124: 2499.7 | V124: 100 | W124: 3722.4 | X124: 100 | Y124: 3565 | Z124: 100 | AA124: 3599.6 | AB124: 100 | AC124: 4900.7 | AD124: 100 | AE124: 10646.9 | AF124: 100 | AG124: 8374.6 | AH124: 100 | AI124: 7847.9 | AJ124: 100 | AK124: 12145.6 | AL124: 100 | AM124: 8373.5 | AN124: 100 | AO124: 13960.31783 | AP124: 100 | AQ124: 18248.68839 | AR124: 100 | AS124: 30057.16075 | AT124: 100 | AU124: 24099.20621 | AV124: 100 | AW124: 18249.96878 | AX124: 100 | AY124: 25014.14697 | AZ124: 100 | BA124: 25795.64874 | BB124: 100 | BC124: 21232.4225 | BD124: 100 | BE124: 32393.19726 | BF124: 100 | BG124: 29502.19441 | BH124: 100 | BI124: 17849.71675 | BJ124: 100 | BK124: 27189.28039 | BL124: 100 | BM124: 25632.373 | BN124: 100 | BO124: 21769.31825 | BP124: 100 | BQ124: 48354.41818 | BR124: 100 | BS124: 30351.09846 | BT124: 100 | BU124: 35943.75339 | BV124: 100 | BW124: 31187.83539 | BX124: 100 | BY124: 34012.41041 | BZ124: 100 | CA124: 34097.22721 | CB124: 100 | CC124: 34567.04635 | CD124: 100 | CE124: 28195.14663 | CF124: 100 | CG124: 31543.45746 | CH124: 100 | CI124: 35291.61836 | CJ124: 100
B125: * La diferencia entre el total de IED publicado por la Secretaría de Economía y la desagregación por país de origen, se debe a que esta última sólo incuye las nuevas inversiones reportadas al RNIE más el valor de la importación temporal de maquinaria y equipo de empresas maquiladoras.
B126: Fuente: Secretaría de Economía
B128: IED por entidad federativa (1980-2022) (millones de dólares/participación porcentual)
B132: Entidad federativa | C132: 1980 | E132: 1981 | G132: 1982 | I132: 1983 | K132: 1984 | M132: 1985 | O132: 1986 | Q132: 1987 | S132: 1988 | U132: 1989 | W132: 1990 | Y132: 1991 | AA132: 1992 | AC132: 1993 | AE132: 1994* | AG132: 1995* | AI132: 1996* | AK132: 1997* | AM132: 1998* | AO132: 1999 | AQ132: 2000 | AS132: 2001 | AU132: 2002 | AW132: 2003 | AY132: 2004 | BA132: 2005 | BC132: 2006 | BE132: 2007 | BG132: 2008 | BI132: 2009 | BK132: 2010 | BM132: 2011 | BO132: 2012 | BQ132: 2013 | BS132: 2014 | BU132: 2015 | BW132: 2016 | BY132: 2017 | CA132: 2018 | CC132: 2019 | CE132: 2020 | CG132: 2021 | CI132: 2022
B133: Aguascalientes | C133: nd | D133: nd | E133: nd | F133: nd | G133: nd | H133: nd | I133: nd | J133: nd | K133: nd | L133: nd | M133: nd | N133: nd | O133: nd | P133: nd | Q133: nd | R133: nd | S133: nd | T133: nd | U133: 0.4 | V133: 0.01600192023 | W133: 0 | X133: 0 | Y133: 61.8 | Z133: 1.733471712 | AA133: 31.5 | AB133: 0.875097233 | AC133: 9.3 | AD133: 0.1897688085 | AE133: 28.5 | AF133: 0.2676835511 | AG133: 27.1 | AH133: 0.323597545 | AI133: 34.8 | AJ133: 0.4434307267 | AK133: 18.1 | AL133: 0.1490251614 | AM133: 69.1 | AN133: 0.8252224279 | AO133: 818.846072 | AP133: 5.865525998 | AQ133: 288.2483511 | AR133: 1.579556541 | AS133: 254.5625875 | AT133: 0.8469282565 | AU133: 115.1542767 | AV133: 0.4778343141 | AW133: 119.8299376 | AX133: 0.6566035211 | AY133: 441.5118119 | AZ133: 1.765048444 | BA133: 133.876424 | BB133: 0.5189883974 | BC133: 140.5939138 | BD133: 0.6621661462 | BE133: 410.573807 | BF133: 1.267469227 | BG133: 337.4852046 | BH133: 1.143932549 | BI133: 342.2060574 | BJ133: 1.917151191 | BK133: 333.1545323 | BL133: 1.22531574 | BM133: 236.8051773 | BN133: 0.9238519481 | BO133: 355.209503 | BP133: 1.631697874 | BQ133: 69.13988341 | BR133: 0.1429856588 | BS133: 978.7988459 | BT133: 3.224920664 | BU133: 812.5841424 | BV133: 2.26071032 | BW133: 594.8797316 | BX133: 1.907409489 | BY133: 1576.337274 | BZ133: 4.634594417 | CA133: 1196.980198 | CB133: 3.510491311 | CC133: 452.1233792 | CD133: 1.307960694 | CE133: 743.6596702 | CF133: 2.637544964 | CG133: 42.11103884 | CH133: 0.1335016585 | CI133: 594.8694046 | CJ133: 1.885872547
B134: Baja California | C134: nd | D134: nd | E134: nd | F134: nd | G134: nd | H134: nd | I134: nd | J134: nd | K134: nd | L134: nd | M134: nd | N134: nd | O134: nd | P134: nd | Q134: nd | R134: nd | S134: nd | T134: nd | U134: 84.1 | V134: 3.364403728 | W134: 36.6 | X134: 0.9832102082 | Y134: 62.8 | Z134: 1.761521416 | AA134: 98.3 | AB134: 2.730858984 | AC134: 189.6 | AD134: 3.868835064 | AE134: 227.1 | AF134: 2.133015244 | AG134: 538.1 | AH134: 6.425381511 | AI134: 427.7 | AJ134: 5.449865569 | AK134: 679.4 | AL134: 5.593795284 | AM134: 726.2 | AN134: 8.672598077 | AO134: 1238.714183 | AP134: 8.873108745 | AQ134: 1054.188852 | AR134: 5.776792446 | AS134: 1326.086279 | AT134: 4.411881384 | AU134: 1535.124825 | AV134: 6.370022362 | AW134: 1084.765864 | AX134: 5.943932712 | AY134: 1365.615627 | AZ134: 5.459373166 | BA134: 1334.936478 | BB134: 5.175045185 | BC134: 1340.591468 | BD134: 6.313888432 | BE134: 1790.829226 | BF134: 5.52841145 | BG134: 1453.673275 | BH134: 4.927339489 | BI134: 829.5231895 | BJ134: 4.647262481 | BK134: 1414.82295 | BL134: 5.203605721 | BM134: 766.3223272 | BN134: 2.989665947 | BO134: 1018.515251 | BP134: 4.678673163 | BQ134: 1290.826481 | BR134: 2.669510935 | BS134: 1223.344367 | BT134: 4.030642809 | BU134: 1167.269082 | BV134: 3.247488011 | BW134: 1566.921937 | BX134: 5.024144567 | BY134: 1678.626997 | BZ134: 4.935336769 | CA134: 1630.620571 | CB134: 4.782267371 | CC134: 1183.719054 | CD134: 3.424414808 | CE134: 1195.390076 | CF134: 4.239701575 | CG134: 2222.613246 | CH134: 7.046194126 | CI134: 1877.305514 | CJ134: 5.951489359
B135: Baja California Sur | C135: nd | D135: nd | E135: nd | F135: nd | G135: nd | H135: nd | I135: nd | J135: nd | K135: nd | L135: nd | M135: nd | N135: nd | O135: nd | P135: nd | Q135: nd | R135: nd | S135: nd | T135: nd | U135: 324.8 | V135: 12.99355923 | W135: 31.4 | X135: 0.8435191404 | Y135: 13.1 | Z135: 0.3674511234 | AA135: 46.8 | AB135: 1.30014446 | AC135: 147.6 | AD135: 3.011814639 | AE135: 8.3 | AF135: 0.077956964 | AG135: 20.9 | AH135: 0.2495641583 | AI135: 34.6 | AJ135: 0.4408822742 | AK135: 42.5 | AL135: 0.349920959 | AM135: 46.8 | AN135: 0.5589060727 | AO135: 135.1224975 | AP135: 0.9679041632 | AQ135: 173.5108817 | AR135: 0.9508128911 | AS135: 243.1485498 | AT135: 0.8089538192 | AU135: 330.8221803 | AV135: 1.372751357 | AW135: 149.4772055 | AX135: 0.8190545824 | AY135: 227.8124783 | AZ135: 0.9107345476 | BA135: 741.023564 | BB135: 2.872668842 | BC135: 591.5703159 | BD135: 2.786164961 | BE135: 819.2910718 | BF135: 2.529207183 | BG135: 810.1271076 | BH135: 2.745989319 | BI135: 449.5262604 | BJ135: 2.518394362 | BK135: 517.5682143 | BL135: 1.903574523 | BM135: 711.1604288 | BN135: 2.774461922 | BO135: 720.6296192 | BP135: 3.310299436 | BQ135: 421.3367491 | BR135: 0.8713510886 | BS135: 228.70082 | BT135: 0.7535174399 | BU135: 352.014288 | BV135: 0.979347605 | BW135: 510.7511887 | BX135: 1.637661551 | BY135: 568.9393561 | BZ135: 1.672740477 | CA135: 443.0629956 | CB135: 1.299410632 | CC135: 464.9704144 | CD135: 1.34512625 | CE135: 607.7519128 | CF135: 2.155519603 | CG135: 1078.842753 | CH135: 3.420179145 | CI135: 668.1419772 | CJ135: 2.11816342
B136: Campeche | C136: nd | D136: nd | E136: nd | F136: nd | G136: nd | H136: nd | I136: nd | J136: nd | K136: nd | L136: nd | M136: nd | N136: nd | O136: nd | P136: nd | Q136: nd | R136: nd | S136: nd | T136: nd | U136: 0 | V136: 0 | W136: 0 | X136: 0 | Y136: 0 | Z136: 0 | AA136: 0.3 | AB136: 0.008334259362 | AC136: 5.2 | AD136: 0.1061072908 | AE136: 2.1 | AF136: 0.01972405113 | AG136: 0.5 | AH136: 0.005970434409 | AI136: 0 | AJ136: 0 | AK136: 1.8 | AL136: 0.01482018179 | AM136: 0.1 | AN136: 0.001194243745 | AO136: 30.505075 | AP136: 0.2185127542 | AQ136: 25.308216 | AR136: 0.1386851233 | AS136: 51.634708 | AT136: 0.1717883749 | AU136: 190.918863 | AV136: 0.7922205459 | AW136: 65.706121 | AX136: 0.3600341557 | AY136: 149.047489 | AZ136: 0.5958527755 | BA136: 129.300058 | BB136: 0.5012475527 | BC136: 30.41914107 | BD136: 0.1432674066 | BE136: 134.523132 | BF136: 0.415282045 | BG136: 150.0526385 | BH136: 0.5086151776 | BI136: 26.16739962 | BJ136: 0.1465984026 | BK136: 73.20354795 | BL136: 0.2692367981 | BM136: 24.79756059 | BN136: 0.09674313255 | BO136: 209.6683149 | BP136: 0.9631367988 | BQ136: 278.4169567 | BR136: 0.575783904 | BS136: 218.5742756 | BT136: 0.7201527679 | BU136: 543.0071556 | BV136: 1.510713558 | BW136: 142.1679444 | BX136: 0.4558442182 | BY136: 328.3459964 | BZ136: 0.9653711469 | CA136: 123.4906007 | CB136: 0.3621719737 | CC136: 151.8657313 | CD136: 0.4393367306 | CE136: 204.2835595 | CF136: 0.7245344817 | CG136: 218.4180737 | CH136: 0.6924354251 | CI136: 40.39690726 | CJ136: 0.1280674679
B137: Chiapas | C137: nd | D137: nd | E137: nd | F137: nd | G137: nd | H137: nd | I137: nd | J137: nd | K137: nd | L137: nd | M137: nd | N137: nd | O137: nd | P137: nd | Q137: nd | R137: nd | S137: nd | T137: nd | U137: 0.9 | V137: 0.03600432052 | W137: 0 | X137: 0 | Y137: 2.3 | Z137: 0.06451431937 | AA137: 19.8 | AB137: 0.5500611179 | AC137: 4.2 | AD137: 0.08570204257 | AE137: 0.4 | AF137: 0.00375696212 | AG137: 0.4 | AH137: 0.004776347527 | AI137: 1 | AJ137: 0.01274226226 | AK137: 0.4 | AL137: 0.003293373732 | AM137: 0.4 | AN137: 0.004776974981 | AO137: 34.01038882 | AP137: 0.2436218804 | AQ137: 43.472612 | AR137: 0.238223214 | AS137: 199.301561 | AT137: 0.663075141 | AU137: 207.626804 | AV137: 0.8615503854 | AW137: 114.2917081 | AX137: 0.6262570063 | AY137: 232.204182 | AZ137: 0.9282914275 | BA137: 142.076015 | BB137: 0.5507751189 | BC137: 89.256227 | BD137: 0.4203770296 | BE137: 186.876594 | BF137: 0.5769007379 | BG137: 63.203183 | BH137: 0.2142321419 | BI137: 91.88158019 | BJ137: 0.5147509144 | BK137: 157.6758362 | BL137: 0.5799191222 | BM137: 92.80881925 | BN137: 0.3620765789 | BO137: 121.0916849 | BP137: 0.556249321 | BQ137: 182.4139759 | BR137: 0.3772436579 | BS137: 36.56443398 | BT137: 0.1204715343 | BU137: 270.0755851 | BV137: 0.7513839251 | BW137: 139.7876584 | BX137: 0.4482121208 | BY137: 217.0865223 | BZ137: 0.6382568001 | CA137: 70.22050105 | CB137: 0.2059419689 | CC137: 256.6473096 | CD137: 0.7424623642 | CE137: 133.1424006 | CF137: 0.4722174435 | CG137: 157.0403179 | CH137: 0.4978538517 | CI137: 186.7916724 | CJ137: 0.592172474
B138: Chihuahua | C138: nd | D138: nd | E138: nd | F138: nd | G138: nd | H138: nd | I138: nd | J138: nd | K138: nd | L138: nd | M138: nd | N138: nd | O138: nd | P138: nd | Q138: nd | R138: nd | S138: nd | T138: nd | U138: 77.8 | V138: 3.112373485 | W138: 24.1 | X138: 0.6474143721 | Y138: 17.8 | Z138: 0.4992847325 | AA138: 95.3 | AB138: 2.647516391 | AC138: 27.2 | AD138: 0.5550227519 | AE138: 308.4 | AF138: 2.896617795 | AG138: 528.7 | AH138: 6.313137344 | AI138: 536.7 | AJ138: 6.838772156 | AK138: 504 | AL138: 4.149650902 | AM138: 620 | AN138: 7.40431122 | AO138: 635.015674 | AP138: 4.548719317 | AQ138: 1387.364799 | AR138: 7.602545288 | AS138: 1076.448629 | AT138: 3.581338366 | AU138: 1362.675931 | AV138: 5.654443216 | AW138: 1120.02145 | AX138: 6.137114334 | AY138: 1459.538949 | AZ138: 5.834853974 | BA138: 1692.013764 | BB138: 6.559299133 | BC138: 1948.818072 | BD138: 9.178500816 | BE138: 2267.159666 | BF138: 6.998875869 | BG138: 2625.23309 | BH138: 8.898433293 | BI138: 1424.710974 | BJ138: 7.98170074 | BK138: 1847.780537 | BL138: 6.795989121 | BM138: 1218.112005 | BN138: 4.752240477 | BO138: 1186.894459 | BP138: 5.452143449 | BQ138: 2311.449933 | BR138: 4.78022489 | BS138: 1936.579717 | BT138: 6.380591859 | BU138: 2524.517071 | BV138: 7.02352101 | BW138: 1986.065345 | BX138: 6.368076914 | BY138: 1825.30897 | BZ138: 5.366596922 | CA138: 1241.944623 | CB138: 3.642362517 | CC138: 1406.9929 | CD138: 4.070330123 | CE138: 641.0620777 | CF138: 2.273661088 | CG138: 1907.594107 | CH138: 6.047511149 | CI138: 1875.864234 | CJ138: 5.946920169
B139: Ciudad de México | C139: nd | D139: nd | E139: nd | F139: nd | G139: nd | H139: nd | I139: nd | J139: nd | K139: nd | L139: nd | M139: nd | N139: nd | O139: nd | P139: nd | Q139: nd | R139: nd | S139: nd | T139: nd | U139: 1292.3 | V139: 51.69820378 | W139: 2226.02 | X139: 59.79905977 | Y139: 2389.4 | Z139: 67.02196292 | AA139: 2028.6 | AB139: 56.35626181 | AC139: 3088.89 | AD139: 63.0295672 | AE139: 7602.9 | AF139: 71.40951826 | AG139: 4486.4 | AH139: 53.57151386 | AI139: 4777 | AJ139: 60.86978682 | AK139: 6643.8 | AL139: 54.701291 | AM139: 4000.6 | AN139: 47.77691527 | AO139: 3640.473033 | AP139: 26.07729334 | AQ139: 5311.350189 | AR139: 29.10538048 | AS139: 10219.45417 | AT139: 34.00006492 | AU139: 6504.409522 | AV139: 26.99014011 | AW139: 3521.352366 | AX139: 19.29511447 | AY139: 5573.048248 | AZ139: 22.27958544 | BA139: 5984.294464 | BB139: 23.19885235 | BC139: 5671.130318 | BD139: 26.70976578 | BE139: 6931.542673 | BF139: 21.398143 | BG139: 7724.065395 | BH139: 26.18132498 | BI139: 5254.643944 | BJ139: 29.43824834 | BK139: 4064.564035 | BL139: 14.94914164 | BM139: 7507.594581 | BN139: 29.28950269 | BO139: 1337.452871 | BP139: 6.143751752 | BQ139: 5835.332902 | BR139: 12.0678381 | BS139: 6126.758319 | BT139: 20.18628198 | BU139: 5909.121663 | BV139: 16.43991266 | BW139: 6750.132064 | BX139: 21.64347727 | BY139: 5104.585391 | BZ139: 15.00800834 | CA139: 5836.125612 | CB139: 17.11612964 | CC139: 8738.157416 | CD139: 25.27886626 | CE139: 6990.860456 | CF139: 24.79455258 | CG139: 5478.598302 | CH139: 17.36841407 | CI139: 10923.26494 | CJ139: 34.62925697
B140: Coahuila de Zaragoza | C140: nd | D140: nd | E140: nd | F140: nd | G140: nd | H140: nd | I140: nd | J140: nd | K140: nd | L140: nd | M140: nd | N140: nd | O140: nd | P140: nd | Q140: nd | R140: nd | S140: nd | T140: nd | U140: 17.2 | V140: 0.6880825699 | W140: 3.2 | X140: 0.08596373405 | Y140: 24 | Z140: 0.6731928978 | AA140: 7.7 | AB140: 0.213912657 | AC140: 30.8 | AD140: 0.6284816455 | AE140: 102.3 | AF140: 0.9608430623 | AG140: 120.4 | AH140: 1.437680606 | AI140: 147.6 | AJ140: 1.88075791 | AK140: 114.4 | AL140: 0.9419048874 | AM140: 134.6 | AN140: 1.607452081 | AO140: 481.6971304 | AP140: 3.450473951 | AQ140: 511.216768 | AR140: 2.801389103 | AS140: 1129.868729 | AT140: 3.759066728 | AU140: 885.79995 | AV140: 3.67563953 | AW140: 824.4513931 | AX140: 4.517549609 | AY140: 841.530276 | AZ140: 3.364217364 | BA140: 642.152013 | BB140: 2.489381134 | BC140: 608.277464 | BD140: 2.864851922 | BE140: 666.2903059 | BF140: 2.056883427 | BG140: 583.083045 | BH140: 1.976405676 | BI140: 381.2102947 | BJ140: 2.135665793 | BK140: 751.2012138 | BL140: 2.76285802 | BM140: 647.1415265 | BN140: 2.524703922 | BO140: 539.3666573 | BP140: 2.477646067 | BQ140: 1804.578936 | BR140: 3.731983558 | BS140: 1625.454563 | BT140: 5.355504893 | BU140: 1367.224338 | BV140: 3.803788445 | BW140: 1209.584445 | BX140: 3.878385369 | BY140: 2672.544098 | BZ140: 7.857555717 | CA140: 3290.191669 | CB140: 9.649440552 | CC140: 1492.106005 | CD140: 4.316556265 | CE140: 852.1101183 | CF140: 3.022187221 | CG140: 1039.079944 | CH140: 3.294121912 | CI140: 792.4446391 | CJ140: 2.512231388
B141: Colima | C141: nd | D141: nd | E141: nd | F141: nd | G141: nd | H141: nd | I141: nd | J141: nd | K141: nd | L141: nd | M141: nd | N141: nd | O141: nd | P141: nd | Q141: nd | R141: nd | S141: nd | T141: nd | U141: 33.9 | V141: 1.35616274 | W141: 22.6 | X141: 0.6071188717 | Y141: 18.7 | Z141: 0.5245294662 | AA141: 128.3 | AB141: 3.564284921 | AC141: 18.3 | AD141: 0.3734160426 | AE141: 102.9 | AF141: 0.9664785055 | AG141: 3 | AH141: 0.03582260645 | AI141: 4 | AJ141: 0.05096904904 | AK141: 3.5 | AL141: 0.02881702016 | AM141: 4.1 | AN141: 0.04896399355 | AO141: 31.64576 | AP141: 0.2266836642 | AQ141: 15.85637245 | AR141: 0.08689047734 | AS141: 94.618385 | AT141: 0.3147948198 | AU141: 65.52592756 | AV141: 0.2719007713 | AW141: 74.740079 | AX141: 0.4095353801 | AY141: 156.7449724 | AZ141: 0.6266252957 | BA141: 52.147011 | BB141: 0.2021542917 | BC141: 106.4999816 | BD141: 0.5015912884 | BE141: 118.7007917 | BF141: 0.3664374059 | BG141: 187.5431177 | BH141: 0.6356920949 | BI141: 134.864699 | BJ141: 0.7555565214 | BK141: 264.8388771 | BL141: 0.9740562213 | BM141: 154.6133261 | BN141: 0.603195522 | BO141: 60.45569382 | BP141: 0.2777105518 | BQ141: 167.7873814 | BR141: 0.346994934 | BS141: 195.635703 | BT141: 0.6445753628 | BU141: 165.322271 | BV141: 0.4599471547 | BW141: -24.22497056 | BX141: -0.07767442099 | BY141: 132.2200718 | BZ141: 0.3887406691 | CA141: 90.6961999 | CB141: 0.2659928895 | CC141: 41.36634316 | CD141: 0.1196698808 | CE141: 92.06589544 | CF141: 0.3265310042 | CG141: 89.94778018 | CH141: 0.285155108 | CI141: 96.85599832 | CJ141: 0.3070557451
B142: Durango | C142: nd | D142: nd | E142: nd | F142: nd | G142: nd | H142: nd | I142: nd | J142: nd | K142: nd | L142: nd | M142: nd | N142: nd | O142: nd | P142: nd | Q142: nd | R142: nd | S142: nd | T142: nd | U142: 22.1 | V142: 0.8841060927 | W142: 11.2 | X142: 0.3008730692 | Y142: 133.5 | Z142: 3.744635494 | AA142: 1.2 | AB142: 0.03333703745 | AC142: 7.9 | AD142: 0.161201461 | AE142: 21.5 | AF142: 0.201936714 | AG142: 41 | AH142: 0.4895756215 | AI142: 20.2 | AJ142: 0.2573936977 | AK142: 75.2 | AL142: 0.6191542616 | AM142: 61.9 | AN142: 0.7392368782 | AO142: 166.064998 | AP142: 1.189550266 | AQ142: 131.615137 | AR142: 0.721230667 | AS142: 288.855449 | AT142: 0.9610204086 | AU142: 172.520536 | AV142: 0.7158764255 | AW142: 306.408175 | AX142: 1.678951777 | AY142: -82.368549 | AZ142: -0.329287859 | BA142: 76.630701 | BB142: 0.2970683226 | BC142: 10.77438 | BD142: 0.05074493974 | BE142: 421.617602 | BF142: 1.301562173 | BG142: 488.132089 | BH142: 1.65456197 | BI142: 127.3688294 | BJ142: 0.713562188 | BK142: 414.0637624 | BL142: 1.522893422 | BM142: 228.6192869 | BN142: 0.8919161985 | BO142: 268.3888163 | BP142: 1.232876534 | BQ142: 482.4867997 | BR142: 0.9978132669 | BS142: 155.8836222 | BT142: 0.5136012539 | BU142: 231.0989554 | BV142: 0.6429460855 | BW142: 275.9363663 | BX142: 0.8847563893 | BY142: 131.1131911 | BZ142: 0.3854863255 | CA142: 391.0602771 | CB142: 1.14689759 | CC142: 178.5304772 | CD142: 0.516475939 | CE142: 496.5417118 | CF142: 1.761089305 | CG142: 461.8363757 | CH142: 1.464127312 | CI142: 565.5418218 | CJ142: 1.792897379
B143: Estado de México | C143: nd | D143: nd | E143: nd | F143: nd | G143: nd | H143: nd | I143: nd | J143: nd | K143: nd | L143: nd | M143: nd | N143: nd | O143: nd | P143: nd | Q143: nd | R143: nd | S143: nd | T143: nd | U143: 186.1 | V143: 7.444893387 | W143: 212.2 | X143: 5.700470114 | Y143: 312.3 | Z143: 8.759922583 | AA143: 314.1 | AB143: 8.725969552 | AC143: 291.9 | AD143: 5.956291958 | AE143: 340.5 | AF143: 3.198114005 | AG143: 611.2 | AH143: 7.298259021 | AI143: 412.1 | AJ143: 5.251086278 | AK143: 290.4 | AL143: 2.390989329 | AM143: 747 | AN143: 8.921000776 | AO143: 1129.508219 | AP143: 8.090848879 | AQ143: 1312.366772 | AR143: 7.191567658 | AS143: 2355.957129 | AT143: 7.838255745 | AU143: 1934.040601 | AV143: 8.025329066 | AW143: 1493.458753 | AX143: 8.183349636 | AY143: 3935.615017 | AZ143: 15.73355678 | BA143: 2560.455717 | BB143: 9.925921009 | BC143: 2403.104284 | BD143: 11.3180881 | BE143: 2220.916188 | BF143: 6.856119113 | BG143: 2345.891904 | BH143: 7.951584452 | BI143: 1592.380484 | BJ143: 8.921040634 | BK143: 2028.378809 | BL143: 7.460215131 | BM143: 2712.07667 | BN143: 10.58066949 | BO143: 3119.578797 | BP143: 14.33016304 | BQ143: 4608.438045 | BR143: 9.530541818 | BS143: 3581.423824 | BT143: 11.79998091 | BU143: 2959.656233 | BV143: 8.234132369 | BW143: 2407.818872 | BX143: 7.720378289 | BY143: 3761.170069 | BZ143: 11.05822852 | CA143: 2333.816682 | CB143: 6.844593749 | CC143: 2932.770662 | CD143: 8.484296381 | CE143: 2385.283486 | CF143: 8.459908074 | CG143: 1535.384041 | CH143: 4.867519813 | CI143: 1805.870026 | CJ143: 5.725022465
B144: Guanajuato | C144: nd | D144: nd | E144: nd | F144: nd | G144: nd | H144: nd | I144: nd | J144: nd | K144: nd | L144: nd | M144: nd | N144: nd | O144: nd | P144: nd | Q144: nd | R144: nd | S144: nd | T144: nd | U144: 10.4 | V144: 0.416049926 | W144: 24.2 | X144: 0.6501007388 | Y144: 5.2 | Z144: 0.1458584612 | AA144: 50.9 | AB144: 1.414046005 | AC144: 36.5 | AD144: 0.7447915604 | AE144: 27.4 | AF144: 0.2573519052 | AG144: 6.3 | AH144: 0.07522747355 | AI144: 9.8 | AJ144: 0.1248741702 | AK144: 41 | AL144: 0.3375708075 | AM144: 10.6 | AN144: 0.126589837 | AO144: 309.164243 | AP144: 2.214593154 | AQ144: 307.371787 | AR144: 1.684350022 | AS144: 857.237812 | AT144: 2.852025244 | AU144: 739.250864 | AV144: 3.067532007 | AW144: 722.169528 | AX144: 3.957100074 | AY144: 689.201802 | AZ144: 2.755248071 | BA144: 781.88629 | BB144: 3.031078218 | BC144: 596.469222 | BD144: 2.809237722 | BE144: 1091.994075 | BF144: 3.371059874 | BG144: 751.784794 | BH144: 2.548233475 | BI144: 508.597999 | BJ144: 2.849333724 | BK144: 399.2738735 | BL144: 1.468497393 | BM144: 1424.685597 | BN144: 5.558149441 | BO144: 1321.193332 | BP144: 6.069061589 | BQ144: 2621.382919 | BR144: 5.421185938 | BS144: 1317.88567 | BT144: 4.342135004 | BU144: 1752.81333 | BV144: 4.876545058 | BW144: 1332.59015 | BX144: 4.272788199 | BY144: 1677.917202 | BZ144: 4.933249899 | CA144: 2469.795662 | CB144: 7.243391515 | CC144: 796.0336179 | CD144: 2.302868489 | CE144: 199.4531093 | CF144: 0.7074022771 | CG144: 1799.317221 | CH144: 5.704248571 | CI144: 1564.4993 | CJ144: 4.959821864
B145: Guerrero | C145: nd | D145: nd | E145: nd | F145: nd | G145: nd | H145: nd | I145: nd | J145: nd | K145: nd | L145: nd | M145: nd | N145: nd | O145: nd | P145: nd | Q145: nd | R145: nd | S145: nd | T145: nd | U145: 3 | V145: 0.1200144017 | W145: 153.7 | X145: 4.128945601 | Y145: 3.5 | Z145: 0.09817396426 | AA145: 6.6 | AB145: 0.183353706 | AC145: 4.7 | AD145: 0.09590466668 | AE145: 7.1 | AF145: 0.06668607764 | AG145: 62.6 | AH145: 0.747498388 | AI145: 9.6 | AJ145: 0.1223257177 | AK145: 4.5 | AL145: 0.03705045449 | AM145: 2.6 | AN145: 0.03105033737 | AO145: 36.01426692 | AP145: 0.2579759813 | AQ145: 49.84095088 | AR145: 0.2731207296 | AS145: 216.7365331 | AT145: 0.7210811925 | AU145: 302.3429455 | AV145: 1.254576366 | AW145: 159.647213 | AX145: 0.8747807457 | AY145: 219.8927307 | AZ145: 0.8790734736 | BA145: 237.0806048 | BB145: 0.9190720778 | BC145: 164.0267976 | BD145: 0.772529831 | BE145: 112.3540048 | BF145: 0.3468444436 | BG145: 574.9460351 | BH145: 1.948824644 | BI145: 136.0141081 | BJ145: 0.7619958903 | BK145: 139.5511816 | BL145: 0.5132580914 | BM145: 241.8040872 | BN145: 0.9433542777 | BO145: 164.2846046 | BP145: 0.7546612291 | BQ145: 1088.173729 | BR145: 2.250412207 | BS145: 479.4057614 | BT145: 1.579533479 | BU145: 164.0899057 | BV145: 0.4565185607 | BW145: 180.6682375 | BX145: 0.5792907241 | BY145: 410.4140071 | BZ145: 1.206659576 | CA145: 402.1671796 | CB145: 1.1794718 | CC145: 275.5350094 | CD145: 0.797103133 | CE145: 296.7729988 | CF145: 1.052567673 | CG145: 669.1022214 | CH145: 2.121207614 | CI145: 245.4533851 | CJ145: 0.7781435673
B146: Hidalgo | C146: nd | D146: nd | E146: nd | F146: nd | G146: nd | H146: nd | I146: nd | J146: nd | K146: nd | L146: nd | M146: nd | N146: nd | O146: nd | P146: nd | Q146: nd | R146: nd | S146: nd | T146: nd | U146: 0.2 | V146: 0.008000960115 | W146: 0.1 | X146: 0.002686366689 | Y146: 5.2 | Z146: 0.1458584612 | AA146: 0.1 | AB146: 0.002778086454 | AC146: 3.5 | AD146: 0.0714183688 | AE146: 0.1 | AF146: 0.0009392405301 | AG146: 48.3 | AH146: 0.5767439639 | AI146: 60.2 | AJ146: 0.7670841881 | AK146: 2.4 | AL146: 0.01976024239 | AM146: 7.6 | AN146: 0.09076252463 | AO146: 6.662873 | AP146: 0.04772722999 | AQ146: -84.997926 | AR146: -0.4657755351 | AS146: 336.061288 | AT146: 1.118073962 | AU146: 157.107461 | AV146: 0.6519196509 | AW146: 98.257579 | AX146: 0.5383986143 | AY146: 213.6198544 | AZ146: 0.8539961593 | BA146: 111.399544 | BB146: 0.431854012 | BC146: 194.382045 | BD146: 0.9154963125 | BE146: 87.068187 | BF146: 0.2687854067 | BG146: 121.744071 | BH146: 0.4126610695 | BI146: 111.455124 | BJ146: 0.6244083621 | BK146: 380.346931 | BL146: 1.398885611 | BM146: 265.525408 | BN146: 1.035898658 | BO146: 178.8089958 | BP146: 0.8213807789 | BQ146: 470.0206862 | BR146: 0.9720325544 | BS146: -66.07296627 | BT146: -0.2176954695 | BU146: 523.7255703 | BV146: 1.457069785 | BW146: 444.573819 | BX146: 1.425471866 | BY146: 349.3611539 | BZ146: 1.027157881 | CA146: 186.4781398 | CB146: 0.5469011856 | CC146: 283.8744769 | CD146: 0.8212286176 | CE146: 278.7175237 | CF146: 0.9885301443 | CG146: 176.2685344 | CH146: 0.5588117112 | CI146: 410.5317735 | CJ146: 1.301479947
B147: Jalisco | C147: nd | D147: nd | E147: nd | F147: nd | G147: nd | H147: nd | I147: nd | J147: nd | K147: nd | L147: nd | M147: nd | N147: nd | O147: nd | P147: nd | Q147: nd | R147: nd | S147: nd | T147: nd | U147: 73 | V147: 2.920350442 | W147: 109.8 | X147: 2.949630625 | Y147: 216.6 | Z147: 6.075565903 | AA147: 163.8 | AB147: 4.550505612 | AC147: 117.3 | AD147: 2.393535617 | AE147: 64.3 | AF147: 0.6039316609 | AG147: 114.4 | AH147: 1.366035393 | AI147: 185.6 | AJ147: 2.364963876 | AK147: 202.5 | AL147: 1.667270452 | AM147: 362.1 | AN147: 4.324356601 | AO147: 766.7881903 | AP147: 5.492627026 | AQ147: 1404.398142 | AR147: 7.695885381 | AS147: 1736.119726 | AT147: 5.77606029 | AU147: 1170.848904 | AV147: 4.858454232 | AW147: 1258.674388 | AX147: 6.896857759 | AY147: 1422.232963 | AZ147: 5.685714426 | BA147: 827.8291362 | BB147: 3.209181303 | BC147: 992.7387848 | BD147: 4.675579459 | BE147: 1837.718096 | BF147: 5.673160576 | BG147: 1040.673169 | BH147: 3.527443262 | BI147: 1005.721114 | BJ147: 5.634381361 | BK147: 2210.295162 | BL147: 8.129288934 | BM147: 1036.265968 | BN147: 4.04280153 | BO147: 1415.26239 | BP147: 6.501179201 | BQ147: 2937.916386 | BR147: 6.075797201 | BS147: 1684.598038 | BT147: 5.550369257 | BU147: 3138.397229 | BV147: 8.731412088 | BW147: 2102.260275 | BX147: 6.740641819 | BY147: 1552.88953 | BZ147: 4.565655629 | CA147: 1014.790251 | CB147: 2.976166492 | CC147: 1568.21081 | CD147: 4.53672204 | CE147: 2133.981951 | CF147: 7.568614482 | CG147: 2141.335233 | CH147: 6.788524167 | CI147: 2894.899946 | CJ147: 9.177497268
B148: Michoacán de Ocampo | C148: nd | D148: nd | E148: nd | F148: nd | G148: nd | H148: nd | I148: nd | J148: nd | K148: nd | L148: nd | M148: nd | N148: nd | O148: nd | P148: nd | Q148: nd | R148: nd | S148: nd | T148: nd | U148: 0.4 | V148: 0.01600192023 | W148: 91.5 | X148: 2.45802552 | Y148: 2.3 | Z148: 0.06451431937 | AA148: 352.2 | AB148: 9.784420491 | AC148: 36.6 | AD148: 0.7468320852 | AE148: 8.5 | AF148: 0.07983544506 | AG148: 48.8 | AH148: 0.5827143983 | AI148: 1.2 | AJ148: 0.01529071471 | AK148: 4 | AL148: 0.03293373732 | AM148: 4.3 | AN148: 0.05135248104 | AO148: 25.452083 | AP148: 0.1823173605 | AQ148: 28.331434 | AR148: 0.155251892 | AS148: 319.039813 | AT148: 1.061443613 | AU148: 204.587823 | AV148: 0.8489400904 | AW148: 134.760294 | AX148: 0.7384138332 | AY148: 368.007294 | AZ148: 1.471196657 | BA148: 247.997934 | BB148: 0.9613944449 | BC148: 63.35109658 | BD148: 0.2983696118 | BE148: 1860.910894 | BF148: 5.744758318 | BG148: 187.211323 | BH148: 0.6345674508 | BI148: 156.4753051 | BJ148: 0.8766262643 | BK148: 158.1951429 | BL148: 0.5818290908 | BM148: 150.6824344 | BN148: 0.587859869 | BO148: 335.970228 | BP148: 1.543319934 | BQ148: 2247.67341 | BR148: 4.648331001 | BS148: 211.4790526 | BT148: 0.696775614 | BU148: 419.0265978 | BV148: 1.1657842 | BW148: 193.9155376 | BX148: 0.6217665804 | BY148: 294.6867248 | BZ148: 0.8664094115 | CA148: 437.0615174 | CB148: 1.281809558 | CC148: 298.0067727 | CD148: 0.8621123416 | CE148: 272.7985003 | CF148: 0.9675370868 | CG148: 1033.728079 | CH148: 3.277155272 | CI148: 165.7033533 | CJ148: 0.5253176623
B149: Morelos | C149: nd | D149: nd | E149: nd | F149: nd | G149: nd | H149: nd | I149: nd | J149: nd | K149: nd | L149: nd | M149: nd | N149: nd | O149: nd | P149: nd | Q149: nd | R149: nd | S149: nd | T149: nd | U149: 3.2 | V149: 0.1280153618 | W149: 178.8 | X149: 4.80322364 | Y149: 16.9 | Z149: 0.4740399989 | AA149: 16.3 | AB149: 0.452828092 | AC149: 18.4 | AD149: 0.3754565674 | AE149: 19.4 | AF149: 0.1822126628 | AG149: 67.6 | AH149: 0.8072027321 | AI149: 51.2 | AJ149: 0.6524038278 | AK149: 27.4 | AL149: 0.2255961006 | AM149: 60.8 | AN149: 0.7261001971 | AO149: 456.570548 | AP149: 3.270488204 | AQ149: 132.424613 | AR149: 0.7256664708 | AS149: 251.499354 | AT149: 0.8367368965 | AU149: 192.469832 | AV149: 0.7986563139 | AW149: 96.118116 | AX149: 0.5266755093 | AY149: 467.853608 | AZ149: 1.870356037 | BA149: 176.277503 | BB149: 0.683361387 | BC149: 173.947325 | BD149: 0.8192533143 | BE149: 393.498015 | BF149: 1.214755098 | BG149: 284.792855 | BH149: 0.9653277008 | BI149: 121.6918864 | BJ149: 0.6817580809 | BK149: 199.379236 | BL149: 0.7333008934 | BM149: 102.4587569 | BN149: 0.3997240401 | BO149: 274.3174821 | BP149: 1.260110578 | BQ149: 451.1553229 | BR149: 0.9330177881 | BS149: 356.5158873 | BT149: 1.174639158 | BU149: 484.803179 | BV149: 1.348782843 | BW149: 234.8683602 | BX149: 0.7530768238 | BY149: 603.0703841 | BZ149: 1.773089225 | CA149: 251.8669739 | CB149: 0.7386728908 | CC149: 655.6204728 | CD149: 1.896663273 | CE149: 386.6837293 | CF149: 1.371454933 | CG149: 94.7685623 | CH149: 0.3004380938 | CI149: 89.79031031 | CJ149: 0.2846558924
B150: Nayarit | C150: nd | D150: nd | E150: nd | F150: nd | G150: nd | H150: nd | I150: nd | J150: nd | K150: nd | L150: nd | M150: nd | N150: nd | O150: nd | P150: nd | Q150: nd | R150: nd | S150: nd | T150: nd | U150: 0.8 | V150: 0.03200384046 | W150: 0.2 | X150: 0.005372733378 | Y150: 0.1 | Z150: 0.002804970408 | AA150: 7.5 | AB150: 0.2083564841 | AC150: 0.1 | AD150: 0.002040524823 | AE150: 5.6 | AF150: 0.05259746969 | AG150: 2 | AH150: 0.02388173764 | AI150: 3.6 | AJ150: 0.04587214414 | AK150: 7.6 | AL150: 0.06257410091 | AM150: 6.1 | AN150: 0.07284886845 | AO150: 40.030777 | AP150: 0.2867468884 | AQ150: 54.95860281 | AR150: 0.3011646735 | AS150: 114.8750473 | AT150: 0.382188618 | AU150: 105.0111405 | AV150: 0.4357452259 | AW150: 146.9001025 | AX150: 0.8049334457 | AY150: 162.7448177 | AZ150: 0.6506111036 | BA150: 146.8101696 | BB150: 0.5691276504 | BC150: 246.4878026 | BD150: 1.160902872 | BE150: 244.5930472 | BF150: 0.7550753488 | BG150: 155.1396096 | BH150: 0.5258578648 | BI150: 104.0133355 | BJ150: 0.5827170085 | BK150: 178.1276531 | BL150: 0.6551392703 | BM150: 147.6603455 | BN150: 0.5760697438 | BO150: 157.2573861 | BP150: 0.7223808498 | BQ150: 535.4329246 | BR150: 1.107309207 | BS150: 105.8003987 | BT150: 0.3485883677 | BU150: 99.04417468 | BV150: 0.2755532334 | BW150: 85.58025394 | BX150: 0.2744026729 | BY150: 103.7788572 | BZ150: 0.3051205603 | CA150: 188.5684784 | CB150: 0.553031709 | CC150: 170.4003597 | CD150: 0.4929560887 | CE150: 782.3461773 | CF150: 2.774754774 | CG150: 215.0336141 | CH150: 0.6817059114 | CI150: 452.016501 | CJ150: 1.432996055
B151: Nuevo León | C151: nd | D151: nd | E151: nd | F151: nd | G151: nd | H151: nd | I151: nd | J151: nd | K151: nd | L151: nd | M151: nd | N151: nd | O151: nd | P151: nd | Q151: nd | R151: nd | S151: nd | T151: nd | U151: 94.5 | V151: 3.780453654 | W151: 493.6 | X151: 13.25990598 | Y151: 21.3 | Z151: 0.5974586968 | AA151: 32.6 | AB151: 0.905656184 | AC151: 353.8 | AD151: 7.219376824 | AE151: 937.4 | AF151: 8.804440729 | AG151: 704.5 | AH151: 8.412342082 | AI151: 358.4 | AJ151: 4.566826794 | AK151: 2371.4 | AL151: 19.52476617 | AM151: 672.9 | AN151: 8.036066161 | AO151: 1767.665973 | AP151: 12.66207542 | AQ151: 2283.589274 | AR151: 12.51371729 | AS151: 3106.018915 | AT151: 10.33370697 | AU151: 2583.367061 | AV151: 10.71971848 | AW151: 2331.750869 | AX151: 12.77673895 | AY151: 1408.460097 | AZ151: 5.630654119 | BA151: 4835.90768 | BB151: 18.74698996 | BC151: 1727.215635 | BD151: 8.134802496 | BE151: 3593.201468 | BF151: 11.09245697 | BG151: 1670.879112 | BH151: 5.663575694 | BI151: 952.5564223 | BJ151: 5.336535227 | BK151: 4841.88555 | BL151: 17.80806804 | BM151: 1679.233926 | BN151: 6.551223042 | BO151: 1281.124893 | BP151: 5.885002364 | BQ151: 2214.573366 | BR151: 4.579878013 | BS151: 1578.6628 | BT151: 5.201336625 | BU151: 3362.49033 | BV151: 9.354867015 | BW151: 3346.026187 | BX151: 10.72862591 | BY151: 1996.236427 | BZ151: 5.869141302 | CA151: 3675.73538 | CB151: 10.78015921 | CC151: 3274.642172 | CD151: 9.473306277 | CE151: 3142.641696 | CF151: 11.14603778 | CG151: 3288.83936 | CH151: 10.42637563 | CI151: 4397.280158 | CJ151: 13.94038736
B152: Oaxaca | C152: nd | D152: nd | E152: nd | F152: nd | G152: nd | H152: nd | I152: nd | J152: nd | K152: nd | L152: nd | M152: nd | N152: nd | O152: nd | P152: nd | Q152: nd | R152: nd | S152: nd | T152: nd | U152: 6.4 | V152: 0.2560307237 | W152: 0 | X152: 0 | Y152: 1.2 | Z152: 0.03365964489 | AA152: 1.5 | AB152: 0.04167129681 | AC152: 5.6 | AD152: 0.1142693901 | AE152: 0.1 | AF152: 0.0009392405301 | AG152: -2 | AH152: -0.02388173764 | AI152: 0.3 | AJ152: 0.003822678678 | AK152: 6.1 | AL152: 0.05022394941 | AM152: 0.4 | AN152: 0.004776974981 | AO152: 46.902999 | AP152: 0.3359737189 | AQ152: 16.690637 | AR152: 0.0914621185 | AS152: 144.346271 | AT152: 0.480239209 | AU152: 147.720108 | AV152: 0.6129666957 | AW152: 111.506719 | AX152: 0.6109967659 | AY152: 144.643148 | AZ152: 0.5782453752 | BA152: 126.588184 | BB152: 0.4907346401 | BC152: 110.2807789 | BD152: 0.5193980055 | BE152: 172.7584606 | BF152: 0.5333171012 | BG152: 201.1799768 | BH152: 0.6819152975 | BI152: 235.9279753 | BJ152: 1.321746326 | BK152: 117.5691321 | BL152: 0.4324098706 | BM152: 178.1169857 | BN152: 0.6948907372 | BO152: 353.7004505 | BP152: 1.624765858 | BQ152: 1942.551064 | BR152: 4.017318659 | BS152: 482.7953278 | BT152: 1.590701333 | BU152: 297.1991825 | BV152: 0.8268451524 | BW152: 195.5256068 | BX152: 0.6269290713 | BY152: 484.8065274 | BZ152: 1.42538127 | CA152: 487.8192672 | CB152: 1.430671369 | CC152: 56.61707199 | CD152: 0.1637891517 | CE152: 244.3162301 | CF152: 0.8665187426 | CG152: -92.63349331 | CH152: -0.2936694351 | CI152: 151.1339605 | CJ152: 0.4791293432
B153: Puebla | C153: nd | D153: nd | E153: nd | F153: nd | G153: nd | H153: nd | I153: nd | J153: nd | K153: nd | L153: nd | M153: nd | N153: nd | O153: nd | P153: nd | Q153: nd | R153: nd | S153: nd | T153: nd | U153: 10.1 | V153: 0.4040484858 | W153: 13.5 | X153: 0.362659503 | Y153: 15.4 | Z153: 0.4319654428 | AA153: 8.5 | AB153: 0.2361373486 | AC153: 59.7 | AD153: 1.218193319 | AE153: 29.9 | AF153: 0.2808329185 | AG153: 25.9 | AH153: 0.3092685024 | AI153: 39.2 | AJ153: 0.4994966806 | AK153: 379.3 | AL153: 3.122941641 | AM153: 37.9 | AN153: 0.4526183794 | AO153: 296.482464 | AP153: 2.123751533 | AQ153: 382.0075262 | AR153: 2.093342371 | AS153: 778.0410464 | AT153: 2.588538062 | AU153: 708.9985271 | AV153: 2.941999504 | AW153: 458.4920979 | AX153: 2.512289766 | AY153: 638.4262457 | AZ153: 2.552260713 | BA153: 782.8723621 | BB153: 3.034900847 | BC153: 424.9798124 | BD153: 2.001560644 | BE153: 662.70076 | BF153: 2.045802255 | BG153: 381.1317123 | BH153: 1.291875808 | BI153: 182.5483941 | BJ153: 1.022696308 | BK153: 772.9024023 | BL153: 2.842673257 | BM153: 594.4525029 | BN153: 2.319147364 | BO153: 775.324596 | BP153: 3.561547437 | BQ153: 1504.514629 | BR153: 3.111431562 | BS153: 1057.162873 | BT153: 3.483112397 | BU153: 791.4572466 | BV153: 2.201932664 | BW153: 1166.538224 | BX153: 3.7403629 | BY153: 953.566361 | BZ153: 2.803583603 | CA153: 643.9282611 | CB153: 1.888506233 | CC153: 2043.985091 | CD153: 5.913103104 | CE153: 583.0419922 | CF153: 2.067880688 | CG153: 627.7992769 | CH153: 1.9902678 | CI153: 798.1216482 | CJ153: 2.53022881
B154: Querétaro | C154: nd | D154: nd | E154: nd | F154: nd | G154: nd | H154: nd | I154: nd | J154: nd | K154: nd | L154: nd | M154: nd | N154: nd | O154: nd | P154: nd | Q154: nd | R154: nd | S154: nd | T154: nd | U154: 37.3 | V154: 1.492179061 | W154: 10.1 | X154: 0.2713230356 | Y154: 42.1 | Z154: 1.180892542 | AA154: 70.5 | AB154: 1.95855095 | AC154: 61.3 | AD154: 1.250841716 | AE154: 141.1 | AF154: 1.325268388 | AG154: 42 | AH154: 0.5015164903 | AI154: 69.8 | AJ154: 0.8894099058 | AK154: 73.2 | AL154: 0.602687393 | AM154: 125.1 | AN154: 1.493998925 | AO154: 255.193758 | AP154: 1.827993897 | AQ154: 628.2089449 | AR154: 3.442488202 | AS154: 838.6784883 | AT154: 2.790278481 | AU154: 654.15458 | AV154: 2.714423763 | AW154: 271.2228045 | AX154: 1.486154896 | AY154: 456.0213479 | AZ154: 1.823053764 | BA154: 594.7610011 | BB154: 2.305664057 | BC154: 750.580545 | BD154: 3.535067867 | BE154: 815.2668775 | BF154: 2.516784222 | BG154: 1071.503836 | BH154: 3.631946224 | BI154: 1131.613685 | BJ154: 6.339673065 | BK154: 852.0334155 | BL154: 3.133710798 | BM154: 1054.761952 | BN154: 4.114960219 | BO154: 105.4047042 | BP154: 0.4841892751 | BQ154: 926.5921712 | BR154: 1.916251309 | BS154: 1128.731131 | BT154: 3.718913609 | BU154: 1442.468949 | BV154: 4.013128327 | BW154: 1074.328258 | BX154: 3.444702861 | BY154: 985.9967149 | BZ154: 2.898932193 | CA154: 1227.646784 | CB154: 3.60042996 | CC154: 1168.077353 | CD154: 3.379164482 | CE154: 861.0287836 | CF154: 3.053819137 | CG154: 879.6674914 | CH154: 2.788747849 | CI154: 753.1948687 | CJ154: 2.387800607
B155: Quintana Roo | C155: nd | D155: nd | E155: nd | F155: nd | G155: nd | H155: nd | I155: nd | J155: nd | K155: nd | L155: nd | M155: nd | N155: nd | O155: nd | P155: nd | Q155: nd | R155: nd | S155: nd | T155: nd | U155: 7.7 | V155: 0.3080369644 | W155: 9.3 | X155: 0.2498321021 | Y155: 15.4 | Z155: 0.4319654428 | AA155: 39 | AB155: 1.083453717 | AC155: 1.01 | AD155: 0.02060930071 | AE155: 38.6 | AF155: 0.3625468446 | AG155: 24.6 | AH155: 0.2937453729 | AI155: 25.5 | AJ155: 0.3249276877 | AK155: 129.2 | AL155: 1.063759715 | AM155: 43.8 | AN155: 0.5230787604 | AO155: 133.384221 | AP155: 0.9554526093 | AQ155: 201.4203372 | AR155: 1.103752406 | AS155: 411.2790252 | AT155: 1.368322939 | AU155: 246.524557 | AV155: 1.022957166 | AW155: 273.5352545 | AX155: 1.498825876 | AY155: 271.182644 | AZ155: 1.084117097 | BA155: 351.7567363 | BB155: 1.363628183 | BC155: 411.8023407 | BD155: 1.939497675 | BE155: 1001.584713 | BF155: 3.091960033 | BG155: 297.5620876 | BH155: 1.008610015 | BI155: 290.4827907 | BJ155: 1.627380394 | BK155: 296.6994921 | BL155: 1.091237017 | BM155: 504.6000534 | BN155: 1.96860452 | BO155: 583.7038787 | BP155: 2.681314463 | BQ155: 930.2926885 | BR155: 1.923904213 | BS155: 223.790388 | BT155: 0.7373386776 | BU155: 325.2365978 | BV155: 0.9048487347 | BW155: 296.5133674 | BX155: 0.9507340399 | BY155: 479.3342013 | BZ155: 1.409292066 | CA155: 591.4735 | CB155: 1.734667445 | CC155: 664.1432219 | CD155: 1.921318979 | CE155: 160.7722115 | CF155: 0.5702123618 | CG155: 310.3637092 | CH155: 0.9839241931 | CI155: 416.2157082 | CJ155: 1.319499325
B156: San Luis Potosí | C156: nd | D156: nd | E156: nd | F156: nd | G156: nd | H156: nd | I156: nd | J156: nd | K156: nd | L156: nd | M156: nd | N156: nd | O156: nd | P156: nd | Q156: nd | R156: nd | S156: nd | T156: nd | U156: 23.8 | V156: 0.9521142537 | W156: 14 | X156: 0.3760913365 | Y156: 25.2 | Z156: 0.7068525427 | AA156: 3.4 | AB156: 0.09445493944 | AC156: 78.1 | AD156: 1.593649887 | AE156: 14.8 | AF156: 0.1390075985 | AG156: 135.3 | AH156: 1.615599551 | AI156: 89.1 | AJ156: 1.135335567 | AK156: 1.1 | AL156: 0.009056777763 | AM156: 6.1 | AN156: 0.07284886845 | AO156: 255.417118 | AP156: 1.82959386 | AQ156: 312.281535 | AR156: 1.711254685 | AS156: 429.456201 | AT156: 1.428798297 | AU156: 265.304132 | AV156: 1.100883281 | AW156: 444.802608 | AX156: 2.437278734 | AY156: 292.248836 | AZ156: 1.168334208 | BA156: 462.367013 | BB156: 1.792422504 | BC156: 198.717272 | BD156: 0.93591427 | BE156: 523.921987 | BF156: 1.617382757 | BG156: 460.727327 | BH156: 1.561671381 | BI156: 85.025897 | BJ156: 0.4763431162 | BK156: 473.494727 | BL156: 1.741475759 | BM156: 268.2640268 | BN156: 1.046582877 | BO156: 880.3243566 | BP156: 4.043876554 | BQ156: 2008.126459 | BR156: 4.15293273 | BS156: 1064.819352 | BT156: 3.508338764 | BU156: 1899.056326 | BV156: 5.283411295 | BW156: 814.9289544 | BX156: 2.612970552 | BY156: 1405.862446 | BZ156: 4.133380813 | CA156: 1766.425384 | CB156: 5.180554341 | CC156: 853.8282108 | CD156: 2.470064125 | CE156: 913.2152233 | CF156: 3.238909289 | CG156: 702.3223746 | CH156: 2.226523125 | CI156: 376.4348031 | CJ156: 1.193384725
B157: Sinaloa | C157: nd | D157: nd | E157: nd | F157: nd | G157: nd | H157: nd | I157: nd | J157: nd | K157: nd | L157: nd | M157: nd | N157: nd | O157: nd | P157: nd | Q157: nd | R157: nd | S157: nd | T157: nd | U157: 3.4 | V157: 0.136016322 | W157: 5.6 | X157: 0.1504365346 | Y157: 25.4 | Z157: 0.7124624835 | AA157: 1.8 | AB157: 0.05000555617 | AC157: 0.8 | AD157: 0.01632419858 | AE157: 46.2 | AF157: 0.4339291249 | AG157: 94.1 | AH157: 1.123635756 | AI157: 28.7 | AJ157: 0.3657029269 | AK157: 36 | AL157: 0.2964036359 | AM157: 13.6 | AN157: 0.1624171493 | AO157: 81.125646 | AP157: 0.5811160388 | AQ157: 31.74318307 | AR157: 0.1739477512 | AS157: 387.1269018 | AT157: 1.287968964 | AU157: 149.9335197 | AV157: 0.6221512792 | AW157: 140.3619506 | AX157: 0.7691078944 | AY157: 234.5691879 | AZ157: 0.9377461009 | BA157: 104.7665836 | BB157: 0.4061405267 | BC157: 144.41554 | BD157: 0.6801651577 | BE157: 278.2076613 | BF157: 0.8588459455 | BG157: 175.9162188 | BH157: 0.5962818098 | BI157: 149.5100443 | BJ157: 0.837604576 | BK157: 217.6156725 | BL157: 0.8003730493 | BM157: 230.9441679 | BN157: 0.9009862953 | BO157: 432.5046789 | BP157: 1.986762626 | BQ157: 605.4279996 | BR157: 1.252063457 | BS157: 399.9885181 | BT157: 1.317871637 | BU157: 428.6680565 | BV157: 1.192607939 | BW157: 434.8697193 | BX157: 1.39435685 | BY157: 761.5658971 | BZ157: 2.239082406 | CA157: 414.9616111 | CB157: 1.216995178 | CC157: 262.5832504 | CD157: 0.7596346177 | CE157: 743.5684572 | CF157: 2.637221458 | CG157: 543.4961443 | CH157: 1.723007521 | CI157: 866.9475406 | CJ157: 2.748422686
B158: Sonora | C158: nd | D158: nd | E158: nd | F158: nd | G158: nd | H158: nd | I158: nd | J158: nd | K158: nd | L158: nd | M158: nd | N158: nd | O158: nd | P158: nd | Q158: nd | R158: nd | S158: nd | T158: nd | U158: 12.1 | V158: 0.484058087 | W158: 25.1 | X158: 0.674278039 | Y158: 6.7 | Z158: 0.1879330173 | AA158: 11.1 | AB158: 0.3083675964 | AC158: 89.6 | AD158: 1.828310241 | AE158: 107.1 | AF158: 1.005926608 | AG158: 155.4 | AH158: 1.855611014 | AI158: 108.3 | AJ158: 1.379987003 | AK158: 159.7 | AL158: 1.314879463 | AM158: 171.1 | AN158: 2.043351048 | AO158: 321.3973149 | AP158: 2.302220614 | AQ158: 651.091086 | AR158: 3.567878809 | AS158: 513.823934 | AT158: 1.709489257 | AU158: 671.0869954 | AV158: 2.784685062 | AW158: 586.2905776 | AX158: 3.212556607 | AY158: 1265.902754 | AZ158: 5.060747247 | BA158: 656.0542571 | BB158: 2.54327489 | BC158: 458.0815747 | BD158: 2.157462601 | BE158: 961.136627 | BF158: 2.967094046 | BG158: 1576.95172 | BH158: 5.345201438 | BI158: 358.1073917 | BJ158: 2.006235711 | BK158: 1108.840353 | BL158: 4.078226189 | BM158: 304.1383039 | BN158: 1.186539786 | BO158: 1172.855866 | BP158: 5.387655474 | BQ158: 2088.716284 | BR158: 4.319597593 | BS158: 815.2924712 | BT158: 2.686204166 | BU158: 609.9534083 | BV158: 1.696966373 | BW158: 506.182145 | BX158: 1.623011468 | BY158: 368.1286512 | BZ158: 1.082336261 | CA158: 155.0995603 | CB158: 0.4548744076 | CC158: 449.6398056 | CD158: 1.300775892 | CE158: 582.332223 | CF158: 2.065363343 | CG158: 899.2376519 | CH158: 2.85078975 | CI158: 458.9029856 | CJ158: 1.454827792
B159: Tabasco | C159: nd | D159: nd | E159: nd | F159: nd | G159: nd | H159: nd | I159: nd | J159: nd | K159: nd | L159: nd | M159: nd | N159: nd | O159: nd | P159: nd | Q159: nd | R159: nd | S159: nd | T159: nd | U159: 0 | V159: 0 | W159: 0 | X159: 0 | Y159: 0 | Z159: 0 | AA159: 1.6 | AB159: 0.04444938326 | AC159: 2.5 | AD159: 0.05101312057 | AE159: 0.6 | AF159: 0.005635443181 | AG159: 1.2 | AH159: 0.01432904258 | AI159: 0 | AJ159: 0 | AK159: 7.6 | AL159: 0.06257410091 | AM159: 0.4 | AN159: 0.004776974981 | AO159: 32.160021 | AP159: 0.2303673984 | AQ159: 79.638677 | AR159: 0.4364076765 | AS159: 231.553504 | AT159: 0.7703771689 | AU159: 201.495179 | AV159: 0.83610712 | AW159: 140.3494706 | AX159: 0.769039511 | AY159: 284.450151 | AZ159: 1.137157111 | BA159: 158.086737 | BB159: 0.6128426488 | BC159: 82.408777 | BD159: 0.3881270591 | BE159: 179.600399 | BF159: 0.5544386298 | BG159: 135.0834019 | BH159: 0.4578757769 | BI159: 90.36613927 | BJ159: 0.5062609146 | BK159: 141.2624873 | BL159: 0.5195521371 | BM159: 233.2425913 | BN159: 0.9099531724 | BO159: 325.4679448 | BP159: 1.495076424 | BQ159: 323.9347567 | BR159: 0.669917598 | BS159: 241.6646183 | BT159: 0.796230221 | BU159: 737.4853953 | BV159: 2.05177625 | BW159: 112.7536675 | BX159: 0.3615309179 | BY159: 400.3783564 | BZ159: 1.177153726 | CA159: 530.2928506 | CB159: 1.555237461 | CC159: 490.5901884 | CD159: 1.419242429 | CE159: 464.8217699 | CF159: 1.648587879 | CG159: 300.413416 | CH159: 0.9523794797 | CI159: 21.92179592 | CJ159: 0.06949712456
B160: Tamaulipas | C160: nd | D160: nd | E160: nd | F160: nd | G160: nd | H160: nd | I160: nd | J160: nd | K160: nd | L160: nd | M160: nd | N160: nd | O160: nd | P160: nd | Q160: nd | R160: nd | S160: nd | T160: nd | U160: 112.6 | V160: 4.504540545 | W160: 4.38 | X160: 0.117662861 | Y160: 60.8 | Z160: 1.705422008 | AA160: 37.5 | AB160: 1.04178242 | AC160: 52.9 | AD160: 1.079437631 | AE160: 362.4 | AF160: 3.403807681 | AG160: 393.7 | AH160: 4.701120053 | AI160: 334.3 | AJ160: 4.259738274 | AK160: 283.7 | AL160: 2.335825319 | AM160: 345.7 | AN160: 4.128500627 | AO160: 582.576922 | AP160: 4.173092109 | AQ160: 1017.561787 | AR160: 5.576081772 | AS160: 973.1262403 | AT160: 3.237585375 | AU160: 1097.123938 | AV160: 4.552531434 | AW160: 1011.52508 | AX160: 5.542612661 | AY160: 785.717812 | AZ160: 3.141093769 | BA160: 967.8063617 | BB160: 3.751820206 | BC160: 854.093666 | BD160: 4.022591705 | BE160: 877.436518 | BF160: 2.708706125 | BG160: 932.4279435 | BH160: 3.160537587 | BI160: 603.1635742 | BJ160: 3.379121264 | BK160: 1035.875733 | BL160: 3.809868146 | BM160: 842.8687682 | BN160: 3.288297841 | BO160: 1051.421968 | BP160: 4.829834154 | BQ160: 1732.418431 | BR160: 3.582751062 | BS160: 723.8941105 | BT160: 2.385067254 | BU160: 1103.241785 | BV160: 3.069356095 | BW160: 1149.501229 | BX160: 3.685735846 | BY160: 1539.689589 | BZ160: 4.526846437 | CA160: 1512.033724 | CB160: 4.434477076 | CC160: 1623.258424 | CD160: 4.695970861 | CE160: 699.9254578 | CF160: 2.482432409 | CG160: 1273.208975 | CH160: 4.036364678 | CI160: 982.4733116 | CJ160: 3.114665895
B161: Tlaxcala | C161: nd | D161: nd | E161: nd | F161: nd | G161: nd | H161: nd | I161: nd | J161: nd | K161: nd | L161: nd | M161: nd | N161: nd | O161: nd | P161: nd | Q161: nd | R161: nd | S161: nd | T161: nd | U161: 12.6 | V161: 0.5040604873 | W161: 5.4 | X161: 0.1450638012 | Y161: 1.1 | Z161: 0.03085467448 | AA161: 0 | AB161: 0 | AC161: 2 | AD161: 0.04081049646 | AE161: 19.3 | AF161: 0.1812734223 | AG161: 11.2 | AH161: 0.1337377308 | AI161: 7.3 | AJ161: 0.09301851451 | AK161: 3.9 | AL161: 0.03211039389 | AM161: 8.8 | AN161: 0.1050934496 | AO161: 55.006034 | AP161: 0.3940170607 | AQ161: 56.027533 | AR161: 0.3070222462 | AS161: 84.614862 | AT161: 0.2815131566 | AU161: 134.545704 | AV161: 0.5582993183 | AW161: 202.190724 | AX161: 1.107896274 | AY161: 318.045857 | AZ161: 1.271463933 | BA161: 194.353854 | BB161: 0.7534365814 | BC161: 242.225978 | BD161: 1.140830624 | BE161: 92.695589 | BF161: 0.2861575789 | BG161: 123.709811 | BH161: 0.4193240993 | BI161: 72.191991 | BJ161: 0.4044433422 | BK161: 91.1712334 | BL161: 0.335320509 | BM161: 251.2297042 | BN161: 0.9801265929 | BO161: 79.50908357 | BP161: 0.3652346053 | BQ161: 80.73515841 | BR161: 0.1669654221 | BS161: 120.7129363 | BT161: 0.3977218041 | BU161: 152.5185184 | BV161: 0.4243255198 | BW161: 253.119961 | BX161: 0.8115983614 | BY161: 168.048451 | BZ161: 0.4940798051 | CA161: 143.0563367 | CB161: 0.4195541643 | CC161: 345.7211787 | CD161: 1.000146715 | CE161: 359.7538334 | CF161: 1.27594241 | CG161: 50.80516687 | CH161: 0.1610640398 | CI161: 275.5436694 | CJ161: 0.8735366748
B162: Veracruz de Ignacio de la Llave | C162: nd | D162: nd | E162: nd | F162: nd | G162: nd | H162: nd | I162: nd | J162: nd | K162: nd | L162: nd | M162: nd | N162: nd | O162: nd | P162: nd | Q162: nd | R162: nd | S162: nd | T162: nd | U162: 4.3 | V162: 0.1720206425 | W162: 10.3 | X162: 0.276695769 | Y162: 63.2 | Z162: 1.772741298 | AA162: 9.6 | AB162: 0.2666962996 | AC162: 152.8 | AD162: 3.11792193 | AE162: 10.2 | AF162: 0.09580253407 | AG162: 29 | AH162: 0.3462851957 | AI162: 10.4 | AJ162: 0.1325195275 | AK162: 3.7 | AL162: 0.03046370702 | AM162: 38.2 | AN162: 0.4562011106 | AO162: 56.007422 | AP162: 0.4011901639 | AQ162: 311.501464 | AR162: 1.706980016 | AS162: 796.567839 | AT162: 2.650176594 | AU162: 640.317856 | AV162: 2.657008079 | AW162: 473.222924 | AX162: 2.59300676 | AY162: 652.4933724 | AZ162: 2.608497396 | BA162: 484.710835 | BB162: 1.879041074 | BC162: 252.740391 | BD162: 1.190351177 | BE162: 577.73277 | BF162: 1.783500299 | BG162: 607.7801862 | BH162: 2.060118572 | BI162: 518.4131771 | BJ162: 2.904321588 | BK162: 1230.772751 | BL162: 4.526683801 | BM162: 1189.117356 | BN162: 4.639123175 | BO162: 1061.320845 | BP162: 4.875305843 | BQ162: 1702.750026 | BR162: 3.521394921 | BS162: 1271.254203 | BT162: 4.188494872 | BU162: 1589.121548 | BV162: 4.421134127 | BW162: 1045.512964 | BX162: 3.352310127 | BY162: 914.9217883 | BZ162: 2.689964567 | CA162: 962.0664319 | CB162: 2.821538614 | CC162: 1080.613338 | CD162: 3.126137325 | CE162: 1000.696635 | CF162: 3.549180462 | CG162: 935.3469883 | CH162: 2.965264634 | CI162: 0.07315127965 | CJ162: 0.0002319063462
B163: Yucatán | C163: nd | D163: nd | E163: nd | F163: nd | G163: nd | H163: nd | I163: nd | J163: nd | K163: nd | L163: nd | M163: nd | N163: nd | O163: nd | P163: nd | Q163: nd | R163: nd | S163: nd | T163: nd | U163: 44.3 | V163: 1.772212666 | W163: 5.6 | X163: 0.1504365346 | Y163: 1.6 | Z163: 0.04487952652 | AA163: 7 | AB163: 0.1944660518 | AC163: 1.9 | AD163: 0.03876997164 | AE163: 48.1 | AF163: 0.451774695 | AG163: 19.8 | AH163: 0.2364292026 | AI163: 48.6 | AJ163: 0.6192739459 | AK163: 14.2 | AL163: 0.1169147675 | AM163: 31 | AN163: 0.370215561 | AO163: 64.12119901 | AP163: 0.4593104525 | AQ163: 82.88950203 | AR163: 0.4542216967 | AS163: 228.9732465 | AT163: 0.761792667 | AU163: 212.4142565 | AV163: 0.8814159879 | AW163: 194.4810556 | AX163: 1.065651443 | AY163: 184.3538557 | AZ163: 0.7369983712 | BA163: 91.23024645 | BB163: 0.3536652533 | BC163: 105.3094414 | BD163: 0.4959841084 | BE163: 192.9766391 | BF163: 0.5957319916 | BG163: 146.0968711 | BH163: 0.4952067939 | BI163: 79.84036808 | BJ163: 0.447292073 | BK163: 94.81755758 | BL163: 0.3487313979 | BM163: 165.5354327 | BN163: 0.6458061166 | BO163: 127.9209779 | BP163: 0.5876205056 | BQ163: 516.6635074 | BR163: 1.068492864 | BS163: 86.08559134 | BT163: 0.2836325396 | BU163: 213.4897891 | BV163: 0.593955191 | BW163: 125.1417127 | BX163: 0.4012516775 | BY163: 107.842177 | BZ163: 0.3170671402 | CA163: 86.01460711 | CB163: 0.252262762 | CC163: 159.9252106 | CD163: 0.4626522294 | CE163: 151.655598 | CF163: 0.5378783803 | CG163: 145.543409 | CH163: 0.4614060117 | CI163: 535.8503705 | CJ163: 1.698768663
B164: Zacatecas | C164: nd | D164: nd | E164: nd | F164: nd | G164: nd | H164: nd | I164: nd | J164: nd | K164: nd | L164: nd | M164: nd | N164: nd | O164: nd | P164: nd | Q164: nd | R164: nd | S164: nd | T164: nd | U164: 0 | V164: 0 | W164: 0 | X164: 0 | Y164: 0.2 | Z164: 0.005609940815 | AA164: 6.2 | AB164: 0.1722413602 | AC164: 0.7 | AD164: 0.01428367376 | AE164: 13.8 | AF164: 0.1296151932 | AG164: 12.2 | AH164: 0.1456785996 | AI164: 11.1 | AJ164: 0.1414391111 | AK164: 13.6 | AL164: 0.1119747069 | AM164: 13.6 | AN164: 0.1624171493 | AO164: 30.590731 | AP164: 0.2191263219 | AQ164: 47.210349 | AR164: 0.2587054367 | AS164: 62.048525 | AT164: 0.2064350839 | AU164: 209.981412 | AV164: 0.8713208649 | AW164: 119.206368 | AX164: 0.6531866956 | AY164: 233.778092 | AZ164: 0.9345835069 | BA164: -33.800504 | BB164: -0.1310318044 | BC164: 97.132104 | BD164: 0.4574706632 | BE164: 867.519411 | BF164: 2.678091342 | BG164: 1836.462303 | BH164: 6.224832897 | BI164: 301.516316 | BJ164: 1.689193841 | BK164: 381.918385 | BL164: 1.404665293 | BM164: 466.7329255 | BN164: 1.820872868 | BO164: 754.3879178 | BP164: 3.46537227 | BQ164: 3973.158215 | BR164: 8.216742885 | BS164: 758.9138019 | BT164: 2.500449211 | BU164: 107.5754891 | BV164: 0.299288413 | BW164: 532.6161787 | BX164: 1.707768981 | BY164: 457.6370232 | BZ164: 1.345500121 | CA164: 301.735376 | CB164: 0.8849264318 | CC164: 746.4906225 | CD164: 2.159544136 | CE164: -405.5288343 | CF164: -1.43829305 | CG164: 1318.027541 | CH164: 4.17844982 | CI164: 7.282682302 | CJ164: 0.02308777442
B165: Total | C165: 1622.6 | D165: 100 | E165: 1701.1 | F165: 100 | G165: 626.5 | H165: 100 | I165: 683.7 | J165: 100 | K165: 1429.8 | L165: 100 | M165: 1729 | N165: 100 | O165: 2424.2 | P165: 100 | Q165: 3877.2 | R165: 100 | S165: 3157.1 | T165: 100 | U165: 2499.7 | V165: 100 | W165: 3722.5 | X165: 100 | Y165: 3565.1 | Z165: 100 | AA165: 3599.6 | AB165: 100 | AC165: 4900.7 | AD165: 100 | AE165: 10646.9 | AF165: 100 | AG165: 8374.6 | AH165: 100 | AI165: 7847.9 | AJ165: 100 | AK165: 12145.6 | AL165: 100 | AM165: 8373.5 | AN165: 100 | AO165: 13960.31783 | AP165: 100 | AQ165: 18248.68839 | AR165: 100 | AS165: 30057.16075 | AT165: 100 | AU165: 24099.20621 | AV165: 100 | AW165: 18249.96878 | AX165: 100 | AY165: 25014.14697 | AZ165: 100 | BA165: 25795.64874 | BB165: 100 | BC165: 21232.4225 | BD165: 100 | BE165: 32393.19726 | BF165: 100 | BG165: 29502.19441 | BH165: 100 | BI165: 17849.71675 | BJ165: 100 | BK165: 27189.28039 | BL165: 100 | BM165: 25632.373 | BN165: 100 | BO165: 21769.31825 | BP165: 100 | BQ165: 48354.41818 | BR165: 100 | BS165: 30351.09846 | BT165: 100 | BU165: 35943.75339 | BV165: 100 | BW165: 31187.83539 | BX165: 100 | BY165: 34012.41041 | BZ165: 100 | CA165: 34097.22721 | CB165: 100 | CC165: 34567.04635 | CD165: 100 | CE165: 28195.14663 | CF165: 100 | CG165: 31543.45746 | CH165: 100 | CI165: 35291.61836 | CJ165: 111.8825303
B166: * La diferencia entre el total de IED publicado por la Secretaría de Economía y la desagregación por país de origen, se debe a que esta última sólo incuye las nuevas inversiones reportadas al RNIE más el valor de la importación temporal de maquinaria y equipo de empresas maquiladoras.
B167: nd: Dato no disponible
B168: Fuente: Secretaría de Economía

Sheet Inward
A5: CONTENIDO
A6: * Nota Metodológica
A7: * Principales países receptores de IED
A8: * Participación de la IED recibida por México respecto al total mundial
A9: * Participación de la IED recibida por México respecto a los países en desarrollo y Latinoamérica
A10: * Acervos de IED
B28: Principales países receptores de IED (miles de millones de dólares/participación porcentual)
B32: País receptor | C32: 1996 | E32: 1997 | G32: 1998 | I32: 1999 | K32: 2000 | M32: 2001 | O32: 2002 | Q32: 2003 | S32: 2004 | U32: 2005 | W32: 2006 | Y32: 2007 | AA32: 2008 | AC32: 2009 | AE32: 2010 | AG32: 2011 | AI32: 2012 | AK32: 2013 | AM32: 2014 | AO32: 2015 | AQ32: 2016 | AS32: 2017 | AU32: 2018 | AW32: 2019 | AY32: 2020 | BA32: 2021
B33: Estados Unidos | C33: 84.455 | D33: 21.5019321 | E33: 103.398 | F33: 21.51308223 | G33: 174.434 | H33: 25.59524899 | I33: 283.376 | J33: 26.28023443 | K33: 314.007 | L33: 23.14516519 | M33: 159.461 | N33: 20.6253664 | O33: 74.457 | P33: 12.61317441 | Q33: 53.146 | R33: 9.669435478 | S33: 135.826 | T33: 19.44595257 | U33: 104.773 | V33: 10.99148556 | W33: 237.136 | X33: 16.75574716 | Y33: 215.952 | Z33: 11.33325134 | AA33: 306.366 | AB33: 20.61356513 | AC33: 143.604 | AD33: 11.60123323 | AE33: 198.049 | AF33: 14.2384774 | AG33: 229.862 | AH33: 14.27361277 | AI33: 199.034 | AJ33: 13.55122223 | AK33: 201.393 | AL33: 13.80309082 | AM33: 201.733 | AN33: 14.38358387 | AO33: 467.625 | AP33: 22.6602213 | AQ33: 459.419 | AR33: 22.46082469 | AS33: 308.956 | AT33: 18.92372357 | AU33: 203.234 | AV33: 14.03282078 | AW33: 225.108 | AX33: 15.20356884 | AY33: 150.828 | AZ33: 15.66005236 | BA33: 367.376 | BB33: 23.21770427
B34: China | C34: 41.72552 | D34: 10.62316379 | E34: 45.25704 | F34: 9.416221038 | G34: 45.46275 | H34: 6.670892178 | I34: 40.31871 | J34: 3.739149225 | K34: 40.71481 | L34: 3.001050942 | M34: 46.87759 | N34: 6.063347589 | O34: 52.74286 | P34: 8.934752842 | Q34: 53.5047 | R34: 9.734697708 | S34: 60.63 | T34: 8.680282894 | U34: 72.406 | V34: 7.595940784 | W34: 72.715 | X34: 5.137955243 | Y34: 83.521 | Z34: 4.383217034 | AA34: 108.312 | AB34: 7.287677046 | AC34: 94.065 | AD34: 7.599161611 | AE34: 114.734 | AF34: 8.248652938 | AG34: 123.985 | AH34: 7.699027585 | AI34: 121.073 | AJ34: 8.243250547 | AK34: 123.911 | AL34: 8.492622815 | AM34: 128.502 | AN34: 9.162205957 | AO34: 135.577 | AP34: 6.569804488 | AQ34: 133.711 | AR34: 6.537081248 | AS34: 136.315 | AT34: 8.349368124 | AU34: 138.305 | AV34: 9.54962889 | AW34: 141.225 | AX34: 9.538195041 | AY34: 149.342 | AZ34: 15.5057651 | BA34: 180.957 | BB34: 11.43625635
B35: Reino Unido | C35: 28.44804184 | D35: 7.242766728 | E35: 33.12836833 | F35: 6.892718544 | G35: 65.06200482 | H35: 9.546752431 | I35: 90.03376711 | J35: 8.34971383 | K35: 115.3040181 | L35: 8.498952402 | M35: 35.94878033 | N35: 4.649768696 | O35: 19.68307447 | P35: 3.334354747 | Q35: 16.59014616 | R35: 3.018427499 | S35: 61.21974441 | T35: 8.76471549 | U35: 182.9279379 | V35: 19.19053371 | W35: 147.3724303 | X35: 10.41316029 | Y35: 176.8386384 | Z35: 9.280565751 | AA35: 92.15833343 | AB35: 6.200791889 | AC35: 89.70913776 | AD35: 7.247267696 | AE35: 58.20028153 | AF35: 4.18423417 | AG35: 42.20040023 | AH35: 2.620494781 | AI35: 55.44612011 | AJ35: 3.775046955 | AK35: 51.67589032 | AL35: 3.541766632 | AM35: 24.69024073 | AN35: 1.76041673 | AO35: 39.1857001 | AP35: 1.898864766 | AQ35: 258.6986755 | AR35: 12.64768239 | AS35: 96.3538315 | AT35: 5.901724751 | AU35: 87.83747725 | AV35: 6.064967357 | AW35: 45.4543714 | AX35: 3.069942714 | AY35: 18.19358974 | AZ35: 1.888989895 | BA35: 27.56149725 | BB35: 1.741852196
B36: Hong Kong | C36: 10.46017371 | D36: 2.663121719 | E36: 11.36814793 | F36: 2.365267231 | G36: 13.93936733 | H36: 2.045367175 | I36: 25.35533355 | J36: 2.351448639 | K36: 54.58191774 | L36: 4.023182612 | M36: 29.0606828 | N36: 3.75883276 | O36: 3.662173737 | P36: 0.6203800325 | Q36: 17.83080232 | R36: 3.244153701 | S36: 29.1538264 | T36: 4.17389841 | U36: 34.05783219 | V36: 3.572925952 | W36: 41.81064725 | X36: 2.954290507 | Y36: 58.40347014 | Z36: 3.065038555 | AA36: 58.31538636 | AB36: 3.923699153 | AC36: 55.53520173 | AD36: 4.486482465 | AE36: 70.54073987 | AF36: 5.071435505 | AG36: 96.58080678 | AH36: 5.997324641 | AI36: 70.17979944 | AJ36: 4.778188945 | AK36: 74.29422383 | AL36: 5.091983926 | AM36: 113.0377814 | AN36: 8.059605563 | AO36: 174.3528881 | AP36: 8.448810539 | AQ36: 117.386969 | AR36: 5.73900542 | AS36: 110.6845026 | AT36: 6.779486175 | AU36: 104.2457103 | AV36: 7.197916536 | AW36: 73.71402734 | AX36: 4.97857157 | AY36: 134.7098521 | AZ36: 13.98654982 | BA36: 140.6959766 | BB36: 8.891809962
B37: Singapur | C37: 11.43237071 | D37: 2.910639498 | E37: 15.70173962 | F37: 3.266918272 | G37: 5.958652008 | H37: 0.8743317347 | I37: 18.85295228 | J37: 1.748419082 | K37: 14.75179238 | L37: 1.087340956 | M37: 17.30164311 | N37: 2.237868373 | O37: 5.338352163 | P37: 0.9043282287 | Q37: 16.35324708 | R37: 2.975325848 | S37: 22.3248907 | T37: 3.196212549 | U37: 17.74777698 | V37: 1.861876957 | W37: 37.48037988 | X37: 2.648318976 | Y37: 42.60891779 | Z37: 2.236133837 | AA37: 11.81014376 | AB37: 0.794635069 | AC37: 18.53187671 | AD37: 1.497121417 | AE37: 57.46008463 | AF37: 4.131018669 | AG37: 39.89036238 | AH37: 2.477049646 | AI37: 60.10298636 | AJ37: 4.092109514 | AK37: 56.67162151 | AL37: 3.884164488 | AM37: 73.28661063 | AN37: 5.225342955 | AO37: 59.70010838 | AP37: 2.892954114 | AQ37: 67.50200861 | AR37: 3.30014819 | AS37: 82.48252989 | AT37: 5.052099959 | AU37: 73.93200983 | AV37: 5.104828147 | AW37: 106.3232411 | AX37: 7.180965208 | AY37: 75.43671208 | AZ37: 7.83238431 | BA37: 99.09928149 | BB37: 6.262950795
B38: Brasil | C38: 6.572645653 | D38: 1.673371388 | E38: 12.24463398 | F38: 2.547629719 | G38: 24.59323623 | H38: 3.608642839 | I38: 56.07569354 | J38: 5.200448775 | K38: 198.2793394 | L38: 14.6149865 | M38: 26.4019964 | N38: 3.414946912 | O38: 53.52233118 | P38: 9.066796921 | Q38: 32.37676545 | R38: 5.89066053 | S38: -10.1921787 | T38: -1.459195026 | U38: 47.44979605 | V38: 4.977844944 | W38: 55.65456049 | X38: 3.932484918 | Y38: 80.21248142 | Z38: 4.209584594 | AA38: 8.127028234 | AB38: 0.546819901 | AC38: 23.8055965 | AD38: 1.923165631 | AE38: 65.64298817 | AF38: 4.719317963 | AG38: 67.51366432 | AH38: 4.192358463 | AI38: 28.18112436 | AJ38: 1.918710768 | AK38: 12.7767873 | AL38: 0.8756965512 | AM38: -3.204086458 | AN38: -0.2284516975 | AO38: 30.54088206 | AP38: 1.479953266 | AQ38: 15.63314737 | AR38: 0.7642987827 | AS38: 48.64141842 | AT38: 2.979313417 | AU38: 72.09799686 | AV38: 4.978193946 | AW38: 52.66520426 | AX38: 3.556955143 | AY38: 64.58926609 | AZ38: 6.706124119 | BA38: 31.26680733 | BB38: 1.976023165
B39: Bélgica | C39: 10.791687 | D39: 2.747523784 | E39: 18.992934 | F39: 3.951687179 | G39: 28.85561 | H39: 4.234074337 | I39: 28.57843 | J39: 2.65035797 | K39: 32.77924 | L39: 2.416127426 | M39: 22.457353 | N39: 2.904729897 | O39: 16.590204 | P39: 2.8104159 | Q39: 10.143525 | R39: 1.845522909 | S39: 18.145883 | T39: 2.597911889 | U39: 15.066292 | V39: 1.580568763 | W39: 18.822208 | X39: 1.329954786 | Y39: 34.584901 | Z39: 1.815030078 | AA39: 45.058156 | AB39: 3.031698143 | AC39: 25.94858 | AD39: 2.0962893 | AE39: 77.686848 | AF39: 5.585195731 | AG39: 97.421786 | AH39: 6.049546459 | AI39: 82.05983 | AJ39: 5.587040368 | AK39: 59.089345 | AL39: 4.049870629 | AM39: 63.845886 | AN39: 4.552218308 | AO39: 49.96136699 | AP39: 2.421033163 | AQ39: 53.70038366 | AR39: 2.62539186 | AS39: 66.58492744 | AT39: 4.078363135 | AU39: 59.80240649 | AV39: 4.12921289 | AW39: 65.38604132 | AX39: 4.416107736 | AY39: 28.31845132 | AZ39: 2.940226154 | BA39: 50.36741633 | BB39: 3.183157793
B40: Alemania | C40: 14.0639 | D40: 3.580617168 | E40: 11.9983 | F40: 2.496377246 | G40: 22.6905 | H40: 3.329448372 | I40: 119.692913 | J40: 11.10029718 | K40: 88.738714 | L40: 6.540848435 | M40: 88.203254 | N40: 11.40858537 | O40: 16.25052939 | P40: 2.752874296 | Q40: 33.476142 | R40: 6.090682179 | S40: 43.5578899 | T40: 6.236101049 | U40: 34.37049197 | V40: 3.605726344 | W40: 58.89296875 | X40: 4.161306987 | Y40: 93.43067292 | Z40: 4.903280816 | AA40: -13.85725272 | AB40: -0.9323729833 | AC40: 64.44044048 | AD40: 5.205903594 | AE40: 57.58332285 | AF40: 4.139878721 | AG40: 83.36634902 | AH40: 5.176753807 | AI40: 11.67039705 | AJ40: 0.794578534 | AK40: 23.8980012 | AL40: 1.637923269 | AM40: -3.505905172 | AN40: -0.2499714032 | AO40: 28.33129923 | AP40: 1.37288107 | AQ40: 59.24265569 | AR40: 2.896351486 | AS40: -0.7083065035 | AT40: -0.0433841598 | AU40: 35.71327347 | AV40: 2.465915969 | AW40: 1.751978112 | AX40: 0.1183268468 | AY40: 11.91311082 | AZ40: 1.236905211 | BA40: 25.57676341 | BB40: 1.616419497
B41: Canadá | C41: 9.633764 | D41: 2.45272085 | E41: 11.5251838 | F41: 2.397940259 | G41: 22.803446 | H41: 3.346021293 | I41: 24.74406521 | J41: 2.294759734 | K41: 66.79505222 | L41: 4.923401446 | M41: 27.66342106 | N41: 3.578104962 | O41: 22.15545587 | P41: 3.753181421 | Q41: 7.482245459 | R41: 1.361327093 | S41: -0.4450354337 | T41: -0.06371488476 | U41: 25.69155608 | V41: 2.695239879 | W41: 60.29391022 | X41: 4.260295842 | Y41: 116.820594 | Z41: 6.130793662 | AA41: 61.55251912 | AB41: 4.141506765 | AC41: 22.69967632 | AD41: 1.833822451 | AE41: 28.40044265 | AF41: 2.041813191 | AG41: 39.66929788 | AH41: 2.463322326 | AI41: 43.11100614 | AJ41: 2.935211194 | AK41: 69.36824121 | AL41: 4.754366505 | AM41: 59.0052048 | AN41: 4.207077235 | AO41: 43.83596994 | AP41: 2.12420803 | AQ41: 36.05587423 | AR41: 1.762758332 | AS41: 22.76684593 | AT41: 1.394481735 | AU41: 37.66192475 | AV41: 2.600465671 | AW41: 50.14949581 | AX41: 3.387046715 | AY41: 23.17558101 | AZ41: 2.406256212 | BA41: 59.67570982 | BB41: 3.771430313
B42: Países Bajos | C42: 2.617483 | D42: 0.6664015363 | E42: 2.028797815 | F42: 0.4221135247 | G42: 8.862216911 | H42: 1.300380938 | I42: 18.21064171 | J42: 1.688851326 | K42: 25.77943615 | L42: 1.900178367 | M42: 9.65092035 | N42: 1.248291233 | O42: 29.32379653 | P42: 4.9675136 | Q42: 22.78129282 | R42: 4.144850807 | S42: -10.6076127 | T42: -1.518671929 | U42: -31.6893001 | V42: -3.3244489 | W42: -5.542306819 | X42: -0.3916127949 | Y42: 24.70717373 | Z42: 1.296642817 | AA42: -16.45292416 | AB42: -1.107020439 | AC42: 25.71532959 | AD42: 2.077445867 | AE42: 42.80407128 | AF42: 3.077343493 | AG42: 23.54470324 | AH42: 1.462042342 | AI42: 48.88255595 | AJ42: 3.328166941 | AK42: 50.60893818 | AL42: 3.468639774 | AM42: 48.24837591 | AN42: 3.440114217 | AO42: 217.8686342 | AP42: 10.55750113 | AQ42: 39.4135618 | AR42: 1.926914433 | AS42: 52.83492053 | AT42: 3.236167709 | AU42: -12.01740256 | AV42: -0.8297728546 | AW42: 149.4330979 | AX42: 10.09256175 | AY42: 80.87094777 | AZ42: 8.39660591 | BA42: 15.70206294 | BB42: 0.9923507625
B43: Australia | C43: 5.629724696 | D43: 1.433307183 | E43: 7.762472354 | F43: 1.615067081 | G43: 5.528856725 | H43: 0.8112665221 | I43: 1.84715636 | J43: 0.171304917 | K43: 14.19096375 | L43: 1.046002797 | M43: 7.825430321 | N43: 1.012174561 | O43: 14.24620768 | P43: 2.413337929 | Q43: 6.338891375 | R43: 1.153304127 | S43: 39.61169333 | T43: 5.671131519 | U43: -28.29465356 | V43: -2.968324627 | W43: 26.31384745 | X43: 1.859305102 | Y43: 41.4795786 | Z43: 2.176865644 | AA43: 46.90566861 | AB43: 3.156006393 | AC43: 31.89308917 | AD43: 2.576524094 | AE43: 36.79551625 | AF43: 2.64536618 | AG43: 58.93159409 | AH43: 3.659442421 | AI43: 59.57438437 | AJ43: 4.056119668 | AK43: 56.76552363 | AL43: 3.890600359 | AM43: 58.50670657 | AN43: 4.17153426 | AO43: 29.5802688 | AP43: 1.433403769 | AQ43: 48.40136484 | AR43: 2.366324794 | AS43: 46.1142279 | AT43: 2.824521619 | AU43: 68.32201146 | AV43: 4.717471201 | AW43: 39.40613428 | AX43: 2.661450838 | AY43: 16.72648193 | AZ43: 1.736664166 | BA43: 25.08518476 | BB43: 1.58535234
B44: Francia | C44: 16.18676489 | D44: 4.121090755 | E44: 11.18106879 | F44: 2.326343374 | G44: 37.27725342 | H44: 5.469808541 | I44: 41.20316164 | J44: 3.821173095 | K44: 63.85498434 | L44: 4.706691765 | M44: 51.92749953 | N44: 6.716524443 | O44: 25.03825702 | P44: 4.241534078 | Q44: 32.89986615 | R44: 5.985833984 | S44: 12.45236632 | T44: 1.78278183 | U44: 39.04715714 | V44: 4.096344135 | W44: 13.97770282 | X44: 0.9876478232 | Y44: 114.1611852 | Z44: 5.991226774 | AA44: -6.776430952 | AB44: -0.4559461583 | AC44: 38.75192229 | AD44: 3.13062372 | AE44: -7.184472449 | AF44: -0.5165183796 | AG44: 24.15580624 | AH44: 1.499989665 | AI44: 25.01304134 | AJ44: 1.703011958 | AK44: 51.11946344 | AL44: 3.503630199 | AM44: 45.03394311 | AN44: 3.210924825 | AO44: 163.397007 | AP44: 7.917909306 | AQ44: 55.12437465 | AR44: 2.695010252 | AS44: 13.9253949 | AT44: 0.8529380354 | AU44: 87.63334091 | AV44: 6.050872232 | AW44: -14.14108011 | AX44: -0.9550743858 | AY44: -105.3944135 | AZ44: -10.94280925 | BA44: -81.05560954 | BB44: -5.122613268
B45: Espña | C45: 9.325034251 | D45: 2.374119393 | E45: 8.918367254 | F45: 1.855563629 | G45: 14.26689455 | H45: 2.093426272 | I45: 18.74338475 | J45: 1.73825781 | K45: 39.57510319 | L45: 2.917044209 | M45: 28.4081288 | N45: 3.67442864 | O45: 39.22256929 | P45: 6.644386793 | Q45: 25.81930265 | R45: 4.697589301 | S45: 24.76068367 | T45: 3.54494044 | U45: 25.02018355 | V45: 2.624807788 | W45: 30.80238001 | X45: 2.176459463 | Y45: 64.26441411 | Z45: 3.372623347 | AA45: 76.99251327 | AB45: 5.180373105 | AC45: 10.40659838 | AD45: 0.8407103911 | AE45: 39.87250959 | AF45: 2.866582646 | AG45: 28.37920637 | AH45: 1.762247794 | AI45: 25.69645275 | AJ45: 1.749541997 | AK45: 28.35513646 | AL45: 1.943406791 | AM45: 22.60040121 | AN45: 1.611410955 | AO45: 8.558748474 | AP45: 0.4147407314 | AQ45: 31.56892697 | AR45: 1.543393143 | AS45: 41.96631308 | AT45: 2.570459573 | AU45: 57.46292981 | AV45: 3.96767763 | AW45: 17.41678944 | AX45: 1.176312513 | AY45: 5.677950808 | AZ45: 0.5895258634 | BA45: 9.777242653 | BB45: 0.6179095219
B46: Islas Vírgenes Británicas | C46: 21.74672761 | D46: 5.536636795 | E46: 23.38263966 | F46: 4.865013344 | G46: 31.23976194 | H46: 4.583908443 | I46: 46.54604298 | J46: 4.316670858 | K46: 27.4968683 | L46: 2.0267687 | M46: 15.94797871 | N46: 2.062779641 | O46: 21.51455686 | P46: 3.644611764 | Q46: 7.85500895 | R46: 1.429148049 | S46: -2.573579681 | T46: -0.3684545552 | U46: 33.23372581 | V46: 3.486470918 | W46: 25.32577036 | X46: 1.789488752 | Y46: 63.49956613 | Z46: 3.332483805 | AA46: 37.59342586 | AB46: 2.529440383 | AC46: 30.73348911 | AD46: 2.482844316 | AE46: 13.89009397 | AF46: 0.9986103894 | AG46: 31.6419056 | AH46: 1.964849813 | AI46: 16.06205367 | AJ46: 1.093584306 | AK46: 34.27983266 | AL46: 2.34947413 | AM46: 2.672876209 | AN46: 0.1905763515 | AO46: 45.36468731 | AP46: 2.198286776 | AQ46: 23.07721768 | AR46: 1.128236622 | AS46: 24.83252562 | AT46: 1.521005743 | AU46: 41.83298456 | AV46: 2.888467357 | AW46: 28.36301434 | AX46: 1.915609579 | AY46: 4.869762664 | AZ46: 0.5056139329 | BA46: 14.19288605 | BB46: 0.8969726687
B47: Irlanda | C47: 1.10955 | D47: 0.2824873455 | E47: 3.63665 | F47: 0.7566447173 | G47: 8.77751871 | H47: 1.287952904 | I47: 7.915398866 | J47: 0.7340725318 | K47: 8.073327 | L47: 0.5950774571 | M47: 3.79126 | N47: 0.4903777515 | O47: 5.451882 | P47: 0.9235604249 | Q47: 9.660121 | R47: 1.75757191 | S47: 28.309656 | T47: 4.053040124 | U47: -7.142639 | V47: -0.7493172235 | W47: 12.029088 | X47: 0.8499610226 | Y47: 37.163179 | Z47: 1.950339187 | AA47: 52.554448 | AB47: 3.536079514 | AC47: 42.212878 | AD47: 3.410221464 | AE47: 42.38682491 | AF47: 3.047346103 | AG47: 50.78816114 | AH47: 3.153764194 | AI47: 61.12151045 | AJ47: 4.161455687 | AK47: 104.8047644 | AL47: 7.18311799 | AM47: 40.46200721 | AN47: 2.88494532 | AO47: 66.71274157 | AP47: 3.232773029 | AQ47: 49.02294594 | AR47: 2.396713663 | AS47: 39.60997133 | AT47: 2.426132356 | AU47: 34.38970912 | AV47: 2.374527022 | AW47: 39.10336161 | AX47: 2.641001875 | AY47: 39.61963521 | AZ47: 4.113596691 | BA47: 39.36149841 | BB47: 2.487597529
B48: México | C48: 9.185451 | D48: 2.338582011 | E48: 12.829556 | F48: 2.669329128 | G48: 12.756765 | H48: 1.871840218 | I48: 13.935805 | J48: 1.292403811 | K48: 18.246819 | L48: 1.344956132 | M48: 30.056232 | N48: 3.887601343 | O48: 24.097967 | P48: 4.082246945 | Q48: 18.269315 | R48: 3.323937128 | S48: 25.032077 | T48: 3.583795312 | U48: 26.0586781 | V48: 2.733753774 | W48: 21.24934021 | X48: 1.501453055 | Y48: 32.48437136 | Z48: 1.704793404 | AA48: 29.53268809 | AB48: 1.987080777 | AC48: 17.85489532 | AD48: 1.442430608 | AE48: 27.19330724 | AF48: 1.955027748 | AG48: 25.58105381 | AH48: 1.58849247 | AI48: 21.7488704 | AJ48: 1.480771004 | AK48: 48.24426486 | AL48: 3.30656959 | AM48: 30.5251354 | AN48: 2.176445327 | AO48: 35.51727285 | AP48: 1.721099733 | AQ48: 31.17291673 | AR48: 1.524032349 | AS48: 34.130865 | AT48: 2.090534103 | AU48: 34.090377 | AV48: 2.353858856 | AW48: 34.411327 | AX48: 2.324106557 | AY48: 27.933586 | AZ48: 2.900266656 | BA48: 31.621206 | BB48: 1.998420718
B49: India | C49: 2.525 | D49: 0.6428557049 | E49: 3.619 | F49: 0.7529724422 | G49: 2.633 | H49: 0.3863483644 | I49: 2.168 | J49: 0.201059893 | K49: 3.587989747 | L49: 0.2644674017 | M49: 5.477637624 | N49: 0.7085010318 | O49: 5.629671078 | P49: 0.9536782734 | Q49: 4.321076437 | R49: 0.7861808942 | S49: 5.7778072 | T49: 0.8271977735 | U49: 7.621768707 | V49: 0.7995815785 | W49: 20.32776392 | X49: 1.436335573 | Y49: 25.34989177 | Z49: 1.330372929 | AA49: 47.10241725 | AB49: 3.169244451 | AC49: 35.63393949 | AD49: 2.878733482 | AE49: 27.41707664 | AF49: 1.97111536 | AG49: 36.19045603 | AH49: 2.247298619 | AI49: 24.19576692 | AJ49: 1.64736786 | AK49: 28.19942198 | AL49: 1.932734418 | AM49: 34.58209681 | AN49: 2.465707097 | AO49: 44.06410172 | AP49: 2.135262864 | AQ49: 44.48057175 | AR49: 2.174638672 | AS49: 39.9038404 | AT49: 2.444131996 | AU49: 42.15619337 | AV49: 2.910784151 | AW49: 50.558331 | AX49: 3.414659034 | AY49: 64.07223849 | AZ49: 6.652442579 | BA49: 44.73514656 | BB49: 2.827205379
B50: Rusia | C50: 2.579321 | D50: 0.6566856315 | E50: 4.864643 | F50: 1.012142061 | G50: 2.76136 | H50: 0.4051830306 | I50: 3.28593 | J50: 0.304736501 | K50: 2.65106 | L50: 0.1954071777 | M50: 2.808331 | N50: 0.363241519 | O50: 3.425021 | P50: 0.5802058537 | Q50: 7.754758 | R50: 1.410908293 | S50: 15.283751 | T50: 2.188145841 | U50: 14.375052 | V50: 1.508052423 | W50: 37.441574 | X50: 2.645576998 | Y50: 54.92185 | Z50: 2.882321673 | AA50: 75.855697 | AB50: 5.103883428 | AC50: 27.752258 | AD50: 2.242001739 | AE50: 31.667969 | AF50: 2.276727784 | AG50: 36.867773 | AH50: 2.289357594 | AI50: 30.187664 | AJ50: 2.055325942 | AK50: 53.397139 | AL50: 3.659737723 | AM50: 29.151662 | AN50: 2.078516531 | AO50: 11.85781 | AP50: 0.5746070008 | AQ50: 37.17576691 | AR50: 1.81750947 | AS50: 25.95353583 | AT50: 1.58966823 | AU50: 13.22764206 | AV50: 0.9133369927 | AW50: 32.07562193 | AX50: 2.166355377 | AY50: 10.40987239 | AZ50: 1.08082814 | BA50: 38.23967678 | BB50: 2.416699804
B51: Islas Caimán | C51: 1.23171 | D51: 0.3135888318 | E51: 3.15087 | F51: 0.6555728873 | G51: 4.35411 | H51: 0.6388922435 | I51: 6.47583 | J51: 0.6005671988 | K51: 9.358723 | L51: 0.689822806 | M51: 2.133108 | N51: 0.2759052939 | O51: 2.802975 | P51: 0.4748299361 | Q51: 2.60257 | R51: 0.4735141439 | S51: 3.703461 | T51: 0.5302175353 | U51: 9.506484 | V51: 0.9973025651 | W51: 24.820937 | X51: 1.753817828 | Y51: 28.210535 | Z51: 1.480500683 | AA51: 19.555735 | AB51: 1.315790319 | AC51: 20.298045 | AD51: 1.639803586 | AE51: 20.96596264 | AF51: 1.50732084 | AG51: 31.13185511 | AH51: 1.933177491 | AI51: 21.48960474 | AJ51: 1.463118912 | AK51: 34.90799432 | AL51: 2.392527129 | AM51: 46.04060977 | AN51: 3.282700262 | AO51: 80.50152546 | AP51: 3.900951365 | AQ51: 58.81559079 | AR51: 2.875472441 | AS51: 15.17339523 | AT51: 0.9293787367 | AU51: 20.68081178 | AV51: 1.427960505 | AW51: 28.16512898 | AX51: 1.9022446 | AY51: 23.62104943 | AZ51: 2.452507961 | BA51: 25.89308921 | BB51: 1.636410892
B52: Resto | C52: 103.0586839 | D52: 26.91403371 | E52: 135.6399313 | F52: 29.77306002 | G52: 149.2518383 | H52: 24.01478153 | I52: 230.9262159 | J52: 22.90177769 | K52: 217.9176911 | L52: 17.41258909 | M52: 161.728099 | N52: 21.79456266 | O52: 155.1563093 | P52: 27.90740628 | Q52: 170.4228311 | R52: 33.53354825 | S52: 196.5080197 | T52: 32.91837825 | U52: 330.9921771 | V52: 35.17394564 | W52: 478.3270409 | X52: 36.62142178 | Y52: 516.8576723 | Z52: 30.71287757 | AA52: 445.528907 | AB52: 35.05360124 | AC52: =AC54-SUM(AC33:AC51)-AC53 -> 418.2415471 | AD52: 38.97227578 | AE52: 386.8353113 | AF52: 32.53870262 | AG52: 442.6955547 | AH52: 32.75281504 | AI52: 463.9224929 | AJ52: 37.33905982 | AK52: 295.2818952 | AL52: 29.99353591 | AM52: 387.3075662 | AN52: 34.14974552 | AO52: 331.1049317 | AP52: 23.27466472 | AQ52: 425.8201825 | AR52: 26.21223747 | AS52: 426.1167788 | AT52: 29.58928529 | AU52: 247.6677785 | AV52: 21.04689351 | AW52: 314.0569592 | AX52: 25.85936235 | AY52: 138.2248681 | AZ52: 21.1147658 | BA52: 436.1804845 | BB52: 31.78315606
B53: Ajuste | C53: 0.000103058787 | D53: 26.23836154 | E53: 0.0001356400669 | F53: 28.22136787 | G53: 0.0001492519875 | H53: 21.90019127 | I53: 0.0002309264468 | J53: 21.41605178 | K53: 0.000217917909 | L53: 16.06251121 | M53: 0.0001617282607 | N53: 20.91860266 | O53: 0.0001551564644 | P53: 26.28380932 | Q53: 0.0001704230016 | R53: 31.00689741 | S53: 0.0001965082162 | T53: 28.13368303 | U53: 0.0003309925081 | V53: 34.72359994 | W53: 0.0004783275192 | X53: 33.79801867 | Y53: 0.0005168581892 | Z53: 27.12490695 | AA53: 0.0004455293525 | AB53: 29.97701814 | AC53: =((AC54-SUM(AC33:AC51))/1000)/1000 -> 0.0004182419654 | AD53: 33.78817955 | AE53: 0.0003868356982 | AF53: 27.81102574 | AG53: 0.0004426959974 | AH53: 27.48981963 | AI53: 0.0004639229568 | AJ53: 31.58614508 | AK53: 0.0002952821905 | AL53: 20.23805602 | AM53: 0.0003873079535 | AN53: 27.61506972 | AO53: 0.0003311052628 | AP53: 16.04471751 | AQ53: 0.0004258206083 | AR53: 20.81819095 | AS53: 0 | AT53: 26.09988519 | AU53: 0 | AV53: 17.10086672 | AW53: 0 | AX53: 21.21109245 | AY53: 0 | AZ53: 14.35150417 | BA53: 0.0004361809207 | BB53: 27.56606174
B54: Total Mundial | C54: 392.7786563 | D54: 100 | E54: 480.6284795 | F54: 100 | G54: 681.5092912 | H54: 100 | I54: 1078.285663 | J54: 100 | K54: 1356.685067 | L54: 100 | M54: 773.1305078 | N54: 100 | O54: 590.3113487 | P54: 100 | Q54: 549.6287774 | R54: 100 | S54: 698.4795396 | T54: 100 | U54: 953.219648 | V54: 100 | W54: 1415.251721 | X54: 100 | Y54: 1905.47261 | Z54: 100 | AA54: 1486.234905 | AB54: 100 | AC54: 1237.833919 | AD54: 100 | AE54: 1390.942265 | AF54: 100 | AG54: 1610.398179 | AH54: 100 | AI54: 1468.753125 | AJ54: 100 | AK54: 1459.04278 | AL54: 100 | AM54: 1402.5225 | AN54: 100 | AO54: 2063.638275 | AP54: 100 | AQ54: 2045.42356 | AR54: 100 | AS54: 1632.638518 | AT54: 100 | AU54: 1448.276175 | AV54: 100 | AW54: 1480.626045 | AX54: 100 | AY54: 963.1385424 | AZ54: 100 | BA54: 1582.309757 | BB54: 100
B55: Nota: Los totales podrían no coincidir con la suma de los parciales, para más información consultar: https://unctadstat.unctad.org/wds/TableViewer/tableView.aspx?ReportId=96740
B56: Fuente: UNCTAD
B58: Participación de la IED recibida por México respecto al total mundial
B82: Fuente: UNCTAD
B84: Participación de la IED recibida por México respecto a los países en desarrollo y Latinoamérica
B108: Fuente: UNCTAD
B109: Acervos de IED
B113: País receptor | C113: 1996 | D113: 1997 | E113: 1998 | F113: 1999 | G113: 2000 | H113: 2001 | I113: 2002 | J113: 2003 | K113: 2004 | L113: 2005 | M113: 2006 | N113: 2007 | O113: 2008 | P113: 2009 | Q113: 2010 | R113: 2011 | S113: 2012 | T113: 2013 | U113: 2014 | V113: 2015 | W113: 2016 | X113: 2017 | Y113: 2018 | Z113: 2019 | AA113: 2020 | AB113: 2021
B114: Estados Unidos | C114: 1229118 | D114: 1637408 | E114: 2179035 | F114: 2798193 | G114: 2783235 | H114: 2560294 | I114: 2021817 | J114: 2454877 | K114: 2717383 | L114: 2817970 | M114: 3293053 | N114: 3551307 | O114: 2486446 | P114: 2995459 | Q114: 3422293 | R114: 3498726 | S114: 3915805 | T114: 4948418 | U114: 5456888 | V114: 5731383 | W114: 6502750 | X114: 7806330 | Y114: 7346877 | Z114: 9362942 | AA114: 10813507 | AB114: 13619023
B115: Reino Unido | C115: 228642.5505 | D115: 252958.6484 | E115: 337386.175 | F115: 385145.9366 | G115: 439457.6745 | H115: 479680.6219 | I115: 491596.0698 | J115: 570595.6261 | K115: 659806.9758 | L115: 788149.5435 | M115: 1035206.429 | N115: 1124649.655 | O115: 911161.6482 | P115: 1026226.163 | Q115: 1068186.87 | R115: 1157504.225 | S115: 1440493.661 | T115: 1512553.562 | U115: 1581501.084 | V115: 1530629.362 | W115: 1460614.113 | X115: 1881475.727 | Y115: 1996776.61 | Z115: 2045056.606 | AA115: 2219917.413 | AB115: 2634201.617
B116: Hong Kong | C116: 237992.2962 | D116: 249360.4441 | E116: 225078.2339 | F116: 405265.9889 | G116: 435417.137 | H116: 401186.7385 | I116: 315063.3496 | J116: 363680.4071 | K116: 427052.4217 | L116: 493894.7436 | M116: 703563.1873 | N116: 1147889.252 | O116: 783257.3382 | P116: 904300.0451 | Q116: 1067519.969 | R116: 1078748.825 | S116: 1244646.281 | T116: 1352021.668 | U116: 1496082.651 | V116: 1591627.379 | W116: 1626013.412 | X116: 1943917.072 | Y116: 1963319.632 | Z116: 1867697.316 | AA116: 1851463.691 | AB116: 2022194.922
B117: Países Bajos | C117: 127384.2206 | D117: 125099.5721 | E117: 164225.71 | F117: 192228.1125 | G117: 243732.8904 | H117: 282881.4037 | I117: 349968.7488 | J117: 458223.6418 | K117: 519479.1326 | L117: 479420.4841 | M117: 552747.988 | N117: 767456.3007 | O117: 647414.0834 | P117: 646288.0769 | Q117: 588076.8208 | R117: 610677.1369 | S117: 663302.7232 | T117: 779056.1721 | U117: 1453322.204 | V117: 1274847.999 | W117: 1326630.287 | X117: 1506178.704 | Y117: 1477460.143 | Z117: 1454740.055 | AA117: 2719474.325 | AB117: 2576225.321
B118: Alemania | C118: 316600.4879 | D118: 314305.5901 | E118: 403621.8238 | F118: 235254.2291 | G118: 470937.6657 | H118: 424307.9608 | I118: 538018.5033 | J118: 686716.7825 | K118: 727999.3462 | L118: 640058.1356 | M118: 799246.939 | N118: 952220.073 | O118: 914509.3007 | P118: 963511.0314 | Q118: 955881.3508 | R118: 997726.617 | S118: 1077018.683 | T118: 967687.7057 | U118: 859564.9878 | V118: 781717.5269 | W118: 794527.1324 | X118: 963098.7503 | Y118: 940576.7597 | Z118: 963567.0192 | AA118: 1107838.71 | AB118: 1139105.517
B119: China | C119: 128069 | D119: 153995 | E119: 175156 | F119: 186189 | G119: 193348 | H119: 203142 | I119: 216503 | J119: 228371 | K119: 245467 | L119: 272094 | M119: 292559 | N119: 327087 | O119: 378083 | P119: 472148 | Q119: 586882 | R119: 710867 | S119: 831940 | T119: 955851 | U119: 1084353 | V119: 1219930 | W119: 1353641 | X119: 1489956 | Y119: 1628261 | Z119: 1769486 | AA119: 1918828 | AB119: 2064018
B120: Canadá | C120: 132977.5117 | D120: 135943.6009 | E120: 143344.6586 | F120: 174989.9536 | G120: 325019.9973 | H120: 317369.082 | I120: 290472.9045 | J120: 439939.6472 | K120: 544146.7265 | L120: 638650.0644 | M120: 706901.2272 | N120: 1032966.299 | O120: 620191.0828 | P120: 867386.7762 | Q120: 983889.4995 | R120: 862698.335 | S120: 953502.8135 | T120: 982529.1353 | U120: 994711.6131 | V120: 806297.6879 | W120: 903453.4892 | X120: 943501.7935 | Y120: 922029.1767 | Z120: 1156061.72 | AA120: 1235584.941 | AB120: 1437836.766
B121: Singapur | C121: 89494 | D121: 74768.30797 | E121: 86839.62662 | F121: 102533.4934 | G121: 110570.3044 | H121: 138774.7704 | I121: 161225.5111 | J121: 183968.4266 | K121: 216323.1118 | L121: 237506.79 | M121: 313809.5331 | N121: 421667.4993 | O121: 459471.0256 | P121: 506830.9106 | Q121: 633353.5534 | R121: 689455.2933 | S121: 829263.4246 | T121: 897610.132 | U121: 1028270.718 | V121: 1091560.577 | W121: 1144869.322 | X121: 1423792.01 | Y121: 1522568.655 | Z121: 1738526.054 | AA121: 1952037.743 | AB121: 2007270.03
B122: Suiza | C122: 53918.22638 | D122: 59518.9308 | E122: 71995.13258 | F122: 75994.87372 | G122: 101634.7795 | H122: 103772.9894 | I122: 143617.8634 | J122: 184198.8267 | K122: 222692.6813 | L122: 192342.4447 | M122: 293730.0103 | N122: 381391.0436 | O122: 478224.2032 | P122: 532404.9914 | Q122: 648091.6998 | R122: 720565.851 | S122: 781079.2788 | T122: 822051.2208 | U122: 826996.0063 | V122: 982396.2492 | W122: 1281474.201 | X122: 1420755.97 | Y122: 1396677.095 | Z122: 1460386.238 | AA122: 1423892.008 | AB122: 1369626.391
B123: Francia | C123: 314647.0766 | D123: 328950.7246 | E123: 454046.404 | F123: 597282.9587 | G123: 184214.9829 | H123: 195513.312 | I123: 251728.7811 | J123: 345576.8497 | K123: 403440.6669 | L123: 371447.4803 | M123: 493763.3429 | N123: 623625.4273 | O123: 563005.0129 | P123: 648012.3315 | Q123: 630710.4174 | R123: 698871.1133 | S123: 680409.5419 | T123: 761371.7072 | U123: 700064.9544 | V123: 687371.9595 | W123: 694896.0661 | X123: 819307.5244 | Y123: 809695.1779 | Z123: 854925.2658 | AA123: 963797.4346 | AB123: 977990.3207
B124: España | C124: 110224.0722 | D124: 106007.375 | E124: 126059.9418 | F124: 125360.9056 | G124: 156348.2427 | H124: 177253.5536 | I124: 257105.6921 | J124: 339651.9211 | K124: 407472.3017 | L124: 384538.4777 | M124: 461527.5299 | N124: 585857.33 | O124: 588900.9013 | P124: 632246.1597 | Q124: 628341.0036 | R124: 628949.9403 | S124: 592267.1826 | T124: 649224.7394 | U124: 596701.2888 | V124: 561571.2062 | W124: 591537.7156 | X124: 717927.1306 | Y124: 751648.2283 | Z124: 769277.2607 | AA124: 864807.1859 | AB124: 819725.1859
B125: Irlanda | C125: 46803.989 | D125: 47970.18634 | E125: 62205.24991 | F125: 72815.42182 | G125: 127088.7419 | H125: 134052.4725 | I125: 182897.3889 | J125: 222837.3029 | K125: 207646.8345 | L125: 163530.0405 | M125: 156491.2992 | N125: 203682.6036 | O125: 188289.9633 | P125: 250102.6428 | Q125: 285575.3209 | R125: 290494.8781 | S125: 383205.3515 | T125: 414740.6397 | U125: 429847.4483 | V125: 890096.1319 | W125: 840663.8698 | X125: 1057987.335 | Y125: 1049411.355 | Z125: 1212788.784 | AA125: 1346807.701 | AB125: 1362509.764
B126: Australia | C126: 122701.8933 | D126: 106451.276 | E126: 113102.466 | F126: 127144.4636 | G126: 121685.8259 | H126: 123670.9081 | I126: 154274.8109 | J126: 219094.2977 | K126: 291009.5817 | L126: 247747.8998 | M126: 302078.7504 | N126: 391760.5572 | O126: 307751.0357 | P126: 439623.3015 | Q126: 527728.2331 | R126: 555574.6263 | S126: 615813.9419 | T126: 569825.2706 | U126: 582537.8729 | V126: 566421.6725 | W126: 611130.4071 | X126: 700450.0605 | Y126: 701467.5709 | Z126: 732860.5218 | AA126: 794665.4405 | AB126: 770258.3861
